{"text_format":"1","workbook":"xlsx","n_sheets":11,"sheets":["lijsten_oud","EMRIC","L","V","Material-Materiaal-Matériel","ANTWORT-ANTWOORD-RÉPONSE","EMRIC pakketten | EMRIC Pakete","CBRN","EURODIVE","CONTACT","Loodsposten-Lotsenstellen-eurog"],"not_rendered":{"charts":0,"images":32,"macros":1,"external_links":0,"defined_names":66,"comments":0,"pivot_tables":0},"unopened":[],"bounds":{"document_bytes":16777216,"sheet_cells":100000,"rows_first":2000,"rows_last":500,"rows_between":2000,"halvings":0,"cell_chars":16384,"cell_head_chars":4096},"cells_cut":0,"cells_raw":0,"read":"whole","date_system":"1900"}

{"sheet":"lijsten_oud","index":0,"n_rows":84,"n_cols":8,"rows_kept":84,"cut":false,"hidden":true,"merged":[]}
["Meldkamers:"]
["_______________","_______________","_______________"]
["Leitstelle_Aachen","Städteregion_Aachen","Stadt_Aachen"]
["Leitstelle_Heinsberg","Kreis_Heinsberg"]
["Meldkamer_Limburg_Maastricht","Veiligheidsregio_Zuid_Limburg"]
["Centrale_alerte_Liège","Province_de_Liège"]
["Meldkamer_Limburg_Hasselt","Provincie_Limburg_BE"]
["Leitstelle_Euskirchen","Kreis_Euskirchen"]
["Leitstelle_Düren","Kreis_Düren"]
[]
[]
[]
[]
["Kreis_Heinsberg","Städteregion_Aachen","Stadt_Aachen","Veiligheidsregio_Zuid_Limburg","Province_de_Liège","Provincie_Limburg_BE","Kreis_Euskirchen","Kreis_Düren"]
["HS 1 - B221 Höhe Ortschaft Arsbeck","Kr.AC B1 - Eschweiler, Am Kraftwerk 17 (A4 / L 241 Weisweiler, Parkplatz RWE-Power)","ACS LS 1 - Eschweiler, BAB4 Raststätte Aachener Land Nord (20 Fahrzeuge),","NL-ZL 1 - A2 - (E25) Eindhoven->Maastricht, Esso-tankstation/ parkeerplaats Het Anker","1 - A3/E40 Aachen-> Bruxelles | Lichtenbusch | Station Essence TOTAL",null,"EUS 1 - Bundesstraße B265/ Parkplatz Am Weisser Stein, Hellenthal-Udenbreth"]
["HS 2 - BAB 46 Parkplatz Herrather Linde","Kr.AC LS 2 - Baesweiler, Hauptstr. (B 57 / B 56 Baesweiler, Puffendorferkreuzung)","ACS LS 2 - Aachen, BAB 4 Zollamt Vetschau","NL-ZL 2 - Hotel Stein (van derValk, Urmond) Mauritslaan 65, 6129 EL Urmond, direct aan A2 - (E25) Eindhoven<->Maastricht","2 - A3/E40 Aachen-> Bruxelles | Barchon | Station essence SHELL (BK 102,2)"]
["HS 3 - Hückelhoven-Baal, Lövenicher Str. 40, Grundschule","Kr.AC LS 3 - Alsdorf, L 240 (A44 / L 240 AS Alsdorf)","ACS LS 3 - Aachen, BAB 44 Zollamt Lichtenbusch","NL-ZL 3 - Apple Park (Geusselt stadion) Stadionplein, Maastricht. Direct aan N2  (E 25) ","3 - A25/E25 Maastricht-> Liège | Air de repos de Visé (BK 0,8)"]
["HS 4 - Parkplatz B56 vor Abfahrt L42","Kr.AC LS 4 - Eschweiler, Am Kraftwerk - K 35 (A4 / L 241 AS Weisweiler)","ACS LP 4 - Würselen, BAB 44 Ausfahrt Broichweiden","NL-ZL 4 - Eindhoven<->Maastricht","4 - A13/E313 Hasselt-> Liège | Air de repos de Slins (BK 103,3)"]
["HS 5 - Übach-Palenberg > Geilenkirchen Parkplatz, B221","Kr.AC LS 5 - Eschweiler, Kölnerstraße (B 264 Eschweiler-Weisweiler, Langerweher Str., Ortseingang)","ACS LP 5 - Aachen, Vaalserquartier, Vaalserstr. Grenzübergang","NL-ZL 5 - A2 - (E 25) Luik-> Maastricht, BP tankstation, parkeerplaats Patiel","5 - A3/E40 Bruxelles-> Liège | Aire de repos de Louhin à Crisnée (BK 78,9)"]
["HS 6 - Gangelt Kreisverkehr L410/ B56","Kr.AC LS 6 - Simmerath, Jägerhausstraße (B 399 Simmerath- Lammersdorf, Forsthaus Jägerhaus)","ACS LP 6 - Aachen, Lütticher Straße Grenzübergang Bildchen, Parkstreifen","NL-ZL 6 - A 76- - (E 314) Aken -> Heerlen, Esso tankstation/ parkeerplaats, Langveld","6 - A15/E42 Namur-> Liège | Aire de repos de Verlaine | Station Essence Q8 (BK 15,9)"]
["HS 7 - Grenzübergang Selfkant B56n / N297","Kr.AC LS 7 - Simmerath, Kölnerstraße (L 246 Simmerath- Strauch,Gerstenhof)","ACS LP 7 - Aachen, Trierer Straße Richtung AC Busspur zw. Debeystr. und Triererplatz","NL-ZL 7 - Bloemendalstraat 150, Vaals. Hotel Kasteel Bloemendal"]
["HS 8 - Grenzübergang Waldfeucht Brabanter Str.","Kr.AC LS 8 - Simmerath B 266, Rurstraße (B 266 Simmerath- Einruhr /Obersee)"]
["HS 9 - Grenzübergang Rothenbach L117","Kr.AC LS 9 - Monschau, Hauptstraße (B 258 Monschau- Höfen,Bratherhof)"]
[null,"Kr.AC LS 10 - Monschau, Malmedyerstraße (B 399 / N 669 Monschau-Kalterherberg Grenzübergang, Malmedyerstr.)"]
[null,"Kr.AC LS 11 - Monschau, Eupenerstraße (L 214 / N 67d Monschau- Mützenich Grenzübergang, Eupener Str.)"]
[null,"Kr.AC LS 12 - Aachen, Monschauerstr./Schleidenerstr. (B 258 Aachen, Relais Königsberg)"]
[null,"Kr.AC LS 13 - Geilenkirchenerstraße (B 221 / L 232 Herzogenrath-Merkstein (Geilenkirchener Str.))"]
[]
[]
["________________"]
[{"$f":"IF(EMRIC!$H$4=\"Nederlands\",D31,IF(EMRIC!$H$4=\"Deutsch\",B31,IF(EMRIC!$H$4=\"Français\",C31)))","v":"brand"},"Brand","incendie","brand"]
[{"$f":"IF(EMRIC!$H$4=\"Nederlands\",D32,IF(EMRIC!$H$4=\"Deutsch\",B32,IF(EMRIC!$H$4=\"Français\",C32)))","v":"ongeval met gevaarlijke stoffen"},"Gefahrguteinsatz","intervention avec substances dangereuses","ongeval met gevaarlijke stoffen"]
[{"$f":"IF(EMRIC!$H$4=\"Nederlands\",D33,IF(EMRIC!$H$4=\"Deutsch\",B33,IF(EMRIC!$H$4=\"Français\",C33)))","v":"waterongeval"},"Wasserunfall","accident sur l'eau","waterongeval"]
[{"$f":"IF(EMRIC!$H$4=\"Nederlands\",D34,IF(EMRIC!$H$4=\"Deutsch\",B34,IF(EMRIC!$H$4=\"Français\",C34)))","v":"verkeersongeval"},"Verkehrsunfall","accident de la route","verkeersongeval"]
[{"$f":"IF(EMRIC!$H$4=\"Nederlands\",D35,IF(EMRIC!$H$4=\"Deutsch\",B35,IF(EMRIC!$H$4=\"Français\",C35)))","v":"hoogteredding"},"Höhenrettung","sauvetage de altitude","hoogteredding"]
[{"$f":"IF(EMRIC!$H$4=\"Nederlands\",D36,IF(EMRIC!$H$4=\"Deutsch\",B36,IF(EMRIC!$H$4=\"Français\",C36)))","v":"hoogwater"},"Hochwasser","hautes eaux","hoogwater"]
[{"$f":"IF(EMRIC!$H$4=\"Nederlands\",D37,IF(EMRIC!$H$4=\"Deutsch\",B37,IF(EMRIC!$H$4=\"Français\",C37)))","v":"storm"},"Unwetter","tempête","storm"]
[{"$f":"IF(EMRIC!$H$4=\"Nederlands\",D38,IF(EMRIC!$H$4=\"Deutsch\",B38,IF(EMRIC!$H$4=\"Français\",C38)))","v":"bosbrand"},"Waldbrand","feu de fôret","bosbrand"]
[{"$f":"IF(EMRIC!$H$4=\"Nederlands\",D39,IF(EMRIC!$H$4=\"Deutsch\",B39,IF(EMRIC!$H$4=\"Français\",C39)))","v":"buitenbrand"},"Flächenbrand","feu à l'extérieur","buitenbrand"]
[{"$f":"IF(EMRIC!$H$4=\"Nederlands\",D40,IF(EMRIC!$H$4=\"Deutsch\",B40,IF(EMRIC!$H$4=\"Français\",C40)))","v":"veenbrand"},"Vennbrand","feu de fagnes","veenbrand"]
[{"$f":"IF(EMRIC!$H$4=\"Nederlands\",D41,IF(EMRIC!$H$4=\"Deutsch\",B41,IF(EMRIC!$H$4=\"Français\",C41)))","v":"vliegtuigongeval"},"Flugzeugunglück","accident d'aviation","vliegtuigongeval"]
[{"$f":"IF(EMRIC!$H$4=\"Nederlands\",D42,IF(EMRIC!$H$4=\"Deutsch\",B42,IF(EMRIC!$H$4=\"Français\",C42)))","v":"explosie"},"Explosion","explosion","explosie"]
[{"$f":"IF(EMRIC!$H$4=\"Nederlands\",D43,IF(EMRIC!$H$4=\"Deutsch\",B43,IF(EMRIC!$H$4=\"Français\",C43)))","v":"instorting"},"Einsturz","effondrement","instorting"]
[{"$f":"IF(EMRIC!$H$4=\"Nederlands\",D44,IF(EMRIC!$H$4=\"Deutsch\",B44,IF(EMRIC!$H$4=\"Français\",C44)))","v":"treinongeval"},"Zugunglück","accident de train","treinongeval"]
[{"$f":"IF(EMRIC!$H$4=\"Nederlands\",D45,IF(EMRIC!$H$4=\"Deutsch\",B45,IF(EMRIC!$H$4=\"Français\",C45)))","v":"industriebrand"},"Industriebrand","feu industriel","industriebrand"]
[{"$f":"IF(EMRIC!$H$4=\"Nederlands\",D46,IF(EMRIC!$H$4=\"Deutsch\",B46,IF(EMRIC!$H$4=\"Français\",C46)))","v":"woningbrand"},"Wohungsbrand","feu d'habitation","woningbrand"]
[{"$f":"IF(EMRIC!$H$4=\"Nederlands\",D47,IF(EMRIC!$H$4=\"Deutsch\",B47,IF(EMRIC!$H$4=\"Français\",C47)))","v":"anders, namelijk..."},"anderes, nämlich...","autre à savoir...","anders, namelijk..."]
[]
[]
[]
["Datum"]
["Maand","Dag","Jaar"]
["__________________________","_______________________________","____________________________"]
[{"$f":"IF(EMRIC!$H$4=\"Deutsch\",\"Januar\",IF(EMRIC!$H$4=\"Nederlands\",\"januari\",IF(EMRIC!$H$4=\"Français\",\"janvier\")))","v":"januari"},1,2016]
[{"$f":"IF(EMRIC!$H$4=\"Deutsch\",\"Februar\",IF(EMRIC!$H$4=\"Nederlands\",\"februari\",IF(EMRIC!$H$4=\"Français\",\"février\")))","v":"februari"},2,2017]
[{"$f":"IF(EMRIC!$H$4=\"Deutsch\",\"März\",IF(EMRIC!$H$4=\"Nederlands\",\"maart\",IF(EMRIC!$H$4=\"Français\",\"mars\")))","v":"maart"},3,2018]
[{"$f":"IF(EMRIC!$H$4=\"Deutsch\",\"April\",IF(EMRIC!$H$4=\"Nederlands\",\"april\",IF(EMRIC!$H$4=\"Français\",\"avril\")))","v":"april"},4,2019]
[{"$f":"IF(EMRIC!$H$4=\"Deutsch\",\"Mai\",IF(EMRIC!$H$4=\"Nederlands\",\"mei\",IF(EMRIC!$H$4=\"Français\",\"mai\")))","v":"mei"},5,2020]
[{"$f":"IF(EMRIC!$H$4=\"Deutsch\",\"Juni\",IF(EMRIC!$H$4=\"Nederlands\",\"juni\",IF(EMRIC!$H$4=\"Français\",\"juin\")))","v":"juni"},6,2021]
[{"$f":"IF(EMRIC!$H$4=\"Deutsch\",\"Juli\",IF(EMRIC!$H$4=\"Nederlands\",\"juli\",IF(EMRIC!$H$4=\"Français\",\"juillet\")))","v":"juli"},7,2022]
[{"$f":"IF(EMRIC!$H$4=\"Deutsch\",\"August\",IF(EMRIC!$H$4=\"Nederlands\",\"augustus\",IF(EMRIC!$H$4=\"Français\",\"août\")))","v":"augustus"},8]
[{"$f":"IF(EMRIC!$H$4=\"Deutsch\",\"September\",IF(EMRIC!$H$4=\"Nederlands\",\"september\",IF(EMRIC!$H$4=\"Français\",\"septembre\")))","v":"september"},9]
[{"$f":"IF(EMRIC!$H$4=\"Deutsch\",\"Oktober\",IF(EMRIC!$H$4=\"Nederlands\",\"oktober\",IF(EMRIC!$H$4=\"Français\",\"octobre\")))","v":"oktober"},10]
[{"$f":"IF(EMRIC!$H$4=\"Deutsch\",\"November\",IF(EMRIC!$H$4=\"Nederlands\",\"november\",IF(EMRIC!$H$4=\"Français\",\"novembre\")))","v":"november"},11]
[{"$f":"IF(EMRIC!$H$4=\"Deutsch\",\"Dezember\",IF(EMRIC!$H$4=\"Nederlands\",\"december\",IF(EMRIC!$H$4=\"Français\",\"décembre\")))","v":"december"},12]
[null,13]
[null,14]
[null,15]
[null,16]
[null,17]
[null,18]
[null,19]
[null,20]
[null,21]
[null,22]
[null,23]
[null,24]
[null,25]
[null,26]
[null,27]
[null,28]
[null,29]
[null,30]
[null,31]

{"sheet":"EMRIC","index":1,"n_rows":70,"n_cols":21,"rows_kept":70,"cut":false,"hidden":false,"merged":[[56,19,56,20],[54,13,57,13],[57,19,57,20],[55,19,55,20],[46,19,46,20],[47,19,47,20],[46,7,46,15],[47,7,47,15],[51,19,51,20],[49,19,49,20],[50,19,50,20],[53,19,53,20],[54,19,54,20],[48,19,48,20],[52,19,52,20],[58,19,58,20],[59,19,59,20],[60,19,60,20],[69,19,69,20],[61,19,61,20],[62,19,62,20],[63,19,63,20],[64,19,64,20],[65,19,65,20],[67,19,67,20],[66,19,66,20],[68,19,68,20],[62,0,62,14],[18,1,18,6],[19,1,19,6],[19,7,19,14],[20,1,20,6],[21,1,21,6],[20,7,20,14],[39,7,39,14],[40,7,40,14],[21,7,21,14],[38,7,38,14],[61,1,61,5],[61,6,61,14],[45,8,45,15],[25,8,25,13],[3,1,3,6],[16,8,16,12],[3,8,3,20],[15,15,15,20],[13,1,13,14],[6,1,6,14],[12,1,12,14],[14,1,14,14],[16,18,16,20],[45,19,45,20],[37,7,37,14],[42,7,42,15],[44,7,44,15],[17,16,17,20],[42,18,43,20],[44,19,44,20],[35,16,35,17],[40,18,41,20],[35,18,35,20]]}
[null,"© EMRIC 2019"]
[]
[]
[null,"Sprache / Taal / Langue:",null,null,null,null,null,"Nederlands"]
[null,null,null,null,null,null,null,null,null,null,null,null,null,null,null,null,null,null,null,{"$f":"V!F97","v":"Versie"},"2019-05-02"]
[]
[null,{"$f":"IF($H$4=\"Deutsch\",\"Bitte um euregionale Hilfeleistung FEUERWEHR UND TECHNISCHE HILFELEISTUNG\",IF($H$4=\"Nederlands\",\"Verzoek tot euregionale bijstand BRANDWEER EN TECHNISCHE HULPVERLENING\",IF($H$4=\"Français\",\"Demande d'aide euregionale POMPIERS ET AIDE TECHNIQUE\")))","v":"Verzoek tot euregionale bijstand BRANDWEER EN TECHNISCHE HULPVERLENING"}]
[]
[null,{"$f":"IF(EMRIC!$H$4=\"Deutsch\",V!B76,IF(EMRIC!$H$4=\"Nederlands\",V!B77,IF(EMRIC!$H$4=\"Français\",V!B78)))","v":"PROCEDURE"}]
[null,"1.",{"$f":"V!F76","v":"Telefonische melding incident"}]
[null,"2.",{"$f":"V!F77","v":"Formulier invullen en per mail sturen (of per fax)"}]
[null,"3.",{"$f":"V!F80","v":"Antwoord afwachten"}]
[null,{"$f":"V!F84","v":"OPMERKINGEN"}]
[null,{"$f":"V!F81","v":"Het rode tabblad dient ingevuld te worden. Blauwe tabbladen zijn uitsluitend ter informatie. \nHet groene tabblad wordt ingevuld door de ontvanger en teruggestuurd."}]
[null,{"$f":"V!F82","v":"Dit formulier maakt gebruik van macros. Het formulier moet echter zonder macros worden opgeslagen, om te voorkomen dat het bij het versturen per e-mail in de spamfilter terecht komt. \nLet u hierbij alstublieft op de volgende instructies:\n1. Het oorspronkelijke sjabloon dient altijd ingevuld te worden! Bij een ingevuld en opgeslagen formulier werken een aantal functies niet meer correct. Opent u alstublieft het bestand middels dubbelklikken; hierdoor wordt automatisch een kopie van het bestand geopend zonder het originele sjabloon te wijzigen.\n2. Het formulier moet als normaal Excel-bestand zonder macros worden opgeslagen. Bij het opslaan geeft Excel de melding dat het VB-project niet kan worden opgeslagen; klikt u hier alstublieft op “JA”."}]
[]
[null,null,null,null,null,null,null,{"$f":"IF($H$4=\"Deutsch\",\"Datum:\",IF($H$4=\"Nederlands\",\"Datum:\",IF($H$4=\"Français\",\"Date:\")))","v":"Datum:"},"dd/mm/yy",null,null,null,null,{"$f":"IF($H$4=\"Deutsch\",\"Uhrzeit:\",IF($H$4=\"Nederlands\",\"Tijd:\",IF($H$4=\"Français\",\"Heure:\")))","v":"Tijd:"},"00:00:00"]
[]
[null,{"$f":"IF($H$4=\"Deutsch\",\"ABSENDER:\",IF($H$4=\"Nederlands\",\"VAN:\",IF($H$4=\"Français\",\"PAR:\")))","v":"VAN:"}]
[null,"E-mail ",null,null,null,null,null,{"$f":"\nIF(L!$E$12=1,\"\",\nIF(L!$E$12=2,CONTACT!$C$2,\nIF(L!$E$12=3,CONTACT!$C$3,\nIF(L!$E$12=4,CONTACT!$C$4,\nIF(L!$E$12=5,CONTACT!$C$5,\nIF(L!$E$12=6,CONTACT!$C$6,\nIF(L!$E$12=7,CONTACT!$C$7,\nIF(L!$E$12=8,CONTACT!$C$8,\nIF(L!$E$12=9,CONTACT!$C$9)))))))))","v":""}]
[null,"Tel. ",null,null,null,null,null,{"$f":"\nIF(L!$E$12=1,\"\",\nIF(L!$E$12=2,CONTACT!$B$2,\nIF(L!$E$12=3,CONTACT!$B$3,\nIF(L!$E$12=4,CONTACT!$B$4,\nIF(L!$E$12=5,CONTACT!$B$5,\nIF(L!$E$12=6,CONTACT!$B$6,\nIF(L!$E$12=7,CONTACT!$B$7,\nIF(L!$E$12=8,CONTACT!$B$8,\nIF(L!$E$12=9,CONTACT!$B$9)))))))))","v":""}]
[null,"Fax.",null,null,null,null,null,{"$f":"\nIF(L!$E$12=1,\"\",\nIF(L!$E$12=2,CONTACT!$D$2,\nIF(L!$E$12=3,CONTACT!$D$3,\nIF(L!$E$12=4,CONTACT!$D$4,\nIF(L!$E$12=5,CONTACT!$D$5,\nIF(L!$E$12=6,CONTACT!$D$6,\nIF(L!$E$12=7,CONTACT!$D$7,\nIF(L!$E$12=8,CONTACT!$D$8,\nIF(L!$E$12=9,CONTACT!$D$9)))))))))","v":""}]
[]
[]
[null,null,{"$f":"IF($H$4=\"Deutsch\",\"Erbetene Unterstützung:\",IF($H$4=\"Nederlands\",\"Gewenste bijstand:\",IF($H$4=\"Français\",\"Aide demandée:\")))","v":"Gewenste bijstand:"}]
[null,null,null,null,null,null,null,{"$f":"IF(EMRIC!$H$4=\"Deutsch\",\"Emric Pakete\",IF(EMRIC!$H$4=\"Nederlands\",\"Emric pakketten\", IF(EMRIC!$H$4=\"Français\",\"Paquets Emric\")))","v":"Emric pakketten"},{"$f":"IF(EMRIC!$H$4=\"Deutsch\",V!$B$59,IF(EMRIC!$H$4=\"Nederlands\",V!$B$60,IF(EMRIC!$H$4=\"Français\",V!$B$61)))","v":"Aanvullende modules zijn zichtbaar na selectie Emric 2 of Emric 3:"},null,null,null,null,null,{"$f":"V!$F$46","v":"CBRN-METEN:"}]
[null,null,{"$f":"CONTACT!A2","v":"CS 112 Luik (B)"}]
[null,null,{"$f":"CONTACT!A3","v":"CS 112 Limburg (B)"}]
[null,null,{"$f":"CONTACT!A4","v":"Zone-meldkamer Oost-Limburg (B)"}]
[null,null,{"$f":"CONTACT!A5","v":"Meldkamer Stad/StädteRegion Aken (D)"}]
[null,null,{"$f":"CONTACT!A6","v":"Meldkamer Kreis Düren (D)"}]
[null,null,{"$f":"CONTACT!A7","v":"Meldkamer Kreis Euskirchen (D)"}]
[null,null,{"$f":"CONTACT!A8","v":"Meldkamer Kreis Heinsberg (D)"}]
[null,null,{"$f":"CONTACT!A9","v":"Meldkamer Limburg (NL)"}]
[]
[]
[]
[null,{"$f":"IF($H$4=\"Deutsch\",V!B6,IF($H$4=\"Nederlands\",V!B7,IF($H$4=\"Français\",V!B8)))","v":"SOORT INCIDENT:"}]
[null,null,null,null,null,null,null,{"$f":"IF(L!H21=18,V!F24,\"\")","v":""}]
[null,{"$f":"IF($H$4=\"Deutsch\",\"Besonderheiten:\",IF($H$4=\"Nederlands\",\"Bijzonderheden:\",IF($H$4=\"Français\",\"Particularités:\")))","v":"Bijzonderheden:"}]
[null,{"$f":"IF($H$4=\"Deutsch\",\"Besondere Hilfeleistungsfrage:\",IF($H$4=\"Nederlands\", \"Bijzondere hulpvraag:\",IF($H$4=\"Français\",\"Demande spéciale d’aide:\")))","v":"Bijzondere hulpvraag:"}]
[]
[null,{"$f":"IF($H$4=\"Deutsch\",\"EINSATZORT (GPS/UTM/Adresse):\",IF($H$4=\"Nederlands\",\"PLAATS VAN HET INCIDENT (GPS/UTM/adres):\",IF($H$4=\"Français\",\"LIEU D’INCIDENT (GPS/UTM/adresse):\")))","v":"PLAATS VAN HET INCIDENT (GPS/UTM/adres):"},null,null,null,null,null,{"$f":"V!F24","v":"invoeren s.v.p."}]
[null,{"$f":"IF($H$4=\"Deutsch\",\"LOTSENSTELLE:\",IF($H$4=\"Nederlands\",\"LOODSPOST:\",IF($H$4=\"Français\",\"EUROGUIDE:\")))","v":"LOODSPOST:"}]
[null,{"$f":"IF(EMRIC!$H$4=\"Deutsch\",V!C65,IF(EMRIC!$H$4=\"Nederlands\",V!D65,IF(EMRIC!$H$4=\"Français\",V!E65)))","v":"omschrijving:"},null,null,null,null,null,{"$f":"IF(ISNA(L!F15),\"\",IF(L!F15=\"\",\"\",L!F15))","v":""}]
[null,{"$f":"IF($H$4=\"Nederlands\",\"GPS-coördinaten\",IF($H$4=\"Deutsch\",\"GPS-Koordinaten\",IF($H$4=\"Français\",\"GPS-coordonneés\")))","v":"GPS-coördinaten"},null,null,null,null,null,{"$f":"\nIF(H45=\"\",\"\",\nIF(H45='Loodsposten-Lotsenstellen-eurog'!B66,'Loodsposten-Lotsenstellen-eurog'!C66,\nIF(H45='Loodsposten-Lotsenstellen-eurog'!B67,'Loodsposten-Lotsenstellen-eurog'!C67,\nIF(H45='Loodsposten-Lotsenstellen-eurog'!B68,'Loodsposten-Lotsenstellen-eurog'!C68,\nIF(H45='Loodsposten-Lotsenstellen-eurog'!B69,'Loodsposten-Lotsenstellen-eurog'!C69,\nIF(H45='Loodsposten-Lotsenstellen-eurog'!B70,'Loodsposten-Lotsenstellen-eurog'!C70,\nIF(H45='Loodsposten-Lotsenstellen-eurog'!B71,'Loodsposten-Lotsenstellen-eurog'!C71,\nIF(H45='Loodsposten-Lotsenstellen-eurog'!B72,'Loodsposten-Lotsenstellen-eurog'!C72,\nIF(H45='Loodsposten-Lotsenstellen-eurog'!B73,'Loodsposten-Lotsenstellen-eurog'!C73,\nIF(H45='Loodsposten-Lotsenstellen-eurog'!B74,'Loodsposten-Lotsenstellen-eurog'!C74,\nIF(H45='Loodsposten-Lotsenstellen-eurog'!B60,'Loodsposten-Lotsenstellen-eurog'!C60,\nIF(H45='Loodsposten-Lotsenstellen-eurog'!B52,'Loodsposten-Lotsenstellen-eurog'!C52,\nIF(H45='Loodsposten-Lotsenstellen-eurog'!B53,'Loodsposten-Lotsenstellen-eurog'!C53,\nIF(H45='Loodsposten-Lotsenstellen-eurog'!B54,'Loodsposten-Lotsenstellen-eurog'!C54,\nIF(H45='Loodsposten-Lotsenstellen-eurog'!B34,'Loodsposten-Lotsenstellen-eurog'!C34,\nIF(H45='Loodsposten-Lotsenstellen-eurog'!B35,'Loodsposten-Lotsenstellen-eurog'!C35,\nIF(H45='Loodsposten-Lotsenstellen-eurog'!B36,'Loodsposten-Lotsenstellen-eurog'!C36,\nIF(H45='Loodsposten-Lotsenstellen-eurog'!B37,'Loodsposten-Lotsenstellen-eurog'!C37,\nIF(H45='Loodsposten-Lotsenstellen-eurog'!B38,'Loodsposten-Lotsenstellen-eurog'!C38,\nIF(H45='Loodsposten-Lotsenstellen-eurog'!B39,'Loodsposten-Lotsenstellen-eurog'!C39,\nIF(H45='Loodsposten-Lotsenstellen-eurog'!B40,'Loodsposten-Lotsenstellen-eurog'!C40,\nIF(H45='Loodsposten-Lotsenstellen-eurog'!B41,'Loodsposten-Lotsenstellen-eurog'!C41,\nIF(H45='Loodsposten-Lotsenstellen-eurog'!B42,'Loodsposten-Lotsenstellen-eurog'!C42,\nIF(H45='Loodsposten-Lotsenstellen-eurog'!B43,'Loodsposten-Lotsenstellen-eurog'!C43,\nIF(H45='Loodsposten-Lotsenstellen-eurog'!B44,'Loodsposten-Lotsenstellen-eurog'!C44,\nIF(H45='Loodsposten-Lotsenstellen-eurog'!B45,'Loodsposten-Lotsenstellen-eurog'!C45,\nIF(H45='Loodsposten-Lotsenstellen-eurog'!B46,'Loodsposten-Lotsenstellen-eurog'!C46,\nIF(H45='Loodsposten-Lotsenstellen-eurog'!B22,'Loodsposten-Lotsenstellen-eurog'!C22,\nIF(H45='Loodsposten-Lotsenstellen-eurog'!B23,'Loodsposten-Lotsenstellen-eurog'!C23,\nIF(H45='Loodsposten-Lotsenstellen-eurog'!B24,'Loodsposten-Lotsenstellen-eurog'!C24,\nIF(H45='Loodsposten-Lotsenstellen-eurog'!B25,'Loodsposten-Lotsenstellen-eurog'!C25,\nIF(H45='Loodsposten-Lotsenstellen-eurog'!B26,'Loodsposten-Lotsenstellen-eurog'!C26,\nIF(H45='Loodsposten-Lotsenstellen-eurog'!B27,'Loodsposten-Lotsenstellen-eurog'!C27,\nIF(H45='Loodsposten-Lotsenstellen-eurog'!B28,'Loodsposten-Lotsenstellen-eurog'!C28,\nIF(H45='Loodsposten-Lotsenstellen-eurog'!B80,'Loodsposten-Lotsenstellen-eurog'!C80,\nIF(H45='Loodsposten-Lotsenstellen-eurog'!B81,'Loodsposten-Lotsenstellen-eurog'!C81,\nIF(H45='Loodsposten-Lotsenstellen-eurog'!B82,'Loodsposten-Lotsenstellen-eurog'!C82,\nIF(H45='Loodsposten-Lotsenstellen-eurog'!B83,'Loodsposten-Lotsenstellen-eurog'!C83,\nIF(H45='Loodsposten-Lotsenstellen-eurog'!B84,'Loodsposten-Lotsenstellen-eurog'!C84,\nIF(H45='Loodsposten-Lotsenstellen-eurog'!B85,'Loodsposten-Lotsenstellen-eurog'!C85,\nIF(H45='Loodsposten-Lotsenstellen-eurog'!B86,'Loodsposten-Lotsenstellen-eurog'!C86,\nIF(H45='Loodsposten-Lotsenstellen-eurog'!B87,'Loodsposten-Lotsenstellen-eurog'!C87,\nIF(H45='Loodsposten-Lotsenstellen-eurog'!B5,'Loodsposten-Lotsenstellen-eurog'!C5,\nIF(H45='Loodsposten-Lotsenstellen-eurog'!B6,'Loodsposten-Lotsenstellen-eurog'!C6,\nIF(H45='Loodsposten-Lotsenstellen-eurog'!B7,'Loodsposten-Lotsenstellen-eurog'!C7,\nIF(H45='Loodsposten-Lotsenstellen-eurog'!B8,'Loodsposten-Lotsenstellen-eurog'!C8,\nIF(H45='Loodsposten-Lotsenstellen-eurog'!B9,'Loodsposten-Lotsenstellen-eurog'!C9,\nIF(H45='Loodsposten-Lotsenstellen-eurog'!B10,'Loodsposten-Lotsenstellen-eurog'!C10,\nIF(H45='Loodsposten-Lotsenstellen-eurog'!B16,'Loodsposten-Lotsenstellen-eurog'!C16,\n)))))))))))))))))))))))))))))))))))))))))))))))))","v":""},{"$f":"\nIF(H45=\"\",\"\",\nIF(H45='Loodsposten-Lotsenstellen-eurog'!B66,'Loodsposten-Lotsenstellen-eurog'!D66,\nIF(H45='Loodsposten-Lotsenstellen-eurog'!B67,'Loodsposten-Lotsenstellen-eurog'!D67,\nIF(H45='Loodsposten-Lotsenstellen-eurog'!B68,'Loodsposten-Lotsenstellen-eurog'!D68,\nIF(H45='Loodsposten-Lotsenstellen-eurog'!B69,'Loodsposten-Lotsenstellen-eurog'!D69,\nIF(H45='Loodsposten-Lotsenstellen-eurog'!B70,'Loodsposten-Lotsenstellen-eurog'!D70,\nIF(H45='Loodsposten-Lotsenstellen-eurog'!B71,'Loodsposten-Lotsenstellen-eurog'!D71,\nIF(H45='Loodsposten-Lotsenstellen-eurog'!B72,'Loodsposten-Lotsenstellen-eurog'!D72,\nIF(H45='Loodsposten-Lotsenstellen-eurog'!B73,'Loodsposten-Lotsenstellen-eurog'!D73,\nIF(H45='Loodsposten-Lotsenstellen-eurog'!B74,'Loodsposten-Lotsenstellen-eurog'!D74,\nIF(H45='Loodsposten-Lotsenstellen-eurog'!B60,'Loodsposten-Lotsenstellen-eurog'!D60,\nIF(H45='Loodsposten-Lotsenstellen-eurog'!B52,'Loodsposten-Lotsenstellen-eurog'!D52,\nIF(H45='Loodsposten-Lotsenstellen-eurog'!B53,'Loodsposten-Lotsenstellen-eurog'!D53,\nIF(H45='Loodsposten-Lotsenstellen-eurog'!B54,'Loodsposten-Lotsenstellen-eurog'!D54,\nIF(H45='Loodsposten-Lotsenstellen-eurog'!B34,'Loodsposten-Lotsenstellen-eurog'!D34,\nIF(H45='Loodsposten-Lotsenstellen-eurog'!B35,'Loodsposten-Lotsenstellen-eurog'!D35,\nIF(H45='Loodsposten-Lotsenstellen-eurog'!B36,'Loodsposten-Lotsenstellen-eurog'!D36,\nIF(H45='Loodsposten-Lotsenstellen-eurog'!B37,'Loodsposten-Lotsenstellen-eurog'!D37,\nIF(H45='Loodsposten-Lotsenstellen-eurog'!B38,'Loodsposten-Lotsenstellen-eurog'!D38,\nIF(H45='Loodsposten-Lotsenstellen-eurog'!B39,'Loodsposten-Lotsenstellen-eurog'!D39,\nIF(H45='Loodsposten-Lotsenstellen-eurog'!B40,'Loodsposten-Lotsenstellen-eurog'!D40,\nIF(H45='Loodsposten-Lotsenstellen-eurog'!B41,'Loodsposten-Lotsenstellen-eurog'!D41,\nIF(H45='Loodsposten-Lotsenstellen-eurog'!B42,'Loodsposten-Lotsenstellen-eurog'!D42,\nIF(H45='Loodsposten-Lotsenstellen-eurog'!B43,'Loodsposten-Lotsenstellen-eurog'!D43,\nIF(H45='Loodsposten-Lotsenstellen-eurog'!B44,'Loodsposten-Lotsenstellen-eurog'!D44,\nIF(H45='Loodsposten-Lotsenstellen-eurog'!B45,'Loodsposten-Lotsenstellen-eurog'!D45,\nIF(H45='Loodsposten-Lotsenstellen-eurog'!B46,'Loodsposten-Lotsenstellen-eurog'!D46,\nIF(H45='Loodsposten-Lotsenstellen-eurog'!B22,'Loodsposten-Lotsenstellen-eurog'!D22,\nIF(H45='Loodsposten-Lotsenstellen-eurog'!B23,'Loodsposten-Lotsenstellen-eurog'!D23,\nIF(H45='Loodsposten-Lotsenstellen-eurog'!B24,'Loodsposten-Lotsenstellen-eurog'!D24,\nIF(H45='Loodsposten-Lotsenstellen-eurog'!B25,'Loodsposten-Lotsenstellen-eurog'!D25,\nIF(H45='Loodsposten-Lotsenstellen-eurog'!B26,'Loodsposten-Lotsenstellen-eurog'!D26,\nIF(H45='Loodsposten-Lotsenstellen-eurog'!B27,'Loodsposten-Lotsenstellen-eurog'!D27,\nIF(H45='Loodsposten-Lotsenstellen-eurog'!B28,'Loodsposten-Lotsenstellen-eurog'!D28,\nIF(H45='Loodsposten-Lotsenstellen-eurog'!B80,'Loodsposten-Lotsenstellen-eurog'!D80,\nIF(H45='Loodsposten-Lotsenstellen-eurog'!B81,'Loodsposten-Lotsenstellen-eurog'!D81,\nIF(H45='Loodsposten-Lotsenstellen-eurog'!B82,'Loodsposten-Lotsenstellen-eurog'!D82,\nIF(H45='Loodsposten-Lotsenstellen-eurog'!B83,'Loodsposten-Lotsenstellen-eurog'!D83,\nIF(H45='Loodsposten-Lotsenstellen-eurog'!B84,'Loodsposten-Lotsenstellen-eurog'!D84,\nIF(H45='Loodsposten-Lotsenstellen-eurog'!B85,'Loodsposten-Lotsenstellen-eurog'!D85,\nIF(H45='Loodsposten-Lotsenstellen-eurog'!B86,'Loodsposten-Lotsenstellen-eurog'!D86,\nIF(H45='Loodsposten-Lotsenstellen-eurog'!B87,'Loodsposten-Lotsenstellen-eurog'!D87,\nIF(H45='Loodsposten-Lotsenstellen-eurog'!B5,'Loodsposten-Lotsenstellen-eurog'!D5,\nIF(H45='Loodsposten-Lotsenstellen-eurog'!B6,'Loodsposten-Lotsenstellen-eurog'!D6,\nIF(H45='Loodsposten-Lotsenstellen-eurog'!B7,'Loodsposten-Lotsenstellen-eurog'!D7,\nIF(H45='Loodsposten-Lotsenstellen-eurog'!B8,'Loodsposten-Lotsenstellen-eurog'!D8,\nIF(H45='Loodsposten-Lotsenstellen-eurog'!B9,'Loodsposten-Lotsenstellen-eurog'!D9,\nIF(H45='Loodsposten-Lotsenstellen-eurog'!B10,'Loodsposten-Lotsenstellen-eurog'!D10,\nIF(H45='Loodsposten-Lotsenstellen-eurog'!B16,'Loodsposten-Lotsenstellen-eurog'!D16,\n)))))))))))))))))))))))))))))))))))))))))))))))))","v":""}]
[null,{"$f":"V!F89","v":"handmatig invullen indien nodig"},null,null,null,null,null,{"$f":"IF($H$4=\"Nederlands\",\"[omschrijving]\",IF($H$4=\"Deutsch\",\"[Beschreibung]\",IF($H$4=\"Français\",\"[description]\")))","v":"[omschrijving]"}]
[null,null,null,null,null,null,null,{"$f":"IF($H$4=\"Nederlands\",\"[GPS-coördinaten]\",IF($H$4=\"Deutsch\",\"[GPS-Koordinaten]\",IF($H$4=\"Français\",\"[GPS-coordonneés]\")))","v":"[GPS-coördinaten]"}]
[]
[]
[null,null,{"$f":"IF($H$4=\"Deutsch\",V!B27,IF($H$4=\"Nederlands\",V!B28,IF($H$4=\"Français\",V!B29)))","v":"GEVAREN:"}]
[]
[null,null,null,{"$f":"V!F27","v":"brand"},null,null,null,{"$f":"V!F31","v":"radioactieve straling"},null,null,null,null,null,{"$f":"V!F37","v":"overstroming"}]
[null,null,null,{"$f":"V!F28","v":"rookwolk"},null,null,null,{"$f":"V!F33","v":"gifwolk"},null,null,null,null,null,{"$f":"V!F40","v":"anders, namelijk…"}]
[null,null,null,{"$f":"V!F30","v":"explosiegevaar"},null,null,null,{"$f":"V!F36","v":"infectiegevaar"}]
[null,null,null,null,null,null,null,null,null,null,null,null,null,null,null,null,null,null,{"$f":"IF('Material-Materiaal-Matériel'!$T17<=MAX('Material-Materiaal-Matériel'!$A$5:$A$82),VLOOKUP('Material-Materiaal-Matériel'!$T17,'Material-Materiaal-Matériel'!$A$5:$C$82,2,TRUE),\"\")","v":""},{"$f":"IF('Material-Materiaal-Matériel'!$T17<=MAX('Material-Materiaal-Matériel'!$A$5:$A$82),VLOOKUP('Material-Materiaal-Matériel'!$T17,'Material-Materiaal-Matériel'!$A$5:$C$82,3,TRUE),\"\")","v":""}]
[null,null,null,{"$f":"V!F29","v":"instortingsgevaar"},null,null,null,{"$f":"V!F32","v":"luchtverontreiniging"},null,null,null,null,null,null,null,null,null,null,{"$f":"IF('Material-Materiaal-Matériel'!$T18<=MAX('Material-Materiaal-Matériel'!$A$5:$A$82),VLOOKUP('Material-Materiaal-Matériel'!$T18,'Material-Materiaal-Matériel'!$A$5:$C$82,2,TRUE),\"\")","v":""},{"$f":"IF('Material-Materiaal-Matériel'!$T18<=MAX('Material-Materiaal-Matériel'!$A$5:$A$82),VLOOKUP('Material-Materiaal-Matériel'!$T18,'Material-Materiaal-Matériel'!$A$5:$C$82,3,TRUE),\"\")","v":""}]
[null,null,null,{"$f":"V!F38","v":"aardverschuiving"},null,null,null,{"$f":"V!F34","v":"bodemvervuiling"},null,null,null,null,null,null,null,null,null,null,{"$f":"IF('Material-Materiaal-Matériel'!$T19<=MAX('Material-Materiaal-Matériel'!$A$5:$A$82),VLOOKUP('Material-Materiaal-Matériel'!$T19,'Material-Materiaal-Matériel'!$A$5:$C$82,2,TRUE),\"\")","v":""},{"$f":"IF('Material-Materiaal-Matériel'!$T19<=MAX('Material-Materiaal-Matériel'!$A$5:$A$82),VLOOKUP('Material-Materiaal-Matériel'!$T19,'Material-Materiaal-Matériel'!$A$5:$C$82,3,TRUE),\"\")","v":""}]
[null,null,null,{"$f":"V!F39","v":"bodemverzakking"},null,null,null,{"$f":"V!F35","v":"vervuiling van het (binnen)water"},null,null,null,null,null,null,null,null,null,null,{"$f":"IF('Material-Materiaal-Matériel'!$T20<=MAX('Material-Materiaal-Matériel'!$A$5:$A$82),VLOOKUP('Material-Materiaal-Matériel'!$T20,'Material-Materiaal-Matériel'!$A$5:$C$82,2,TRUE),\"\")","v":""},{"$f":"IF('Material-Materiaal-Matériel'!$T20<=MAX('Material-Materiaal-Matériel'!$A$5:$A$82),VLOOKUP('Material-Materiaal-Matériel'!$T20,'Material-Materiaal-Matériel'!$A$5:$C$82,3,TRUE),\"\")","v":""}]
[null,null,null,null,null,null,null,null,null,null,null,null,null,null,null,null,null,null,{"$f":"IF('Material-Materiaal-Matériel'!$T21<=MAX('Material-Materiaal-Matériel'!$A$5:$A$82),VLOOKUP('Material-Materiaal-Matériel'!$T21,'Material-Materiaal-Matériel'!$A$5:$C$82,2,TRUE),\"\")","v":""},{"$f":"IF('Material-Materiaal-Matériel'!$T21<=MAX('Material-Materiaal-Matériel'!$A$5:$A$82),VLOOKUP('Material-Materiaal-Matériel'!$T21,'Material-Materiaal-Matériel'!$A$5:$C$82,3,TRUE),\"\")","v":""}]
[null,null,null,null,null,null,null,null,null,null,null,null,null,null,null,null,null,null,{"$f":"IF('Material-Materiaal-Matériel'!$T22<=MAX('Material-Materiaal-Matériel'!$A$5:$A$82),VLOOKUP('Material-Materiaal-Matériel'!$T22,'Material-Materiaal-Matériel'!$A$5:$C$82,2,TRUE),\"\")","v":""},{"$f":"IF('Material-Materiaal-Matériel'!$T22<=MAX('Material-Materiaal-Matériel'!$A$5:$A$82),VLOOKUP('Material-Materiaal-Matériel'!$T22,'Material-Materiaal-Matériel'!$A$5:$C$82,3,TRUE),\"\")","v":""}]
[null,{"$f":"IF($H$4=\"Deutsch\",\"Name Disponent:\",IF($H$4=\"Nederlands\",\"Naam centralist:\",IF($H$4=\"Français\",\"Nom centraliste:\")))","v":"Naam centralist:"},null,null,null,null,{"$f":"V!F24","v":"invoeren s.v.p."},null,null,null,null,null,null,null,null,null,null,null,{"$f":"IF('Material-Materiaal-Matériel'!$T23<=MAX('Material-Materiaal-Matériel'!$A$5:$A$82),VLOOKUP('Material-Materiaal-Matériel'!$T23,'Material-Materiaal-Matériel'!$A$5:$C$82,2,TRUE),\"\")","v":""},{"$f":"IF('Material-Materiaal-Matériel'!$T23<=MAX('Material-Materiaal-Matériel'!$A$5:$A$82),VLOOKUP('Material-Materiaal-Matériel'!$T23,'Material-Materiaal-Matériel'!$A$5:$C$82,3,TRUE),\"\")","v":""}]
[null,null,null,null,null,null,null,null,null,null,null,null,null,null,null,null,null,null,{"$f":"IF('Material-Materiaal-Matériel'!$T21<=MAX('Material-Materiaal-Matériel'!$A$5:$A$82),VLOOKUP('Material-Materiaal-Matériel'!$T21,'Material-Materiaal-Matériel'!$A$5:$C$82,2,TRUE),\"\")","v":""},{"$f":"IF('Material-Materiaal-Matériel'!$T21<=MAX('Material-Materiaal-Matériel'!$A$5:$A$82),VLOOKUP('Material-Materiaal-Matériel'!$T21,'Material-Materiaal-Matériel'!$A$5:$C$82,3,TRUE),\"\")","v":""}]
[null,null,null,null,null,null,null,null,null,null,null,null,null,null,null,null,null,null,{"$f":"IF('Material-Materiaal-Matériel'!$T22<=MAX('Material-Materiaal-Matériel'!$A$5:$A$82),VLOOKUP('Material-Materiaal-Matériel'!$T22,'Material-Materiaal-Matériel'!$A$5:$C$82,2,TRUE),\"\")","v":""},{"$f":"IF('Material-Materiaal-Matériel'!$T22<=MAX('Material-Materiaal-Matériel'!$A$5:$A$82),VLOOKUP('Material-Materiaal-Matériel'!$T22,'Material-Materiaal-Matériel'!$A$5:$C$82,3,TRUE),\"\")","v":""}]
[null,null,null,null,null,null,null,null,null,null,null,null,null,null,null,null,null,null,{"$f":"IF('Material-Materiaal-Matériel'!#REF!<=MAX('Material-Materiaal-Matériel'!$A$5:$A$82),VLOOKUP('Material-Materiaal-Matériel'!#REF!,'Material-Materiaal-Matériel'!$A$5:$C$82,2,TRUE),\"\")","v":{"$error":"#REF!"}},{"$f":"IF('Material-Materiaal-Matériel'!#REF!<=MAX('Material-Materiaal-Matériel'!$A$5:$A$82),VLOOKUP('Material-Materiaal-Matériel'!#REF!,'Material-Materiaal-Matériel'!$A$5:$C$82,3,TRUE),\"\")","v":{"$error":"#REF!"}}]
[null,null,null,null,null,null,null,null,null,null,null,null,null,null,null,null,null,null,{"$f":"IF('Material-Materiaal-Matériel'!$T23<=MAX('Material-Materiaal-Matériel'!$A$5:$A$82),VLOOKUP('Material-Materiaal-Matériel'!$T23,'Material-Materiaal-Matériel'!$A$5:$C$82,2,TRUE),\"\")","v":""},{"$f":"IF('Material-Materiaal-Matériel'!$T23<=MAX('Material-Materiaal-Matériel'!$A$5:$A$82),VLOOKUP('Material-Materiaal-Matériel'!$T23,'Material-Materiaal-Matériel'!$A$5:$C$82,3,TRUE),\"\")","v":""}]
[null,null,null,null,null,null,null,null,null,null,null,null,null,null,null,null,null,null,{"$f":"IF('Material-Materiaal-Matériel'!$T24<=MAX('Material-Materiaal-Matériel'!$A$5:$A$82),VLOOKUP('Material-Materiaal-Matériel'!$T24,'Material-Materiaal-Matériel'!$A$5:$C$82,2,TRUE),\"\")","v":""},{"$f":"IF('Material-Materiaal-Matériel'!$T24<=MAX('Material-Materiaal-Matériel'!$A$5:$A$82),VLOOKUP('Material-Materiaal-Matériel'!$T24,'Material-Materiaal-Matériel'!$A$5:$C$82,3,TRUE),\"\")","v":""}]
[null,null,null,null,null,null,null,null,null,null,null,null,null,null,null,null,null,null,{"$f":"IF('Material-Materiaal-Matériel'!#REF!<=MAX('Material-Materiaal-Matériel'!$A$5:$A$82),VLOOKUP('Material-Materiaal-Matériel'!#REF!,'Material-Materiaal-Matériel'!$A$5:$C$82,2,TRUE),\"\")","v":{"$error":"#REF!"}},{"$f":"IF('Material-Materiaal-Matériel'!#REF!<=MAX('Material-Materiaal-Matériel'!$A$5:$A$82),VLOOKUP('Material-Materiaal-Matériel'!#REF!,'Material-Materiaal-Matériel'!$A$5:$C$82,3,TRUE),\"\")","v":{"$error":"#REF!"}}]
[null,null,null,null,null,null,null,null,null,null,null,null,null,null,null,null,null,null,{"$f":"IF('Material-Materiaal-Matériel'!#REF!<=MAX('Material-Materiaal-Matériel'!$A$5:$A$82),VLOOKUP('Material-Materiaal-Matériel'!#REF!,'Material-Materiaal-Matériel'!$A$5:$C$82,2,TRUE),\"\")","v":{"$error":"#REF!"}},{"$f":"IF('Material-Materiaal-Matériel'!#REF!<=MAX('Material-Materiaal-Matériel'!$A$5:$A$82),VLOOKUP('Material-Materiaal-Matériel'!#REF!,'Material-Materiaal-Matériel'!$A$5:$C$82,3,TRUE),\"\")","v":{"$error":"#REF!"}}]
[null,null,null,null,null,null,null,null,null,null,null,null,null,null,null,null,null,null,{"$f":"IF('Material-Materiaal-Matériel'!#REF!<=MAX('Material-Materiaal-Matériel'!$A$5:$A$82),VLOOKUP('Material-Materiaal-Matériel'!#REF!,'Material-Materiaal-Matériel'!$A$5:$C$82,2,TRUE),\"\")","v":{"$error":"#REF!"}},{"$f":"IF('Material-Materiaal-Matériel'!#REF!<=MAX('Material-Materiaal-Matériel'!$A$5:$A$82),VLOOKUP('Material-Materiaal-Matériel'!#REF!,'Material-Materiaal-Matériel'!$A$5:$C$82,3,TRUE),\"\")","v":{"$error":"#REF!"}}]

{"sheet":"L","index":2,"n_rows":80,"n_cols":15,"rows_kept":80,"cut":false,"hidden":true,"merged":[[0,5,0,20]]}
[{"$f":"IF(EMRIC!$H$4=\"Deutsch\",,IF(EMRIC!$H$4=\"Nederlands\",,IF(EMRIC!$H$4=\"Français\",)))","v":0},null,null,null,null,{"$f":"IF(EMRIC!$H$4=\"Deutsch\",\"ÜBUNG - ÜBUNG - ÜBUNG - ÜBUNG - ÜBUNG - ÜBUNG - ÜBUNG - ÜBUNG\",IF(EMRIC!$H$4=\"Nederlands\",\"OEFENING - OEFENING - OEFENING - OEFENING - OEFENING - OEFENING\",IF(EMRIC!$H$4=\"Français\",\"EXERCICE - EXERCICE - EXERCICE - EXERCICE - EXERCICE - EXERCICE\")))","v":"OEFENING - OEFENING - OEFENING - OEFENING - OEFENING - OEFENING"}]
[null,"Deutsch",null,null,null,"Leitstellen",null,null,"Art",null,null,null,null,null,"Antwort-Antwoord-Réponse"]
[null,"Nederlands",null,null,1,{"$f":"V!F25","v":"kiezen s.v.p."},null,1,{"$f":"V!F25","v":"kiezen s.v.p."},null,null,null,null,null,"Formules voor hakjes"]
[null,"Français",null,null,2,{"$f":"V!F67","v":"CS 112 Luik (B)"},null,2,{"$f":"IF(EMRIC!$H$4=L!$B$2,V!C6,\nIF(EMRIC!$H$4=L!$B$3,V!D6,\nIF(EMRIC!H$4=L!$B$4,V!E6)))","v":"brand"},null,null,null,null,null,{"$f":"IF(V!$G$52=TRUE,TRUE,FALSE)","v":{"$error":"#REF!"}}]
[null,null,null,null,3,{"$f":"V!F68","v":"CS 112 Limburg (B)"},null,3,{"$f":"IF(EMRIC!$H$4=L!$B$2,V!C7,\nIF(EMRIC!$H$4=L!$B$3,V!D7,\nIF(EMRIC!H$4=L!$B$4,V!E7)))","v":"ongeval met gevaarlijke stoffen"},null,null,null,null,null,{"$f":"IF(V!$G$53=TRUE,TRUE,FALSE)","v":false}]
[1,{"$f":"V!F25","v":"kiezen s.v.p."},null,null,4,{"$f":"V!F69","v":"Zone-meldkamer Oost-Limburg (B)"},null,4,{"$f":"IF(EMRIC!$H$4=L!$B$2,V!C8,\nIF(EMRIC!$H$4=L!$B$3,V!D8,\nIF(EMRIC!H$4=L!$B$4,V!E8)))","v":"waterongeval"},null,null,null,null,null,{"$f":"IF(V!$G$54=TRUE,TRUE,FALSE)","v":{"$error":"#REF!"}}]
[2,"Stadt",null,null,5,{"$f":"V!F70","v":"Meldkamer Stad/StädteRegion Aken (D)"},null,5,{"$f":"IF(EMRIC!$H$4=L!$B$2,V!C9,\nIF(EMRIC!$H$4=L!$B$3,V!D9,\nIF(EMRIC!H$4=L!$B$4,V!E9)))","v":"verkeersongeval"},null,null,null,null,null,{"$f":"IF(V!$G$55=TRUE,TRUE,FALSE)","v":false}]
[3,"Städteregion",null,null,6,{"$f":"V!F71","v":"Meldkamer Kreis Düren (D)"},null,6,{"$f":"IF(EMRIC!$H$4=L!$B$2,V!C10,\nIF(EMRIC!$H$4=L!$B$3,V!D10,\nIF(EMRIC!H$4=L!$B$4,V!E10)))","v":"hoogteredding"},null,null,null,null,null,{"$f":"IF(V!$G$56=TRUE,TRUE,FALSE)","v":{"$error":"#REF!"}}]
[1,{"$f":"IF(A9=1,B6,IF(A9=2,B7,IF(A9=3,B8)))","v":"kiezen s.v.p."},null,null,7,{"$f":"V!F72","v":"Meldkamer Kreis Euskirchen (D)"},null,7,{"$f":"IF(EMRIC!$H$4=L!$B$2,V!C11,\nIF(EMRIC!$H$4=L!$B$3,V!D11,\nIF(EMRIC!H$4=L!$B$4,V!E11)))","v":"hoogwater"},null,null,null,null,null,{"$f":"IF(V!$G$57=TRUE,TRUE,FALSE)","v":false}]
[null,null,null,null,8,{"$f":"V!F73","v":"Meldkamer Kreis Heinsberg (D)"},null,8,{"$f":"IF(EMRIC!$H$4=L!$B$2,V!C12,\nIF(EMRIC!$H$4=L!$B$3,V!D12,\nIF(EMRIC!H$4=L!$B$4,V!E12)))","v":"storm"},null,null,null,null,null,{"$f":"IF(V!$G$59=TRUE,TRUE,FALSE)","v":false}]
[null,null,null,null,9,{"$f":"V!F74","v":"Meldkamer Limburg (NL)"},null,9,{"$f":"IF(EMRIC!$H$4=L!$B$2,V!C13,\nIF(EMRIC!$H$4=L!$B$3,V!D13,\nIF(EMRIC!H$4=L!$B$4,V!E13)))","v":"bosbrand"},null,null,null,null,null,{"$f":"IF(V!$G$60=TRUE,TRUE,FALSE)","v":false}]
[null,null,null,"Abs.",1,{"$f":"IF(E12=1,F3,IF(E12=2,F4,IF(E12=3,F5,IF(E12=4,F6,IF(E12=5,F7,IF(E12=6,F8,IF(E12=7,F9,IF(E12=8,F10,IF(E12=9,F11)))))))))","v":"kiezen s.v.p."},null,10,{"$f":"IF(EMRIC!$H$4=L!$B$2,V!C14,\nIF(EMRIC!$H$4=L!$B$3,V!D14,\nIF(EMRIC!H$4=L!$B$4,V!E14)))","v":"buitenbrand"},null,null,null,null,null,{"$f":"IF(V!$G$61=TRUE,TRUE,FALSE)","v":false}]
[null,null,null,"Empf.",1,{"$f":"IF(E13=1,F3,IF(E13=2,F4,IF(E13=3,F5,IF(E13=4,F6,IF(E13=5,F7,IF(E13=6,F8,IF(E13=7,F9,IF(E13=8,F10,IF(E13=9,F11)))))))))","v":"kiezen s.v.p."},null,11,{"$f":"IF(EMRIC!$H$4=L!$B$2,V!C15,\nIF(EMRIC!$H$4=L!$B$3,V!D15,\nIF(EMRIC!H$4=L!$B$4,V!E15)))","v":"veenbrand"},null,null,null,null,null,{"$f":"IF(V!$G$62=TRUE,TRUE,FALSE)","v":false}]
[null,null,null,null,null,null,null,12,{"$f":"IF(EMRIC!$H$4=L!$B$2,V!C16,\nIF(EMRIC!$H$4=L!$B$3,V!D16,\nIF(EMRIC!H$4=L!$B$4,V!E16)))","v":"vliegtuigongeval"},null,null,null,null,null,{"$f":"IF(V!$G$63=TRUE,TRUE,FALSE)","v":false}]
[null,null,null,"Lotsenstelle",null,null,null,13,{"$f":"IF(EMRIC!$H$4=L!$B$2,V!C17,\nIF(EMRIC!$H$4=L!$B$3,V!D17,\nIF(EMRIC!H$4=L!$B$4,V!E17)))","v":"explosie"}]
[null,null,null,null,null,null,null,14,{"$f":"IF(EMRIC!$H$4=L!$B$2,V!C18,\nIF(EMRIC!$H$4=L!$B$3,V!D18,\nIF(EMRIC!H$4=L!$B$4,V!E18)))","v":"instorting"},null,null,null,null,null,{"$f":"IF(V!$G$46=TRUE,TRUE,FALSE)","v":false}]
["CS112 Hasselt",null,null,null,null,"CS112 Luik",null,15,{"$f":"IF(EMRIC!$H$4=L!$B$2,V!C19,\nIF(EMRIC!$H$4=L!$B$3,V!D19,\nIF(EMRIC!H$4=L!$B$4,V!E19)))","v":"treinongeval"},null,null,null,null,null,{"$f":"IF(V!$H$46=TRUE,TRUE,FALSE)","v":false}]
[1,{"$f":"V!F25","v":"kiezen s.v.p."},null,null,1,{"$f":"V!F25","v":"kiezen s.v.p."},null,16,{"$f":"IF(EMRIC!$H$4=L!$B$2,V!C20,\nIF(EMRIC!$H$4=L!$B$3,V!D20,\nIF(EMRIC!H$4=L!$B$4,V!E20)))","v":"industriebrand"},null,null,null,null,null,{"$f":"IF(V!$I$46=TRUE,TRUE,FALSE)","v":false}]
[2,"EMRIC 1",null,null,2,{"$f":"V!F59","v":"Brandbestrijding"},null,17,{"$f":"IF(EMRIC!$H$4=L!$B$2,V!C21,\nIF(EMRIC!$H$4=L!$B$3,V!D21,\nIF(EMRIC!H$4=L!$B$4,V!E21)))","v":"woningbrand"}]
[3,"EMRIC 2",null,null,3,{"$f":"V!F60","v":"Natuurbrand"},null,18,{"$f":"IF(EMRIC!$H$4=L!$B$2,V!C22,\nIF(EMRIC!$H$4=L!$B$3,V!D22,\nIF(EMRIC!H$4=L!$B$4,V!E22)))","v":"anders, namelijk..."},null,null,null,null,null,{"$f":"IF(V!$G$42=TRUE,TRUE,FALSE)","v":false}]
[4,"EMRIC 3 ",null,null,4,{"$f":"V!F61","v":"Technische hulpverlening"},null,1,{"$f":"IF(H21=1,I3,\nIF(H21=2,I4,\nIF(H21=3,I5,\nIF(H21=4,I6,\nIF(H21=5,I7,\nIF(H21=6,I8,\nIF(H21=7,I9,\nIF(H21=8,I10,\nIF(H21=9,I11,\nIF(H21=10,I12,\nIF(H21=11,I13,\nIF(H21=12,I14,\nIF(H21=13,I15,\nIF(H21=14,I16,\nIF(H21=15,I17,\nIF(H21=16,I18,\nIF(H21=17,I19,\nIF(H21=18,I20))))))))))))))))))","v":"kiezen s.v.p."},null,null,null,null,null,{"$f":"IF(V!$G$43=TRUE,TRUE,FALSE)","v":false}]
[1,{"$f":"IF(A22=1,B18,IF(A22=2,B19,IF(A22=3,B20,IF(A22=4,B21))))","v":"kiezen s.v.p."},null,null,5,{"$f":"V!F62","v":"Ongeval gevaarlijke stoffen"},null,null,null,null,null,null,null,null,{"$f":"IF(V!$G$44=TRUE,TRUE,FALSE)","v":false}]
[null,null,null,null,6,{"$f":"V!F63","v":"Hoog water"},null,null,"CS112 Luik"]
["CS112 Luik",null,null,null,1,{"$f":"IF(E24=1,F18,IF(E24=2,F19,IF(E24=3,F20,IF(E24=4,F21,IF(E24=5,F22,IF(E24=6,F23))))))","v":"kiezen s.v.p."},null,1,{"$f":"V!$F$25","v":"kiezen s.v.p."}]
[1,{"$f":"V!$F25","v":"kiezen s.v.p."},null,null,null,"CS112 Limburg",null,2,"CBRN_M1"]
[2,"EMRIC 1",null,null,1,{"$f":"V!F25","v":"kiezen s.v.p."},null,3,"CBRN_M2"]
[3,"EMRIC 2",null,null,2,{"$f":"V!F59","v":"Brandbestrijding"},null,4,"CBRN_M3"]
[4,"EMRIC 3 ",null,null,3,{"$f":"V!F60","v":"Natuurbrand"},null,1,{"$f":"IF(H28=1,I24,IF(H28=2,I25,IF(H28=3,I26,IF(H28=4,I27))))","v":"kiezen s.v.p."}]
[1,{"$f":"IF(A29=1,B25,IF(A29=2,B26,IF(A29=3,B27,IF(A29=4,B28))))","v":"kiezen s.v.p."},null,null,4,{"$f":"V!F61","v":"Technische hulpverlening"}]
[null,null,null,null,5,{"$f":"V!F62","v":"Ongeval gevaarlijke stoffen"},null,null,"CS112 Limburg"]
["ZOL",null,null,null,6,{"$f":"V!F63","v":"Hoog water"},null,1,{"$f":"V!$F$25","v":"kiezen s.v.p."}]
[1,{"$f":"V!$F25","v":"kiezen s.v.p."},null,null,1,{"$f":"IF(E32=1,F26,IF(E32=2,F27,IF(E32=3,F28,IF(E32=4,F29,IF(E32=5,F30,IF(E32=6,F31))))))","v":"kiezen s.v.p."},null,2,"CBRN_M1"]
[2,"EMRIC 1",null,null,null,"ZOL",null,3,"CBRN_M2"]
[3,"EMRIC 2",null,null,{"$f":"E26","v":1},{"$f":"V!F25","v":"kiezen s.v.p."},null,4,"CBRN_M3"]
[4,"EMRIC 3 ",null,null,2,{"$f":"V!F59","v":"Brandbestrijding"},null,1,{"$f":"IF(H35=1,I31,IF(H35=2,I32,IF(H35=3,I33,IF(H35=4,I34))))","v":"kiezen s.v.p."}]
[1,{"$f":"IF(A36=1,B32,IF(A36=2,B33,IF(A36=3,B34,IF(A36=4,B35))))","v":"kiezen s.v.p."},null,null,3,{"$f":"V!F60","v":"Natuurbrand"}]
[null,null,null,null,4,{"$f":"V!F61","v":"Technische hulpverlening"},null,null,"ZOL"]
["SRA",null,null,null,5,{"$f":"V!F62","v":"Ongeval gevaarlijke stoffen"},null,1,{"$f":"V!$F$25","v":"kiezen s.v.p."}]
[1,{"$f":"V!$F25","v":"kiezen s.v.p."},null,null,6,{"$f":"V!F63","v":"Hoog water"},null,2,"CBRN_M1"]
[2,"EMRIC 1",null,null,1,{"$f":"IF(E40=1,F34,IF(E40=2,F35,IF(E40=3,F36,IF(E40=4,F37,IF(E40=5,F38,IF(E40=6,F39))))))","v":"kiezen s.v.p."},null,3,"CBRN_M2"]
[3,"EMRIC 2",null,null,null,"SRA",null,4,"CBRN_M3"]
[4,"EMRIC 3 ",null,null,{"$f":"E34","v":1},{"$f":"V!F25","v":"kiezen s.v.p."},null,1,{"$f":"IF(H42=1,I38,IF(H42=2,I39,IF(H42=3,I40,IF(H42=4,I41))))","v":"kiezen s.v.p."}]
[1,{"$f":"IF(A43=1,B39,IF(A43=2,B40,IF(A43=3,B41,IF(A43=4,B42))))","v":"kiezen s.v.p."},null,null,{"$f":"E35","v":2},{"$f":"V!F59","v":"Brandbestrijding"}]
[null,null,null,null,{"$f":"E36","v":3},{"$f":"V!F60","v":"Natuurbrand"},null,null,"SRA"]
["Düren",null,null,null,{"$f":"E37","v":4},{"$f":"V!F61","v":"Technische hulpverlening"},null,1,{"$f":"V!$F$25","v":"kiezen s.v.p."}]
[1,{"$f":"V!$F25","v":"kiezen s.v.p."},null,null,{"$f":"E38","v":5},{"$f":"V!F62","v":"Ongeval gevaarlijke stoffen"},null,2,"CBRN_M1"]
[2,"EMRIC 1",null,null,{"$f":"E39","v":6},{"$f":"V!F63","v":"Hoog water"},null,3,"CBRN_M2"]
[3,"EMRIC 2",null,null,1,{"$f":"IF(E48=1,F42,IF(E48=2,F43,IF(E48=3,F44,IF(E48=4,F45,IF(E48=5,F46,IF(E48=6,F47))))))","v":"kiezen s.v.p."},null,4,"CBRN_M3"]
[4,"EMRIC 3 ",null,null,null,"Düren",null,1,{"$f":"IF(H49=1,I45,IF(H49=2,I46,IF(H49=3,I47,IF(H49=4,I48))))","v":"kiezen s.v.p."}]
[1,{"$f":"IF(A50=1,B46,IF(A50=2,B47,IF(A50=3,B48,IF(A50=4,B49))))","v":"kiezen s.v.p."},null,null,{"$f":"E42","v":1},{"$f":"V!$F$25","v":"kiezen s.v.p."}]
[null,null,null,null,{"$f":"E43","v":2},{"$f":"V!$F$59","v":"Brandbestrijding"},null,null,"Düren"]
["Euskirchen",null,null,null,{"$f":"E44","v":3},{"$f":"V!$F$60","v":"Natuurbrand"},null,1,{"$f":"V!$F$25","v":"kiezen s.v.p."}]
[1,{"$f":"V!$F25","v":"kiezen s.v.p."},null,null,{"$f":"E45","v":4},{"$f":"V!$F$61","v":"Technische hulpverlening"},null,2,"CBRN_M1"]
[2,"EMRIC 1",null,null,{"$f":"E46","v":5},{"$f":"V!$F$62","v":"Ongeval gevaarlijke stoffen"},null,3,"CBRN_M2"]
[3,"EMRIC 2",null,null,{"$f":"E47","v":6},{"$f":"V!$F$63","v":"Hoog water"},null,4,"CBRN_M3"]
[4,"EMRIC 3 ",null,null,1,{"$f":"IF(E56=1,F50,IF(E56=2,F51,IF(E56=3,F52,IF(E56=4,F53,IF(E56=5,F54,IF(E56=6,F55))))))","v":"kiezen s.v.p."},null,1,{"$f":"IF(H56=1,I52,IF(H56=2,I53,IF(H56=3,I54,IF(H56=4,I55))))","v":"kiezen s.v.p."}]
[1,{"$f":"IF(A57=1,B53,IF(A57=2,B54,IF(A57=3,B55,IF(A57=4,B56))))","v":"kiezen s.v.p."},null,null,null,"Euskirchen"]
[null,null,null,null,{"$f":"E50","v":1},{"$f":"V!$F$25","v":"kiezen s.v.p."},null,null,"Euskirchen"]
["Heinsberg",null,null,null,{"$f":"E51","v":2},{"$f":"V!$F$59","v":"Brandbestrijding"},null,1,{"$f":"V!$F$25","v":"kiezen s.v.p."}]
[1,{"$f":"V!$F25","v":"kiezen s.v.p."},null,null,{"$f":"E52","v":3},{"$f":"V!$F$60","v":"Natuurbrand"},null,2,"CBRN_M1"]
[2,"EMRIC 1",null,null,{"$f":"E53","v":4},{"$f":"V!$F$61","v":"Technische hulpverlening"},null,3,"CBRN_M2"]
[3,"EMRIC 2",null,null,{"$f":"E54","v":5},{"$f":"V!$F$62","v":"Ongeval gevaarlijke stoffen"},null,4,"CBRN_M3"]
[4,"EMRIC 3 ",null,null,{"$f":"E55","v":6},{"$f":"V!$F$63","v":"Hoog water"},null,1,{"$f":"IF(H63=1,I59,IF(H63=2,I60,IF(H63=3,I61,IF(H63=4,I62))))","v":"kiezen s.v.p."}]
[1,{"$f":"IF(A64=1,B60,IF(A64=2,B61,IF(A64=3,B62,IF(A64=4,B63))))","v":"kiezen s.v.p."},null,null,1,{"$f":"IF(E64=1,F58,IF(E64=2,F59,IF(E64=3,F60,IF(E64=4,F61,IF(E64=5,F62,IF(E64=6,F63))))))","v":"kiezen s.v.p."}]
[null,null,null,null,null,"Heinsberg",null,null,"Heinsberg"]
["MKB",null,null,null,{"$f":"E58","v":1},{"$f":"V!$F$25","v":"kiezen s.v.p."},null,1,{"$f":"V!$F$25","v":"kiezen s.v.p."}]
[1,{"$f":"V!$F25","v":"kiezen s.v.p."},null,null,{"$f":"E59","v":2},{"$f":"V!$F$59","v":"Brandbestrijding"},null,2,"CBRN_M1"]
[2,"EMRIC 1",null,null,{"$f":"E60","v":3},{"$f":"V!$F$60","v":"Natuurbrand"},null,3,"CBRN_M2"]
[3,"EMRIC 2",null,null,{"$f":"E61","v":4},{"$f":"V!$F$61","v":"Technische hulpverlening"},null,4,"CBRN_M3"]
[4,"EMRIC 3 ",null,null,{"$f":"E62","v":5},{"$f":"V!$F$62","v":"Ongeval gevaarlijke stoffen"},null,1,{"$f":"IF(H70=1,I66,IF(H70=2,I67,IF(H70=3,I68,IF(H70=4,I69))))","v":"kiezen s.v.p."}]
[1,{"$f":"IF(A71=1,B67,IF(A71=2,B68,IF(A71=3,B69,IF(A71=4,B70))))","v":"kiezen s.v.p."},null,null,{"$f":"E63","v":6},{"$f":"V!$F$63","v":"Hoog water"}]
[null,null,null,null,1,{"$f":"IF(E72=1,F66,IF(E72=2,F67,IF(E72=3,F68,IF(E72=4,F69,IF(E72=5,F70,IF(E72=6,F71))))))","v":"kiezen s.v.p."},null,null,"MKB"]
[null,null,null,null,null,"MKB",null,1,{"$f":"V!$F$25","v":"kiezen s.v.p."}]
[null,null,null,null,{"$f":"E66","v":1},{"$f":"V!$F$25","v":"kiezen s.v.p."},null,2,"CBRN_M1"]
[null,null,null,null,{"$f":"E67","v":2},{"$f":"V!$F$59","v":"Brandbestrijding"},null,3,"CBRN_M2"]
[null,null,null,null,{"$f":"E68","v":3},{"$f":"V!$F$60","v":"Natuurbrand"},null,4,"CBRN_M3"]
[null,null,null,null,{"$f":"E69","v":4},{"$f":"V!$F$61","v":"Technische hulpverlening"},null,1,{"$f":"IF(H77=1,I73,IF(H77=2,I74,IF(H77=3,I75,IF(H77=4,I76))))","v":"kiezen s.v.p."}]
[null,null,null,null,{"$f":"E70","v":5},{"$f":"V!$F$62","v":"Ongeval gevaarlijke stoffen"}]
[null,null,null,null,{"$f":"E71","v":6},{"$f":"V!$F$63","v":"Hoog water"}]
[null,null,null,null,1,{"$f":"IF(E80=1,F74,IF(E80=2,F75,IF(E80=3,F76,IF(E80=4,F77,IF(E80=5,F78,IF(E80=6,F79))))))","v":"kiezen s.v.p."}]

{"sheet":"V","index":3,"n_rows":1213,"n_cols":9,"rows_kept":1213,"cut":false,"hidden":true,"merged":[]}
[1,null,"Deutsch","Nederlands","Français"]
[2,null,"Deutsch"]
[3,null,"Nederlands"]
[4,null,"Français"]
[5]
[6,"ART DES EINSATZES:","Brand","brand","incendie",{"$f":"IF(EMRIC!$H$4=\"Deutsch\",C6,IF(EMRIC!$H$4=\"Nederlands\",D6,IF(EMRIC!$H$4=\"Français\",E6)))","v":"brand"}]
[7,"SOORT INCIDENT:","Gefahrguteinsatz","ongeval met gevaarlijke stoffen","intervention avec substances dangereuses",{"$f":"IF(EMRIC!$H$4=\"Deutsch\",C7,IF(EMRIC!$H$4=\"Nederlands\",D7,IF(EMRIC!$H$4=\"Français\",E7)))","v":"ongeval met gevaarlijke stoffen"}]
[8,"SORTE D'INCIDENT:","Wasserunfall","waterongeval","accident sur eau",{"$f":"IF(EMRIC!$H$4=\"Deutsch\",C8,IF(EMRIC!$H$4=\"Nederlands\",D8,IF(EMRIC!$H$4=\"Français\",E8)))","v":"waterongeval"}]
[9,null,"Verkehrsunfall","verkeersongeval","accident de route",{"$f":"IF(EMRIC!$H$4=\"Deutsch\",C9,IF(EMRIC!$H$4=\"Nederlands\",D9,IF(EMRIC!$H$4=\"Français\",E9)))","v":"verkeersongeval"}]
[10,null,"Höhenrettung","hoogteredding","sauvetage d'altitude",{"$f":"IF(EMRIC!$H$4=\"Deutsch\",C10,IF(EMRIC!$H$4=\"Nederlands\",D10,IF(EMRIC!$H$4=\"Français\",E10)))","v":"hoogteredding"}]
[11,null,"Hochwasser","hoogwater","hautes eaux",{"$f":"IF(EMRIC!$H$4=\"Deutsch\",C11,IF(EMRIC!$H$4=\"Nederlands\",D11,IF(EMRIC!$H$4=\"Français\",E11)))","v":"hoogwater"}]
[12,null,"Unwetter","storm","tempête",{"$f":"IF(EMRIC!$H$4=\"Deutsch\",C12,IF(EMRIC!$H$4=\"Nederlands\",D12,IF(EMRIC!$H$4=\"Français\",E12)))","v":"storm"}]
[13,null,"Waldbrand","bosbrand","feu de fôret",{"$f":"IF(EMRIC!$H$4=\"Deutsch\",C13,IF(EMRIC!$H$4=\"Nederlands\",D13,IF(EMRIC!$H$4=\"Français\",E13)))","v":"bosbrand"}]
[14,null,"Flächenbrand","buitenbrand","feu à l'extérieur",{"$f":"IF(EMRIC!$H$4=\"Deutsch\",C14,IF(EMRIC!$H$4=\"Nederlands\",D14,IF(EMRIC!$H$4=\"Français\",E14)))","v":"buitenbrand"}]
[15,null,"Vennbrand","veenbrand","feu de fagnes",{"$f":"IF(EMRIC!$H$4=\"Deutsch\",C15,IF(EMRIC!$H$4=\"Nederlands\",D15,IF(EMRIC!$H$4=\"Français\",E15)))","v":"veenbrand"}]
[16,null,"Flugzeugunglück","vliegtuigongeval","accident d'aviation",{"$f":"IF(EMRIC!$H$4=\"Deutsch\",C16,IF(EMRIC!$H$4=\"Nederlands\",D16,IF(EMRIC!$H$4=\"Français\",E16)))","v":"vliegtuigongeval"}]
[17,null,"Explosion","explosie","explosion",{"$f":"IF(EMRIC!$H$4=\"Deutsch\",C17,IF(EMRIC!$H$4=\"Nederlands\",D17,IF(EMRIC!$H$4=\"Français\",E17)))","v":"explosie"}]
[18,null,"Einsturz","instorting","effondrement",{"$f":"IF(EMRIC!$H$4=\"Deutsch\",C18,IF(EMRIC!$H$4=\"Nederlands\",D18,IF(EMRIC!$H$4=\"Français\",E18)))","v":"instorting"}]
[19,null,"Zugunglück","treinongeval","accident de train",{"$f":"IF(EMRIC!$H$4=\"Deutsch\",C19,IF(EMRIC!$H$4=\"Nederlands\",D19,IF(EMRIC!$H$4=\"Français\",E19)))","v":"treinongeval"}]
[20,null,"Industriebrand","industriebrand","feu industriel",{"$f":"IF(EMRIC!$H$4=\"Deutsch\",C20,IF(EMRIC!$H$4=\"Nederlands\",D20,IF(EMRIC!$H$4=\"Français\",E20)))","v":"industriebrand"}]
[21,null,"Wohungsbrand","woningbrand","feu d'habitation",{"$f":"IF(EMRIC!$H$4=\"Deutsch\",C21,IF(EMRIC!$H$4=\"Nederlands\",D21,IF(EMRIC!$H$4=\"Français\",E21)))","v":"woningbrand"}]
[22,null,"anderes, nämlich...","anders, namelijk...","autre à savoir...",{"$f":"IF(EMRIC!$H$4=\"Deutsch\",C22,IF(EMRIC!$H$4=\"Nederlands\",D22,IF(EMRIC!$H$4=\"Français\",E22)))","v":"anders, namelijk..."}]
[23]
[24,null,"bitte ausfüllen","invoeren s.v.p.","complétez s.v.p.",{"$f":"IF(EMRIC!$H$4=\"Deutsch\",C24,IF(EMRIC!$H$4=\"Nederlands\",D24,IF(EMRIC!$H$4=\"Français\",E24)))","v":"invoeren s.v.p."}]
[25,null,"bitte auswählen","kiezen s.v.p.","sélectionnez s.v.p.",{"$f":"IF(EMRIC!$H$4=\"Deutsch\",C25,IF(EMRIC!$H$4=\"Nederlands\",D25,IF(EMRIC!$H$4=\"Français\",E25)))","v":"kiezen s.v.p."}]
[26]
[27,"GEFAHREN:","Feuer","brand","incendie",{"$f":"IF(EMRIC!$H$4=\"Deutsch\",C27,IF(EMRIC!$H$4=\"Nederlands\",D27,IF(EMRIC!$H$4=\"Français\",E27)))","v":"brand"},false]
[28,"GEVAREN:","Rauchwolke","rookwolk","fumée",{"$f":"IF(EMRIC!$H$4=\"Deutsch\",C28,IF(EMRIC!$H$4=\"Nederlands\",D28,IF(EMRIC!$H$4=\"Français\",E28)))","v":"rookwolk"},false]
[29,"DANGERS:","Einsturzgefahr","instortingsgevaar","danger d'effondrement de bâtiment",{"$f":"IF(EMRIC!$H$4=\"Deutsch\",C29,IF(EMRIC!$H$4=\"Nederlands\",D29,IF(EMRIC!$H$4=\"Français\",E29)))","v":"instortingsgevaar"},false]
[30,null,"Explosionsgefahr","explosiegevaar","danger d'explosion",{"$f":"IF(EMRIC!$H$4=\"Deutsch\",C30,IF(EMRIC!$H$4=\"Nederlands\",D30,IF(EMRIC!$H$4=\"Français\",E30)))","v":"explosiegevaar"},false]
[31,null,"Radioaktive Strahlung","radioactieve straling","radiation ",{"$f":"IF(EMRIC!$H$4=\"Deutsch\",C31,IF(EMRIC!$H$4=\"Nederlands\",D31,IF(EMRIC!$H$4=\"Français\",E31)))","v":"radioactieve straling"},false]
[32,null,"Luftverschmutzung","luchtverontreiniging","pollution de l'air",{"$f":"IF(EMRIC!$H$4=\"Deutsch\",C32,IF(EMRIC!$H$4=\"Nederlands\",D32,IF(EMRIC!$H$4=\"Français\",E32)))","v":"luchtverontreiniging"},false]
[33,null,"Giftwolke","gifwolk","nuage toxique",{"$f":"IF(EMRIC!$H$4=\"Deutsch\",C33,IF(EMRIC!$H$4=\"Nederlands\",D33,IF(EMRIC!$H$4=\"Français\",E33)))","v":"gifwolk"},false]
[34,null,"Bodenverschmutzung","bodemvervuiling","pollution du sol",{"$f":"IF(EMRIC!$H$4=\"Deutsch\",C34,IF(EMRIC!$H$4=\"Nederlands\",D34,IF(EMRIC!$H$4=\"Français\",E34)))","v":"bodemvervuiling"},false]
[35,null,"Verschmutzung von (Binnen-)Gewässern","vervuiling van het (binnen)water","pollution des cours d'eau ",{"$f":"IF(EMRIC!$H$4=\"Deutsch\",C35,IF(EMRIC!$H$4=\"Nederlands\",D35,IF(EMRIC!$H$4=\"Français\",E35)))","v":"vervuiling van het (binnen)water"},false]
[36,null,"Infektionsgefahr","infectiegevaar","danger d'infection",{"$f":"IF(EMRIC!$H$4=\"Deutsch\",C36,IF(EMRIC!$H$4=\"Nederlands\",D36,IF(EMRIC!$H$4=\"Français\",E36)))","v":"infectiegevaar"},false]
[37,null,"Überschwemmung","overstroming","inondation",{"$f":"IF(EMRIC!$H$4=\"Deutsch\",C37,IF(EMRIC!$H$4=\"Nederlands\",D37,IF(EMRIC!$H$4=\"Français\",E37)))","v":"overstroming"},false]
[38,null,"Erdrutschgefahr","aardverschuiving","glissement de terrain",{"$f":"IF(EMRIC!$H$4=\"Deutsch\",C38,IF(EMRIC!$H$4=\"Nederlands\",D38,IF(EMRIC!$H$4=\"Français\",E38)))","v":"aardverschuiving"},false]
[39,null,"Tagebruchgefahr","bodemverzakking","effondrement de terre",{"$f":"IF(EMRIC!$H$4=\"Deutsch\",C39,IF(EMRIC!$H$4=\"Nederlands\",D39,IF(EMRIC!$H$4=\"Français\",E39)))","v":"bodemverzakking"},false]
[40,null,"Sonstige, nämlich…","anders, namelijk…","autre, à savoir…",{"$f":"IF(EMRIC!$H$4=\"Deutsch\",C40,IF(EMRIC!$H$4=\"Nederlands\",D40,IF(EMRIC!$H$4=\"Français\",E40)))","v":"anders, namelijk…"},false]
[41]
[42,"VERBINDUNGSBEAMTER:","nicht gewünscht","niet gewenst","pas voulu",{"$f":"IF(EMRIC!$H$4=\"Deutsch\",C42,IF(EMRIC!$H$4=\"Nederlands\",D42,IF(EMRIC!$H$4=\"Français\",E42)))","v":"niet gewenst"},false]
[43,"LIAISON:","gewünscht (Leitstelle)","gewenst (meldkamer)","voulu (centrale d'alerte)",{"$f":"IF(EMRIC!$H$4=\"Deutsch\",C43,IF(EMRIC!$H$4=\"Nederlands\",D43,IF(EMRIC!$H$4=\"Français\",E43)))","v":"gewenst (meldkamer)"},false]
[44,"LIAISON:","gewünscht (Einsatzort)","gewenst (plaats incident)","voulu (sur le terrein)",{"$f":"IF(EMRIC!$H$4=\"Deutsch\",C44,IF(EMRIC!$H$4=\"Nederlands\",D44,IF(EMRIC!$H$4=\"Français\",E44)))","v":"gewenst (plaats incident)"},false]
[45]
[46,null,"CBRN-MESSUNG:","CBRN-METEN:","MESURE CBRN:",{"$f":"IF(EMRIC!$H$4=\"Deutsch\",C46,IF(EMRIC!$H$4=\"Nederlands\",D46,IF(EMRIC!$H$4=\"Français\",E46)))","v":"CBRN-METEN:"},false,false,false]
[47]
[48,"EMRIC 1","Nachbarschaftshilfe (klein bis mittelgroß) und/oder spezifische Hilfeleistung","Burenhulp specifieke eenheden (klein tot middelgroot incident)","Aide voisine (petit à moyen accident) et/ou aide spécialiste",{"$f":"IF(EMRIC!$H$4=\"Deutsch\",C48,IF(EMRIC!$H$4=\"Nederlands\",D48,IF(EMRIC!$H$4=\"Français\",E48)))","v":"Burenhulp specifieke eenheden (klein tot middelgroot incident)"}]
[49,"EMRIC 2","Hilfe für große bis sehr große Ereignisse","Burenhulp (groot tot zeer groot incident)","Aide voisine (grand à très grand accident)",{"$f":"IF(EMRIC!$H$4=\"Deutsch\",C49,IF(EMRIC!$H$4=\"Nederlands\",D49,IF(EMRIC!$H$4=\"Français\",E49)))","v":"Burenhulp (groot tot zeer groot incident)"}]
[50,"EMRIC 3","Hilfe bei Großschadensereignis","Burenhulp (ramp)","Aide voisine (catastrophe)",{"$f":"IF(EMRIC!$H$4=\"Deutsch\",C50,IF(EMRIC!$H$4=\"Nederlands\",D50,IF(EMRIC!$H$4=\"Français\",E50)))","v":"Burenhulp (ramp)"}]
[51]
[52,"EMRIC 1","1 - 3 LF","1 - 3 TS","1 - 3 autopompe(s)",{"$f":"IF(EMRIC!$H$4=\"Deutsch\",C52,IF(EMRIC!$H$4=\"Nederlands\",D52,IF(EMRIC!$H$4=\"Français\",E52)))","v":"1 - 3 TS"},{"$f":"IF(EMRIC!#REF!=0,FALSE,TRUE)","v":{"$error":"#REF!"}}]
[53,null,"Spezifische Hilfeleistung (siehe Liste Seite 2)","Eenheid of materiaal (Zie lijst blad 2)","Aide spécialiste (voyez liste page 2)",{"$f":"IF(EMRIC!$H$4=\"Deutsch\",C53,IF(EMRIC!$H$4=\"Nederlands\",D53,IF(EMRIC!$H$4=\"Français\",E53)))","v":"Eenheid of materiaal (Zie lijst blad 2)"},false]
[54,"EMRIC 2","Kommandofahrzeug + 4 LF","4 TS + verplaatsingscommandant + coördinatie","Commandement + 4 autopompes",{"$f":"IF(EMRIC!$H$4=\"Deutsch\",C54,IF(EMRIC!$H$4=\"Nederlands\",D54,IF(EMRIC!$H$4=\"Français\",E54)))","v":"4 TS + verplaatsingscommandant + coördinatie"},{"$f":"IF(EMRIC!#REF!=0,FALSE,TRUE)","v":{"$error":"#REF!"}}]
[55,null,"Zusatzmodul(e) (siehe rechts)","aanvullende modules (zie rechts) ","module(s) complémentaire(s) (voyez droite)",{"$f":"IF(EMRIC!$H$4=\"Deutsch\",C55,IF(EMRIC!$H$4=\"Nederlands\",D55,IF(EMRIC!$H$4=\"Français\",E55)))","v":"aanvullende modules (zie rechts) "},false]
[56,"EMRIC 3","Kommandofahrzeug + 8 LF","8 TS + verplaatsingscommandant + coördinatie","Commandement + 8 autopompes",{"$f":"IF(EMRIC!$H$4=\"Deutsch\",C56,IF(EMRIC!$H$4=\"Nederlands\",D56,IF(EMRIC!$H$4=\"Français\",E56)))","v":"8 TS + verplaatsingscommandant + coördinatie"},{"$f":"IF(EMRIC!#REF!=0,FALSE,TRUE)","v":{"$error":"#REF!"}}]
[57,null,"Zusatzmodul(e) bitte rechts auswählen","aanvullende modules rechts kiezen s.v.p.","module(s) complémentaire(s) (voyez droite)",{"$f":"IF(EMRIC!$H$4=\"Deutsch\",C57,IF(EMRIC!$H$4=\"Nederlands\",D57,IF(EMRIC!$H$4=\"Français\",E57)))","v":"aanvullende modules rechts kiezen s.v.p."},false]
[58]
[59,"Zusatzmodule sind sichtbar nach Seletion Emric 2 oder Emric 3:","Brandbekämpfung","Brandbestrijding","Lutte contre incendie",{"$f":"IF(EMRIC!$H$4=\"Deutsch\",C59,IF(EMRIC!$H$4=\"Nederlands\",D59,IF(EMRIC!$H$4=\"Français\",E59)))","v":"Brandbestrijding"},false]
[60,"Aanvullende modules zijn zichtbaar na selectie Emric 2 of Emric 3:","Waldbrand","Natuurbrand","Feu de fôret",{"$f":"IF(EMRIC!$H$4=\"Deutsch\",C60,IF(EMRIC!$H$4=\"Nederlands\",D60,IF(EMRIC!$H$4=\"Français\",E60)))","v":"Natuurbrand"},false]
[61,"Modules complementaires sont visibles après sélection Emric 2 et Emric 3:","Technische Rettung","Technische hulpverlening","Sauvetage",{"$f":"IF(EMRIC!$H$4=\"Deutsch\",C61,IF(EMRIC!$H$4=\"Nederlands\",D61,IF(EMRIC!$H$4=\"Français\",E61)))","v":"Technische hulpverlening"},false]
[62,null,"Gefahrguteinsatz","Ongeval gevaarlijke stoffen","Accident produits dangereux",{"$f":"IF(EMRIC!$H$4=\"Deutsch\",C62,IF(EMRIC!$H$4=\"Nederlands\",D62,IF(EMRIC!$H$4=\"Français\",E62)))","v":"Ongeval gevaarlijke stoffen"},false]
[63,"EMRIC 2 / EMRIC 3","Hochwasserschutz","Hoog water","Hautes eaux",{"$f":"IF(EMRIC!$H$4=\"Deutsch\",C63,IF(EMRIC!$H$4=\"Nederlands\",D63,IF(EMRIC!$H$4=\"Français\",E63)))","v":"Hoog water"},false]
[64]
[65,null,"Umschreibung:","omschrijving:","description:",{"$f":"IF(EMRIC!$H$4=\"Deutsch\",C65,IF(EMRIC!$H$4=\"Nederlands\",D65,IF(EMRIC!$H$4=\"Français\",E65)))","v":"omschrijving:"}]
[66]
[67,"LEITSTELLEN","CS 112 Lüttich (B)","CS 112 Luik (B)","CS 112 Liège (B)",{"$f":"IF(EMRIC!$H$4=\"Deutsch\",C67,IF(EMRIC!$H$4=\"Nederlands\",D67,IF(EMRIC!$H$4=\"Français\",E67)))","v":"CS 112 Luik (B)"},false]
[68,"MELDKAMERS","CS 112 Limburg (B)","CS 112 Limburg (B)","CS 112 Limburg (B)",{"$f":"IF(EMRIC!$H$4=\"Deutsch\",C68,IF(EMRIC!$H$4=\"Nederlands\",D68,IF(EMRIC!$H$4=\"Français\",E68)))","v":"CS 112 Limburg (B)"},true]
[69,"CENTRALES D'ALERTE","Zonen-Leitstelle Oost-Limburg (B)","Zone-meldkamer Oost-Limburg (B)","Centrale d'alerte Zone Oost-Limburg (B)",{"$f":"IF(EMRIC!$H$4=\"Deutsch\",C69,IF(EMRIC!$H$4=\"Nederlands\",D69,IF(EMRIC!$H$4=\"Français\",E69)))","v":"Zone-meldkamer Oost-Limburg (B)"},false]
[70,null,"Leitstelle Stadt/StädteRegion Aachen (D)","Meldkamer Stad/StädteRegion Aken (D)","Centrale d'alerte Aix + région d'Aix (D)",{"$f":"IF(EMRIC!$H$4=\"Deutsch\",C70,IF(EMRIC!$H$4=\"Nederlands\",D70,IF(EMRIC!$H$4=\"Français\",E70)))","v":"Meldkamer Stad/StädteRegion Aken (D)"},false]
[71,null,"Leitstelle Kreis Düren (D)","Meldkamer Kreis Düren (D)","Centrale d'alerte Kreis Düren (D)",{"$f":"IF(EMRIC!$H$4=\"Deutsch\",C71,IF(EMRIC!$H$4=\"Nederlands\",D71,IF(EMRIC!$H$4=\"Français\",E71)))","v":"Meldkamer Kreis Düren (D)"},false]
[72,null,"Leitstelle Kreis Euskirchen (D)","Meldkamer Kreis Euskirchen (D)","Centrale d'alerte Kreis Euskirchen (D)",{"$f":"IF(EMRIC!$H$4=\"Deutsch\",C72,IF(EMRIC!$H$4=\"Nederlands\",D72,IF(EMRIC!$H$4=\"Français\",E72)))","v":"Meldkamer Kreis Euskirchen (D)"},false]
[73,null,"Leitstelle Kreis Heinsberg (D)","Meldkamer Kreis Heinsberg (D)","Centrale d'alerte Kreis Heinsberg (D)",{"$f":"IF(EMRIC!$H$4=\"Deutsch\",C73,IF(EMRIC!$H$4=\"Nederlands\",D73,IF(EMRIC!$H$4=\"Français\",E73)))","v":"Meldkamer Kreis Heinsberg (D)"},false]
[74,null,"Leitstelle Limburg (NL)","Meldkamer Limburg (NL)","Centrale d'alerte Limburg (NL)",{"$f":"IF(EMRIC!$H$4=\"Deutsch\",C74,IF(EMRIC!$H$4=\"Nederlands\",D74,IF(EMRIC!$H$4=\"Français\",E74)))","v":"Meldkamer Limburg (NL)"},true,null,false]
[75]
[76,"ABLAUF","Telefonische Meldung des Ereignisses","Telefonische melding incident","Notification d'une situation d'urgence",{"$f":"IF(EMRIC!$H$4=\"Deutsch\",C76,IF(EMRIC!$H$4=\"Nederlands\",D76,IF(EMRIC!$H$4=\"Français\",E76)))","v":"Telefonische melding incident"}]
[77,"PROCEDURE","Formular ausfüllen und per Mail (oder per Fax) schicken","Formulier invullen en per mail sturen (of per fax)","Remplir le formulaire et envoi par mail (ou par fax)",{"$f":"IF(EMRIC!$H$4=\"Deutsch\",C77,IF(EMRIC!$H$4=\"Nederlands\",D77,IF(EMRIC!$H$4=\"Français\",E77)))","v":"Formulier invullen en per mail sturen (of per fax)"}]
[78,"DÉROULEMENT","Die Kontaktdaten der als Empfänger ausgewählten Leitstellen werden im Reiter \"CONTACT\" automatisch gelb markiert.","De contactgegevens van de ontvangers die gekozen zijn, worden bij \"CONTACT\" geel weergegeven.","Les coordonnées des récepteurs choisis sont marqués en jaune dans l'index \"CONTACT\".",{"$f":"IF(EMRIC!$H$4=\"Deutsch\",C78,IF(EMRIC!$H$4=\"Nederlands\",D78,IF(EMRIC!$H$4=\"Français\",E78)))","v":"De contactgegevens van de ontvangers die gekozen zijn, worden bij \"CONTACT\" geel weergegeven."}]
[79,null,"(Falls Mail nicht möglich per Fax)","(Indien mail niet mogelijk per fax)","(Si mail n'est pas possible, envoi par fax)","Si"]
[80,null,"Rückmeldung abwarten","Antwoord afwachten","Attendez la réponse",{"$f":"IF(EMRIC!$H$4=\"Deutsch\",C80,IF(EMRIC!$H$4=\"Nederlands\",D80,IF(EMRIC!$H$4=\"Français\",E80)))","v":"Antwoord afwachten"}]
[null,null,"Der rote Reiter muss ausgefüllt werden. Blaue Reiter dienen ausschließlich zur Information.\nDer grüne Antwort-Reiter wird von der Leitstelle, von der Hilfe erbeten wird, ausgefüllt und zurückgeschickt.","Het rode tabblad dient ingevuld te worden. Blauwe tabbladen zijn uitsluitend ter informatie. \nHet groene tabblad wordt ingevuld door de ontvanger en teruggestuurd.","L'index rouge doit être rempli. Les index bleus présentent des informations supplémentaires. L'index vert est à remplir par le récepteur.",{"$f":"IF(EMRIC!$H$4=\"Deutsch\",C81,IF(EMRIC!$H$4=\"Nederlands\",D81,IF(EMRIC!$H$4=\"Français\",E81)))","v":"Het rode tabblad dient ingevuld te worden. Blauwe tabbladen zijn uitsluitend ter informatie. \nHet groene tabblad wordt ingevuld door de ontvanger en teruggestuurd."}]
[82,null,"Dieses Formular arbeitet mit Makros, muss aber ohne Makros gespeichert werden um zu vermeiden, dass es beim Verschicken per Mail eventuell als Spam eingestuft wird.\nBitte beachten Sie daher unbedingt die folgenden zwei Hinweise:\n1. Es muss immer die ursprüngliche Vorlage ausgefüllt werden! Bei einem ausgefüllt gespeicherten Formular funktionieren die Funktionen teilweise nicht mehr richtig. Bitte öffnen Sie die Datei per Doppelklick; so wird automatisch eine Kopie der Datei geöffnet und die Vorlage bleibt unverändert.\n2. Das Formular muss als normale Excel-Datei ohne Makros gespeichert werden. Bei der durch Doppelklick erstellte Kopie geschieht dies automatisch . Excel weist dann beim Speichern darauf hin, dass das VB-Projekt nicht gespeichert werden kann; bitte klicken Sie hier auf \"JA\".","Dit formulier maakt gebruik van macros. Het formulier moet echter zonder macros worden opgeslagen, om te voorkomen dat het bij het versturen per e-mail in de spamfilter terecht komt. \nLet u hierbij alstublieft op de volgende instructies:\n1. Het oorspronkelijke sjabloon dient altijd ingevuld te worden! Bij een ingevuld en opgeslagen formulier werken een aantal functies niet meer correct. Opent u alstublieft het bestand middels dubbelklikken; hierdoor wordt automatisch een kopie van het bestand geopend zonder het originele sjabloon te wijzigen.\n2. Het formulier moet als normaal Excel-bestand zonder macros worden opgeslagen. Bij het opslaan geeft Excel de melding dat het VB-project niet kan worden opgeslagen; klikt u hier alstublieft op “JA”.","Ce formulaire travaille avec des macros, mais doit être enregistré sans macros pour éviter une classification comme spam lors de l’envoi.\nVeuillez s.v.p. tenir compte des deux points suivants:\n1. Le modèle initial doit toujours être rempli! Avec un formulaire enregistré, les fonctions ne fonctionnent partiellement plus. Veuillez s.v.p. ouvrir le fichier par\ndouble-clic; une copie du fichier sera ouvert par conséquent et le modèle restera inchangé.\n2. Le formulaire doit être enregistré comme fichier exel normal  sans macros. Ceci se passe automatiquement avec la copie créée par double-clic. Exel indique conséquemment\nlors de l’enregistrement que le projet VB ne peut pas être enregistré; veuillez cliquer sur “OUI”.",{"$f":"IF(EMRIC!$H$4=\"Deutsch\",C82,IF(EMRIC!$H$4=\"Nederlands\",D82,IF(EMRIC!$H$4=\"Français\",E82)))","v":"Dit formulier maakt gebruik van macros. Het formulier moet echter zonder macros worden opgeslagen, om te voorkomen dat het bij het versturen per e-mail in de spamfilter terecht komt. \nLet u hierbij alstublieft op de volgende instructies:\n1. Het oorspronkelijke sjabloon dient altijd ingevuld te worden! Bij een ingevuld en opgeslagen formulier werken een aantal functies niet meer correct. Opent u alstublieft het bestand middels dubbelklikken; hierdoor wordt automatisch een kopie van het bestand geopend zonder het originele sjabloon te wijzigen.\n2. Het formulier moet als normaal Excel-bestand zonder macros worden opgeslagen. Bij het opslaan geeft Excel de melding dat het VB-project niet kan worden opgeslagen; klikt u hier alstublieft op “JA”."}]
[83,null,"(E-Mail-Adressen werden anhand der ausgewählten Empfänger automatisch eingetragen)","(Mailadressen worden automatisch ingevuld afhankelijk van de gekozen geadresseerden)","(Les adresses email sont remplies automatiquement suivant les destinataires choisis)",{"$f":"IF(EMRIC!$H$4=\"Deutsch\",C83,IF(EMRIC!$H$4=\"Nederlands\",D83,IF(EMRIC!$H$4=\"Français\",E83)))","v":"(Mailadressen worden automatisch ingevuld afhankelijk van de gekozen geadresseerden)"}]
[null,null,"HINWEISE","OPMERKINGEN","REMARQUES",{"$f":"IF(EMRIC!$H$4=\"Deutsch\",C84,IF(EMRIC!$H$4=\"Nederlands\",D84,IF(EMRIC!$H$4=\"Français\",E84)))","v":"OPMERKINGEN"}]
[84]
[85,null,"(Bitte die gewünschte Anzahl in die schwarz umrandeten Felder eintragen. Die entsprechenden Informationen erscheinen automatisch in der Materialliste im roten Reiter.)","(Gelieve het gewenste aantal in te voeren in de vakken met de zwarte omranding. De betreffende informatie wordt automatisch in de materialenlijst op het rode tabblad ingevoerd.)","(Prière de remplir le nombre dans les cadres encadrés en noir. L'information est automatiquement remplie dans la liste des matériels sous l'index rouge)",{"$f":"IF(EMRIC!$H$4=\"Deutsch\",C86,IF(EMRIC!$H$4=\"Nederlands\",D86,IF(EMRIC!$H$4=\"Français\",E86)))","v":"(Gelieve het gewenste aantal in te voeren in de vakken met de zwarte omranding. De betreffende informatie wordt automatisch in de materialenlijst op het rode tabblad ingevoerd.)"}]
[86,null,"(Wird automatisch ausgefüllt wenn im gelben Reiter bei den gewünschten Materialien eine Anzahl eintragen wird.)","(wordt automatisch ingevuld als bij het gele tabblad het aantal van de gewenste materialen ingevuld wordt.)","(Est rempli automatiquement quand le nombre des matériaux désirés est rempli sous l'index jaune)",{"$f":"IF(EMRIC!$H$4=\"Deutsch\",C87,IF(EMRIC!$H$4=\"Nederlands\",D87,IF(EMRIC!$H$4=\"Français\",E87)))","v":"(wordt automatisch ingevuld als bij het gele tabblad het aantal van de gewenste materialen ingevuld wordt.)"}]
[87]
[88,null,"falls nötig bitte von Hand ausfüllen","handmatig invullen indien nodig","si nécessaire remplir à la main s.v.p.",{"$f":"IF(EMRIC!$H$4=\"Deutsch\",C89,IF(EMRIC!$H$4=\"Nederlands\",D89,IF(EMRIC!$H$4=\"Français\",E89)))","v":"handmatig invullen indien nodig"}]
[89]
[90,null,"alle auswählen","allen selecteren","sélectionnez tous",{"$f":"IF(EMRIC!$H$4=\"Deutsch\",C91,IF(EMRIC!$H$4=\"Nederlands\",D91,IF(EMRIC!$H$4=\"Français\",E91)))","v":"allen selecteren"}]
[91,null,"Auswahl aufheben","selectie wissen","effacez la sélection",{"$f":"IF(EMRIC!$H$4=\"Deutsch\",C92,IF(EMRIC!$H$4=\"Nederlands\",D92,IF(EMRIC!$H$4=\"Français\",E92)))","v":"selectie wissen"}]
[92]
[93,null,"Geschätzte Ankunft an der Lotsenstelle:","Geschatte aankomsttijd op de loodspost","Estimation de l'heure d'arrivée sur l'euroguide",{"$f":"IF(EMRIC!$H$4=\"Deutsch\",C94,IF(EMRIC!$H$4=\"Nederlands\",D94,IF(EMRIC!$H$4=\"Français\",E94)))","v":"Geschatte aankomsttijd op de loodspost"}]
[94,null,"(Bitte ggf. die angeforderte Anzahl durch die Anzahl ersetzen, die geleistet werden kann.)","(Gelieve eventueel het gevraagde aantal door het aantal vervangen, dat geleverd kan worden)","(Prière de remplacer le nombre demandé par le nombre, qui peut être livré)",{"$f":"IF(EMRIC!$H$4=\"Deutsch\",C95,IF(EMRIC!$H$4=\"Nederlands\",D95,IF(EMRIC!$H$4=\"Français\",E95)))","v":"(Gelieve eventueel het gevraagde aantal door het aantal vervangen, dat geleverd kan worden)"}]
[95]
[96,null,"Version","Versie","Version",{"$f":"IF(EMRIC!$H$4=\"Deutsch\",C97,IF(EMRIC!$H$4=\"Nederlands\",D97,IF(EMRIC!$H$4=\"Français\",E97)))","v":"Versie"}]
[97,null,null,null,null,{"$f":"IF(EMRIC!$H$4=\"Deutsch\",C98,IF(EMRIC!$H$4=\"Nederlands\",D98,IF(EMRIC!$H$4=\"Français\",E98)))","v":0}]
[98,null,"Nicht möglich für belgische Dienste","Niet mogelijk voor Belgische partners","Pas possible pour  partenaires belges",{"$f":"IF(EMRIC!$H$4=\"Deutsch\",C99,IF(EMRIC!$H$4=\"Nederlands\",D99,IF(EMRIC!$H$4=\"Français\",E99)))","v":"Niet mogelijk voor Belgische partners"}]
[99,null,null,null,null,{"$f":"IF(EMRIC!$H$4=\"Deutsch\",C100,IF(EMRIC!$H$4=\"Nederlands\",D100,IF(EMRIC!$H$4=\"Français\",E100)))","v":0}]
[100,null,"Angeforderte Hilfe:","Aangevraagde bijstand:","Aide demandée:",{"$f":"IF(EMRIC!$H$4=\"Deutsch\",C101,IF(EMRIC!$H$4=\"Nederlands\",D101,IF(EMRIC!$H$4=\"Français\",E101)))","v":"Aangevraagde bijstand:"}]
[101,null,"Die folgende Hilfe kann geliefert werden:","De volgende bijstand kan geleverd worden:","L’aide suivante peut être fournie:",{"$f":"IF(EMRIC!$H$4=\"Deutsch\",C102,IF(EMRIC!$H$4=\"Nederlands\",D102,IF(EMRIC!$H$4=\"Français\",E102)))","v":"De volgende bijstand kan geleverd worden:"}]
[102,null,null,null,null,{"$f":"IF(EMRIC!$H$4=\"Deutsch\",C103,IF(EMRIC!$H$4=\"Nederlands\",D103,IF(EMRIC!$H$4=\"Français\",E103)))","v":0}]
[103,null,null,null,null,{"$f":"IF(EMRIC!$H$4=\"Deutsch\",C104,IF(EMRIC!$H$4=\"Nederlands\",D104,IF(EMRIC!$H$4=\"Français\",E104)))","v":0}]
[104,null,null,null,null,{"$f":"IF(EMRIC!$H$4=\"Deutsch\",C105,IF(EMRIC!$H$4=\"Nederlands\",D105,IF(EMRIC!$H$4=\"Français\",E105)))","v":0}]
[105,null,null,null,null,{"$f":"IF(EMRIC!$H$4=\"Deutsch\",C106,IF(EMRIC!$H$4=\"Nederlands\",D106,IF(EMRIC!$H$4=\"Français\",E106)))","v":0}]
[106,null,null,null,null,{"$f":"IF(EMRIC!$H$4=\"Deutsch\",C107,IF(EMRIC!$H$4=\"Nederlands\",D107,IF(EMRIC!$H$4=\"Français\",E107)))","v":0}]
[107,null,null,null,null,{"$f":"IF(EMRIC!$H$4=\"Deutsch\",C108,IF(EMRIC!$H$4=\"Nederlands\",D108,IF(EMRIC!$H$4=\"Français\",E108)))","v":0}]
[108,null,null,null,null,{"$f":"IF(EMRIC!$H$4=\"Deutsch\",C109,IF(EMRIC!$H$4=\"Nederlands\",D109,IF(EMRIC!$H$4=\"Français\",E109)))","v":0}]
[109,null,null,null,null,{"$f":"IF(EMRIC!$H$4=\"Deutsch\",C110,IF(EMRIC!$H$4=\"Nederlands\",D110,IF(EMRIC!$H$4=\"Français\",E110)))","v":0}]
[110,null,null,null,null,{"$f":"IF(EMRIC!$H$4=\"Deutsch\",C111,IF(EMRIC!$H$4=\"Nederlands\",D111,IF(EMRIC!$H$4=\"Français\",E111)))","v":0}]
[111,null,null,null,null,{"$f":"IF(EMRIC!$H$4=\"Deutsch\",C112,IF(EMRIC!$H$4=\"Nederlands\",D112,IF(EMRIC!$H$4=\"Français\",E112)))","v":0}]
[112,null,null,null,null,{"$f":"IF(EMRIC!$H$4=\"Deutsch\",C113,IF(EMRIC!$H$4=\"Nederlands\",D113,IF(EMRIC!$H$4=\"Français\",E113)))","v":0}]
[113,null,null,null,null,{"$f":"IF(EMRIC!$H$4=\"Deutsch\",C114,IF(EMRIC!$H$4=\"Nederlands\",D114,IF(EMRIC!$H$4=\"Français\",E114)))","v":0}]
[114,null,null,null,null,{"$f":"IF(EMRIC!$H$4=\"Deutsch\",C115,IF(EMRIC!$H$4=\"Nederlands\",D115,IF(EMRIC!$H$4=\"Français\",E115)))","v":0}]
[115,null,null,null,null,{"$f":"IF(EMRIC!$H$4=\"Deutsch\",C116,IF(EMRIC!$H$4=\"Nederlands\",D116,IF(EMRIC!$H$4=\"Français\",E116)))","v":0}]
[116,null,null,null,null,{"$f":"IF(EMRIC!$H$4=\"Deutsch\",C117,IF(EMRIC!$H$4=\"Nederlands\",D117,IF(EMRIC!$H$4=\"Français\",E117)))","v":0}]
[117,null,null,null,null,{"$f":"IF(EMRIC!$H$4=\"Deutsch\",C118,IF(EMRIC!$H$4=\"Nederlands\",D118,IF(EMRIC!$H$4=\"Français\",E118)))","v":0}]
[118,null,null,null,null,{"$f":"IF(EMRIC!$H$4=\"Deutsch\",C119,IF(EMRIC!$H$4=\"Nederlands\",D119,IF(EMRIC!$H$4=\"Français\",E119)))","v":0}]
[119,null,null,null,null,{"$f":"IF(EMRIC!$H$4=\"Deutsch\",C120,IF(EMRIC!$H$4=\"Nederlands\",D120,IF(EMRIC!$H$4=\"Français\",E120)))","v":0}]
[120,null,null,null,null,{"$f":"IF(EMRIC!$H$4=\"Deutsch\",C121,IF(EMRIC!$H$4=\"Nederlands\",D121,IF(EMRIC!$H$4=\"Français\",E121)))","v":0}]
[121,null,null,null,null,{"$f":"IF(EMRIC!$H$4=\"Deutsch\",C122,IF(EMRIC!$H$4=\"Nederlands\",D122,IF(EMRIC!$H$4=\"Français\",E122)))","v":0}]
[122,null,null,null,null,{"$f":"IF(EMRIC!$H$4=\"Deutsch\",C123,IF(EMRIC!$H$4=\"Nederlands\",D123,IF(EMRIC!$H$4=\"Français\",E123)))","v":0}]
[123,null,null,null,null,{"$f":"IF(EMRIC!$H$4=\"Deutsch\",C124,IF(EMRIC!$H$4=\"Nederlands\",D124,IF(EMRIC!$H$4=\"Français\",E124)))","v":0}]
[124,null,null,null,null,{"$f":"IF(EMRIC!$H$4=\"Deutsch\",C125,IF(EMRIC!$H$4=\"Nederlands\",D125,IF(EMRIC!$H$4=\"Français\",E125)))","v":0}]
[125,null,null,null,null,{"$f":"IF(EMRIC!$H$4=\"Deutsch\",C126,IF(EMRIC!$H$4=\"Nederlands\",D126,IF(EMRIC!$H$4=\"Français\",E126)))","v":0}]
[126,null,null,null,null,{"$f":"IF(EMRIC!$H$4=\"Deutsch\",C127,IF(EMRIC!$H$4=\"Nederlands\",D127,IF(EMRIC!$H$4=\"Français\",E127)))","v":0}]
[127,null,null,null,null,{"$f":"IF(EMRIC!$H$4=\"Deutsch\",C128,IF(EMRIC!$H$4=\"Nederlands\",D128,IF(EMRIC!$H$4=\"Français\",E128)))","v":0}]
[128,null,null,null,null,{"$f":"IF(EMRIC!$H$4=\"Deutsch\",C129,IF(EMRIC!$H$4=\"Nederlands\",D129,IF(EMRIC!$H$4=\"Français\",E129)))","v":0}]
[129,null,null,null,null,{"$f":"IF(EMRIC!$H$4=\"Deutsch\",C130,IF(EMRIC!$H$4=\"Nederlands\",D130,IF(EMRIC!$H$4=\"Français\",E130)))","v":0}]
[130,null,null,null,null,{"$f":"IF(EMRIC!$H$4=\"Deutsch\",C131,IF(EMRIC!$H$4=\"Nederlands\",D131,IF(EMRIC!$H$4=\"Français\",E131)))","v":0}]
[131,null,null,null,null,{"$f":"IF(EMRIC!$H$4=\"Deutsch\",C132,IF(EMRIC!$H$4=\"Nederlands\",D132,IF(EMRIC!$H$4=\"Français\",E132)))","v":0}]
[132,null,null,null,null,{"$f":"IF(EMRIC!$H$4=\"Deutsch\",C133,IF(EMRIC!$H$4=\"Nederlands\",D133,IF(EMRIC!$H$4=\"Français\",E133)))","v":0}]
[133,null,null,null,null,{"$f":"IF(EMRIC!$H$4=\"Deutsch\",C134,IF(EMRIC!$H$4=\"Nederlands\",D134,IF(EMRIC!$H$4=\"Français\",E134)))","v":0}]
[134,null,null,null,null,{"$f":"IF(EMRIC!$H$4=\"Deutsch\",C135,IF(EMRIC!$H$4=\"Nederlands\",D135,IF(EMRIC!$H$4=\"Français\",E135)))","v":0}]
[135,null,null,null,null,{"$f":"IF(EMRIC!$H$4=\"Deutsch\",C136,IF(EMRIC!$H$4=\"Nederlands\",D136,IF(EMRIC!$H$4=\"Français\",E136)))","v":0}]
[136,null,null,null,null,{"$f":"IF(EMRIC!$H$4=\"Deutsch\",C137,IF(EMRIC!$H$4=\"Nederlands\",D137,IF(EMRIC!$H$4=\"Français\",E137)))","v":0}]
[137,null,null,null,null,{"$f":"IF(EMRIC!$H$4=\"Deutsch\",C138,IF(EMRIC!$H$4=\"Nederlands\",D138,IF(EMRIC!$H$4=\"Français\",E138)))","v":0}]
[138,null,null,null,null,{"$f":"IF(EMRIC!$H$4=\"Deutsch\",C139,IF(EMRIC!$H$4=\"Nederlands\",D139,IF(EMRIC!$H$4=\"Français\",E139)))","v":0}]
[139,null,null,null,null,{"$f":"IF(EMRIC!$H$4=\"Deutsch\",C140,IF(EMRIC!$H$4=\"Nederlands\",D140,IF(EMRIC!$H$4=\"Français\",E140)))","v":0}]
[140,null,null,null,null,{"$f":"IF(EMRIC!$H$4=\"Deutsch\",C141,IF(EMRIC!$H$4=\"Nederlands\",D141,IF(EMRIC!$H$4=\"Français\",E141)))","v":0}]
[141,null,null,null,null,{"$f":"IF(EMRIC!$H$4=\"Deutsch\",C142,IF(EMRIC!$H$4=\"Nederlands\",D142,IF(EMRIC!$H$4=\"Français\",E142)))","v":0}]
[142,null,null,null,null,{"$f":"IF(EMRIC!$H$4=\"Deutsch\",C143,IF(EMRIC!$H$4=\"Nederlands\",D143,IF(EMRIC!$H$4=\"Français\",E143)))","v":0}]
[143,null,null,null,null,{"$f":"IF(EMRIC!$H$4=\"Deutsch\",C144,IF(EMRIC!$H$4=\"Nederlands\",D144,IF(EMRIC!$H$4=\"Français\",E144)))","v":0}]
[144,null,null,null,null,{"$f":"IF(EMRIC!$H$4=\"Deutsch\",C145,IF(EMRIC!$H$4=\"Nederlands\",D145,IF(EMRIC!$H$4=\"Français\",E145)))","v":0}]
[145,null,null,null,null,{"$f":"IF(EMRIC!$H$4=\"Deutsch\",C146,IF(EMRIC!$H$4=\"Nederlands\",D146,IF(EMRIC!$H$4=\"Français\",E146)))","v":0}]
[146,null,null,null,null,{"$f":"IF(EMRIC!$H$4=\"Deutsch\",C147,IF(EMRIC!$H$4=\"Nederlands\",D147,IF(EMRIC!$H$4=\"Français\",E147)))","v":0}]
[147,null,null,null,null,{"$f":"IF(EMRIC!$H$4=\"Deutsch\",C148,IF(EMRIC!$H$4=\"Nederlands\",D148,IF(EMRIC!$H$4=\"Français\",E148)))","v":0}]
[148,null,null,null,null,{"$f":"IF(EMRIC!$H$4=\"Deutsch\",C149,IF(EMRIC!$H$4=\"Nederlands\",D149,IF(EMRIC!$H$4=\"Français\",E149)))","v":0}]
[149,null,null,null,null,{"$f":"IF(EMRIC!$H$4=\"Deutsch\",C150,IF(EMRIC!$H$4=\"Nederlands\",D150,IF(EMRIC!$H$4=\"Français\",E150)))","v":0}]
[150,null,null,null,null,{"$f":"IF(EMRIC!$H$4=\"Deutsch\",C151,IF(EMRIC!$H$4=\"Nederlands\",D151,IF(EMRIC!$H$4=\"Français\",E151)))","v":0}]
[151,null,null,null,null,{"$f":"IF(EMRIC!$H$4=\"Deutsch\",C152,IF(EMRIC!$H$4=\"Nederlands\",D152,IF(EMRIC!$H$4=\"Français\",E152)))","v":0}]
[152,null,null,null,null,{"$f":"IF(EMRIC!$H$4=\"Deutsch\",C153,IF(EMRIC!$H$4=\"Nederlands\",D153,IF(EMRIC!$H$4=\"Français\",E153)))","v":0}]
[153,null,null,null,null,{"$f":"IF(EMRIC!$H$4=\"Deutsch\",C154,IF(EMRIC!$H$4=\"Nederlands\",D154,IF(EMRIC!$H$4=\"Français\",E154)))","v":0}]
[154,null,null,null,null,{"$f":"IF(EMRIC!$H$4=\"Deutsch\",C155,IF(EMRIC!$H$4=\"Nederlands\",D155,IF(EMRIC!$H$4=\"Français\",E155)))","v":0}]
[155,null,null,null,null,{"$f":"IF(EMRIC!$H$4=\"Deutsch\",C156,IF(EMRIC!$H$4=\"Nederlands\",D156,IF(EMRIC!$H$4=\"Français\",E156)))","v":0}]
[156,null,null,null,null,{"$f":"IF(EMRIC!$H$4=\"Deutsch\",C157,IF(EMRIC!$H$4=\"Nederlands\",D157,IF(EMRIC!$H$4=\"Français\",E157)))","v":0}]
[157,null,null,null,null,{"$f":"IF(EMRIC!$H$4=\"Deutsch\",C158,IF(EMRIC!$H$4=\"Nederlands\",D158,IF(EMRIC!$H$4=\"Français\",E158)))","v":0}]
[158,null,null,null,null,{"$f":"IF(EMRIC!$H$4=\"Deutsch\",C159,IF(EMRIC!$H$4=\"Nederlands\",D159,IF(EMRIC!$H$4=\"Français\",E159)))","v":0}]
[159,null,null,null,null,{"$f":"IF(EMRIC!$H$4=\"Deutsch\",C160,IF(EMRIC!$H$4=\"Nederlands\",D160,IF(EMRIC!$H$4=\"Français\",E160)))","v":0}]
[160,null,null,null,null,{"$f":"IF(EMRIC!$H$4=\"Deutsch\",C161,IF(EMRIC!$H$4=\"Nederlands\",D161,IF(EMRIC!$H$4=\"Français\",E161)))","v":0}]
[161,null,null,null,null,{"$f":"IF(EMRIC!$H$4=\"Deutsch\",C162,IF(EMRIC!$H$4=\"Nederlands\",D162,IF(EMRIC!$H$4=\"Français\",E162)))","v":0}]
[162,null,null,null,null,{"$f":"IF(EMRIC!$H$4=\"Deutsch\",C163,IF(EMRIC!$H$4=\"Nederlands\",D163,IF(EMRIC!$H$4=\"Français\",E163)))","v":0}]
[163,null,null,null,null,{"$f":"IF(EMRIC!$H$4=\"Deutsch\",C164,IF(EMRIC!$H$4=\"Nederlands\",D164,IF(EMRIC!$H$4=\"Français\",E164)))","v":0}]
[164,null,null,null,null,{"$f":"IF(EMRIC!$H$4=\"Deutsch\",C165,IF(EMRIC!$H$4=\"Nederlands\",D165,IF(EMRIC!$H$4=\"Français\",E165)))","v":0}]
[165,null,null,null,null,{"$f":"IF(EMRIC!$H$4=\"Deutsch\",C166,IF(EMRIC!$H$4=\"Nederlands\",D166,IF(EMRIC!$H$4=\"Français\",E166)))","v":0}]
[166,null,null,null,null,{"$f":"IF(EMRIC!$H$4=\"Deutsch\",C167,IF(EMRIC!$H$4=\"Nederlands\",D167,IF(EMRIC!$H$4=\"Français\",E167)))","v":0}]
[167,null,null,null,null,{"$f":"IF(EMRIC!$H$4=\"Deutsch\",C168,IF(EMRIC!$H$4=\"Nederlands\",D168,IF(EMRIC!$H$4=\"Français\",E168)))","v":0}]
[168,null,null,null,null,{"$f":"IF(EMRIC!$H$4=\"Deutsch\",C169,IF(EMRIC!$H$4=\"Nederlands\",D169,IF(EMRIC!$H$4=\"Français\",E169)))","v":0}]
[169,null,null,null,null,{"$f":"IF(EMRIC!$H$4=\"Deutsch\",C170,IF(EMRIC!$H$4=\"Nederlands\",D170,IF(EMRIC!$H$4=\"Français\",E170)))","v":0}]
[170,null,null,null,null,{"$f":"IF(EMRIC!$H$4=\"Deutsch\",C171,IF(EMRIC!$H$4=\"Nederlands\",D171,IF(EMRIC!$H$4=\"Français\",E171)))","v":0}]
[171,null,null,null,null,{"$f":"IF(EMRIC!$H$4=\"Deutsch\",C172,IF(EMRIC!$H$4=\"Nederlands\",D172,IF(EMRIC!$H$4=\"Français\",E172)))","v":0}]
[172,null,null,null,null,{"$f":"IF(EMRIC!$H$4=\"Deutsch\",C173,IF(EMRIC!$H$4=\"Nederlands\",D173,IF(EMRIC!$H$4=\"Français\",E173)))","v":0}]
[173,null,null,null,null,{"$f":"IF(EMRIC!$H$4=\"Deutsch\",C174,IF(EMRIC!$H$4=\"Nederlands\",D174,IF(EMRIC!$H$4=\"Français\",E174)))","v":0}]
[174,null,null,null,null,{"$f":"IF(EMRIC!$H$4=\"Deutsch\",C175,IF(EMRIC!$H$4=\"Nederlands\",D175,IF(EMRIC!$H$4=\"Français\",E175)))","v":0}]
[175,null,null,null,null,{"$f":"IF(EMRIC!$H$4=\"Deutsch\",C176,IF(EMRIC!$H$4=\"Nederlands\",D176,IF(EMRIC!$H$4=\"Français\",E176)))","v":0}]
[176,null,null,null,null,{"$f":"IF(EMRIC!$H$4=\"Deutsch\",C177,IF(EMRIC!$H$4=\"Nederlands\",D177,IF(EMRIC!$H$4=\"Français\",E177)))","v":0}]
[177,null,null,null,null,{"$f":"IF(EMRIC!$H$4=\"Deutsch\",C178,IF(EMRIC!$H$4=\"Nederlands\",D178,IF(EMRIC!$H$4=\"Français\",E178)))","v":0}]
[178,null,null,null,null,{"$f":"IF(EMRIC!$H$4=\"Deutsch\",C179,IF(EMRIC!$H$4=\"Nederlands\",D179,IF(EMRIC!$H$4=\"Français\",E179)))","v":0}]
[179,null,null,null,null,{"$f":"IF(EMRIC!$H$4=\"Deutsch\",C180,IF(EMRIC!$H$4=\"Nederlands\",D180,IF(EMRIC!$H$4=\"Français\",E180)))","v":0}]
[180,null,null,null,null,{"$f":"IF(EMRIC!$H$4=\"Deutsch\",C181,IF(EMRIC!$H$4=\"Nederlands\",D181,IF(EMRIC!$H$4=\"Français\",E181)))","v":0}]
[181,null,null,null,null,{"$f":"IF(EMRIC!$H$4=\"Deutsch\",C182,IF(EMRIC!$H$4=\"Nederlands\",D182,IF(EMRIC!$H$4=\"Français\",E182)))","v":0}]
[182,null,null,null,null,{"$f":"IF(EMRIC!$H$4=\"Deutsch\",C183,IF(EMRIC!$H$4=\"Nederlands\",D183,IF(EMRIC!$H$4=\"Français\",E183)))","v":0}]
[183,null,null,null,null,{"$f":"IF(EMRIC!$H$4=\"Deutsch\",C184,IF(EMRIC!$H$4=\"Nederlands\",D184,IF(EMRIC!$H$4=\"Français\",E184)))","v":0}]
[184,null,null,null,null,{"$f":"IF(EMRIC!$H$4=\"Deutsch\",C185,IF(EMRIC!$H$4=\"Nederlands\",D185,IF(EMRIC!$H$4=\"Français\",E185)))","v":0}]
[185,null,null,null,null,{"$f":"IF(EMRIC!$H$4=\"Deutsch\",C186,IF(EMRIC!$H$4=\"Nederlands\",D186,IF(EMRIC!$H$4=\"Français\",E186)))","v":0}]
[186,null,null,null,null,{"$f":"IF(EMRIC!$H$4=\"Deutsch\",C187,IF(EMRIC!$H$4=\"Nederlands\",D187,IF(EMRIC!$H$4=\"Français\",E187)))","v":0}]
[187,null,null,null,null,{"$f":"IF(EMRIC!$H$4=\"Deutsch\",C188,IF(EMRIC!$H$4=\"Nederlands\",D188,IF(EMRIC!$H$4=\"Français\",E188)))","v":0}]
[188,null,null,null,null,{"$f":"IF(EMRIC!$H$4=\"Deutsch\",C189,IF(EMRIC!$H$4=\"Nederlands\",D189,IF(EMRIC!$H$4=\"Français\",E189)))","v":0}]
[189,null,null,null,null,{"$f":"IF(EMRIC!$H$4=\"Deutsch\",C190,IF(EMRIC!$H$4=\"Nederlands\",D190,IF(EMRIC!$H$4=\"Français\",E190)))","v":0}]
[190,null,null,null,null,{"$f":"IF(EMRIC!$H$4=\"Deutsch\",C191,IF(EMRIC!$H$4=\"Nederlands\",D191,IF(EMRIC!$H$4=\"Français\",E191)))","v":0}]
[191,null,null,null,null,{"$f":"IF(EMRIC!$H$4=\"Deutsch\",C192,IF(EMRIC!$H$4=\"Nederlands\",D192,IF(EMRIC!$H$4=\"Français\",E192)))","v":0}]
[192,null,null,null,null,{"$f":"IF(EMRIC!$H$4=\"Deutsch\",C193,IF(EMRIC!$H$4=\"Nederlands\",D193,IF(EMRIC!$H$4=\"Français\",E193)))","v":0}]
[193,null,null,null,null,{"$f":"IF(EMRIC!$H$4=\"Deutsch\",C194,IF(EMRIC!$H$4=\"Nederlands\",D194,IF(EMRIC!$H$4=\"Français\",E194)))","v":0}]
[194,null,null,null,null,{"$f":"IF(EMRIC!$H$4=\"Deutsch\",C195,IF(EMRIC!$H$4=\"Nederlands\",D195,IF(EMRIC!$H$4=\"Français\",E195)))","v":0}]
[195,null,null,null,null,{"$f":"IF(EMRIC!$H$4=\"Deutsch\",C196,IF(EMRIC!$H$4=\"Nederlands\",D196,IF(EMRIC!$H$4=\"Français\",E196)))","v":0}]
[196,null,null,null,null,{"$f":"IF(EMRIC!$H$4=\"Deutsch\",C197,IF(EMRIC!$H$4=\"Nederlands\",D197,IF(EMRIC!$H$4=\"Français\",E197)))","v":0}]
[197,null,null,null,null,{"$f":"IF(EMRIC!$H$4=\"Deutsch\",C198,IF(EMRIC!$H$4=\"Nederlands\",D198,IF(EMRIC!$H$4=\"Français\",E198)))","v":0}]
[198,null,null,null,null,{"$f":"IF(EMRIC!$H$4=\"Deutsch\",C199,IF(EMRIC!$H$4=\"Nederlands\",D199,IF(EMRIC!$H$4=\"Français\",E199)))","v":0}]
[199,null,null,null,null,{"$f":"IF(EMRIC!$H$4=\"Deutsch\",C200,IF(EMRIC!$H$4=\"Nederlands\",D200,IF(EMRIC!$H$4=\"Français\",E200)))","v":0}]
[200,null,null,null,null,{"$f":"IF(EMRIC!$H$4=\"Deutsch\",C201,IF(EMRIC!$H$4=\"Nederlands\",D201,IF(EMRIC!$H$4=\"Français\",E201)))","v":0}]
[201,null,null,null,null,{"$f":"IF(EMRIC!$H$4=\"Deutsch\",C202,IF(EMRIC!$H$4=\"Nederlands\",D202,IF(EMRIC!$H$4=\"Français\",E202)))","v":0}]
[202,null,null,null,null,{"$f":"IF(EMRIC!$H$4=\"Deutsch\",C203,IF(EMRIC!$H$4=\"Nederlands\",D203,IF(EMRIC!$H$4=\"Français\",E203)))","v":0}]
[203,null,null,null,null,{"$f":"IF(EMRIC!$H$4=\"Deutsch\",C204,IF(EMRIC!$H$4=\"Nederlands\",D204,IF(EMRIC!$H$4=\"Français\",E204)))","v":0}]
[204,null,null,null,null,{"$f":"IF(EMRIC!$H$4=\"Deutsch\",C205,IF(EMRIC!$H$4=\"Nederlands\",D205,IF(EMRIC!$H$4=\"Français\",E205)))","v":0}]
[205,null,null,null,null,{"$f":"IF(EMRIC!$H$4=\"Deutsch\",C206,IF(EMRIC!$H$4=\"Nederlands\",D206,IF(EMRIC!$H$4=\"Français\",E206)))","v":0}]
[206,null,null,null,null,{"$f":"IF(EMRIC!$H$4=\"Deutsch\",C207,IF(EMRIC!$H$4=\"Nederlands\",D207,IF(EMRIC!$H$4=\"Français\",E207)))","v":0}]
[207,null,null,null,null,{"$f":"IF(EMRIC!$H$4=\"Deutsch\",C208,IF(EMRIC!$H$4=\"Nederlands\",D208,IF(EMRIC!$H$4=\"Français\",E208)))","v":0}]
[208,null,null,null,null,{"$f":"IF(EMRIC!$H$4=\"Deutsch\",C209,IF(EMRIC!$H$4=\"Nederlands\",D209,IF(EMRIC!$H$4=\"Français\",E209)))","v":0}]
[209,null,null,null,null,{"$f":"IF(EMRIC!$H$4=\"Deutsch\",C210,IF(EMRIC!$H$4=\"Nederlands\",D210,IF(EMRIC!$H$4=\"Français\",E210)))","v":0}]
[210,null,null,null,null,{"$f":"IF(EMRIC!$H$4=\"Deutsch\",C211,IF(EMRIC!$H$4=\"Nederlands\",D211,IF(EMRIC!$H$4=\"Français\",E211)))","v":0}]
[211,null,null,null,null,{"$f":"IF(EMRIC!$H$4=\"Deutsch\",C212,IF(EMRIC!$H$4=\"Nederlands\",D212,IF(EMRIC!$H$4=\"Français\",E212)))","v":0}]
[212,null,null,null,null,{"$f":"IF(EMRIC!$H$4=\"Deutsch\",C213,IF(EMRIC!$H$4=\"Nederlands\",D213,IF(EMRIC!$H$4=\"Français\",E213)))","v":0}]
[213,null,null,null,null,{"$f":"IF(EMRIC!$H$4=\"Deutsch\",C214,IF(EMRIC!$H$4=\"Nederlands\",D214,IF(EMRIC!$H$4=\"Français\",E214)))","v":0}]
[214,null,null,null,null,{"$f":"IF(EMRIC!$H$4=\"Deutsch\",C215,IF(EMRIC!$H$4=\"Nederlands\",D215,IF(EMRIC!$H$4=\"Français\",E215)))","v":0}]
[215,null,null,null,null,{"$f":"IF(EMRIC!$H$4=\"Deutsch\",C216,IF(EMRIC!$H$4=\"Nederlands\",D216,IF(EMRIC!$H$4=\"Français\",E216)))","v":0}]
[216,null,null,null,null,{"$f":"IF(EMRIC!$H$4=\"Deutsch\",C217,IF(EMRIC!$H$4=\"Nederlands\",D217,IF(EMRIC!$H$4=\"Français\",E217)))","v":0}]
[217,null,null,null,null,{"$f":"IF(EMRIC!$H$4=\"Deutsch\",C218,IF(EMRIC!$H$4=\"Nederlands\",D218,IF(EMRIC!$H$4=\"Français\",E218)))","v":0}]
[218,null,null,null,null,{"$f":"IF(EMRIC!$H$4=\"Deutsch\",C219,IF(EMRIC!$H$4=\"Nederlands\",D219,IF(EMRIC!$H$4=\"Français\",E219)))","v":0}]
[219,null,null,null,null,{"$f":"IF(EMRIC!$H$4=\"Deutsch\",C220,IF(EMRIC!$H$4=\"Nederlands\",D220,IF(EMRIC!$H$4=\"Français\",E220)))","v":0}]
[220,null,null,null,null,{"$f":"IF(EMRIC!$H$4=\"Deutsch\",C221,IF(EMRIC!$H$4=\"Nederlands\",D221,IF(EMRIC!$H$4=\"Français\",E221)))","v":0}]
[221,null,null,null,null,{"$f":"IF(EMRIC!$H$4=\"Deutsch\",C222,IF(EMRIC!$H$4=\"Nederlands\",D222,IF(EMRIC!$H$4=\"Français\",E222)))","v":0}]
[222,null,null,null,null,{"$f":"IF(EMRIC!$H$4=\"Deutsch\",C223,IF(EMRIC!$H$4=\"Nederlands\",D223,IF(EMRIC!$H$4=\"Français\",E223)))","v":0}]
[223,null,null,null,null,{"$f":"IF(EMRIC!$H$4=\"Deutsch\",C224,IF(EMRIC!$H$4=\"Nederlands\",D224,IF(EMRIC!$H$4=\"Français\",E224)))","v":0}]
[224,null,null,null,null,{"$f":"IF(EMRIC!$H$4=\"Deutsch\",C225,IF(EMRIC!$H$4=\"Nederlands\",D225,IF(EMRIC!$H$4=\"Français\",E225)))","v":0}]
[225,null,null,null,null,{"$f":"IF(EMRIC!$H$4=\"Deutsch\",C226,IF(EMRIC!$H$4=\"Nederlands\",D226,IF(EMRIC!$H$4=\"Français\",E226)))","v":0}]
[226,null,null,null,null,{"$f":"IF(EMRIC!$H$4=\"Deutsch\",C227,IF(EMRIC!$H$4=\"Nederlands\",D227,IF(EMRIC!$H$4=\"Français\",E227)))","v":0}]
[227,null,null,null,null,{"$f":"IF(EMRIC!$H$4=\"Deutsch\",C228,IF(EMRIC!$H$4=\"Nederlands\",D228,IF(EMRIC!$H$4=\"Français\",E228)))","v":0}]
[228,null,null,null,null,{"$f":"IF(EMRIC!$H$4=\"Deutsch\",C229,IF(EMRIC!$H$4=\"Nederlands\",D229,IF(EMRIC!$H$4=\"Français\",E229)))","v":0}]
[229,null,null,null,null,{"$f":"IF(EMRIC!$H$4=\"Deutsch\",C230,IF(EMRIC!$H$4=\"Nederlands\",D230,IF(EMRIC!$H$4=\"Français\",E230)))","v":0}]
[230,null,null,null,null,{"$f":"IF(EMRIC!$H$4=\"Deutsch\",C231,IF(EMRIC!$H$4=\"Nederlands\",D231,IF(EMRIC!$H$4=\"Français\",E231)))","v":0}]
[231,null,null,null,null,{"$f":"IF(EMRIC!$H$4=\"Deutsch\",C232,IF(EMRIC!$H$4=\"Nederlands\",D232,IF(EMRIC!$H$4=\"Français\",E232)))","v":0}]
[232,null,null,null,null,{"$f":"IF(EMRIC!$H$4=\"Deutsch\",C233,IF(EMRIC!$H$4=\"Nederlands\",D233,IF(EMRIC!$H$4=\"Français\",E233)))","v":0}]
[233,null,null,null,null,{"$f":"IF(EMRIC!$H$4=\"Deutsch\",C234,IF(EMRIC!$H$4=\"Nederlands\",D234,IF(EMRIC!$H$4=\"Français\",E234)))","v":0}]
[234,null,null,null,null,{"$f":"IF(EMRIC!$H$4=\"Deutsch\",C235,IF(EMRIC!$H$4=\"Nederlands\",D235,IF(EMRIC!$H$4=\"Français\",E235)))","v":0}]
[235,null,null,null,null,{"$f":"IF(EMRIC!$H$4=\"Deutsch\",C236,IF(EMRIC!$H$4=\"Nederlands\",D236,IF(EMRIC!$H$4=\"Français\",E236)))","v":0}]
[236,null,null,null,null,{"$f":"IF(EMRIC!$H$4=\"Deutsch\",C237,IF(EMRIC!$H$4=\"Nederlands\",D237,IF(EMRIC!$H$4=\"Français\",E237)))","v":0}]
[237,null,null,null,null,{"$f":"IF(EMRIC!$H$4=\"Deutsch\",C238,IF(EMRIC!$H$4=\"Nederlands\",D238,IF(EMRIC!$H$4=\"Français\",E238)))","v":0}]
[238,null,null,null,null,{"$f":"IF(EMRIC!$H$4=\"Deutsch\",C239,IF(EMRIC!$H$4=\"Nederlands\",D239,IF(EMRIC!$H$4=\"Français\",E239)))","v":0}]
[239,null,null,null,null,{"$f":"IF(EMRIC!$H$4=\"Deutsch\",C240,IF(EMRIC!$H$4=\"Nederlands\",D240,IF(EMRIC!$H$4=\"Français\",E240)))","v":0}]
[240,null,null,null,null,{"$f":"IF(EMRIC!$H$4=\"Deutsch\",C241,IF(EMRIC!$H$4=\"Nederlands\",D241,IF(EMRIC!$H$4=\"Français\",E241)))","v":0}]
[241,null,null,null,null,{"$f":"IF(EMRIC!$H$4=\"Deutsch\",C242,IF(EMRIC!$H$4=\"Nederlands\",D242,IF(EMRIC!$H$4=\"Français\",E242)))","v":0}]
[242,null,null,null,null,{"$f":"IF(EMRIC!$H$4=\"Deutsch\",C243,IF(EMRIC!$H$4=\"Nederlands\",D243,IF(EMRIC!$H$4=\"Français\",E243)))","v":0}]
[243,null,null,null,null,{"$f":"IF(EMRIC!$H$4=\"Deutsch\",C244,IF(EMRIC!$H$4=\"Nederlands\",D244,IF(EMRIC!$H$4=\"Français\",E244)))","v":0}]
[244,null,null,null,null,{"$f":"IF(EMRIC!$H$4=\"Deutsch\",C245,IF(EMRIC!$H$4=\"Nederlands\",D245,IF(EMRIC!$H$4=\"Français\",E245)))","v":0}]
[245,null,null,null,null,{"$f":"IF(EMRIC!$H$4=\"Deutsch\",C246,IF(EMRIC!$H$4=\"Nederlands\",D246,IF(EMRIC!$H$4=\"Français\",E246)))","v":0}]
[246,null,null,null,null,{"$f":"IF(EMRIC!$H$4=\"Deutsch\",C247,IF(EMRIC!$H$4=\"Nederlands\",D247,IF(EMRIC!$H$4=\"Français\",E247)))","v":0}]
[247,null,null,null,null,{"$f":"IF(EMRIC!$H$4=\"Deutsch\",C248,IF(EMRIC!$H$4=\"Nederlands\",D248,IF(EMRIC!$H$4=\"Français\",E248)))","v":0}]
[248,null,null,null,null,{"$f":"IF(EMRIC!$H$4=\"Deutsch\",C249,IF(EMRIC!$H$4=\"Nederlands\",D249,IF(EMRIC!$H$4=\"Français\",E249)))","v":0}]
[249,null,null,null,null,{"$f":"IF(EMRIC!$H$4=\"Deutsch\",C250,IF(EMRIC!$H$4=\"Nederlands\",D250,IF(EMRIC!$H$4=\"Français\",E250)))","v":0}]
[250,null,null,null,null,{"$f":"IF(EMRIC!$H$4=\"Deutsch\",C251,IF(EMRIC!$H$4=\"Nederlands\",D251,IF(EMRIC!$H$4=\"Français\",E251)))","v":0}]
[251,null,null,null,null,{"$f":"IF(EMRIC!$H$4=\"Deutsch\",C252,IF(EMRIC!$H$4=\"Nederlands\",D252,IF(EMRIC!$H$4=\"Français\",E252)))","v":0}]
[252,null,null,null,null,{"$f":"IF(EMRIC!$H$4=\"Deutsch\",C253,IF(EMRIC!$H$4=\"Nederlands\",D253,IF(EMRIC!$H$4=\"Français\",E253)))","v":0}]
[253,null,null,null,null,{"$f":"IF(EMRIC!$H$4=\"Deutsch\",C254,IF(EMRIC!$H$4=\"Nederlands\",D254,IF(EMRIC!$H$4=\"Français\",E254)))","v":0}]
[254,null,null,null,null,{"$f":"IF(EMRIC!$H$4=\"Deutsch\",C255,IF(EMRIC!$H$4=\"Nederlands\",D255,IF(EMRIC!$H$4=\"Français\",E255)))","v":0}]
[255,null,null,null,null,{"$f":"IF(EMRIC!$H$4=\"Deutsch\",C256,IF(EMRIC!$H$4=\"Nederlands\",D256,IF(EMRIC!$H$4=\"Français\",E256)))","v":0}]
[256,null,null,null,null,{"$f":"IF(EMRIC!$H$4=\"Deutsch\",C257,IF(EMRIC!$H$4=\"Nederlands\",D257,IF(EMRIC!$H$4=\"Français\",E257)))","v":0}]
[257,null,null,null,null,{"$f":"IF(EMRIC!$H$4=\"Deutsch\",C258,IF(EMRIC!$H$4=\"Nederlands\",D258,IF(EMRIC!$H$4=\"Français\",E258)))","v":0}]
[258,null,null,null,null,{"$f":"IF(EMRIC!$H$4=\"Deutsch\",C259,IF(EMRIC!$H$4=\"Nederlands\",D259,IF(EMRIC!$H$4=\"Français\",E259)))","v":0}]
[259,null,null,null,null,{"$f":"IF(EMRIC!$H$4=\"Deutsch\",C260,IF(EMRIC!$H$4=\"Nederlands\",D260,IF(EMRIC!$H$4=\"Français\",E260)))","v":0}]
[260,null,null,null,null,{"$f":"IF(EMRIC!$H$4=\"Deutsch\",C261,IF(EMRIC!$H$4=\"Nederlands\",D261,IF(EMRIC!$H$4=\"Français\",E261)))","v":0}]
[261,null,null,null,null,{"$f":"IF(EMRIC!$H$4=\"Deutsch\",C262,IF(EMRIC!$H$4=\"Nederlands\",D262,IF(EMRIC!$H$4=\"Français\",E262)))","v":0}]
[262,null,null,null,null,{"$f":"IF(EMRIC!$H$4=\"Deutsch\",C263,IF(EMRIC!$H$4=\"Nederlands\",D263,IF(EMRIC!$H$4=\"Français\",E263)))","v":0}]
[263,null,null,null,null,{"$f":"IF(EMRIC!$H$4=\"Deutsch\",C264,IF(EMRIC!$H$4=\"Nederlands\",D264,IF(EMRIC!$H$4=\"Français\",E264)))","v":0}]
[264,null,null,null,null,{"$f":"IF(EMRIC!$H$4=\"Deutsch\",C265,IF(EMRIC!$H$4=\"Nederlands\",D265,IF(EMRIC!$H$4=\"Français\",E265)))","v":0}]
[265,null,null,null,null,{"$f":"IF(EMRIC!$H$4=\"Deutsch\",C266,IF(EMRIC!$H$4=\"Nederlands\",D266,IF(EMRIC!$H$4=\"Français\",E266)))","v":0}]
[266,null,null,null,null,{"$f":"IF(EMRIC!$H$4=\"Deutsch\",C267,IF(EMRIC!$H$4=\"Nederlands\",D267,IF(EMRIC!$H$4=\"Français\",E267)))","v":0}]
[267,null,null,null,null,{"$f":"IF(EMRIC!$H$4=\"Deutsch\",C268,IF(EMRIC!$H$4=\"Nederlands\",D268,IF(EMRIC!$H$4=\"Français\",E268)))","v":0}]
[268,null,null,null,null,{"$f":"IF(EMRIC!$H$4=\"Deutsch\",C269,IF(EMRIC!$H$4=\"Nederlands\",D269,IF(EMRIC!$H$4=\"Français\",E269)))","v":0}]
[269,null,null,null,null,{"$f":"IF(EMRIC!$H$4=\"Deutsch\",C270,IF(EMRIC!$H$4=\"Nederlands\",D270,IF(EMRIC!$H$4=\"Français\",E270)))","v":0}]
[270,null,null,null,null,{"$f":"IF(EMRIC!$H$4=\"Deutsch\",C271,IF(EMRIC!$H$4=\"Nederlands\",D271,IF(EMRIC!$H$4=\"Français\",E271)))","v":0}]
[271,null,null,null,null,{"$f":"IF(EMRIC!$H$4=\"Deutsch\",C272,IF(EMRIC!$H$4=\"Nederlands\",D272,IF(EMRIC!$H$4=\"Français\",E272)))","v":0}]
[272,null,null,null,null,{"$f":"IF(EMRIC!$H$4=\"Deutsch\",C273,IF(EMRIC!$H$4=\"Nederlands\",D273,IF(EMRIC!$H$4=\"Français\",E273)))","v":0}]
[273,null,null,null,null,{"$f":"IF(EMRIC!$H$4=\"Deutsch\",C274,IF(EMRIC!$H$4=\"Nederlands\",D274,IF(EMRIC!$H$4=\"Français\",E274)))","v":0}]
[274,null,null,null,null,{"$f":"IF(EMRIC!$H$4=\"Deutsch\",C275,IF(EMRIC!$H$4=\"Nederlands\",D275,IF(EMRIC!$H$4=\"Français\",E275)))","v":0}]
[275,null,null,null,null,{"$f":"IF(EMRIC!$H$4=\"Deutsch\",C276,IF(EMRIC!$H$4=\"Nederlands\",D276,IF(EMRIC!$H$4=\"Français\",E276)))","v":0}]
[276,null,null,null,null,{"$f":"IF(EMRIC!$H$4=\"Deutsch\",C277,IF(EMRIC!$H$4=\"Nederlands\",D277,IF(EMRIC!$H$4=\"Français\",E277)))","v":0}]
[277,null,null,null,null,{"$f":"IF(EMRIC!$H$4=\"Deutsch\",C278,IF(EMRIC!$H$4=\"Nederlands\",D278,IF(EMRIC!$H$4=\"Français\",E278)))","v":0}]
[278,null,null,null,null,{"$f":"IF(EMRIC!$H$4=\"Deutsch\",C279,IF(EMRIC!$H$4=\"Nederlands\",D279,IF(EMRIC!$H$4=\"Français\",E279)))","v":0}]
[279,null,null,null,null,{"$f":"IF(EMRIC!$H$4=\"Deutsch\",C280,IF(EMRIC!$H$4=\"Nederlands\",D280,IF(EMRIC!$H$4=\"Français\",E280)))","v":0}]
[280,null,null,null,null,{"$f":"IF(EMRIC!$H$4=\"Deutsch\",C281,IF(EMRIC!$H$4=\"Nederlands\",D281,IF(EMRIC!$H$4=\"Français\",E281)))","v":0}]
[281,null,null,null,null,{"$f":"IF(EMRIC!$H$4=\"Deutsch\",C282,IF(EMRIC!$H$4=\"Nederlands\",D282,IF(EMRIC!$H$4=\"Français\",E282)))","v":0}]
[282,null,null,null,null,{"$f":"IF(EMRIC!$H$4=\"Deutsch\",C283,IF(EMRIC!$H$4=\"Nederlands\",D283,IF(EMRIC!$H$4=\"Français\",E283)))","v":0}]
[283,null,null,null,null,{"$f":"IF(EMRIC!$H$4=\"Deutsch\",C284,IF(EMRIC!$H$4=\"Nederlands\",D284,IF(EMRIC!$H$4=\"Français\",E284)))","v":0}]
[284,null,null,null,null,{"$f":"IF(EMRIC!$H$4=\"Deutsch\",C285,IF(EMRIC!$H$4=\"Nederlands\",D285,IF(EMRIC!$H$4=\"Français\",E285)))","v":0}]
[285,null,null,null,null,{"$f":"IF(EMRIC!$H$4=\"Deutsch\",C286,IF(EMRIC!$H$4=\"Nederlands\",D286,IF(EMRIC!$H$4=\"Français\",E286)))","v":0}]
[286,null,null,null,null,{"$f":"IF(EMRIC!$H$4=\"Deutsch\",C287,IF(EMRIC!$H$4=\"Nederlands\",D287,IF(EMRIC!$H$4=\"Français\",E287)))","v":0}]
[287,null,null,null,null,{"$f":"IF(EMRIC!$H$4=\"Deutsch\",C288,IF(EMRIC!$H$4=\"Nederlands\",D288,IF(EMRIC!$H$4=\"Français\",E288)))","v":0}]
[288,null,null,null,null,{"$f":"IF(EMRIC!$H$4=\"Deutsch\",C289,IF(EMRIC!$H$4=\"Nederlands\",D289,IF(EMRIC!$H$4=\"Français\",E289)))","v":0}]
[289,null,null,null,null,{"$f":"IF(EMRIC!$H$4=\"Deutsch\",C290,IF(EMRIC!$H$4=\"Nederlands\",D290,IF(EMRIC!$H$4=\"Français\",E290)))","v":0}]
[290,null,null,null,null,{"$f":"IF(EMRIC!$H$4=\"Deutsch\",C291,IF(EMRIC!$H$4=\"Nederlands\",D291,IF(EMRIC!$H$4=\"Français\",E291)))","v":0}]
[291,null,null,null,null,{"$f":"IF(EMRIC!$H$4=\"Deutsch\",C292,IF(EMRIC!$H$4=\"Nederlands\",D292,IF(EMRIC!$H$4=\"Français\",E292)))","v":0}]
[292,null,null,null,null,{"$f":"IF(EMRIC!$H$4=\"Deutsch\",C293,IF(EMRIC!$H$4=\"Nederlands\",D293,IF(EMRIC!$H$4=\"Français\",E293)))","v":0}]
[293,null,null,null,null,{"$f":"IF(EMRIC!$H$4=\"Deutsch\",C294,IF(EMRIC!$H$4=\"Nederlands\",D294,IF(EMRIC!$H$4=\"Français\",E294)))","v":0}]
[294,null,null,null,null,{"$f":"IF(EMRIC!$H$4=\"Deutsch\",C295,IF(EMRIC!$H$4=\"Nederlands\",D295,IF(EMRIC!$H$4=\"Français\",E295)))","v":0}]
[295,null,null,null,null,{"$f":"IF(EMRIC!$H$4=\"Deutsch\",C296,IF(EMRIC!$H$4=\"Nederlands\",D296,IF(EMRIC!$H$4=\"Français\",E296)))","v":0}]
[296,null,null,null,null,{"$f":"IF(EMRIC!$H$4=\"Deutsch\",C297,IF(EMRIC!$H$4=\"Nederlands\",D297,IF(EMRIC!$H$4=\"Français\",E297)))","v":0}]
[297,null,null,null,null,{"$f":"IF(EMRIC!$H$4=\"Deutsch\",C298,IF(EMRIC!$H$4=\"Nederlands\",D298,IF(EMRIC!$H$4=\"Français\",E298)))","v":0}]
[298,null,null,null,null,{"$f":"IF(EMRIC!$H$4=\"Deutsch\",C299,IF(EMRIC!$H$4=\"Nederlands\",D299,IF(EMRIC!$H$4=\"Français\",E299)))","v":0}]
[299,null,null,null,null,{"$f":"IF(EMRIC!$H$4=\"Deutsch\",C300,IF(EMRIC!$H$4=\"Nederlands\",D300,IF(EMRIC!$H$4=\"Français\",E300)))","v":0}]
[300,null,null,null,null,{"$f":"IF(EMRIC!$H$4=\"Deutsch\",C301,IF(EMRIC!$H$4=\"Nederlands\",D301,IF(EMRIC!$H$4=\"Français\",E301)))","v":0}]
[301,null,null,null,null,{"$f":"IF(EMRIC!$H$4=\"Deutsch\",C302,IF(EMRIC!$H$4=\"Nederlands\",D302,IF(EMRIC!$H$4=\"Français\",E302)))","v":0}]
[302,null,null,null,null,{"$f":"IF(EMRIC!$H$4=\"Deutsch\",C303,IF(EMRIC!$H$4=\"Nederlands\",D303,IF(EMRIC!$H$4=\"Français\",E303)))","v":0}]
[303,null,null,null,null,{"$f":"IF(EMRIC!$H$4=\"Deutsch\",C304,IF(EMRIC!$H$4=\"Nederlands\",D304,IF(EMRIC!$H$4=\"Français\",E304)))","v":0}]
[304,null,null,null,null,{"$f":"IF(EMRIC!$H$4=\"Deutsch\",C305,IF(EMRIC!$H$4=\"Nederlands\",D305,IF(EMRIC!$H$4=\"Français\",E305)))","v":0}]
[305,null,null,null,null,{"$f":"IF(EMRIC!$H$4=\"Deutsch\",C306,IF(EMRIC!$H$4=\"Nederlands\",D306,IF(EMRIC!$H$4=\"Français\",E306)))","v":0}]
[306,null,null,null,null,{"$f":"IF(EMRIC!$H$4=\"Deutsch\",C307,IF(EMRIC!$H$4=\"Nederlands\",D307,IF(EMRIC!$H$4=\"Français\",E307)))","v":0}]
[307,null,null,null,null,{"$f":"IF(EMRIC!$H$4=\"Deutsch\",C308,IF(EMRIC!$H$4=\"Nederlands\",D308,IF(EMRIC!$H$4=\"Français\",E308)))","v":0}]
[308,null,null,null,null,{"$f":"IF(EMRIC!$H$4=\"Deutsch\",C309,IF(EMRIC!$H$4=\"Nederlands\",D309,IF(EMRIC!$H$4=\"Français\",E309)))","v":0}]
[309,null,null,null,null,{"$f":"IF(EMRIC!$H$4=\"Deutsch\",C310,IF(EMRIC!$H$4=\"Nederlands\",D310,IF(EMRIC!$H$4=\"Français\",E310)))","v":0}]
[310,null,null,null,null,{"$f":"IF(EMRIC!$H$4=\"Deutsch\",C311,IF(EMRIC!$H$4=\"Nederlands\",D311,IF(EMRIC!$H$4=\"Français\",E311)))","v":0}]
[311,null,null,null,null,{"$f":"IF(EMRIC!$H$4=\"Deutsch\",C312,IF(EMRIC!$H$4=\"Nederlands\",D312,IF(EMRIC!$H$4=\"Français\",E312)))","v":0}]
[312,null,null,null,null,{"$f":"IF(EMRIC!$H$4=\"Deutsch\",C313,IF(EMRIC!$H$4=\"Nederlands\",D313,IF(EMRIC!$H$4=\"Français\",E313)))","v":0}]
[313,null,null,null,null,{"$f":"IF(EMRIC!$H$4=\"Deutsch\",C314,IF(EMRIC!$H$4=\"Nederlands\",D314,IF(EMRIC!$H$4=\"Français\",E314)))","v":0}]
[314,null,null,null,null,{"$f":"IF(EMRIC!$H$4=\"Deutsch\",C315,IF(EMRIC!$H$4=\"Nederlands\",D315,IF(EMRIC!$H$4=\"Français\",E315)))","v":0}]
[315,null,null,null,null,{"$f":"IF(EMRIC!$H$4=\"Deutsch\",C316,IF(EMRIC!$H$4=\"Nederlands\",D316,IF(EMRIC!$H$4=\"Français\",E316)))","v":0}]
[316,null,null,null,null,{"$f":"IF(EMRIC!$H$4=\"Deutsch\",C317,IF(EMRIC!$H$4=\"Nederlands\",D317,IF(EMRIC!$H$4=\"Français\",E317)))","v":0}]
[317,null,null,null,null,{"$f":"IF(EMRIC!$H$4=\"Deutsch\",C318,IF(EMRIC!$H$4=\"Nederlands\",D318,IF(EMRIC!$H$4=\"Français\",E318)))","v":0}]
[318,null,null,null,null,{"$f":"IF(EMRIC!$H$4=\"Deutsch\",C319,IF(EMRIC!$H$4=\"Nederlands\",D319,IF(EMRIC!$H$4=\"Français\",E319)))","v":0}]
[319,null,null,null,null,{"$f":"IF(EMRIC!$H$4=\"Deutsch\",C320,IF(EMRIC!$H$4=\"Nederlands\",D320,IF(EMRIC!$H$4=\"Français\",E320)))","v":0}]
[320,null,null,null,null,{"$f":"IF(EMRIC!$H$4=\"Deutsch\",C321,IF(EMRIC!$H$4=\"Nederlands\",D321,IF(EMRIC!$H$4=\"Français\",E321)))","v":0}]
[321,null,null,null,null,{"$f":"IF(EMRIC!$H$4=\"Deutsch\",C322,IF(EMRIC!$H$4=\"Nederlands\",D322,IF(EMRIC!$H$4=\"Français\",E322)))","v":0}]
[322,null,null,null,null,{"$f":"IF(EMRIC!$H$4=\"Deutsch\",C323,IF(EMRIC!$H$4=\"Nederlands\",D323,IF(EMRIC!$H$4=\"Français\",E323)))","v":0}]
[323,null,null,null,null,{"$f":"IF(EMRIC!$H$4=\"Deutsch\",C324,IF(EMRIC!$H$4=\"Nederlands\",D324,IF(EMRIC!$H$4=\"Français\",E324)))","v":0}]
[324,null,null,null,null,{"$f":"IF(EMRIC!$H$4=\"Deutsch\",C325,IF(EMRIC!$H$4=\"Nederlands\",D325,IF(EMRIC!$H$4=\"Français\",E325)))","v":0}]
[325,null,null,null,null,{"$f":"IF(EMRIC!$H$4=\"Deutsch\",C326,IF(EMRIC!$H$4=\"Nederlands\",D326,IF(EMRIC!$H$4=\"Français\",E326)))","v":0}]
[326,null,null,null,null,{"$f":"IF(EMRIC!$H$4=\"Deutsch\",C327,IF(EMRIC!$H$4=\"Nederlands\",D327,IF(EMRIC!$H$4=\"Français\",E327)))","v":0}]
[327,null,null,null,null,{"$f":"IF(EMRIC!$H$4=\"Deutsch\",C328,IF(EMRIC!$H$4=\"Nederlands\",D328,IF(EMRIC!$H$4=\"Français\",E328)))","v":0}]
[328,null,null,null,null,{"$f":"IF(EMRIC!$H$4=\"Deutsch\",C329,IF(EMRIC!$H$4=\"Nederlands\",D329,IF(EMRIC!$H$4=\"Français\",E329)))","v":0}]
[329,null,null,null,null,{"$f":"IF(EMRIC!$H$4=\"Deutsch\",C330,IF(EMRIC!$H$4=\"Nederlands\",D330,IF(EMRIC!$H$4=\"Français\",E330)))","v":0}]
[330,null,null,null,null,{"$f":"IF(EMRIC!$H$4=\"Deutsch\",C331,IF(EMRIC!$H$4=\"Nederlands\",D331,IF(EMRIC!$H$4=\"Français\",E331)))","v":0}]
[331,null,null,null,null,{"$f":"IF(EMRIC!$H$4=\"Deutsch\",C332,IF(EMRIC!$H$4=\"Nederlands\",D332,IF(EMRIC!$H$4=\"Français\",E332)))","v":0}]
[332,null,null,null,null,{"$f":"IF(EMRIC!$H$4=\"Deutsch\",C333,IF(EMRIC!$H$4=\"Nederlands\",D333,IF(EMRIC!$H$4=\"Français\",E333)))","v":0}]
[333,null,null,null,null,{"$f":"IF(EMRIC!$H$4=\"Deutsch\",C334,IF(EMRIC!$H$4=\"Nederlands\",D334,IF(EMRIC!$H$4=\"Français\",E334)))","v":0}]
[334,null,null,null,null,{"$f":"IF(EMRIC!$H$4=\"Deutsch\",C335,IF(EMRIC!$H$4=\"Nederlands\",D335,IF(EMRIC!$H$4=\"Français\",E335)))","v":0}]
[335,null,null,null,null,{"$f":"IF(EMRIC!$H$4=\"Deutsch\",C336,IF(EMRIC!$H$4=\"Nederlands\",D336,IF(EMRIC!$H$4=\"Français\",E336)))","v":0}]
[336,null,null,null,null,{"$f":"IF(EMRIC!$H$4=\"Deutsch\",C337,IF(EMRIC!$H$4=\"Nederlands\",D337,IF(EMRIC!$H$4=\"Français\",E337)))","v":0}]
[337,null,null,null,null,{"$f":"IF(EMRIC!$H$4=\"Deutsch\",C338,IF(EMRIC!$H$4=\"Nederlands\",D338,IF(EMRIC!$H$4=\"Français\",E338)))","v":0}]
[338,null,null,null,null,{"$f":"IF(EMRIC!$H$4=\"Deutsch\",C339,IF(EMRIC!$H$4=\"Nederlands\",D339,IF(EMRIC!$H$4=\"Français\",E339)))","v":0}]
[339,null,null,null,null,{"$f":"IF(EMRIC!$H$4=\"Deutsch\",C340,IF(EMRIC!$H$4=\"Nederlands\",D340,IF(EMRIC!$H$4=\"Français\",E340)))","v":0}]
[340,null,null,null,null,{"$f":"IF(EMRIC!$H$4=\"Deutsch\",C341,IF(EMRIC!$H$4=\"Nederlands\",D341,IF(EMRIC!$H$4=\"Français\",E341)))","v":0}]
[341,null,null,null,null,{"$f":"IF(EMRIC!$H$4=\"Deutsch\",C342,IF(EMRIC!$H$4=\"Nederlands\",D342,IF(EMRIC!$H$4=\"Français\",E342)))","v":0}]
[342,null,null,null,null,{"$f":"IF(EMRIC!$H$4=\"Deutsch\",C343,IF(EMRIC!$H$4=\"Nederlands\",D343,IF(EMRIC!$H$4=\"Français\",E343)))","v":0}]
[343,null,null,null,null,{"$f":"IF(EMRIC!$H$4=\"Deutsch\",C344,IF(EMRIC!$H$4=\"Nederlands\",D344,IF(EMRIC!$H$4=\"Français\",E344)))","v":0}]
[344,null,null,null,null,{"$f":"IF(EMRIC!$H$4=\"Deutsch\",C345,IF(EMRIC!$H$4=\"Nederlands\",D345,IF(EMRIC!$H$4=\"Français\",E345)))","v":0}]
[345,null,null,null,null,{"$f":"IF(EMRIC!$H$4=\"Deutsch\",C346,IF(EMRIC!$H$4=\"Nederlands\",D346,IF(EMRIC!$H$4=\"Français\",E346)))","v":0}]
[346,null,null,null,null,{"$f":"IF(EMRIC!$H$4=\"Deutsch\",C347,IF(EMRIC!$H$4=\"Nederlands\",D347,IF(EMRIC!$H$4=\"Français\",E347)))","v":0}]
[347,null,null,null,null,{"$f":"IF(EMRIC!$H$4=\"Deutsch\",C348,IF(EMRIC!$H$4=\"Nederlands\",D348,IF(EMRIC!$H$4=\"Français\",E348)))","v":0}]
[348,null,null,null,null,{"$f":"IF(EMRIC!$H$4=\"Deutsch\",C349,IF(EMRIC!$H$4=\"Nederlands\",D349,IF(EMRIC!$H$4=\"Français\",E349)))","v":0}]
[349,null,null,null,null,{"$f":"IF(EMRIC!$H$4=\"Deutsch\",C350,IF(EMRIC!$H$4=\"Nederlands\",D350,IF(EMRIC!$H$4=\"Français\",E350)))","v":0}]
[350,null,null,null,null,{"$f":"IF(EMRIC!$H$4=\"Deutsch\",C351,IF(EMRIC!$H$4=\"Nederlands\",D351,IF(EMRIC!$H$4=\"Français\",E351)))","v":0}]
[351,null,null,null,null,{"$f":"IF(EMRIC!$H$4=\"Deutsch\",C352,IF(EMRIC!$H$4=\"Nederlands\",D352,IF(EMRIC!$H$4=\"Français\",E352)))","v":0}]
[352,null,null,null,null,{"$f":"IF(EMRIC!$H$4=\"Deutsch\",C353,IF(EMRIC!$H$4=\"Nederlands\",D353,IF(EMRIC!$H$4=\"Français\",E353)))","v":0}]
[353,null,null,null,null,{"$f":"IF(EMRIC!$H$4=\"Deutsch\",C354,IF(EMRIC!$H$4=\"Nederlands\",D354,IF(EMRIC!$H$4=\"Français\",E354)))","v":0}]
[354,null,null,null,null,{"$f":"IF(EMRIC!$H$4=\"Deutsch\",C355,IF(EMRIC!$H$4=\"Nederlands\",D355,IF(EMRIC!$H$4=\"Français\",E355)))","v":0}]
[355,null,null,null,null,{"$f":"IF(EMRIC!$H$4=\"Deutsch\",C356,IF(EMRIC!$H$4=\"Nederlands\",D356,IF(EMRIC!$H$4=\"Français\",E356)))","v":0}]
[356,null,null,null,null,{"$f":"IF(EMRIC!$H$4=\"Deutsch\",C357,IF(EMRIC!$H$4=\"Nederlands\",D357,IF(EMRIC!$H$4=\"Français\",E357)))","v":0}]
[357,null,null,null,null,{"$f":"IF(EMRIC!$H$4=\"Deutsch\",C358,IF(EMRIC!$H$4=\"Nederlands\",D358,IF(EMRIC!$H$4=\"Français\",E358)))","v":0}]
[358,null,null,null,null,{"$f":"IF(EMRIC!$H$4=\"Deutsch\",C359,IF(EMRIC!$H$4=\"Nederlands\",D359,IF(EMRIC!$H$4=\"Français\",E359)))","v":0}]
[359,null,null,null,null,{"$f":"IF(EMRIC!$H$4=\"Deutsch\",C360,IF(EMRIC!$H$4=\"Nederlands\",D360,IF(EMRIC!$H$4=\"Français\",E360)))","v":0}]
[360,null,null,null,null,{"$f":"IF(EMRIC!$H$4=\"Deutsch\",C361,IF(EMRIC!$H$4=\"Nederlands\",D361,IF(EMRIC!$H$4=\"Français\",E361)))","v":0}]
[361,null,null,null,null,{"$f":"IF(EMRIC!$H$4=\"Deutsch\",C362,IF(EMRIC!$H$4=\"Nederlands\",D362,IF(EMRIC!$H$4=\"Français\",E362)))","v":0}]
[362,null,null,null,null,{"$f":"IF(EMRIC!$H$4=\"Deutsch\",C363,IF(EMRIC!$H$4=\"Nederlands\",D363,IF(EMRIC!$H$4=\"Français\",E363)))","v":0}]
[363,null,null,null,null,{"$f":"IF(EMRIC!$H$4=\"Deutsch\",C364,IF(EMRIC!$H$4=\"Nederlands\",D364,IF(EMRIC!$H$4=\"Français\",E364)))","v":0}]
[364,null,null,null,null,{"$f":"IF(EMRIC!$H$4=\"Deutsch\",C365,IF(EMRIC!$H$4=\"Nederlands\",D365,IF(EMRIC!$H$4=\"Français\",E365)))","v":0}]
[365,null,null,null,null,{"$f":"IF(EMRIC!$H$4=\"Deutsch\",C366,IF(EMRIC!$H$4=\"Nederlands\",D366,IF(EMRIC!$H$4=\"Français\",E366)))","v":0}]
[366,null,null,null,null,{"$f":"IF(EMRIC!$H$4=\"Deutsch\",C367,IF(EMRIC!$H$4=\"Nederlands\",D367,IF(EMRIC!$H$4=\"Français\",E367)))","v":0}]
[367,null,null,null,null,{"$f":"IF(EMRIC!$H$4=\"Deutsch\",C368,IF(EMRIC!$H$4=\"Nederlands\",D368,IF(EMRIC!$H$4=\"Français\",E368)))","v":0}]
[368,null,null,null,null,{"$f":"IF(EMRIC!$H$4=\"Deutsch\",C369,IF(EMRIC!$H$4=\"Nederlands\",D369,IF(EMRIC!$H$4=\"Français\",E369)))","v":0}]
[369,null,null,null,null,{"$f":"IF(EMRIC!$H$4=\"Deutsch\",C370,IF(EMRIC!$H$4=\"Nederlands\",D370,IF(EMRIC!$H$4=\"Français\",E370)))","v":0}]
[370,null,null,null,null,{"$f":"IF(EMRIC!$H$4=\"Deutsch\",C371,IF(EMRIC!$H$4=\"Nederlands\",D371,IF(EMRIC!$H$4=\"Français\",E371)))","v":0}]
[371,null,null,null,null,{"$f":"IF(EMRIC!$H$4=\"Deutsch\",C372,IF(EMRIC!$H$4=\"Nederlands\",D372,IF(EMRIC!$H$4=\"Français\",E372)))","v":0}]
[372,null,null,null,null,{"$f":"IF(EMRIC!$H$4=\"Deutsch\",C373,IF(EMRIC!$H$4=\"Nederlands\",D373,IF(EMRIC!$H$4=\"Français\",E373)))","v":0}]
[373,null,null,null,null,{"$f":"IF(EMRIC!$H$4=\"Deutsch\",C374,IF(EMRIC!$H$4=\"Nederlands\",D374,IF(EMRIC!$H$4=\"Français\",E374)))","v":0}]
[374,null,null,null,null,{"$f":"IF(EMRIC!$H$4=\"Deutsch\",C375,IF(EMRIC!$H$4=\"Nederlands\",D375,IF(EMRIC!$H$4=\"Français\",E375)))","v":0}]
[375,null,null,null,null,{"$f":"IF(EMRIC!$H$4=\"Deutsch\",C376,IF(EMRIC!$H$4=\"Nederlands\",D376,IF(EMRIC!$H$4=\"Français\",E376)))","v":0}]
[376,null,null,null,null,{"$f":"IF(EMRIC!$H$4=\"Deutsch\",C377,IF(EMRIC!$H$4=\"Nederlands\",D377,IF(EMRIC!$H$4=\"Français\",E377)))","v":0}]
[377,null,null,null,null,{"$f":"IF(EMRIC!$H$4=\"Deutsch\",C378,IF(EMRIC!$H$4=\"Nederlands\",D378,IF(EMRIC!$H$4=\"Français\",E378)))","v":0}]
[378,null,null,null,null,{"$f":"IF(EMRIC!$H$4=\"Deutsch\",C379,IF(EMRIC!$H$4=\"Nederlands\",D379,IF(EMRIC!$H$4=\"Français\",E379)))","v":0}]
[379,null,null,null,null,{"$f":"IF(EMRIC!$H$4=\"Deutsch\",C380,IF(EMRIC!$H$4=\"Nederlands\",D380,IF(EMRIC!$H$4=\"Français\",E380)))","v":0}]
[380,null,null,null,null,{"$f":"IF(EMRIC!$H$4=\"Deutsch\",C381,IF(EMRIC!$H$4=\"Nederlands\",D381,IF(EMRIC!$H$4=\"Français\",E381)))","v":0}]
[381,null,null,null,null,{"$f":"IF(EMRIC!$H$4=\"Deutsch\",C382,IF(EMRIC!$H$4=\"Nederlands\",D382,IF(EMRIC!$H$4=\"Français\",E382)))","v":0}]
[382,null,null,null,null,{"$f":"IF(EMRIC!$H$4=\"Deutsch\",C383,IF(EMRIC!$H$4=\"Nederlands\",D383,IF(EMRIC!$H$4=\"Français\",E383)))","v":0}]
[383,null,null,null,null,{"$f":"IF(EMRIC!$H$4=\"Deutsch\",C384,IF(EMRIC!$H$4=\"Nederlands\",D384,IF(EMRIC!$H$4=\"Français\",E384)))","v":0}]
[384,null,null,null,null,{"$f":"IF(EMRIC!$H$4=\"Deutsch\",C385,IF(EMRIC!$H$4=\"Nederlands\",D385,IF(EMRIC!$H$4=\"Français\",E385)))","v":0}]
[385,null,null,null,null,{"$f":"IF(EMRIC!$H$4=\"Deutsch\",C386,IF(EMRIC!$H$4=\"Nederlands\",D386,IF(EMRIC!$H$4=\"Français\",E386)))","v":0}]
[386,null,null,null,null,{"$f":"IF(EMRIC!$H$4=\"Deutsch\",C387,IF(EMRIC!$H$4=\"Nederlands\",D387,IF(EMRIC!$H$4=\"Français\",E387)))","v":0}]
[387,null,null,null,null,{"$f":"IF(EMRIC!$H$4=\"Deutsch\",C388,IF(EMRIC!$H$4=\"Nederlands\",D388,IF(EMRIC!$H$4=\"Français\",E388)))","v":0}]
[388,null,null,null,null,{"$f":"IF(EMRIC!$H$4=\"Deutsch\",C389,IF(EMRIC!$H$4=\"Nederlands\",D389,IF(EMRIC!$H$4=\"Français\",E389)))","v":0}]
[389,null,null,null,null,{"$f":"IF(EMRIC!$H$4=\"Deutsch\",C390,IF(EMRIC!$H$4=\"Nederlands\",D390,IF(EMRIC!$H$4=\"Français\",E390)))","v":0}]
[390,null,null,null,null,{"$f":"IF(EMRIC!$H$4=\"Deutsch\",C391,IF(EMRIC!$H$4=\"Nederlands\",D391,IF(EMRIC!$H$4=\"Français\",E391)))","v":0}]
[391,null,null,null,null,{"$f":"IF(EMRIC!$H$4=\"Deutsch\",C392,IF(EMRIC!$H$4=\"Nederlands\",D392,IF(EMRIC!$H$4=\"Français\",E392)))","v":0}]
[392,null,null,null,null,{"$f":"IF(EMRIC!$H$4=\"Deutsch\",C393,IF(EMRIC!$H$4=\"Nederlands\",D393,IF(EMRIC!$H$4=\"Français\",E393)))","v":0}]
[393,null,null,null,null,{"$f":"IF(EMRIC!$H$4=\"Deutsch\",C394,IF(EMRIC!$H$4=\"Nederlands\",D394,IF(EMRIC!$H$4=\"Français\",E394)))","v":0}]
[394,null,null,null,null,{"$f":"IF(EMRIC!$H$4=\"Deutsch\",C395,IF(EMRIC!$H$4=\"Nederlands\",D395,IF(EMRIC!$H$4=\"Français\",E395)))","v":0}]
[395,null,null,null,null,{"$f":"IF(EMRIC!$H$4=\"Deutsch\",C396,IF(EMRIC!$H$4=\"Nederlands\",D396,IF(EMRIC!$H$4=\"Français\",E396)))","v":0}]
[396,null,null,null,null,{"$f":"IF(EMRIC!$H$4=\"Deutsch\",C397,IF(EMRIC!$H$4=\"Nederlands\",D397,IF(EMRIC!$H$4=\"Français\",E397)))","v":0}]
[397,null,null,null,null,{"$f":"IF(EMRIC!$H$4=\"Deutsch\",C398,IF(EMRIC!$H$4=\"Nederlands\",D398,IF(EMRIC!$H$4=\"Français\",E398)))","v":0}]
[398,null,null,null,null,{"$f":"IF(EMRIC!$H$4=\"Deutsch\",C399,IF(EMRIC!$H$4=\"Nederlands\",D399,IF(EMRIC!$H$4=\"Français\",E399)))","v":0}]
[399,null,null,null,null,{"$f":"IF(EMRIC!$H$4=\"Deutsch\",C400,IF(EMRIC!$H$4=\"Nederlands\",D400,IF(EMRIC!$H$4=\"Français\",E400)))","v":0}]
[400,null,null,null,null,{"$f":"IF(EMRIC!$H$4=\"Deutsch\",C401,IF(EMRIC!$H$4=\"Nederlands\",D401,IF(EMRIC!$H$4=\"Français\",E401)))","v":0}]
[401,null,null,null,null,{"$f":"IF(EMRIC!$H$4=\"Deutsch\",C402,IF(EMRIC!$H$4=\"Nederlands\",D402,IF(EMRIC!$H$4=\"Français\",E402)))","v":0}]
[402,null,null,null,null,{"$f":"IF(EMRIC!$H$4=\"Deutsch\",C403,IF(EMRIC!$H$4=\"Nederlands\",D403,IF(EMRIC!$H$4=\"Français\",E403)))","v":0}]
[403,null,null,null,null,{"$f":"IF(EMRIC!$H$4=\"Deutsch\",C404,IF(EMRIC!$H$4=\"Nederlands\",D404,IF(EMRIC!$H$4=\"Français\",E404)))","v":0}]
[404,null,null,null,null,{"$f":"IF(EMRIC!$H$4=\"Deutsch\",C405,IF(EMRIC!$H$4=\"Nederlands\",D405,IF(EMRIC!$H$4=\"Français\",E405)))","v":0}]
[405,null,null,null,null,{"$f":"IF(EMRIC!$H$4=\"Deutsch\",C406,IF(EMRIC!$H$4=\"Nederlands\",D406,IF(EMRIC!$H$4=\"Français\",E406)))","v":0}]
[406,null,null,null,null,{"$f":"IF(EMRIC!$H$4=\"Deutsch\",C407,IF(EMRIC!$H$4=\"Nederlands\",D407,IF(EMRIC!$H$4=\"Français\",E407)))","v":0}]
[407,null,null,null,null,{"$f":"IF(EMRIC!$H$4=\"Deutsch\",C408,IF(EMRIC!$H$4=\"Nederlands\",D408,IF(EMRIC!$H$4=\"Français\",E408)))","v":0}]
[408,null,null,null,null,{"$f":"IF(EMRIC!$H$4=\"Deutsch\",C409,IF(EMRIC!$H$4=\"Nederlands\",D409,IF(EMRIC!$H$4=\"Français\",E409)))","v":0}]
[409,null,null,null,null,{"$f":"IF(EMRIC!$H$4=\"Deutsch\",C410,IF(EMRIC!$H$4=\"Nederlands\",D410,IF(EMRIC!$H$4=\"Français\",E410)))","v":0}]
[410,null,null,null,null,{"$f":"IF(EMRIC!$H$4=\"Deutsch\",C411,IF(EMRIC!$H$4=\"Nederlands\",D411,IF(EMRIC!$H$4=\"Français\",E411)))","v":0}]
[411,null,null,null,null,{"$f":"IF(EMRIC!$H$4=\"Deutsch\",C412,IF(EMRIC!$H$4=\"Nederlands\",D412,IF(EMRIC!$H$4=\"Français\",E412)))","v":0}]
[412,null,null,null,null,{"$f":"IF(EMRIC!$H$4=\"Deutsch\",C413,IF(EMRIC!$H$4=\"Nederlands\",D413,IF(EMRIC!$H$4=\"Français\",E413)))","v":0}]
[413,null,null,null,null,{"$f":"IF(EMRIC!$H$4=\"Deutsch\",C414,IF(EMRIC!$H$4=\"Nederlands\",D414,IF(EMRIC!$H$4=\"Français\",E414)))","v":0}]
[414,null,null,null,null,{"$f":"IF(EMRIC!$H$4=\"Deutsch\",C415,IF(EMRIC!$H$4=\"Nederlands\",D415,IF(EMRIC!$H$4=\"Français\",E415)))","v":0}]
[415,null,null,null,null,{"$f":"IF(EMRIC!$H$4=\"Deutsch\",C416,IF(EMRIC!$H$4=\"Nederlands\",D416,IF(EMRIC!$H$4=\"Français\",E416)))","v":0}]
[416,null,null,null,null,{"$f":"IF(EMRIC!$H$4=\"Deutsch\",C417,IF(EMRIC!$H$4=\"Nederlands\",D417,IF(EMRIC!$H$4=\"Français\",E417)))","v":0}]
[417,null,null,null,null,{"$f":"IF(EMRIC!$H$4=\"Deutsch\",C418,IF(EMRIC!$H$4=\"Nederlands\",D418,IF(EMRIC!$H$4=\"Français\",E418)))","v":0}]
[418,null,null,null,null,{"$f":"IF(EMRIC!$H$4=\"Deutsch\",C419,IF(EMRIC!$H$4=\"Nederlands\",D419,IF(EMRIC!$H$4=\"Français\",E419)))","v":0}]
[419,null,null,null,null,{"$f":"IF(EMRIC!$H$4=\"Deutsch\",C420,IF(EMRIC!$H$4=\"Nederlands\",D420,IF(EMRIC!$H$4=\"Français\",E420)))","v":0}]
[420,null,null,null,null,{"$f":"IF(EMRIC!$H$4=\"Deutsch\",C421,IF(EMRIC!$H$4=\"Nederlands\",D421,IF(EMRIC!$H$4=\"Français\",E421)))","v":0}]
[421,null,null,null,null,{"$f":"IF(EMRIC!$H$4=\"Deutsch\",C422,IF(EMRIC!$H$4=\"Nederlands\",D422,IF(EMRIC!$H$4=\"Français\",E422)))","v":0}]
[422,null,null,null,null,{"$f":"IF(EMRIC!$H$4=\"Deutsch\",C423,IF(EMRIC!$H$4=\"Nederlands\",D423,IF(EMRIC!$H$4=\"Français\",E423)))","v":0}]
[423,null,null,null,null,{"$f":"IF(EMRIC!$H$4=\"Deutsch\",C424,IF(EMRIC!$H$4=\"Nederlands\",D424,IF(EMRIC!$H$4=\"Français\",E424)))","v":0}]
[424,null,null,null,null,{"$f":"IF(EMRIC!$H$4=\"Deutsch\",C425,IF(EMRIC!$H$4=\"Nederlands\",D425,IF(EMRIC!$H$4=\"Français\",E425)))","v":0}]
[425,null,null,null,null,{"$f":"IF(EMRIC!$H$4=\"Deutsch\",C426,IF(EMRIC!$H$4=\"Nederlands\",D426,IF(EMRIC!$H$4=\"Français\",E426)))","v":0}]
[426,null,null,null,null,{"$f":"IF(EMRIC!$H$4=\"Deutsch\",C427,IF(EMRIC!$H$4=\"Nederlands\",D427,IF(EMRIC!$H$4=\"Français\",E427)))","v":0}]
[427,null,null,null,null,{"$f":"IF(EMRIC!$H$4=\"Deutsch\",C428,IF(EMRIC!$H$4=\"Nederlands\",D428,IF(EMRIC!$H$4=\"Français\",E428)))","v":0}]
[428,null,null,null,null,{"$f":"IF(EMRIC!$H$4=\"Deutsch\",C429,IF(EMRIC!$H$4=\"Nederlands\",D429,IF(EMRIC!$H$4=\"Français\",E429)))","v":0}]
[429,null,null,null,null,{"$f":"IF(EMRIC!$H$4=\"Deutsch\",C430,IF(EMRIC!$H$4=\"Nederlands\",D430,IF(EMRIC!$H$4=\"Français\",E430)))","v":0}]
[430,null,null,null,null,{"$f":"IF(EMRIC!$H$4=\"Deutsch\",C431,IF(EMRIC!$H$4=\"Nederlands\",D431,IF(EMRIC!$H$4=\"Français\",E431)))","v":0}]
[431,null,null,null,null,{"$f":"IF(EMRIC!$H$4=\"Deutsch\",C432,IF(EMRIC!$H$4=\"Nederlands\",D432,IF(EMRIC!$H$4=\"Français\",E432)))","v":0}]
[432,null,null,null,null,{"$f":"IF(EMRIC!$H$4=\"Deutsch\",C433,IF(EMRIC!$H$4=\"Nederlands\",D433,IF(EMRIC!$H$4=\"Français\",E433)))","v":0}]
[433,null,null,null,null,{"$f":"IF(EMRIC!$H$4=\"Deutsch\",C434,IF(EMRIC!$H$4=\"Nederlands\",D434,IF(EMRIC!$H$4=\"Français\",E434)))","v":0}]
[434,null,null,null,null,{"$f":"IF(EMRIC!$H$4=\"Deutsch\",C435,IF(EMRIC!$H$4=\"Nederlands\",D435,IF(EMRIC!$H$4=\"Français\",E435)))","v":0}]
[435,null,null,null,null,{"$f":"IF(EMRIC!$H$4=\"Deutsch\",C436,IF(EMRIC!$H$4=\"Nederlands\",D436,IF(EMRIC!$H$4=\"Français\",E436)))","v":0}]
[436,null,null,null,null,{"$f":"IF(EMRIC!$H$4=\"Deutsch\",C437,IF(EMRIC!$H$4=\"Nederlands\",D437,IF(EMRIC!$H$4=\"Français\",E437)))","v":0}]
[437,null,null,null,null,{"$f":"IF(EMRIC!$H$4=\"Deutsch\",C438,IF(EMRIC!$H$4=\"Nederlands\",D438,IF(EMRIC!$H$4=\"Français\",E438)))","v":0}]
[438,null,null,null,null,{"$f":"IF(EMRIC!$H$4=\"Deutsch\",C439,IF(EMRIC!$H$4=\"Nederlands\",D439,IF(EMRIC!$H$4=\"Français\",E439)))","v":0}]
[439,null,null,null,null,{"$f":"IF(EMRIC!$H$4=\"Deutsch\",C440,IF(EMRIC!$H$4=\"Nederlands\",D440,IF(EMRIC!$H$4=\"Français\",E440)))","v":0}]
[440,null,null,null,null,{"$f":"IF(EMRIC!$H$4=\"Deutsch\",C441,IF(EMRIC!$H$4=\"Nederlands\",D441,IF(EMRIC!$H$4=\"Français\",E441)))","v":0}]
[441,null,null,null,null,{"$f":"IF(EMRIC!$H$4=\"Deutsch\",C442,IF(EMRIC!$H$4=\"Nederlands\",D442,IF(EMRIC!$H$4=\"Français\",E442)))","v":0}]
[442,null,null,null,null,{"$f":"IF(EMRIC!$H$4=\"Deutsch\",C443,IF(EMRIC!$H$4=\"Nederlands\",D443,IF(EMRIC!$H$4=\"Français\",E443)))","v":0}]
[443,null,null,null,null,{"$f":"IF(EMRIC!$H$4=\"Deutsch\",C444,IF(EMRIC!$H$4=\"Nederlands\",D444,IF(EMRIC!$H$4=\"Français\",E444)))","v":0}]
[444,null,null,null,null,{"$f":"IF(EMRIC!$H$4=\"Deutsch\",C445,IF(EMRIC!$H$4=\"Nederlands\",D445,IF(EMRIC!$H$4=\"Français\",E445)))","v":0}]
[445,null,null,null,null,{"$f":"IF(EMRIC!$H$4=\"Deutsch\",C446,IF(EMRIC!$H$4=\"Nederlands\",D446,IF(EMRIC!$H$4=\"Français\",E446)))","v":0}]
[446,null,null,null,null,{"$f":"IF(EMRIC!$H$4=\"Deutsch\",C447,IF(EMRIC!$H$4=\"Nederlands\",D447,IF(EMRIC!$H$4=\"Français\",E447)))","v":0}]
[447,null,null,null,null,{"$f":"IF(EMRIC!$H$4=\"Deutsch\",C448,IF(EMRIC!$H$4=\"Nederlands\",D448,IF(EMRIC!$H$4=\"Français\",E448)))","v":0}]
[448,null,null,null,null,{"$f":"IF(EMRIC!$H$4=\"Deutsch\",C449,IF(EMRIC!$H$4=\"Nederlands\",D449,IF(EMRIC!$H$4=\"Français\",E449)))","v":0}]
[449,null,null,null,null,{"$f":"IF(EMRIC!$H$4=\"Deutsch\",C450,IF(EMRIC!$H$4=\"Nederlands\",D450,IF(EMRIC!$H$4=\"Français\",E450)))","v":0}]
[450,null,null,null,null,{"$f":"IF(EMRIC!$H$4=\"Deutsch\",C451,IF(EMRIC!$H$4=\"Nederlands\",D451,IF(EMRIC!$H$4=\"Français\",E451)))","v":0}]
[451,null,null,null,null,{"$f":"IF(EMRIC!$H$4=\"Deutsch\",C452,IF(EMRIC!$H$4=\"Nederlands\",D452,IF(EMRIC!$H$4=\"Français\",E452)))","v":0}]
[452,null,null,null,null,{"$f":"IF(EMRIC!$H$4=\"Deutsch\",C453,IF(EMRIC!$H$4=\"Nederlands\",D453,IF(EMRIC!$H$4=\"Français\",E453)))","v":0}]
[453,null,null,null,null,{"$f":"IF(EMRIC!$H$4=\"Deutsch\",C454,IF(EMRIC!$H$4=\"Nederlands\",D454,IF(EMRIC!$H$4=\"Français\",E454)))","v":0}]
[454,null,null,null,null,{"$f":"IF(EMRIC!$H$4=\"Deutsch\",C455,IF(EMRIC!$H$4=\"Nederlands\",D455,IF(EMRIC!$H$4=\"Français\",E455)))","v":0}]
[455,null,null,null,null,{"$f":"IF(EMRIC!$H$4=\"Deutsch\",C456,IF(EMRIC!$H$4=\"Nederlands\",D456,IF(EMRIC!$H$4=\"Français\",E456)))","v":0}]
[456,null,null,null,null,{"$f":"IF(EMRIC!$H$4=\"Deutsch\",C457,IF(EMRIC!$H$4=\"Nederlands\",D457,IF(EMRIC!$H$4=\"Français\",E457)))","v":0}]
[457,null,null,null,null,{"$f":"IF(EMRIC!$H$4=\"Deutsch\",C458,IF(EMRIC!$H$4=\"Nederlands\",D458,IF(EMRIC!$H$4=\"Français\",E458)))","v":0}]
[458,null,null,null,null,{"$f":"IF(EMRIC!$H$4=\"Deutsch\",C459,IF(EMRIC!$H$4=\"Nederlands\",D459,IF(EMRIC!$H$4=\"Français\",E459)))","v":0}]
[459,null,null,null,null,{"$f":"IF(EMRIC!$H$4=\"Deutsch\",C460,IF(EMRIC!$H$4=\"Nederlands\",D460,IF(EMRIC!$H$4=\"Français\",E460)))","v":0}]
[460,null,null,null,null,{"$f":"IF(EMRIC!$H$4=\"Deutsch\",C461,IF(EMRIC!$H$4=\"Nederlands\",D461,IF(EMRIC!$H$4=\"Français\",E461)))","v":0}]
[461,null,null,null,null,{"$f":"IF(EMRIC!$H$4=\"Deutsch\",C462,IF(EMRIC!$H$4=\"Nederlands\",D462,IF(EMRIC!$H$4=\"Français\",E462)))","v":0}]
[462,null,null,null,null,{"$f":"IF(EMRIC!$H$4=\"Deutsch\",C463,IF(EMRIC!$H$4=\"Nederlands\",D463,IF(EMRIC!$H$4=\"Français\",E463)))","v":0}]
[463,null,null,null,null,{"$f":"IF(EMRIC!$H$4=\"Deutsch\",C464,IF(EMRIC!$H$4=\"Nederlands\",D464,IF(EMRIC!$H$4=\"Français\",E464)))","v":0}]
[464,null,null,null,null,{"$f":"IF(EMRIC!$H$4=\"Deutsch\",C465,IF(EMRIC!$H$4=\"Nederlands\",D465,IF(EMRIC!$H$4=\"Français\",E465)))","v":0}]
[465,null,null,null,null,{"$f":"IF(EMRIC!$H$4=\"Deutsch\",C466,IF(EMRIC!$H$4=\"Nederlands\",D466,IF(EMRIC!$H$4=\"Français\",E466)))","v":0}]
[466,null,null,null,null,{"$f":"IF(EMRIC!$H$4=\"Deutsch\",C467,IF(EMRIC!$H$4=\"Nederlands\",D467,IF(EMRIC!$H$4=\"Français\",E467)))","v":0}]
[467,null,null,null,null,{"$f":"IF(EMRIC!$H$4=\"Deutsch\",C468,IF(EMRIC!$H$4=\"Nederlands\",D468,IF(EMRIC!$H$4=\"Français\",E468)))","v":0}]
[468,null,null,null,null,{"$f":"IF(EMRIC!$H$4=\"Deutsch\",C469,IF(EMRIC!$H$4=\"Nederlands\",D469,IF(EMRIC!$H$4=\"Français\",E469)))","v":0}]
[469,null,null,null,null,{"$f":"IF(EMRIC!$H$4=\"Deutsch\",C470,IF(EMRIC!$H$4=\"Nederlands\",D470,IF(EMRIC!$H$4=\"Français\",E470)))","v":0}]
[470,null,null,null,null,{"$f":"IF(EMRIC!$H$4=\"Deutsch\",C471,IF(EMRIC!$H$4=\"Nederlands\",D471,IF(EMRIC!$H$4=\"Français\",E471)))","v":0}]
[471,null,null,null,null,{"$f":"IF(EMRIC!$H$4=\"Deutsch\",C472,IF(EMRIC!$H$4=\"Nederlands\",D472,IF(EMRIC!$H$4=\"Français\",E472)))","v":0}]
[472,null,null,null,null,{"$f":"IF(EMRIC!$H$4=\"Deutsch\",C473,IF(EMRIC!$H$4=\"Nederlands\",D473,IF(EMRIC!$H$4=\"Français\",E473)))","v":0}]
[473,null,null,null,null,{"$f":"IF(EMRIC!$H$4=\"Deutsch\",C474,IF(EMRIC!$H$4=\"Nederlands\",D474,IF(EMRIC!$H$4=\"Français\",E474)))","v":0}]
[474,null,null,null,null,{"$f":"IF(EMRIC!$H$4=\"Deutsch\",C475,IF(EMRIC!$H$4=\"Nederlands\",D475,IF(EMRIC!$H$4=\"Français\",E475)))","v":0}]
[475,null,null,null,null,{"$f":"IF(EMRIC!$H$4=\"Deutsch\",C476,IF(EMRIC!$H$4=\"Nederlands\",D476,IF(EMRIC!$H$4=\"Français\",E476)))","v":0}]
[476,null,null,null,null,{"$f":"IF(EMRIC!$H$4=\"Deutsch\",C477,IF(EMRIC!$H$4=\"Nederlands\",D477,IF(EMRIC!$H$4=\"Français\",E477)))","v":0}]
[477,null,null,null,null,{"$f":"IF(EMRIC!$H$4=\"Deutsch\",C478,IF(EMRIC!$H$4=\"Nederlands\",D478,IF(EMRIC!$H$4=\"Français\",E478)))","v":0}]
[478,null,null,null,null,{"$f":"IF(EMRIC!$H$4=\"Deutsch\",C479,IF(EMRIC!$H$4=\"Nederlands\",D479,IF(EMRIC!$H$4=\"Français\",E479)))","v":0}]
[479,null,null,null,null,{"$f":"IF(EMRIC!$H$4=\"Deutsch\",C480,IF(EMRIC!$H$4=\"Nederlands\",D480,IF(EMRIC!$H$4=\"Français\",E480)))","v":0}]
[480,null,null,null,null,{"$f":"IF(EMRIC!$H$4=\"Deutsch\",C481,IF(EMRIC!$H$4=\"Nederlands\",D481,IF(EMRIC!$H$4=\"Français\",E481)))","v":0}]
[481,null,null,null,null,{"$f":"IF(EMRIC!$H$4=\"Deutsch\",C482,IF(EMRIC!$H$4=\"Nederlands\",D482,IF(EMRIC!$H$4=\"Français\",E482)))","v":0}]
[482,null,null,null,null,{"$f":"IF(EMRIC!$H$4=\"Deutsch\",C483,IF(EMRIC!$H$4=\"Nederlands\",D483,IF(EMRIC!$H$4=\"Français\",E483)))","v":0}]
[483,null,null,null,null,{"$f":"IF(EMRIC!$H$4=\"Deutsch\",C484,IF(EMRIC!$H$4=\"Nederlands\",D484,IF(EMRIC!$H$4=\"Français\",E484)))","v":0}]
[484,null,null,null,null,{"$f":"IF(EMRIC!$H$4=\"Deutsch\",C485,IF(EMRIC!$H$4=\"Nederlands\",D485,IF(EMRIC!$H$4=\"Français\",E485)))","v":0}]
[485,null,null,null,null,{"$f":"IF(EMRIC!$H$4=\"Deutsch\",C486,IF(EMRIC!$H$4=\"Nederlands\",D486,IF(EMRIC!$H$4=\"Français\",E486)))","v":0}]
[486,null,null,null,null,{"$f":"IF(EMRIC!$H$4=\"Deutsch\",C487,IF(EMRIC!$H$4=\"Nederlands\",D487,IF(EMRIC!$H$4=\"Français\",E487)))","v":0}]
[487,null,null,null,null,{"$f":"IF(EMRIC!$H$4=\"Deutsch\",C488,IF(EMRIC!$H$4=\"Nederlands\",D488,IF(EMRIC!$H$4=\"Français\",E488)))","v":0}]
[488,null,null,null,null,{"$f":"IF(EMRIC!$H$4=\"Deutsch\",C489,IF(EMRIC!$H$4=\"Nederlands\",D489,IF(EMRIC!$H$4=\"Français\",E489)))","v":0}]
[489,null,null,null,null,{"$f":"IF(EMRIC!$H$4=\"Deutsch\",C490,IF(EMRIC!$H$4=\"Nederlands\",D490,IF(EMRIC!$H$4=\"Français\",E490)))","v":0}]
[490,null,null,null,null,{"$f":"IF(EMRIC!$H$4=\"Deutsch\",C491,IF(EMRIC!$H$4=\"Nederlands\",D491,IF(EMRIC!$H$4=\"Français\",E491)))","v":0}]
[491,null,null,null,null,{"$f":"IF(EMRIC!$H$4=\"Deutsch\",C492,IF(EMRIC!$H$4=\"Nederlands\",D492,IF(EMRIC!$H$4=\"Français\",E492)))","v":0}]
[492,null,null,null,null,{"$f":"IF(EMRIC!$H$4=\"Deutsch\",C493,IF(EMRIC!$H$4=\"Nederlands\",D493,IF(EMRIC!$H$4=\"Français\",E493)))","v":0}]
[493,null,null,null,null,{"$f":"IF(EMRIC!$H$4=\"Deutsch\",C494,IF(EMRIC!$H$4=\"Nederlands\",D494,IF(EMRIC!$H$4=\"Français\",E494)))","v":0}]
[494,null,null,null,null,{"$f":"IF(EMRIC!$H$4=\"Deutsch\",C495,IF(EMRIC!$H$4=\"Nederlands\",D495,IF(EMRIC!$H$4=\"Français\",E495)))","v":0}]
[495,null,null,null,null,{"$f":"IF(EMRIC!$H$4=\"Deutsch\",C496,IF(EMRIC!$H$4=\"Nederlands\",D496,IF(EMRIC!$H$4=\"Français\",E496)))","v":0}]
[496,null,null,null,null,{"$f":"IF(EMRIC!$H$4=\"Deutsch\",C497,IF(EMRIC!$H$4=\"Nederlands\",D497,IF(EMRIC!$H$4=\"Français\",E497)))","v":0}]
[497,null,null,null,null,{"$f":"IF(EMRIC!$H$4=\"Deutsch\",C498,IF(EMRIC!$H$4=\"Nederlands\",D498,IF(EMRIC!$H$4=\"Français\",E498)))","v":0}]
[498,null,null,null,null,{"$f":"IF(EMRIC!$H$4=\"Deutsch\",C499,IF(EMRIC!$H$4=\"Nederlands\",D499,IF(EMRIC!$H$4=\"Français\",E499)))","v":0}]
[499,null,null,null,null,{"$f":"IF(EMRIC!$H$4=\"Deutsch\",C500,IF(EMRIC!$H$4=\"Nederlands\",D500,IF(EMRIC!$H$4=\"Français\",E500)))","v":0}]
[500,null,null,null,null,{"$f":"IF(EMRIC!$H$4=\"Deutsch\",C501,IF(EMRIC!$H$4=\"Nederlands\",D501,IF(EMRIC!$H$4=\"Français\",E501)))","v":0}]
[501,null,null,null,null,{"$f":"IF(EMRIC!$H$4=\"Deutsch\",C502,IF(EMRIC!$H$4=\"Nederlands\",D502,IF(EMRIC!$H$4=\"Français\",E502)))","v":0}]
[502,null,null,null,null,{"$f":"IF(EMRIC!$H$4=\"Deutsch\",C503,IF(EMRIC!$H$4=\"Nederlands\",D503,IF(EMRIC!$H$4=\"Français\",E503)))","v":0}]
[503,null,null,null,null,{"$f":"IF(EMRIC!$H$4=\"Deutsch\",C504,IF(EMRIC!$H$4=\"Nederlands\",D504,IF(EMRIC!$H$4=\"Français\",E504)))","v":0}]
[504,null,null,null,null,{"$f":"IF(EMRIC!$H$4=\"Deutsch\",C505,IF(EMRIC!$H$4=\"Nederlands\",D505,IF(EMRIC!$H$4=\"Français\",E505)))","v":0}]
[505,null,null,null,null,{"$f":"IF(EMRIC!$H$4=\"Deutsch\",C506,IF(EMRIC!$H$4=\"Nederlands\",D506,IF(EMRIC!$H$4=\"Français\",E506)))","v":0}]
[506,null,null,null,null,{"$f":"IF(EMRIC!$H$4=\"Deutsch\",C507,IF(EMRIC!$H$4=\"Nederlands\",D507,IF(EMRIC!$H$4=\"Français\",E507)))","v":0}]
[507,null,null,null,null,{"$f":"IF(EMRIC!$H$4=\"Deutsch\",C508,IF(EMRIC!$H$4=\"Nederlands\",D508,IF(EMRIC!$H$4=\"Français\",E508)))","v":0}]
[508,null,null,null,null,{"$f":"IF(EMRIC!$H$4=\"Deutsch\",C509,IF(EMRIC!$H$4=\"Nederlands\",D509,IF(EMRIC!$H$4=\"Français\",E509)))","v":0}]
[509,null,null,null,null,{"$f":"IF(EMRIC!$H$4=\"Deutsch\",C510,IF(EMRIC!$H$4=\"Nederlands\",D510,IF(EMRIC!$H$4=\"Français\",E510)))","v":0}]
[510,null,null,null,null,{"$f":"IF(EMRIC!$H$4=\"Deutsch\",C511,IF(EMRIC!$H$4=\"Nederlands\",D511,IF(EMRIC!$H$4=\"Français\",E511)))","v":0}]
[511,null,null,null,null,{"$f":"IF(EMRIC!$H$4=\"Deutsch\",C512,IF(EMRIC!$H$4=\"Nederlands\",D512,IF(EMRIC!$H$4=\"Français\",E512)))","v":0}]
[512,null,null,null,null,{"$f":"IF(EMRIC!$H$4=\"Deutsch\",C513,IF(EMRIC!$H$4=\"Nederlands\",D513,IF(EMRIC!$H$4=\"Français\",E513)))","v":0}]
[513,null,null,null,null,{"$f":"IF(EMRIC!$H$4=\"Deutsch\",C514,IF(EMRIC!$H$4=\"Nederlands\",D514,IF(EMRIC!$H$4=\"Français\",E514)))","v":0}]
[514,null,null,null,null,{"$f":"IF(EMRIC!$H$4=\"Deutsch\",C515,IF(EMRIC!$H$4=\"Nederlands\",D515,IF(EMRIC!$H$4=\"Français\",E515)))","v":0}]
[515,null,null,null,null,{"$f":"IF(EMRIC!$H$4=\"Deutsch\",C516,IF(EMRIC!$H$4=\"Nederlands\",D516,IF(EMRIC!$H$4=\"Français\",E516)))","v":0}]
[516,null,null,null,null,{"$f":"IF(EMRIC!$H$4=\"Deutsch\",C517,IF(EMRIC!$H$4=\"Nederlands\",D517,IF(EMRIC!$H$4=\"Français\",E517)))","v":0}]
[517,null,null,null,null,{"$f":"IF(EMRIC!$H$4=\"Deutsch\",C518,IF(EMRIC!$H$4=\"Nederlands\",D518,IF(EMRIC!$H$4=\"Français\",E518)))","v":0}]
[518,null,null,null,null,{"$f":"IF(EMRIC!$H$4=\"Deutsch\",C519,IF(EMRIC!$H$4=\"Nederlands\",D519,IF(EMRIC!$H$4=\"Français\",E519)))","v":0}]
[519,null,null,null,null,{"$f":"IF(EMRIC!$H$4=\"Deutsch\",C520,IF(EMRIC!$H$4=\"Nederlands\",D520,IF(EMRIC!$H$4=\"Français\",E520)))","v":0}]
[520,null,null,null,null,{"$f":"IF(EMRIC!$H$4=\"Deutsch\",C521,IF(EMRIC!$H$4=\"Nederlands\",D521,IF(EMRIC!$H$4=\"Français\",E521)))","v":0}]
[521,null,null,null,null,{"$f":"IF(EMRIC!$H$4=\"Deutsch\",C522,IF(EMRIC!$H$4=\"Nederlands\",D522,IF(EMRIC!$H$4=\"Français\",E522)))","v":0}]
[522,null,null,null,null,{"$f":"IF(EMRIC!$H$4=\"Deutsch\",C523,IF(EMRIC!$H$4=\"Nederlands\",D523,IF(EMRIC!$H$4=\"Français\",E523)))","v":0}]
[523,null,null,null,null,{"$f":"IF(EMRIC!$H$4=\"Deutsch\",C524,IF(EMRIC!$H$4=\"Nederlands\",D524,IF(EMRIC!$H$4=\"Français\",E524)))","v":0}]
[524,null,null,null,null,{"$f":"IF(EMRIC!$H$4=\"Deutsch\",C525,IF(EMRIC!$H$4=\"Nederlands\",D525,IF(EMRIC!$H$4=\"Français\",E525)))","v":0}]
[525,null,null,null,null,{"$f":"IF(EMRIC!$H$4=\"Deutsch\",C526,IF(EMRIC!$H$4=\"Nederlands\",D526,IF(EMRIC!$H$4=\"Français\",E526)))","v":0}]
[526,null,null,null,null,{"$f":"IF(EMRIC!$H$4=\"Deutsch\",C527,IF(EMRIC!$H$4=\"Nederlands\",D527,IF(EMRIC!$H$4=\"Français\",E527)))","v":0}]
[527,null,null,null,null,{"$f":"IF(EMRIC!$H$4=\"Deutsch\",C528,IF(EMRIC!$H$4=\"Nederlands\",D528,IF(EMRIC!$H$4=\"Français\",E528)))","v":0}]
[528,null,null,null,null,{"$f":"IF(EMRIC!$H$4=\"Deutsch\",C529,IF(EMRIC!$H$4=\"Nederlands\",D529,IF(EMRIC!$H$4=\"Français\",E529)))","v":0}]
[529,null,null,null,null,{"$f":"IF(EMRIC!$H$4=\"Deutsch\",C530,IF(EMRIC!$H$4=\"Nederlands\",D530,IF(EMRIC!$H$4=\"Français\",E530)))","v":0}]
[530,null,null,null,null,{"$f":"IF(EMRIC!$H$4=\"Deutsch\",C531,IF(EMRIC!$H$4=\"Nederlands\",D531,IF(EMRIC!$H$4=\"Français\",E531)))","v":0}]
[531,null,null,null,null,{"$f":"IF(EMRIC!$H$4=\"Deutsch\",C532,IF(EMRIC!$H$4=\"Nederlands\",D532,IF(EMRIC!$H$4=\"Français\",E532)))","v":0}]
[532,null,null,null,null,{"$f":"IF(EMRIC!$H$4=\"Deutsch\",C533,IF(EMRIC!$H$4=\"Nederlands\",D533,IF(EMRIC!$H$4=\"Français\",E533)))","v":0}]
[533,null,null,null,null,{"$f":"IF(EMRIC!$H$4=\"Deutsch\",C534,IF(EMRIC!$H$4=\"Nederlands\",D534,IF(EMRIC!$H$4=\"Français\",E534)))","v":0}]
[534,null,null,null,null,{"$f":"IF(EMRIC!$H$4=\"Deutsch\",C535,IF(EMRIC!$H$4=\"Nederlands\",D535,IF(EMRIC!$H$4=\"Français\",E535)))","v":0}]
[535,null,null,null,null,{"$f":"IF(EMRIC!$H$4=\"Deutsch\",C536,IF(EMRIC!$H$4=\"Nederlands\",D536,IF(EMRIC!$H$4=\"Français\",E536)))","v":0}]
[536,null,null,null,null,{"$f":"IF(EMRIC!$H$4=\"Deutsch\",C537,IF(EMRIC!$H$4=\"Nederlands\",D537,IF(EMRIC!$H$4=\"Français\",E537)))","v":0}]
[537,null,null,null,null,{"$f":"IF(EMRIC!$H$4=\"Deutsch\",C538,IF(EMRIC!$H$4=\"Nederlands\",D538,IF(EMRIC!$H$4=\"Français\",E538)))","v":0}]
[538,null,null,null,null,{"$f":"IF(EMRIC!$H$4=\"Deutsch\",C539,IF(EMRIC!$H$4=\"Nederlands\",D539,IF(EMRIC!$H$4=\"Français\",E539)))","v":0}]
[539,null,null,null,null,{"$f":"IF(EMRIC!$H$4=\"Deutsch\",C540,IF(EMRIC!$H$4=\"Nederlands\",D540,IF(EMRIC!$H$4=\"Français\",E540)))","v":0}]
[540,null,null,null,null,{"$f":"IF(EMRIC!$H$4=\"Deutsch\",C541,IF(EMRIC!$H$4=\"Nederlands\",D541,IF(EMRIC!$H$4=\"Français\",E541)))","v":0}]
[541,null,null,null,null,{"$f":"IF(EMRIC!$H$4=\"Deutsch\",C542,IF(EMRIC!$H$4=\"Nederlands\",D542,IF(EMRIC!$H$4=\"Français\",E542)))","v":0}]
[542,null,null,null,null,{"$f":"IF(EMRIC!$H$4=\"Deutsch\",C543,IF(EMRIC!$H$4=\"Nederlands\",D543,IF(EMRIC!$H$4=\"Français\",E543)))","v":0}]
[543,null,null,null,null,{"$f":"IF(EMRIC!$H$4=\"Deutsch\",C544,IF(EMRIC!$H$4=\"Nederlands\",D544,IF(EMRIC!$H$4=\"Français\",E544)))","v":0}]
[544,null,null,null,null,{"$f":"IF(EMRIC!$H$4=\"Deutsch\",C545,IF(EMRIC!$H$4=\"Nederlands\",D545,IF(EMRIC!$H$4=\"Français\",E545)))","v":0}]
[545,null,null,null,null,{"$f":"IF(EMRIC!$H$4=\"Deutsch\",C546,IF(EMRIC!$H$4=\"Nederlands\",D546,IF(EMRIC!$H$4=\"Français\",E546)))","v":0}]
[546,null,null,null,null,{"$f":"IF(EMRIC!$H$4=\"Deutsch\",C547,IF(EMRIC!$H$4=\"Nederlands\",D547,IF(EMRIC!$H$4=\"Français\",E547)))","v":0}]
[547,null,null,null,null,{"$f":"IF(EMRIC!$H$4=\"Deutsch\",C548,IF(EMRIC!$H$4=\"Nederlands\",D548,IF(EMRIC!$H$4=\"Français\",E548)))","v":0}]
[548,null,null,null,null,{"$f":"IF(EMRIC!$H$4=\"Deutsch\",C549,IF(EMRIC!$H$4=\"Nederlands\",D549,IF(EMRIC!$H$4=\"Français\",E549)))","v":0}]
[549,null,null,null,null,{"$f":"IF(EMRIC!$H$4=\"Deutsch\",C550,IF(EMRIC!$H$4=\"Nederlands\",D550,IF(EMRIC!$H$4=\"Français\",E550)))","v":0}]
[550,null,null,null,null,{"$f":"IF(EMRIC!$H$4=\"Deutsch\",C551,IF(EMRIC!$H$4=\"Nederlands\",D551,IF(EMRIC!$H$4=\"Français\",E551)))","v":0}]
[551,null,null,null,null,{"$f":"IF(EMRIC!$H$4=\"Deutsch\",C552,IF(EMRIC!$H$4=\"Nederlands\",D552,IF(EMRIC!$H$4=\"Français\",E552)))","v":0}]
[552,null,null,null,null,{"$f":"IF(EMRIC!$H$4=\"Deutsch\",C553,IF(EMRIC!$H$4=\"Nederlands\",D553,IF(EMRIC!$H$4=\"Français\",E553)))","v":0}]
[553,null,null,null,null,{"$f":"IF(EMRIC!$H$4=\"Deutsch\",C554,IF(EMRIC!$H$4=\"Nederlands\",D554,IF(EMRIC!$H$4=\"Français\",E554)))","v":0}]
[554,null,null,null,null,{"$f":"IF(EMRIC!$H$4=\"Deutsch\",C555,IF(EMRIC!$H$4=\"Nederlands\",D555,IF(EMRIC!$H$4=\"Français\",E555)))","v":0}]
[555,null,null,null,null,{"$f":"IF(EMRIC!$H$4=\"Deutsch\",C556,IF(EMRIC!$H$4=\"Nederlands\",D556,IF(EMRIC!$H$4=\"Français\",E556)))","v":0}]
[556,null,null,null,null,{"$f":"IF(EMRIC!$H$4=\"Deutsch\",C557,IF(EMRIC!$H$4=\"Nederlands\",D557,IF(EMRIC!$H$4=\"Français\",E557)))","v":0}]
[557,null,null,null,null,{"$f":"IF(EMRIC!$H$4=\"Deutsch\",C558,IF(EMRIC!$H$4=\"Nederlands\",D558,IF(EMRIC!$H$4=\"Français\",E558)))","v":0}]
[558,null,null,null,null,{"$f":"IF(EMRIC!$H$4=\"Deutsch\",C559,IF(EMRIC!$H$4=\"Nederlands\",D559,IF(EMRIC!$H$4=\"Français\",E559)))","v":0}]
[559,null,null,null,null,{"$f":"IF(EMRIC!$H$4=\"Deutsch\",C560,IF(EMRIC!$H$4=\"Nederlands\",D560,IF(EMRIC!$H$4=\"Français\",E560)))","v":0}]
[560,null,null,null,null,{"$f":"IF(EMRIC!$H$4=\"Deutsch\",C561,IF(EMRIC!$H$4=\"Nederlands\",D561,IF(EMRIC!$H$4=\"Français\",E561)))","v":0}]
[561,null,null,null,null,{"$f":"IF(EMRIC!$H$4=\"Deutsch\",C562,IF(EMRIC!$H$4=\"Nederlands\",D562,IF(EMRIC!$H$4=\"Français\",E562)))","v":0}]
[562,null,null,null,null,{"$f":"IF(EMRIC!$H$4=\"Deutsch\",C563,IF(EMRIC!$H$4=\"Nederlands\",D563,IF(EMRIC!$H$4=\"Français\",E563)))","v":0}]
[563,null,null,null,null,{"$f":"IF(EMRIC!$H$4=\"Deutsch\",C564,IF(EMRIC!$H$4=\"Nederlands\",D564,IF(EMRIC!$H$4=\"Français\",E564)))","v":0}]
[564,null,null,null,null,{"$f":"IF(EMRIC!$H$4=\"Deutsch\",C565,IF(EMRIC!$H$4=\"Nederlands\",D565,IF(EMRIC!$H$4=\"Français\",E565)))","v":0}]
[565,null,null,null,null,{"$f":"IF(EMRIC!$H$4=\"Deutsch\",C566,IF(EMRIC!$H$4=\"Nederlands\",D566,IF(EMRIC!$H$4=\"Français\",E566)))","v":0}]
[566,null,null,null,null,{"$f":"IF(EMRIC!$H$4=\"Deutsch\",C567,IF(EMRIC!$H$4=\"Nederlands\",D567,IF(EMRIC!$H$4=\"Français\",E567)))","v":0}]
[567,null,null,null,null,{"$f":"IF(EMRIC!$H$4=\"Deutsch\",C568,IF(EMRIC!$H$4=\"Nederlands\",D568,IF(EMRIC!$H$4=\"Français\",E568)))","v":0}]
[568,null,null,null,null,{"$f":"IF(EMRIC!$H$4=\"Deutsch\",C569,IF(EMRIC!$H$4=\"Nederlands\",D569,IF(EMRIC!$H$4=\"Français\",E569)))","v":0}]
[569,null,null,null,null,{"$f":"IF(EMRIC!$H$4=\"Deutsch\",C570,IF(EMRIC!$H$4=\"Nederlands\",D570,IF(EMRIC!$H$4=\"Français\",E570)))","v":0}]
[570,null,null,null,null,{"$f":"IF(EMRIC!$H$4=\"Deutsch\",C571,IF(EMRIC!$H$4=\"Nederlands\",D571,IF(EMRIC!$H$4=\"Français\",E571)))","v":0}]
[571,null,null,null,null,{"$f":"IF(EMRIC!$H$4=\"Deutsch\",C572,IF(EMRIC!$H$4=\"Nederlands\",D572,IF(EMRIC!$H$4=\"Français\",E572)))","v":0}]
[572,null,null,null,null,{"$f":"IF(EMRIC!$H$4=\"Deutsch\",C573,IF(EMRIC!$H$4=\"Nederlands\",D573,IF(EMRIC!$H$4=\"Français\",E573)))","v":0}]
[573,null,null,null,null,{"$f":"IF(EMRIC!$H$4=\"Deutsch\",C574,IF(EMRIC!$H$4=\"Nederlands\",D574,IF(EMRIC!$H$4=\"Français\",E574)))","v":0}]
[574,null,null,null,null,{"$f":"IF(EMRIC!$H$4=\"Deutsch\",C575,IF(EMRIC!$H$4=\"Nederlands\",D575,IF(EMRIC!$H$4=\"Français\",E575)))","v":0}]
[575,null,null,null,null,{"$f":"IF(EMRIC!$H$4=\"Deutsch\",C576,IF(EMRIC!$H$4=\"Nederlands\",D576,IF(EMRIC!$H$4=\"Français\",E576)))","v":0}]
[576,null,null,null,null,{"$f":"IF(EMRIC!$H$4=\"Deutsch\",C577,IF(EMRIC!$H$4=\"Nederlands\",D577,IF(EMRIC!$H$4=\"Français\",E577)))","v":0}]
[577,null,null,null,null,{"$f":"IF(EMRIC!$H$4=\"Deutsch\",C578,IF(EMRIC!$H$4=\"Nederlands\",D578,IF(EMRIC!$H$4=\"Français\",E578)))","v":0}]
[578,null,null,null,null,{"$f":"IF(EMRIC!$H$4=\"Deutsch\",C579,IF(EMRIC!$H$4=\"Nederlands\",D579,IF(EMRIC!$H$4=\"Français\",E579)))","v":0}]
[579,null,null,null,null,{"$f":"IF(EMRIC!$H$4=\"Deutsch\",C580,IF(EMRIC!$H$4=\"Nederlands\",D580,IF(EMRIC!$H$4=\"Français\",E580)))","v":0}]
[580,null,null,null,null,{"$f":"IF(EMRIC!$H$4=\"Deutsch\",C581,IF(EMRIC!$H$4=\"Nederlands\",D581,IF(EMRIC!$H$4=\"Français\",E581)))","v":0}]
[581,null,null,null,null,{"$f":"IF(EMRIC!$H$4=\"Deutsch\",C582,IF(EMRIC!$H$4=\"Nederlands\",D582,IF(EMRIC!$H$4=\"Français\",E582)))","v":0}]
[582,null,null,null,null,{"$f":"IF(EMRIC!$H$4=\"Deutsch\",C583,IF(EMRIC!$H$4=\"Nederlands\",D583,IF(EMRIC!$H$4=\"Français\",E583)))","v":0}]
[583,null,null,null,null,{"$f":"IF(EMRIC!$H$4=\"Deutsch\",C584,IF(EMRIC!$H$4=\"Nederlands\",D584,IF(EMRIC!$H$4=\"Français\",E584)))","v":0}]
[584,null,null,null,null,{"$f":"IF(EMRIC!$H$4=\"Deutsch\",C585,IF(EMRIC!$H$4=\"Nederlands\",D585,IF(EMRIC!$H$4=\"Français\",E585)))","v":0}]
[585,null,null,null,null,{"$f":"IF(EMRIC!$H$4=\"Deutsch\",C586,IF(EMRIC!$H$4=\"Nederlands\",D586,IF(EMRIC!$H$4=\"Français\",E586)))","v":0}]
[586,null,null,null,null,{"$f":"IF(EMRIC!$H$4=\"Deutsch\",C587,IF(EMRIC!$H$4=\"Nederlands\",D587,IF(EMRIC!$H$4=\"Français\",E587)))","v":0}]
[587,null,null,null,null,{"$f":"IF(EMRIC!$H$4=\"Deutsch\",C588,IF(EMRIC!$H$4=\"Nederlands\",D588,IF(EMRIC!$H$4=\"Français\",E588)))","v":0}]
[588,null,null,null,null,{"$f":"IF(EMRIC!$H$4=\"Deutsch\",C589,IF(EMRIC!$H$4=\"Nederlands\",D589,IF(EMRIC!$H$4=\"Français\",E589)))","v":0}]
[589,null,null,null,null,{"$f":"IF(EMRIC!$H$4=\"Deutsch\",C590,IF(EMRIC!$H$4=\"Nederlands\",D590,IF(EMRIC!$H$4=\"Français\",E590)))","v":0}]
[590,null,null,null,null,{"$f":"IF(EMRIC!$H$4=\"Deutsch\",C591,IF(EMRIC!$H$4=\"Nederlands\",D591,IF(EMRIC!$H$4=\"Français\",E591)))","v":0}]
[591,null,null,null,null,{"$f":"IF(EMRIC!$H$4=\"Deutsch\",C592,IF(EMRIC!$H$4=\"Nederlands\",D592,IF(EMRIC!$H$4=\"Français\",E592)))","v":0}]
[592,null,null,null,null,{"$f":"IF(EMRIC!$H$4=\"Deutsch\",C593,IF(EMRIC!$H$4=\"Nederlands\",D593,IF(EMRIC!$H$4=\"Français\",E593)))","v":0}]
[593,null,null,null,null,{"$f":"IF(EMRIC!$H$4=\"Deutsch\",C594,IF(EMRIC!$H$4=\"Nederlands\",D594,IF(EMRIC!$H$4=\"Français\",E594)))","v":0}]
[594,null,null,null,null,{"$f":"IF(EMRIC!$H$4=\"Deutsch\",C595,IF(EMRIC!$H$4=\"Nederlands\",D595,IF(EMRIC!$H$4=\"Français\",E595)))","v":0}]
[595,null,null,null,null,{"$f":"IF(EMRIC!$H$4=\"Deutsch\",C596,IF(EMRIC!$H$4=\"Nederlands\",D596,IF(EMRIC!$H$4=\"Français\",E596)))","v":0}]
[596,null,null,null,null,{"$f":"IF(EMRIC!$H$4=\"Deutsch\",C597,IF(EMRIC!$H$4=\"Nederlands\",D597,IF(EMRIC!$H$4=\"Français\",E597)))","v":0}]
[597,null,null,null,null,{"$f":"IF(EMRIC!$H$4=\"Deutsch\",C598,IF(EMRIC!$H$4=\"Nederlands\",D598,IF(EMRIC!$H$4=\"Français\",E598)))","v":0}]
[598,null,null,null,null,{"$f":"IF(EMRIC!$H$4=\"Deutsch\",C599,IF(EMRIC!$H$4=\"Nederlands\",D599,IF(EMRIC!$H$4=\"Français\",E599)))","v":0}]
[599,null,null,null,null,{"$f":"IF(EMRIC!$H$4=\"Deutsch\",C600,IF(EMRIC!$H$4=\"Nederlands\",D600,IF(EMRIC!$H$4=\"Français\",E600)))","v":0}]
[600,null,null,null,null,{"$f":"IF(EMRIC!$H$4=\"Deutsch\",C601,IF(EMRIC!$H$4=\"Nederlands\",D601,IF(EMRIC!$H$4=\"Français\",E601)))","v":0}]
[601,null,null,null,null,{"$f":"IF(EMRIC!$H$4=\"Deutsch\",C602,IF(EMRIC!$H$4=\"Nederlands\",D602,IF(EMRIC!$H$4=\"Français\",E602)))","v":0}]
[602,null,null,null,null,{"$f":"IF(EMRIC!$H$4=\"Deutsch\",C603,IF(EMRIC!$H$4=\"Nederlands\",D603,IF(EMRIC!$H$4=\"Français\",E603)))","v":0}]
[603,null,null,null,null,{"$f":"IF(EMRIC!$H$4=\"Deutsch\",C604,IF(EMRIC!$H$4=\"Nederlands\",D604,IF(EMRIC!$H$4=\"Français\",E604)))","v":0}]
[604,null,null,null,null,{"$f":"IF(EMRIC!$H$4=\"Deutsch\",C605,IF(EMRIC!$H$4=\"Nederlands\",D605,IF(EMRIC!$H$4=\"Français\",E605)))","v":0}]
[605,null,null,null,null,{"$f":"IF(EMRIC!$H$4=\"Deutsch\",C606,IF(EMRIC!$H$4=\"Nederlands\",D606,IF(EMRIC!$H$4=\"Français\",E606)))","v":0}]
[606,null,null,null,null,{"$f":"IF(EMRIC!$H$4=\"Deutsch\",C607,IF(EMRIC!$H$4=\"Nederlands\",D607,IF(EMRIC!$H$4=\"Français\",E607)))","v":0}]
[607,null,null,null,null,{"$f":"IF(EMRIC!$H$4=\"Deutsch\",C608,IF(EMRIC!$H$4=\"Nederlands\",D608,IF(EMRIC!$H$4=\"Français\",E608)))","v":0}]
[608,null,null,null,null,{"$f":"IF(EMRIC!$H$4=\"Deutsch\",C609,IF(EMRIC!$H$4=\"Nederlands\",D609,IF(EMRIC!$H$4=\"Français\",E609)))","v":0}]
[609,null,null,null,null,{"$f":"IF(EMRIC!$H$4=\"Deutsch\",C610,IF(EMRIC!$H$4=\"Nederlands\",D610,IF(EMRIC!$H$4=\"Français\",E610)))","v":0}]
[610,null,null,null,null,{"$f":"IF(EMRIC!$H$4=\"Deutsch\",C611,IF(EMRIC!$H$4=\"Nederlands\",D611,IF(EMRIC!$H$4=\"Français\",E611)))","v":0}]
[611,null,null,null,null,{"$f":"IF(EMRIC!$H$4=\"Deutsch\",C612,IF(EMRIC!$H$4=\"Nederlands\",D612,IF(EMRIC!$H$4=\"Français\",E612)))","v":0}]
[612,null,null,null,null,{"$f":"IF(EMRIC!$H$4=\"Deutsch\",C613,IF(EMRIC!$H$4=\"Nederlands\",D613,IF(EMRIC!$H$4=\"Français\",E613)))","v":0}]
[613,null,null,null,null,{"$f":"IF(EMRIC!$H$4=\"Deutsch\",C614,IF(EMRIC!$H$4=\"Nederlands\",D614,IF(EMRIC!$H$4=\"Français\",E614)))","v":0}]
[614,null,null,null,null,{"$f":"IF(EMRIC!$H$4=\"Deutsch\",C615,IF(EMRIC!$H$4=\"Nederlands\",D615,IF(EMRIC!$H$4=\"Français\",E615)))","v":0}]
[615,null,null,null,null,{"$f":"IF(EMRIC!$H$4=\"Deutsch\",C616,IF(EMRIC!$H$4=\"Nederlands\",D616,IF(EMRIC!$H$4=\"Français\",E616)))","v":0}]
[616,null,null,null,null,{"$f":"IF(EMRIC!$H$4=\"Deutsch\",C617,IF(EMRIC!$H$4=\"Nederlands\",D617,IF(EMRIC!$H$4=\"Français\",E617)))","v":0}]
[617,null,null,null,null,{"$f":"IF(EMRIC!$H$4=\"Deutsch\",C618,IF(EMRIC!$H$4=\"Nederlands\",D618,IF(EMRIC!$H$4=\"Français\",E618)))","v":0}]
[618,null,null,null,null,{"$f":"IF(EMRIC!$H$4=\"Deutsch\",C619,IF(EMRIC!$H$4=\"Nederlands\",D619,IF(EMRIC!$H$4=\"Français\",E619)))","v":0}]
[619,null,null,null,null,{"$f":"IF(EMRIC!$H$4=\"Deutsch\",C620,IF(EMRIC!$H$4=\"Nederlands\",D620,IF(EMRIC!$H$4=\"Français\",E620)))","v":0}]
[620,null,null,null,null,{"$f":"IF(EMRIC!$H$4=\"Deutsch\",C621,IF(EMRIC!$H$4=\"Nederlands\",D621,IF(EMRIC!$H$4=\"Français\",E621)))","v":0}]
[621,null,null,null,null,{"$f":"IF(EMRIC!$H$4=\"Deutsch\",C622,IF(EMRIC!$H$4=\"Nederlands\",D622,IF(EMRIC!$H$4=\"Français\",E622)))","v":0}]
[622,null,null,null,null,{"$f":"IF(EMRIC!$H$4=\"Deutsch\",C623,IF(EMRIC!$H$4=\"Nederlands\",D623,IF(EMRIC!$H$4=\"Français\",E623)))","v":0}]
[623,null,null,null,null,{"$f":"IF(EMRIC!$H$4=\"Deutsch\",C624,IF(EMRIC!$H$4=\"Nederlands\",D624,IF(EMRIC!$H$4=\"Français\",E624)))","v":0}]
[624,null,null,null,null,{"$f":"IF(EMRIC!$H$4=\"Deutsch\",C625,IF(EMRIC!$H$4=\"Nederlands\",D625,IF(EMRIC!$H$4=\"Français\",E625)))","v":0}]
[625,null,null,null,null,{"$f":"IF(EMRIC!$H$4=\"Deutsch\",C626,IF(EMRIC!$H$4=\"Nederlands\",D626,IF(EMRIC!$H$4=\"Français\",E626)))","v":0}]
[626,null,null,null,null,{"$f":"IF(EMRIC!$H$4=\"Deutsch\",C627,IF(EMRIC!$H$4=\"Nederlands\",D627,IF(EMRIC!$H$4=\"Français\",E627)))","v":0}]
[627,null,null,null,null,{"$f":"IF(EMRIC!$H$4=\"Deutsch\",C628,IF(EMRIC!$H$4=\"Nederlands\",D628,IF(EMRIC!$H$4=\"Français\",E628)))","v":0}]
[628,null,null,null,null,{"$f":"IF(EMRIC!$H$4=\"Deutsch\",C629,IF(EMRIC!$H$4=\"Nederlands\",D629,IF(EMRIC!$H$4=\"Français\",E629)))","v":0}]
[629,null,null,null,null,{"$f":"IF(EMRIC!$H$4=\"Deutsch\",C630,IF(EMRIC!$H$4=\"Nederlands\",D630,IF(EMRIC!$H$4=\"Français\",E630)))","v":0}]
[630,null,null,null,null,{"$f":"IF(EMRIC!$H$4=\"Deutsch\",C631,IF(EMRIC!$H$4=\"Nederlands\",D631,IF(EMRIC!$H$4=\"Français\",E631)))","v":0}]
[631,null,null,null,null,{"$f":"IF(EMRIC!$H$4=\"Deutsch\",C632,IF(EMRIC!$H$4=\"Nederlands\",D632,IF(EMRIC!$H$4=\"Français\",E632)))","v":0}]
[632,null,null,null,null,{"$f":"IF(EMRIC!$H$4=\"Deutsch\",C633,IF(EMRIC!$H$4=\"Nederlands\",D633,IF(EMRIC!$H$4=\"Français\",E633)))","v":0}]
[633,null,null,null,null,{"$f":"IF(EMRIC!$H$4=\"Deutsch\",C634,IF(EMRIC!$H$4=\"Nederlands\",D634,IF(EMRIC!$H$4=\"Français\",E634)))","v":0}]
[634,null,null,null,null,{"$f":"IF(EMRIC!$H$4=\"Deutsch\",C635,IF(EMRIC!$H$4=\"Nederlands\",D635,IF(EMRIC!$H$4=\"Français\",E635)))","v":0}]
[635,null,null,null,null,{"$f":"IF(EMRIC!$H$4=\"Deutsch\",C636,IF(EMRIC!$H$4=\"Nederlands\",D636,IF(EMRIC!$H$4=\"Français\",E636)))","v":0}]
[636,null,null,null,null,{"$f":"IF(EMRIC!$H$4=\"Deutsch\",C637,IF(EMRIC!$H$4=\"Nederlands\",D637,IF(EMRIC!$H$4=\"Français\",E637)))","v":0}]
[637,null,null,null,null,{"$f":"IF(EMRIC!$H$4=\"Deutsch\",C638,IF(EMRIC!$H$4=\"Nederlands\",D638,IF(EMRIC!$H$4=\"Français\",E638)))","v":0}]
[638,null,null,null,null,{"$f":"IF(EMRIC!$H$4=\"Deutsch\",C639,IF(EMRIC!$H$4=\"Nederlands\",D639,IF(EMRIC!$H$4=\"Français\",E639)))","v":0}]
[639,null,null,null,null,{"$f":"IF(EMRIC!$H$4=\"Deutsch\",C640,IF(EMRIC!$H$4=\"Nederlands\",D640,IF(EMRIC!$H$4=\"Français\",E640)))","v":0}]
[640,null,null,null,null,{"$f":"IF(EMRIC!$H$4=\"Deutsch\",C641,IF(EMRIC!$H$4=\"Nederlands\",D641,IF(EMRIC!$H$4=\"Français\",E641)))","v":0}]
[641,null,null,null,null,{"$f":"IF(EMRIC!$H$4=\"Deutsch\",C642,IF(EMRIC!$H$4=\"Nederlands\",D642,IF(EMRIC!$H$4=\"Français\",E642)))","v":0}]
[642,null,null,null,null,{"$f":"IF(EMRIC!$H$4=\"Deutsch\",C643,IF(EMRIC!$H$4=\"Nederlands\",D643,IF(EMRIC!$H$4=\"Français\",E643)))","v":0}]
[643,null,null,null,null,{"$f":"IF(EMRIC!$H$4=\"Deutsch\",C644,IF(EMRIC!$H$4=\"Nederlands\",D644,IF(EMRIC!$H$4=\"Français\",E644)))","v":0}]
[644,null,null,null,null,{"$f":"IF(EMRIC!$H$4=\"Deutsch\",C645,IF(EMRIC!$H$4=\"Nederlands\",D645,IF(EMRIC!$H$4=\"Français\",E645)))","v":0}]
[645,null,null,null,null,{"$f":"IF(EMRIC!$H$4=\"Deutsch\",C646,IF(EMRIC!$H$4=\"Nederlands\",D646,IF(EMRIC!$H$4=\"Français\",E646)))","v":0}]
[646,null,null,null,null,{"$f":"IF(EMRIC!$H$4=\"Deutsch\",C647,IF(EMRIC!$H$4=\"Nederlands\",D647,IF(EMRIC!$H$4=\"Français\",E647)))","v":0}]
[647,null,null,null,null,{"$f":"IF(EMRIC!$H$4=\"Deutsch\",C648,IF(EMRIC!$H$4=\"Nederlands\",D648,IF(EMRIC!$H$4=\"Français\",E648)))","v":0}]
[648,null,null,null,null,{"$f":"IF(EMRIC!$H$4=\"Deutsch\",C649,IF(EMRIC!$H$4=\"Nederlands\",D649,IF(EMRIC!$H$4=\"Français\",E649)))","v":0}]
[649,null,null,null,null,{"$f":"IF(EMRIC!$H$4=\"Deutsch\",C650,IF(EMRIC!$H$4=\"Nederlands\",D650,IF(EMRIC!$H$4=\"Français\",E650)))","v":0}]
[650,null,null,null,null,{"$f":"IF(EMRIC!$H$4=\"Deutsch\",C651,IF(EMRIC!$H$4=\"Nederlands\",D651,IF(EMRIC!$H$4=\"Français\",E651)))","v":0}]
[651,null,null,null,null,{"$f":"IF(EMRIC!$H$4=\"Deutsch\",C652,IF(EMRIC!$H$4=\"Nederlands\",D652,IF(EMRIC!$H$4=\"Français\",E652)))","v":0}]
[652,null,null,null,null,{"$f":"IF(EMRIC!$H$4=\"Deutsch\",C653,IF(EMRIC!$H$4=\"Nederlands\",D653,IF(EMRIC!$H$4=\"Français\",E653)))","v":0}]
[653,null,null,null,null,{"$f":"IF(EMRIC!$H$4=\"Deutsch\",C654,IF(EMRIC!$H$4=\"Nederlands\",D654,IF(EMRIC!$H$4=\"Français\",E654)))","v":0}]
[654,null,null,null,null,{"$f":"IF(EMRIC!$H$4=\"Deutsch\",C655,IF(EMRIC!$H$4=\"Nederlands\",D655,IF(EMRIC!$H$4=\"Français\",E655)))","v":0}]
[655,null,null,null,null,{"$f":"IF(EMRIC!$H$4=\"Deutsch\",C656,IF(EMRIC!$H$4=\"Nederlands\",D656,IF(EMRIC!$H$4=\"Français\",E656)))","v":0}]
[656,null,null,null,null,{"$f":"IF(EMRIC!$H$4=\"Deutsch\",C657,IF(EMRIC!$H$4=\"Nederlands\",D657,IF(EMRIC!$H$4=\"Français\",E657)))","v":0}]
[657,null,null,null,null,{"$f":"IF(EMRIC!$H$4=\"Deutsch\",C658,IF(EMRIC!$H$4=\"Nederlands\",D658,IF(EMRIC!$H$4=\"Français\",E658)))","v":0}]
[658,null,null,null,null,{"$f":"IF(EMRIC!$H$4=\"Deutsch\",C659,IF(EMRIC!$H$4=\"Nederlands\",D659,IF(EMRIC!$H$4=\"Français\",E659)))","v":0}]
[659,null,null,null,null,{"$f":"IF(EMRIC!$H$4=\"Deutsch\",C660,IF(EMRIC!$H$4=\"Nederlands\",D660,IF(EMRIC!$H$4=\"Français\",E660)))","v":0}]
[660,null,null,null,null,{"$f":"IF(EMRIC!$H$4=\"Deutsch\",C661,IF(EMRIC!$H$4=\"Nederlands\",D661,IF(EMRIC!$H$4=\"Français\",E661)))","v":0}]
[661,null,null,null,null,{"$f":"IF(EMRIC!$H$4=\"Deutsch\",C662,IF(EMRIC!$H$4=\"Nederlands\",D662,IF(EMRIC!$H$4=\"Français\",E662)))","v":0}]
[662,null,null,null,null,{"$f":"IF(EMRIC!$H$4=\"Deutsch\",C663,IF(EMRIC!$H$4=\"Nederlands\",D663,IF(EMRIC!$H$4=\"Français\",E663)))","v":0}]
[663,null,null,null,null,{"$f":"IF(EMRIC!$H$4=\"Deutsch\",C664,IF(EMRIC!$H$4=\"Nederlands\",D664,IF(EMRIC!$H$4=\"Français\",E664)))","v":0}]
[664,null,null,null,null,{"$f":"IF(EMRIC!$H$4=\"Deutsch\",C665,IF(EMRIC!$H$4=\"Nederlands\",D665,IF(EMRIC!$H$4=\"Français\",E665)))","v":0}]
[665,null,null,null,null,{"$f":"IF(EMRIC!$H$4=\"Deutsch\",C666,IF(EMRIC!$H$4=\"Nederlands\",D666,IF(EMRIC!$H$4=\"Français\",E666)))","v":0}]
[666,null,null,null,null,{"$f":"IF(EMRIC!$H$4=\"Deutsch\",C667,IF(EMRIC!$H$4=\"Nederlands\",D667,IF(EMRIC!$H$4=\"Français\",E667)))","v":0}]
[667,null,null,null,null,{"$f":"IF(EMRIC!$H$4=\"Deutsch\",C668,IF(EMRIC!$H$4=\"Nederlands\",D668,IF(EMRIC!$H$4=\"Français\",E668)))","v":0}]
[668,null,null,null,null,{"$f":"IF(EMRIC!$H$4=\"Deutsch\",C669,IF(EMRIC!$H$4=\"Nederlands\",D669,IF(EMRIC!$H$4=\"Français\",E669)))","v":0}]
[669,null,null,null,null,{"$f":"IF(EMRIC!$H$4=\"Deutsch\",C670,IF(EMRIC!$H$4=\"Nederlands\",D670,IF(EMRIC!$H$4=\"Français\",E670)))","v":0}]
[670,null,null,null,null,{"$f":"IF(EMRIC!$H$4=\"Deutsch\",C671,IF(EMRIC!$H$4=\"Nederlands\",D671,IF(EMRIC!$H$4=\"Français\",E671)))","v":0}]
[671,null,null,null,null,{"$f":"IF(EMRIC!$H$4=\"Deutsch\",C672,IF(EMRIC!$H$4=\"Nederlands\",D672,IF(EMRIC!$H$4=\"Français\",E672)))","v":0}]
[672,null,null,null,null,{"$f":"IF(EMRIC!$H$4=\"Deutsch\",C673,IF(EMRIC!$H$4=\"Nederlands\",D673,IF(EMRIC!$H$4=\"Français\",E673)))","v":0}]
[673,null,null,null,null,{"$f":"IF(EMRIC!$H$4=\"Deutsch\",C674,IF(EMRIC!$H$4=\"Nederlands\",D674,IF(EMRIC!$H$4=\"Français\",E674)))","v":0}]
[674,null,null,null,null,{"$f":"IF(EMRIC!$H$4=\"Deutsch\",C675,IF(EMRIC!$H$4=\"Nederlands\",D675,IF(EMRIC!$H$4=\"Français\",E675)))","v":0}]
[675,null,null,null,null,{"$f":"IF(EMRIC!$H$4=\"Deutsch\",C676,IF(EMRIC!$H$4=\"Nederlands\",D676,IF(EMRIC!$H$4=\"Français\",E676)))","v":0}]
[676,null,null,null,null,{"$f":"IF(EMRIC!$H$4=\"Deutsch\",C677,IF(EMRIC!$H$4=\"Nederlands\",D677,IF(EMRIC!$H$4=\"Français\",E677)))","v":0}]
[677,null,null,null,null,{"$f":"IF(EMRIC!$H$4=\"Deutsch\",C678,IF(EMRIC!$H$4=\"Nederlands\",D678,IF(EMRIC!$H$4=\"Français\",E678)))","v":0}]
[678,null,null,null,null,{"$f":"IF(EMRIC!$H$4=\"Deutsch\",C679,IF(EMRIC!$H$4=\"Nederlands\",D679,IF(EMRIC!$H$4=\"Français\",E679)))","v":0}]
[679,null,null,null,null,{"$f":"IF(EMRIC!$H$4=\"Deutsch\",C680,IF(EMRIC!$H$4=\"Nederlands\",D680,IF(EMRIC!$H$4=\"Français\",E680)))","v":0}]
[680,null,null,null,null,{"$f":"IF(EMRIC!$H$4=\"Deutsch\",C681,IF(EMRIC!$H$4=\"Nederlands\",D681,IF(EMRIC!$H$4=\"Français\",E681)))","v":0}]
[681,null,null,null,null,{"$f":"IF(EMRIC!$H$4=\"Deutsch\",C682,IF(EMRIC!$H$4=\"Nederlands\",D682,IF(EMRIC!$H$4=\"Français\",E682)))","v":0}]
[682,null,null,null,null,{"$f":"IF(EMRIC!$H$4=\"Deutsch\",C683,IF(EMRIC!$H$4=\"Nederlands\",D683,IF(EMRIC!$H$4=\"Français\",E683)))","v":0}]
[683,null,null,null,null,{"$f":"IF(EMRIC!$H$4=\"Deutsch\",C684,IF(EMRIC!$H$4=\"Nederlands\",D684,IF(EMRIC!$H$4=\"Français\",E684)))","v":0}]
[684,null,null,null,null,{"$f":"IF(EMRIC!$H$4=\"Deutsch\",C685,IF(EMRIC!$H$4=\"Nederlands\",D685,IF(EMRIC!$H$4=\"Français\",E685)))","v":0}]
[685,null,null,null,null,{"$f":"IF(EMRIC!$H$4=\"Deutsch\",C686,IF(EMRIC!$H$4=\"Nederlands\",D686,IF(EMRIC!$H$4=\"Français\",E686)))","v":0}]
[686,null,null,null,null,{"$f":"IF(EMRIC!$H$4=\"Deutsch\",C687,IF(EMRIC!$H$4=\"Nederlands\",D687,IF(EMRIC!$H$4=\"Français\",E687)))","v":0}]
[687,null,null,null,null,{"$f":"IF(EMRIC!$H$4=\"Deutsch\",C688,IF(EMRIC!$H$4=\"Nederlands\",D688,IF(EMRIC!$H$4=\"Français\",E688)))","v":0}]
[688,null,null,null,null,{"$f":"IF(EMRIC!$H$4=\"Deutsch\",C689,IF(EMRIC!$H$4=\"Nederlands\",D689,IF(EMRIC!$H$4=\"Français\",E689)))","v":0}]
[689,null,null,null,null,{"$f":"IF(EMRIC!$H$4=\"Deutsch\",C690,IF(EMRIC!$H$4=\"Nederlands\",D690,IF(EMRIC!$H$4=\"Français\",E690)))","v":0}]
[690,null,null,null,null,{"$f":"IF(EMRIC!$H$4=\"Deutsch\",C691,IF(EMRIC!$H$4=\"Nederlands\",D691,IF(EMRIC!$H$4=\"Français\",E691)))","v":0}]
[691,null,null,null,null,{"$f":"IF(EMRIC!$H$4=\"Deutsch\",C692,IF(EMRIC!$H$4=\"Nederlands\",D692,IF(EMRIC!$H$4=\"Français\",E692)))","v":0}]
[692,null,null,null,null,{"$f":"IF(EMRIC!$H$4=\"Deutsch\",C693,IF(EMRIC!$H$4=\"Nederlands\",D693,IF(EMRIC!$H$4=\"Français\",E693)))","v":0}]
[693,null,null,null,null,{"$f":"IF(EMRIC!$H$4=\"Deutsch\",C694,IF(EMRIC!$H$4=\"Nederlands\",D694,IF(EMRIC!$H$4=\"Français\",E694)))","v":0}]
[694,null,null,null,null,{"$f":"IF(EMRIC!$H$4=\"Deutsch\",C695,IF(EMRIC!$H$4=\"Nederlands\",D695,IF(EMRIC!$H$4=\"Français\",E695)))","v":0}]
[695,null,null,null,null,{"$f":"IF(EMRIC!$H$4=\"Deutsch\",C696,IF(EMRIC!$H$4=\"Nederlands\",D696,IF(EMRIC!$H$4=\"Français\",E696)))","v":0}]
[696,null,null,null,null,{"$f":"IF(EMRIC!$H$4=\"Deutsch\",C697,IF(EMRIC!$H$4=\"Nederlands\",D697,IF(EMRIC!$H$4=\"Français\",E697)))","v":0}]
[697,null,null,null,null,{"$f":"IF(EMRIC!$H$4=\"Deutsch\",C698,IF(EMRIC!$H$4=\"Nederlands\",D698,IF(EMRIC!$H$4=\"Français\",E698)))","v":0}]
[698,null,null,null,null,{"$f":"IF(EMRIC!$H$4=\"Deutsch\",C699,IF(EMRIC!$H$4=\"Nederlands\",D699,IF(EMRIC!$H$4=\"Français\",E699)))","v":0}]
[699,null,null,null,null,{"$f":"IF(EMRIC!$H$4=\"Deutsch\",C700,IF(EMRIC!$H$4=\"Nederlands\",D700,IF(EMRIC!$H$4=\"Français\",E700)))","v":0}]
[700,null,null,null,null,{"$f":"IF(EMRIC!$H$4=\"Deutsch\",C701,IF(EMRIC!$H$4=\"Nederlands\",D701,IF(EMRIC!$H$4=\"Français\",E701)))","v":0}]
[701,null,null,null,null,{"$f":"IF(EMRIC!$H$4=\"Deutsch\",C702,IF(EMRIC!$H$4=\"Nederlands\",D702,IF(EMRIC!$H$4=\"Français\",E702)))","v":0}]
[702,null,null,null,null,{"$f":"IF(EMRIC!$H$4=\"Deutsch\",C703,IF(EMRIC!$H$4=\"Nederlands\",D703,IF(EMRIC!$H$4=\"Français\",E703)))","v":0}]
[703,null,null,null,null,{"$f":"IF(EMRIC!$H$4=\"Deutsch\",C704,IF(EMRIC!$H$4=\"Nederlands\",D704,IF(EMRIC!$H$4=\"Français\",E704)))","v":0}]
[704,null,null,null,null,{"$f":"IF(EMRIC!$H$4=\"Deutsch\",C705,IF(EMRIC!$H$4=\"Nederlands\",D705,IF(EMRIC!$H$4=\"Français\",E705)))","v":0}]
[705,null,null,null,null,{"$f":"IF(EMRIC!$H$4=\"Deutsch\",C706,IF(EMRIC!$H$4=\"Nederlands\",D706,IF(EMRIC!$H$4=\"Français\",E706)))","v":0}]
[706,null,null,null,null,{"$f":"IF(EMRIC!$H$4=\"Deutsch\",C707,IF(EMRIC!$H$4=\"Nederlands\",D707,IF(EMRIC!$H$4=\"Français\",E707)))","v":0}]
[707,null,null,null,null,{"$f":"IF(EMRIC!$H$4=\"Deutsch\",C708,IF(EMRIC!$H$4=\"Nederlands\",D708,IF(EMRIC!$H$4=\"Français\",E708)))","v":0}]
[708,null,null,null,null,{"$f":"IF(EMRIC!$H$4=\"Deutsch\",C709,IF(EMRIC!$H$4=\"Nederlands\",D709,IF(EMRIC!$H$4=\"Français\",E709)))","v":0}]
[709,null,null,null,null,{"$f":"IF(EMRIC!$H$4=\"Deutsch\",C710,IF(EMRIC!$H$4=\"Nederlands\",D710,IF(EMRIC!$H$4=\"Français\",E710)))","v":0}]
[710,null,null,null,null,{"$f":"IF(EMRIC!$H$4=\"Deutsch\",C711,IF(EMRIC!$H$4=\"Nederlands\",D711,IF(EMRIC!$H$4=\"Français\",E711)))","v":0}]
[711,null,null,null,null,{"$f":"IF(EMRIC!$H$4=\"Deutsch\",C712,IF(EMRIC!$H$4=\"Nederlands\",D712,IF(EMRIC!$H$4=\"Français\",E712)))","v":0}]
[712,null,null,null,null,{"$f":"IF(EMRIC!$H$4=\"Deutsch\",C713,IF(EMRIC!$H$4=\"Nederlands\",D713,IF(EMRIC!$H$4=\"Français\",E713)))","v":0}]
[713,null,null,null,null,{"$f":"IF(EMRIC!$H$4=\"Deutsch\",C714,IF(EMRIC!$H$4=\"Nederlands\",D714,IF(EMRIC!$H$4=\"Français\",E714)))","v":0}]
[714,null,null,null,null,{"$f":"IF(EMRIC!$H$4=\"Deutsch\",C715,IF(EMRIC!$H$4=\"Nederlands\",D715,IF(EMRIC!$H$4=\"Français\",E715)))","v":0}]
[715,null,null,null,null,{"$f":"IF(EMRIC!$H$4=\"Deutsch\",C716,IF(EMRIC!$H$4=\"Nederlands\",D716,IF(EMRIC!$H$4=\"Français\",E716)))","v":0}]
[716,null,null,null,null,{"$f":"IF(EMRIC!$H$4=\"Deutsch\",C717,IF(EMRIC!$H$4=\"Nederlands\",D717,IF(EMRIC!$H$4=\"Français\",E717)))","v":0}]
[717,null,null,null,null,{"$f":"IF(EMRIC!$H$4=\"Deutsch\",C718,IF(EMRIC!$H$4=\"Nederlands\",D718,IF(EMRIC!$H$4=\"Français\",E718)))","v":0}]
[718,null,null,null,null,{"$f":"IF(EMRIC!$H$4=\"Deutsch\",C719,IF(EMRIC!$H$4=\"Nederlands\",D719,IF(EMRIC!$H$4=\"Français\",E719)))","v":0}]
[719,null,null,null,null,{"$f":"IF(EMRIC!$H$4=\"Deutsch\",C720,IF(EMRIC!$H$4=\"Nederlands\",D720,IF(EMRIC!$H$4=\"Français\",E720)))","v":0}]
[720,null,null,null,null,{"$f":"IF(EMRIC!$H$4=\"Deutsch\",C721,IF(EMRIC!$H$4=\"Nederlands\",D721,IF(EMRIC!$H$4=\"Français\",E721)))","v":0}]
[721,null,null,null,null,{"$f":"IF(EMRIC!$H$4=\"Deutsch\",C722,IF(EMRIC!$H$4=\"Nederlands\",D722,IF(EMRIC!$H$4=\"Français\",E722)))","v":0}]
[722,null,null,null,null,{"$f":"IF(EMRIC!$H$4=\"Deutsch\",C723,IF(EMRIC!$H$4=\"Nederlands\",D723,IF(EMRIC!$H$4=\"Français\",E723)))","v":0}]
[723,null,null,null,null,{"$f":"IF(EMRIC!$H$4=\"Deutsch\",C724,IF(EMRIC!$H$4=\"Nederlands\",D724,IF(EMRIC!$H$4=\"Français\",E724)))","v":0}]
[724,null,null,null,null,{"$f":"IF(EMRIC!$H$4=\"Deutsch\",C725,IF(EMRIC!$H$4=\"Nederlands\",D725,IF(EMRIC!$H$4=\"Français\",E725)))","v":0}]
[725,null,null,null,null,{"$f":"IF(EMRIC!$H$4=\"Deutsch\",C726,IF(EMRIC!$H$4=\"Nederlands\",D726,IF(EMRIC!$H$4=\"Français\",E726)))","v":0}]
[726,null,null,null,null,{"$f":"IF(EMRIC!$H$4=\"Deutsch\",C727,IF(EMRIC!$H$4=\"Nederlands\",D727,IF(EMRIC!$H$4=\"Français\",E727)))","v":0}]
[727,null,null,null,null,{"$f":"IF(EMRIC!$H$4=\"Deutsch\",C728,IF(EMRIC!$H$4=\"Nederlands\",D728,IF(EMRIC!$H$4=\"Français\",E728)))","v":0}]
[728,null,null,null,null,{"$f":"IF(EMRIC!$H$4=\"Deutsch\",C729,IF(EMRIC!$H$4=\"Nederlands\",D729,IF(EMRIC!$H$4=\"Français\",E729)))","v":0}]
[729,null,null,null,null,{"$f":"IF(EMRIC!$H$4=\"Deutsch\",C730,IF(EMRIC!$H$4=\"Nederlands\",D730,IF(EMRIC!$H$4=\"Français\",E730)))","v":0}]
[730,null,null,null,null,{"$f":"IF(EMRIC!$H$4=\"Deutsch\",C731,IF(EMRIC!$H$4=\"Nederlands\",D731,IF(EMRIC!$H$4=\"Français\",E731)))","v":0}]
[731,null,null,null,null,{"$f":"IF(EMRIC!$H$4=\"Deutsch\",C732,IF(EMRIC!$H$4=\"Nederlands\",D732,IF(EMRIC!$H$4=\"Français\",E732)))","v":0}]
[732,null,null,null,null,{"$f":"IF(EMRIC!$H$4=\"Deutsch\",C733,IF(EMRIC!$H$4=\"Nederlands\",D733,IF(EMRIC!$H$4=\"Français\",E733)))","v":0}]
[733,null,null,null,null,{"$f":"IF(EMRIC!$H$4=\"Deutsch\",C734,IF(EMRIC!$H$4=\"Nederlands\",D734,IF(EMRIC!$H$4=\"Français\",E734)))","v":0}]
[734,null,null,null,null,{"$f":"IF(EMRIC!$H$4=\"Deutsch\",C735,IF(EMRIC!$H$4=\"Nederlands\",D735,IF(EMRIC!$H$4=\"Français\",E735)))","v":0}]
[735,null,null,null,null,{"$f":"IF(EMRIC!$H$4=\"Deutsch\",C736,IF(EMRIC!$H$4=\"Nederlands\",D736,IF(EMRIC!$H$4=\"Français\",E736)))","v":0}]
[736,null,null,null,null,{"$f":"IF(EMRIC!$H$4=\"Deutsch\",C737,IF(EMRIC!$H$4=\"Nederlands\",D737,IF(EMRIC!$H$4=\"Français\",E737)))","v":0}]
[737,null,null,null,null,{"$f":"IF(EMRIC!$H$4=\"Deutsch\",C738,IF(EMRIC!$H$4=\"Nederlands\",D738,IF(EMRIC!$H$4=\"Français\",E738)))","v":0}]
[738,null,null,null,null,{"$f":"IF(EMRIC!$H$4=\"Deutsch\",C739,IF(EMRIC!$H$4=\"Nederlands\",D739,IF(EMRIC!$H$4=\"Français\",E739)))","v":0}]
[739,null,null,null,null,{"$f":"IF(EMRIC!$H$4=\"Deutsch\",C740,IF(EMRIC!$H$4=\"Nederlands\",D740,IF(EMRIC!$H$4=\"Français\",E740)))","v":0}]
[740,null,null,null,null,{"$f":"IF(EMRIC!$H$4=\"Deutsch\",C741,IF(EMRIC!$H$4=\"Nederlands\",D741,IF(EMRIC!$H$4=\"Français\",E741)))","v":0}]
[741,null,null,null,null,{"$f":"IF(EMRIC!$H$4=\"Deutsch\",C742,IF(EMRIC!$H$4=\"Nederlands\",D742,IF(EMRIC!$H$4=\"Français\",E742)))","v":0}]
[742,null,null,null,null,{"$f":"IF(EMRIC!$H$4=\"Deutsch\",C743,IF(EMRIC!$H$4=\"Nederlands\",D743,IF(EMRIC!$H$4=\"Français\",E743)))","v":0}]
[743,null,null,null,null,{"$f":"IF(EMRIC!$H$4=\"Deutsch\",C744,IF(EMRIC!$H$4=\"Nederlands\",D744,IF(EMRIC!$H$4=\"Français\",E744)))","v":0}]
[744,null,null,null,null,{"$f":"IF(EMRIC!$H$4=\"Deutsch\",C745,IF(EMRIC!$H$4=\"Nederlands\",D745,IF(EMRIC!$H$4=\"Français\",E745)))","v":0}]
[745,null,null,null,null,{"$f":"IF(EMRIC!$H$4=\"Deutsch\",C746,IF(EMRIC!$H$4=\"Nederlands\",D746,IF(EMRIC!$H$4=\"Français\",E746)))","v":0}]
[746,null,null,null,null,{"$f":"IF(EMRIC!$H$4=\"Deutsch\",C747,IF(EMRIC!$H$4=\"Nederlands\",D747,IF(EMRIC!$H$4=\"Français\",E747)))","v":0}]
[747,null,null,null,null,{"$f":"IF(EMRIC!$H$4=\"Deutsch\",C748,IF(EMRIC!$H$4=\"Nederlands\",D748,IF(EMRIC!$H$4=\"Français\",E748)))","v":0}]
[748,null,null,null,null,{"$f":"IF(EMRIC!$H$4=\"Deutsch\",C749,IF(EMRIC!$H$4=\"Nederlands\",D749,IF(EMRIC!$H$4=\"Français\",E749)))","v":0}]
[749,null,null,null,null,{"$f":"IF(EMRIC!$H$4=\"Deutsch\",C750,IF(EMRIC!$H$4=\"Nederlands\",D750,IF(EMRIC!$H$4=\"Français\",E750)))","v":0}]
[750,null,null,null,null,{"$f":"IF(EMRIC!$H$4=\"Deutsch\",C751,IF(EMRIC!$H$4=\"Nederlands\",D751,IF(EMRIC!$H$4=\"Français\",E751)))","v":0}]
[751,null,null,null,null,{"$f":"IF(EMRIC!$H$4=\"Deutsch\",C752,IF(EMRIC!$H$4=\"Nederlands\",D752,IF(EMRIC!$H$4=\"Français\",E752)))","v":0}]
[752,null,null,null,null,{"$f":"IF(EMRIC!$H$4=\"Deutsch\",C753,IF(EMRIC!$H$4=\"Nederlands\",D753,IF(EMRIC!$H$4=\"Français\",E753)))","v":0}]
[753,null,null,null,null,{"$f":"IF(EMRIC!$H$4=\"Deutsch\",C754,IF(EMRIC!$H$4=\"Nederlands\",D754,IF(EMRIC!$H$4=\"Français\",E754)))","v":0}]
[754,null,null,null,null,{"$f":"IF(EMRIC!$H$4=\"Deutsch\",C755,IF(EMRIC!$H$4=\"Nederlands\",D755,IF(EMRIC!$H$4=\"Français\",E755)))","v":0}]
[755,null,null,null,null,{"$f":"IF(EMRIC!$H$4=\"Deutsch\",C756,IF(EMRIC!$H$4=\"Nederlands\",D756,IF(EMRIC!$H$4=\"Français\",E756)))","v":0}]
[756,null,null,null,null,{"$f":"IF(EMRIC!$H$4=\"Deutsch\",C757,IF(EMRIC!$H$4=\"Nederlands\",D757,IF(EMRIC!$H$4=\"Français\",E757)))","v":0}]
[757,null,null,null,null,{"$f":"IF(EMRIC!$H$4=\"Deutsch\",C758,IF(EMRIC!$H$4=\"Nederlands\",D758,IF(EMRIC!$H$4=\"Français\",E758)))","v":0}]
[758,null,null,null,null,{"$f":"IF(EMRIC!$H$4=\"Deutsch\",C759,IF(EMRIC!$H$4=\"Nederlands\",D759,IF(EMRIC!$H$4=\"Français\",E759)))","v":0}]
[759,null,null,null,null,{"$f":"IF(EMRIC!$H$4=\"Deutsch\",C760,IF(EMRIC!$H$4=\"Nederlands\",D760,IF(EMRIC!$H$4=\"Français\",E760)))","v":0}]
[760,null,null,null,null,{"$f":"IF(EMRIC!$H$4=\"Deutsch\",C761,IF(EMRIC!$H$4=\"Nederlands\",D761,IF(EMRIC!$H$4=\"Français\",E761)))","v":0}]
[761,null,null,null,null,{"$f":"IF(EMRIC!$H$4=\"Deutsch\",C762,IF(EMRIC!$H$4=\"Nederlands\",D762,IF(EMRIC!$H$4=\"Français\",E762)))","v":0}]
[762,null,null,null,null,{"$f":"IF(EMRIC!$H$4=\"Deutsch\",C763,IF(EMRIC!$H$4=\"Nederlands\",D763,IF(EMRIC!$H$4=\"Français\",E763)))","v":0}]
[763,null,null,null,null,{"$f":"IF(EMRIC!$H$4=\"Deutsch\",C764,IF(EMRIC!$H$4=\"Nederlands\",D764,IF(EMRIC!$H$4=\"Français\",E764)))","v":0}]
[764,null,null,null,null,{"$f":"IF(EMRIC!$H$4=\"Deutsch\",C765,IF(EMRIC!$H$4=\"Nederlands\",D765,IF(EMRIC!$H$4=\"Français\",E765)))","v":0}]
[765,null,null,null,null,{"$f":"IF(EMRIC!$H$4=\"Deutsch\",C766,IF(EMRIC!$H$4=\"Nederlands\",D766,IF(EMRIC!$H$4=\"Français\",E766)))","v":0}]
[766,null,null,null,null,{"$f":"IF(EMRIC!$H$4=\"Deutsch\",C767,IF(EMRIC!$H$4=\"Nederlands\",D767,IF(EMRIC!$H$4=\"Français\",E767)))","v":0}]
[767,null,null,null,null,{"$f":"IF(EMRIC!$H$4=\"Deutsch\",C768,IF(EMRIC!$H$4=\"Nederlands\",D768,IF(EMRIC!$H$4=\"Français\",E768)))","v":0}]
[768,null,null,null,null,{"$f":"IF(EMRIC!$H$4=\"Deutsch\",C769,IF(EMRIC!$H$4=\"Nederlands\",D769,IF(EMRIC!$H$4=\"Français\",E769)))","v":0}]
[769,null,null,null,null,{"$f":"IF(EMRIC!$H$4=\"Deutsch\",C770,IF(EMRIC!$H$4=\"Nederlands\",D770,IF(EMRIC!$H$4=\"Français\",E770)))","v":0}]
[770,null,null,null,null,{"$f":"IF(EMRIC!$H$4=\"Deutsch\",C771,IF(EMRIC!$H$4=\"Nederlands\",D771,IF(EMRIC!$H$4=\"Français\",E771)))","v":0}]
[771,null,null,null,null,{"$f":"IF(EMRIC!$H$4=\"Deutsch\",C772,IF(EMRIC!$H$4=\"Nederlands\",D772,IF(EMRIC!$H$4=\"Français\",E772)))","v":0}]
[772,null,null,null,null,{"$f":"IF(EMRIC!$H$4=\"Deutsch\",C773,IF(EMRIC!$H$4=\"Nederlands\",D773,IF(EMRIC!$H$4=\"Français\",E773)))","v":0}]
[773,null,null,null,null,{"$f":"IF(EMRIC!$H$4=\"Deutsch\",C774,IF(EMRIC!$H$4=\"Nederlands\",D774,IF(EMRIC!$H$4=\"Français\",E774)))","v":0}]
[774,null,null,null,null,{"$f":"IF(EMRIC!$H$4=\"Deutsch\",C775,IF(EMRIC!$H$4=\"Nederlands\",D775,IF(EMRIC!$H$4=\"Français\",E775)))","v":0}]
[775,null,null,null,null,{"$f":"IF(EMRIC!$H$4=\"Deutsch\",C776,IF(EMRIC!$H$4=\"Nederlands\",D776,IF(EMRIC!$H$4=\"Français\",E776)))","v":0}]
[776,null,null,null,null,{"$f":"IF(EMRIC!$H$4=\"Deutsch\",C777,IF(EMRIC!$H$4=\"Nederlands\",D777,IF(EMRIC!$H$4=\"Français\",E777)))","v":0}]
[777,null,null,null,null,{"$f":"IF(EMRIC!$H$4=\"Deutsch\",C778,IF(EMRIC!$H$4=\"Nederlands\",D778,IF(EMRIC!$H$4=\"Français\",E778)))","v":0}]
[778,null,null,null,null,{"$f":"IF(EMRIC!$H$4=\"Deutsch\",C779,IF(EMRIC!$H$4=\"Nederlands\",D779,IF(EMRIC!$H$4=\"Français\",E779)))","v":0}]
[779,null,null,null,null,{"$f":"IF(EMRIC!$H$4=\"Deutsch\",C780,IF(EMRIC!$H$4=\"Nederlands\",D780,IF(EMRIC!$H$4=\"Français\",E780)))","v":0}]
[780,null,null,null,null,{"$f":"IF(EMRIC!$H$4=\"Deutsch\",C781,IF(EMRIC!$H$4=\"Nederlands\",D781,IF(EMRIC!$H$4=\"Français\",E781)))","v":0}]
[781,null,null,null,null,{"$f":"IF(EMRIC!$H$4=\"Deutsch\",C782,IF(EMRIC!$H$4=\"Nederlands\",D782,IF(EMRIC!$H$4=\"Français\",E782)))","v":0}]
[782,null,null,null,null,{"$f":"IF(EMRIC!$H$4=\"Deutsch\",C783,IF(EMRIC!$H$4=\"Nederlands\",D783,IF(EMRIC!$H$4=\"Français\",E783)))","v":0}]
[783,null,null,null,null,{"$f":"IF(EMRIC!$H$4=\"Deutsch\",C784,IF(EMRIC!$H$4=\"Nederlands\",D784,IF(EMRIC!$H$4=\"Français\",E784)))","v":0}]
[784,null,null,null,null,{"$f":"IF(EMRIC!$H$4=\"Deutsch\",C785,IF(EMRIC!$H$4=\"Nederlands\",D785,IF(EMRIC!$H$4=\"Français\",E785)))","v":0}]
[785,null,null,null,null,{"$f":"IF(EMRIC!$H$4=\"Deutsch\",C786,IF(EMRIC!$H$4=\"Nederlands\",D786,IF(EMRIC!$H$4=\"Français\",E786)))","v":0}]
[786,null,null,null,null,{"$f":"IF(EMRIC!$H$4=\"Deutsch\",C787,IF(EMRIC!$H$4=\"Nederlands\",D787,IF(EMRIC!$H$4=\"Français\",E787)))","v":0}]
[787,null,null,null,null,{"$f":"IF(EMRIC!$H$4=\"Deutsch\",C788,IF(EMRIC!$H$4=\"Nederlands\",D788,IF(EMRIC!$H$4=\"Français\",E788)))","v":0}]
[788,null,null,null,null,{"$f":"IF(EMRIC!$H$4=\"Deutsch\",C789,IF(EMRIC!$H$4=\"Nederlands\",D789,IF(EMRIC!$H$4=\"Français\",E789)))","v":0}]
[789,null,null,null,null,{"$f":"IF(EMRIC!$H$4=\"Deutsch\",C790,IF(EMRIC!$H$4=\"Nederlands\",D790,IF(EMRIC!$H$4=\"Français\",E790)))","v":0}]
[790,null,null,null,null,{"$f":"IF(EMRIC!$H$4=\"Deutsch\",C791,IF(EMRIC!$H$4=\"Nederlands\",D791,IF(EMRIC!$H$4=\"Français\",E791)))","v":0}]
[791,null,null,null,null,{"$f":"IF(EMRIC!$H$4=\"Deutsch\",C792,IF(EMRIC!$H$4=\"Nederlands\",D792,IF(EMRIC!$H$4=\"Français\",E792)))","v":0}]
[792,null,null,null,null,{"$f":"IF(EMRIC!$H$4=\"Deutsch\",C793,IF(EMRIC!$H$4=\"Nederlands\",D793,IF(EMRIC!$H$4=\"Français\",E793)))","v":0}]
[793,null,null,null,null,{"$f":"IF(EMRIC!$H$4=\"Deutsch\",C794,IF(EMRIC!$H$4=\"Nederlands\",D794,IF(EMRIC!$H$4=\"Français\",E794)))","v":0}]
[794,null,null,null,null,{"$f":"IF(EMRIC!$H$4=\"Deutsch\",C795,IF(EMRIC!$H$4=\"Nederlands\",D795,IF(EMRIC!$H$4=\"Français\",E795)))","v":0}]
[795,null,null,null,null,{"$f":"IF(EMRIC!$H$4=\"Deutsch\",C796,IF(EMRIC!$H$4=\"Nederlands\",D796,IF(EMRIC!$H$4=\"Français\",E796)))","v":0}]
[796,null,null,null,null,{"$f":"IF(EMRIC!$H$4=\"Deutsch\",C797,IF(EMRIC!$H$4=\"Nederlands\",D797,IF(EMRIC!$H$4=\"Français\",E797)))","v":0}]
[797,null,null,null,null,{"$f":"IF(EMRIC!$H$4=\"Deutsch\",C798,IF(EMRIC!$H$4=\"Nederlands\",D798,IF(EMRIC!$H$4=\"Français\",E798)))","v":0}]
[798,null,null,null,null,{"$f":"IF(EMRIC!$H$4=\"Deutsch\",C799,IF(EMRIC!$H$4=\"Nederlands\",D799,IF(EMRIC!$H$4=\"Français\",E799)))","v":0}]
[799,null,null,null,null,{"$f":"IF(EMRIC!$H$4=\"Deutsch\",C800,IF(EMRIC!$H$4=\"Nederlands\",D800,IF(EMRIC!$H$4=\"Français\",E800)))","v":0}]
[800,null,null,null,null,{"$f":"IF(EMRIC!$H$4=\"Deutsch\",C801,IF(EMRIC!$H$4=\"Nederlands\",D801,IF(EMRIC!$H$4=\"Français\",E801)))","v":0}]
[801,null,null,null,null,{"$f":"IF(EMRIC!$H$4=\"Deutsch\",C802,IF(EMRIC!$H$4=\"Nederlands\",D802,IF(EMRIC!$H$4=\"Français\",E802)))","v":0}]
[802,null,null,null,null,{"$f":"IF(EMRIC!$H$4=\"Deutsch\",C803,IF(EMRIC!$H$4=\"Nederlands\",D803,IF(EMRIC!$H$4=\"Français\",E803)))","v":0}]
[803,null,null,null,null,{"$f":"IF(EMRIC!$H$4=\"Deutsch\",C804,IF(EMRIC!$H$4=\"Nederlands\",D804,IF(EMRIC!$H$4=\"Français\",E804)))","v":0}]
[804,null,null,null,null,{"$f":"IF(EMRIC!$H$4=\"Deutsch\",C805,IF(EMRIC!$H$4=\"Nederlands\",D805,IF(EMRIC!$H$4=\"Français\",E805)))","v":0}]
[805,null,null,null,null,{"$f":"IF(EMRIC!$H$4=\"Deutsch\",C806,IF(EMRIC!$H$4=\"Nederlands\",D806,IF(EMRIC!$H$4=\"Français\",E806)))","v":0}]
[806,null,null,null,null,{"$f":"IF(EMRIC!$H$4=\"Deutsch\",C807,IF(EMRIC!$H$4=\"Nederlands\",D807,IF(EMRIC!$H$4=\"Français\",E807)))","v":0}]
[807,null,null,null,null,{"$f":"IF(EMRIC!$H$4=\"Deutsch\",C808,IF(EMRIC!$H$4=\"Nederlands\",D808,IF(EMRIC!$H$4=\"Français\",E808)))","v":0}]
[808,null,null,null,null,{"$f":"IF(EMRIC!$H$4=\"Deutsch\",C809,IF(EMRIC!$H$4=\"Nederlands\",D809,IF(EMRIC!$H$4=\"Français\",E809)))","v":0}]
[809,null,null,null,null,{"$f":"IF(EMRIC!$H$4=\"Deutsch\",C810,IF(EMRIC!$H$4=\"Nederlands\",D810,IF(EMRIC!$H$4=\"Français\",E810)))","v":0}]
[810,null,null,null,null,{"$f":"IF(EMRIC!$H$4=\"Deutsch\",C811,IF(EMRIC!$H$4=\"Nederlands\",D811,IF(EMRIC!$H$4=\"Français\",E811)))","v":0}]
[811,null,null,null,null,{"$f":"IF(EMRIC!$H$4=\"Deutsch\",C812,IF(EMRIC!$H$4=\"Nederlands\",D812,IF(EMRIC!$H$4=\"Français\",E812)))","v":0}]
[812,null,null,null,null,{"$f":"IF(EMRIC!$H$4=\"Deutsch\",C813,IF(EMRIC!$H$4=\"Nederlands\",D813,IF(EMRIC!$H$4=\"Français\",E813)))","v":0}]
[813,null,null,null,null,{"$f":"IF(EMRIC!$H$4=\"Deutsch\",C814,IF(EMRIC!$H$4=\"Nederlands\",D814,IF(EMRIC!$H$4=\"Français\",E814)))","v":0}]
[814,null,null,null,null,{"$f":"IF(EMRIC!$H$4=\"Deutsch\",C815,IF(EMRIC!$H$4=\"Nederlands\",D815,IF(EMRIC!$H$4=\"Français\",E815)))","v":0}]
[815,null,null,null,null,{"$f":"IF(EMRIC!$H$4=\"Deutsch\",C816,IF(EMRIC!$H$4=\"Nederlands\",D816,IF(EMRIC!$H$4=\"Français\",E816)))","v":0}]
[816,null,null,null,null,{"$f":"IF(EMRIC!$H$4=\"Deutsch\",C817,IF(EMRIC!$H$4=\"Nederlands\",D817,IF(EMRIC!$H$4=\"Français\",E817)))","v":0}]
[817,null,null,null,null,{"$f":"IF(EMRIC!$H$4=\"Deutsch\",C818,IF(EMRIC!$H$4=\"Nederlands\",D818,IF(EMRIC!$H$4=\"Français\",E818)))","v":0}]
[818,null,null,null,null,{"$f":"IF(EMRIC!$H$4=\"Deutsch\",C819,IF(EMRIC!$H$4=\"Nederlands\",D819,IF(EMRIC!$H$4=\"Français\",E819)))","v":0}]
[819,null,null,null,null,{"$f":"IF(EMRIC!$H$4=\"Deutsch\",C820,IF(EMRIC!$H$4=\"Nederlands\",D820,IF(EMRIC!$H$4=\"Français\",E820)))","v":0}]
[820,null,null,null,null,{"$f":"IF(EMRIC!$H$4=\"Deutsch\",C821,IF(EMRIC!$H$4=\"Nederlands\",D821,IF(EMRIC!$H$4=\"Français\",E821)))","v":0}]
[821,null,null,null,null,{"$f":"IF(EMRIC!$H$4=\"Deutsch\",C822,IF(EMRIC!$H$4=\"Nederlands\",D822,IF(EMRIC!$H$4=\"Français\",E822)))","v":0}]
[822,null,null,null,null,{"$f":"IF(EMRIC!$H$4=\"Deutsch\",C823,IF(EMRIC!$H$4=\"Nederlands\",D823,IF(EMRIC!$H$4=\"Français\",E823)))","v":0}]
[823,null,null,null,null,{"$f":"IF(EMRIC!$H$4=\"Deutsch\",C824,IF(EMRIC!$H$4=\"Nederlands\",D824,IF(EMRIC!$H$4=\"Français\",E824)))","v":0}]
[824,null,null,null,null,{"$f":"IF(EMRIC!$H$4=\"Deutsch\",C825,IF(EMRIC!$H$4=\"Nederlands\",D825,IF(EMRIC!$H$4=\"Français\",E825)))","v":0}]
[825,null,null,null,null,{"$f":"IF(EMRIC!$H$4=\"Deutsch\",C826,IF(EMRIC!$H$4=\"Nederlands\",D826,IF(EMRIC!$H$4=\"Français\",E826)))","v":0}]
[826,null,null,null,null,{"$f":"IF(EMRIC!$H$4=\"Deutsch\",C827,IF(EMRIC!$H$4=\"Nederlands\",D827,IF(EMRIC!$H$4=\"Français\",E827)))","v":0}]
[827,null,null,null,null,{"$f":"IF(EMRIC!$H$4=\"Deutsch\",C828,IF(EMRIC!$H$4=\"Nederlands\",D828,IF(EMRIC!$H$4=\"Français\",E828)))","v":0}]
[828,null,null,null,null,{"$f":"IF(EMRIC!$H$4=\"Deutsch\",C829,IF(EMRIC!$H$4=\"Nederlands\",D829,IF(EMRIC!$H$4=\"Français\",E829)))","v":0}]
[829,null,null,null,null,{"$f":"IF(EMRIC!$H$4=\"Deutsch\",C830,IF(EMRIC!$H$4=\"Nederlands\",D830,IF(EMRIC!$H$4=\"Français\",E830)))","v":0}]
[830,null,null,null,null,{"$f":"IF(EMRIC!$H$4=\"Deutsch\",C831,IF(EMRIC!$H$4=\"Nederlands\",D831,IF(EMRIC!$H$4=\"Français\",E831)))","v":0}]
[831,null,null,null,null,{"$f":"IF(EMRIC!$H$4=\"Deutsch\",C832,IF(EMRIC!$H$4=\"Nederlands\",D832,IF(EMRIC!$H$4=\"Français\",E832)))","v":0}]
[832,null,null,null,null,{"$f":"IF(EMRIC!$H$4=\"Deutsch\",C833,IF(EMRIC!$H$4=\"Nederlands\",D833,IF(EMRIC!$H$4=\"Français\",E833)))","v":0}]
[833,null,null,null,null,{"$f":"IF(EMRIC!$H$4=\"Deutsch\",C834,IF(EMRIC!$H$4=\"Nederlands\",D834,IF(EMRIC!$H$4=\"Français\",E834)))","v":0}]
[834,null,null,null,null,{"$f":"IF(EMRIC!$H$4=\"Deutsch\",C835,IF(EMRIC!$H$4=\"Nederlands\",D835,IF(EMRIC!$H$4=\"Français\",E835)))","v":0}]
[835,null,null,null,null,{"$f":"IF(EMRIC!$H$4=\"Deutsch\",C836,IF(EMRIC!$H$4=\"Nederlands\",D836,IF(EMRIC!$H$4=\"Français\",E836)))","v":0}]
[836,null,null,null,null,{"$f":"IF(EMRIC!$H$4=\"Deutsch\",C837,IF(EMRIC!$H$4=\"Nederlands\",D837,IF(EMRIC!$H$4=\"Français\",E837)))","v":0}]
[837,null,null,null,null,{"$f":"IF(EMRIC!$H$4=\"Deutsch\",C838,IF(EMRIC!$H$4=\"Nederlands\",D838,IF(EMRIC!$H$4=\"Français\",E838)))","v":0}]
[838,null,null,null,null,{"$f":"IF(EMRIC!$H$4=\"Deutsch\",C839,IF(EMRIC!$H$4=\"Nederlands\",D839,IF(EMRIC!$H$4=\"Français\",E839)))","v":0}]
[839,null,null,null,null,{"$f":"IF(EMRIC!$H$4=\"Deutsch\",C840,IF(EMRIC!$H$4=\"Nederlands\",D840,IF(EMRIC!$H$4=\"Français\",E840)))","v":0}]
[840,null,null,null,null,{"$f":"IF(EMRIC!$H$4=\"Deutsch\",C841,IF(EMRIC!$H$4=\"Nederlands\",D841,IF(EMRIC!$H$4=\"Français\",E841)))","v":0}]
[841,null,null,null,null,{"$f":"IF(EMRIC!$H$4=\"Deutsch\",C842,IF(EMRIC!$H$4=\"Nederlands\",D842,IF(EMRIC!$H$4=\"Français\",E842)))","v":0}]
[842,null,null,null,null,{"$f":"IF(EMRIC!$H$4=\"Deutsch\",C843,IF(EMRIC!$H$4=\"Nederlands\",D843,IF(EMRIC!$H$4=\"Français\",E843)))","v":0}]
[843,null,null,null,null,{"$f":"IF(EMRIC!$H$4=\"Deutsch\",C844,IF(EMRIC!$H$4=\"Nederlands\",D844,IF(EMRIC!$H$4=\"Français\",E844)))","v":0}]
[844,null,null,null,null,{"$f":"IF(EMRIC!$H$4=\"Deutsch\",C845,IF(EMRIC!$H$4=\"Nederlands\",D845,IF(EMRIC!$H$4=\"Français\",E845)))","v":0}]
[845,null,null,null,null,{"$f":"IF(EMRIC!$H$4=\"Deutsch\",C846,IF(EMRIC!$H$4=\"Nederlands\",D846,IF(EMRIC!$H$4=\"Français\",E846)))","v":0}]
[846,null,null,null,null,{"$f":"IF(EMRIC!$H$4=\"Deutsch\",C847,IF(EMRIC!$H$4=\"Nederlands\",D847,IF(EMRIC!$H$4=\"Français\",E847)))","v":0}]
[847,null,null,null,null,{"$f":"IF(EMRIC!$H$4=\"Deutsch\",C848,IF(EMRIC!$H$4=\"Nederlands\",D848,IF(EMRIC!$H$4=\"Français\",E848)))","v":0}]
[848,null,null,null,null,{"$f":"IF(EMRIC!$H$4=\"Deutsch\",C849,IF(EMRIC!$H$4=\"Nederlands\",D849,IF(EMRIC!$H$4=\"Français\",E849)))","v":0}]
[849,null,null,null,null,{"$f":"IF(EMRIC!$H$4=\"Deutsch\",C850,IF(EMRIC!$H$4=\"Nederlands\",D850,IF(EMRIC!$H$4=\"Français\",E850)))","v":0}]
[850,null,null,null,null,{"$f":"IF(EMRIC!$H$4=\"Deutsch\",C851,IF(EMRIC!$H$4=\"Nederlands\",D851,IF(EMRIC!$H$4=\"Français\",E851)))","v":0}]
[851,null,null,null,null,{"$f":"IF(EMRIC!$H$4=\"Deutsch\",C852,IF(EMRIC!$H$4=\"Nederlands\",D852,IF(EMRIC!$H$4=\"Français\",E852)))","v":0}]
[852,null,null,null,null,{"$f":"IF(EMRIC!$H$4=\"Deutsch\",C853,IF(EMRIC!$H$4=\"Nederlands\",D853,IF(EMRIC!$H$4=\"Français\",E853)))","v":0}]
[853,null,null,null,null,{"$f":"IF(EMRIC!$H$4=\"Deutsch\",C854,IF(EMRIC!$H$4=\"Nederlands\",D854,IF(EMRIC!$H$4=\"Français\",E854)))","v":0}]
[854,null,null,null,null,{"$f":"IF(EMRIC!$H$4=\"Deutsch\",C855,IF(EMRIC!$H$4=\"Nederlands\",D855,IF(EMRIC!$H$4=\"Français\",E855)))","v":0}]
[855,null,null,null,null,{"$f":"IF(EMRIC!$H$4=\"Deutsch\",C856,IF(EMRIC!$H$4=\"Nederlands\",D856,IF(EMRIC!$H$4=\"Français\",E856)))","v":0}]
[856,null,null,null,null,{"$f":"IF(EMRIC!$H$4=\"Deutsch\",C857,IF(EMRIC!$H$4=\"Nederlands\",D857,IF(EMRIC!$H$4=\"Français\",E857)))","v":0}]
[857,null,null,null,null,{"$f":"IF(EMRIC!$H$4=\"Deutsch\",C858,IF(EMRIC!$H$4=\"Nederlands\",D858,IF(EMRIC!$H$4=\"Français\",E858)))","v":0}]
[858,null,null,null,null,{"$f":"IF(EMRIC!$H$4=\"Deutsch\",C859,IF(EMRIC!$H$4=\"Nederlands\",D859,IF(EMRIC!$H$4=\"Français\",E859)))","v":0}]
[859,null,null,null,null,{"$f":"IF(EMRIC!$H$4=\"Deutsch\",C860,IF(EMRIC!$H$4=\"Nederlands\",D860,IF(EMRIC!$H$4=\"Français\",E860)))","v":0}]
[860,null,null,null,null,{"$f":"IF(EMRIC!$H$4=\"Deutsch\",C861,IF(EMRIC!$H$4=\"Nederlands\",D861,IF(EMRIC!$H$4=\"Français\",E861)))","v":0}]
[861,null,null,null,null,{"$f":"IF(EMRIC!$H$4=\"Deutsch\",C862,IF(EMRIC!$H$4=\"Nederlands\",D862,IF(EMRIC!$H$4=\"Français\",E862)))","v":0}]
[862,null,null,null,null,{"$f":"IF(EMRIC!$H$4=\"Deutsch\",C863,IF(EMRIC!$H$4=\"Nederlands\",D863,IF(EMRIC!$H$4=\"Français\",E863)))","v":0}]
[863,null,null,null,null,{"$f":"IF(EMRIC!$H$4=\"Deutsch\",C864,IF(EMRIC!$H$4=\"Nederlands\",D864,IF(EMRIC!$H$4=\"Français\",E864)))","v":0}]
[864,null,null,null,null,{"$f":"IF(EMRIC!$H$4=\"Deutsch\",C865,IF(EMRIC!$H$4=\"Nederlands\",D865,IF(EMRIC!$H$4=\"Français\",E865)))","v":0}]
[865,null,null,null,null,{"$f":"IF(EMRIC!$H$4=\"Deutsch\",C866,IF(EMRIC!$H$4=\"Nederlands\",D866,IF(EMRIC!$H$4=\"Français\",E866)))","v":0}]
[866,null,null,null,null,{"$f":"IF(EMRIC!$H$4=\"Deutsch\",C867,IF(EMRIC!$H$4=\"Nederlands\",D867,IF(EMRIC!$H$4=\"Français\",E867)))","v":0}]
[867,null,null,null,null,{"$f":"IF(EMRIC!$H$4=\"Deutsch\",C868,IF(EMRIC!$H$4=\"Nederlands\",D868,IF(EMRIC!$H$4=\"Français\",E868)))","v":0}]
[868,null,null,null,null,{"$f":"IF(EMRIC!$H$4=\"Deutsch\",C869,IF(EMRIC!$H$4=\"Nederlands\",D869,IF(EMRIC!$H$4=\"Français\",E869)))","v":0}]
[869,null,null,null,null,{"$f":"IF(EMRIC!$H$4=\"Deutsch\",C870,IF(EMRIC!$H$4=\"Nederlands\",D870,IF(EMRIC!$H$4=\"Français\",E870)))","v":0}]
[870,null,null,null,null,{"$f":"IF(EMRIC!$H$4=\"Deutsch\",C871,IF(EMRIC!$H$4=\"Nederlands\",D871,IF(EMRIC!$H$4=\"Français\",E871)))","v":0}]
[871,null,null,null,null,{"$f":"IF(EMRIC!$H$4=\"Deutsch\",C872,IF(EMRIC!$H$4=\"Nederlands\",D872,IF(EMRIC!$H$4=\"Français\",E872)))","v":0}]
[872,null,null,null,null,{"$f":"IF(EMRIC!$H$4=\"Deutsch\",C873,IF(EMRIC!$H$4=\"Nederlands\",D873,IF(EMRIC!$H$4=\"Français\",E873)))","v":0}]
[873,null,null,null,null,{"$f":"IF(EMRIC!$H$4=\"Deutsch\",C874,IF(EMRIC!$H$4=\"Nederlands\",D874,IF(EMRIC!$H$4=\"Français\",E874)))","v":0}]
[874,null,null,null,null,{"$f":"IF(EMRIC!$H$4=\"Deutsch\",C875,IF(EMRIC!$H$4=\"Nederlands\",D875,IF(EMRIC!$H$4=\"Français\",E875)))","v":0}]
[875,null,null,null,null,{"$f":"IF(EMRIC!$H$4=\"Deutsch\",C876,IF(EMRIC!$H$4=\"Nederlands\",D876,IF(EMRIC!$H$4=\"Français\",E876)))","v":0}]
[876,null,null,null,null,{"$f":"IF(EMRIC!$H$4=\"Deutsch\",C877,IF(EMRIC!$H$4=\"Nederlands\",D877,IF(EMRIC!$H$4=\"Français\",E877)))","v":0}]
[877,null,null,null,null,{"$f":"IF(EMRIC!$H$4=\"Deutsch\",C878,IF(EMRIC!$H$4=\"Nederlands\",D878,IF(EMRIC!$H$4=\"Français\",E878)))","v":0}]
[878,null,null,null,null,{"$f":"IF(EMRIC!$H$4=\"Deutsch\",C879,IF(EMRIC!$H$4=\"Nederlands\",D879,IF(EMRIC!$H$4=\"Français\",E879)))","v":0}]
[879,null,null,null,null,{"$f":"IF(EMRIC!$H$4=\"Deutsch\",C880,IF(EMRIC!$H$4=\"Nederlands\",D880,IF(EMRIC!$H$4=\"Français\",E880)))","v":0}]
[880,null,null,null,null,{"$f":"IF(EMRIC!$H$4=\"Deutsch\",C881,IF(EMRIC!$H$4=\"Nederlands\",D881,IF(EMRIC!$H$4=\"Français\",E881)))","v":0}]
[881,null,null,null,null,{"$f":"IF(EMRIC!$H$4=\"Deutsch\",C882,IF(EMRIC!$H$4=\"Nederlands\",D882,IF(EMRIC!$H$4=\"Français\",E882)))","v":0}]
[882,null,null,null,null,{"$f":"IF(EMRIC!$H$4=\"Deutsch\",C883,IF(EMRIC!$H$4=\"Nederlands\",D883,IF(EMRIC!$H$4=\"Français\",E883)))","v":0}]
[883,null,null,null,null,{"$f":"IF(EMRIC!$H$4=\"Deutsch\",C884,IF(EMRIC!$H$4=\"Nederlands\",D884,IF(EMRIC!$H$4=\"Français\",E884)))","v":0}]
[884,null,null,null,null,{"$f":"IF(EMRIC!$H$4=\"Deutsch\",C885,IF(EMRIC!$H$4=\"Nederlands\",D885,IF(EMRIC!$H$4=\"Français\",E885)))","v":0}]
[885,null,null,null,null,{"$f":"IF(EMRIC!$H$4=\"Deutsch\",C886,IF(EMRIC!$H$4=\"Nederlands\",D886,IF(EMRIC!$H$4=\"Français\",E886)))","v":0}]
[886,null,null,null,null,{"$f":"IF(EMRIC!$H$4=\"Deutsch\",C887,IF(EMRIC!$H$4=\"Nederlands\",D887,IF(EMRIC!$H$4=\"Français\",E887)))","v":0}]
[887,null,null,null,null,{"$f":"IF(EMRIC!$H$4=\"Deutsch\",C888,IF(EMRIC!$H$4=\"Nederlands\",D888,IF(EMRIC!$H$4=\"Français\",E888)))","v":0}]
[888,null,null,null,null,{"$f":"IF(EMRIC!$H$4=\"Deutsch\",C889,IF(EMRIC!$H$4=\"Nederlands\",D889,IF(EMRIC!$H$4=\"Français\",E889)))","v":0}]
[889,null,null,null,null,{"$f":"IF(EMRIC!$H$4=\"Deutsch\",C890,IF(EMRIC!$H$4=\"Nederlands\",D890,IF(EMRIC!$H$4=\"Français\",E890)))","v":0}]
[890,null,null,null,null,{"$f":"IF(EMRIC!$H$4=\"Deutsch\",C891,IF(EMRIC!$H$4=\"Nederlands\",D891,IF(EMRIC!$H$4=\"Français\",E891)))","v":0}]
[891,null,null,null,null,{"$f":"IF(EMRIC!$H$4=\"Deutsch\",C892,IF(EMRIC!$H$4=\"Nederlands\",D892,IF(EMRIC!$H$4=\"Français\",E892)))","v":0}]
[892,null,null,null,null,{"$f":"IF(EMRIC!$H$4=\"Deutsch\",C893,IF(EMRIC!$H$4=\"Nederlands\",D893,IF(EMRIC!$H$4=\"Français\",E893)))","v":0}]
[893,null,null,null,null,{"$f":"IF(EMRIC!$H$4=\"Deutsch\",C894,IF(EMRIC!$H$4=\"Nederlands\",D894,IF(EMRIC!$H$4=\"Français\",E894)))","v":0}]
[894,null,null,null,null,{"$f":"IF(EMRIC!$H$4=\"Deutsch\",C895,IF(EMRIC!$H$4=\"Nederlands\",D895,IF(EMRIC!$H$4=\"Français\",E895)))","v":0}]
[895,null,null,null,null,{"$f":"IF(EMRIC!$H$4=\"Deutsch\",C896,IF(EMRIC!$H$4=\"Nederlands\",D896,IF(EMRIC!$H$4=\"Français\",E896)))","v":0}]
[896,null,null,null,null,{"$f":"IF(EMRIC!$H$4=\"Deutsch\",C897,IF(EMRIC!$H$4=\"Nederlands\",D897,IF(EMRIC!$H$4=\"Français\",E897)))","v":0}]
[897,null,null,null,null,{"$f":"IF(EMRIC!$H$4=\"Deutsch\",C898,IF(EMRIC!$H$4=\"Nederlands\",D898,IF(EMRIC!$H$4=\"Français\",E898)))","v":0}]
[898,null,null,null,null,{"$f":"IF(EMRIC!$H$4=\"Deutsch\",C899,IF(EMRIC!$H$4=\"Nederlands\",D899,IF(EMRIC!$H$4=\"Français\",E899)))","v":0}]
[899,null,null,null,null,{"$f":"IF(EMRIC!$H$4=\"Deutsch\",C900,IF(EMRIC!$H$4=\"Nederlands\",D900,IF(EMRIC!$H$4=\"Français\",E900)))","v":0}]
[900,null,null,null,null,{"$f":"IF(EMRIC!$H$4=\"Deutsch\",C901,IF(EMRIC!$H$4=\"Nederlands\",D901,IF(EMRIC!$H$4=\"Français\",E901)))","v":0}]
[901,null,null,null,null,{"$f":"IF(EMRIC!$H$4=\"Deutsch\",C902,IF(EMRIC!$H$4=\"Nederlands\",D902,IF(EMRIC!$H$4=\"Français\",E902)))","v":0}]
[902,null,null,null,null,{"$f":"IF(EMRIC!$H$4=\"Deutsch\",C903,IF(EMRIC!$H$4=\"Nederlands\",D903,IF(EMRIC!$H$4=\"Français\",E903)))","v":0}]
[903,null,null,null,null,{"$f":"IF(EMRIC!$H$4=\"Deutsch\",C904,IF(EMRIC!$H$4=\"Nederlands\",D904,IF(EMRIC!$H$4=\"Français\",E904)))","v":0}]
[904,null,null,null,null,{"$f":"IF(EMRIC!$H$4=\"Deutsch\",C905,IF(EMRIC!$H$4=\"Nederlands\",D905,IF(EMRIC!$H$4=\"Français\",E905)))","v":0}]
[905,null,null,null,null,{"$f":"IF(EMRIC!$H$4=\"Deutsch\",C906,IF(EMRIC!$H$4=\"Nederlands\",D906,IF(EMRIC!$H$4=\"Français\",E906)))","v":0}]
[906,null,null,null,null,{"$f":"IF(EMRIC!$H$4=\"Deutsch\",C907,IF(EMRIC!$H$4=\"Nederlands\",D907,IF(EMRIC!$H$4=\"Français\",E907)))","v":0}]
[907,null,null,null,null,{"$f":"IF(EMRIC!$H$4=\"Deutsch\",C908,IF(EMRIC!$H$4=\"Nederlands\",D908,IF(EMRIC!$H$4=\"Français\",E908)))","v":0}]
[908,null,null,null,null,{"$f":"IF(EMRIC!$H$4=\"Deutsch\",C909,IF(EMRIC!$H$4=\"Nederlands\",D909,IF(EMRIC!$H$4=\"Français\",E909)))","v":0}]
[909,null,null,null,null,{"$f":"IF(EMRIC!$H$4=\"Deutsch\",C910,IF(EMRIC!$H$4=\"Nederlands\",D910,IF(EMRIC!$H$4=\"Français\",E910)))","v":0}]
[910,null,null,null,null,{"$f":"IF(EMRIC!$H$4=\"Deutsch\",C911,IF(EMRIC!$H$4=\"Nederlands\",D911,IF(EMRIC!$H$4=\"Français\",E911)))","v":0}]
[911,null,null,null,null,{"$f":"IF(EMRIC!$H$4=\"Deutsch\",C912,IF(EMRIC!$H$4=\"Nederlands\",D912,IF(EMRIC!$H$4=\"Français\",E912)))","v":0}]
[912,null,null,null,null,{"$f":"IF(EMRIC!$H$4=\"Deutsch\",C913,IF(EMRIC!$H$4=\"Nederlands\",D913,IF(EMRIC!$H$4=\"Français\",E913)))","v":0}]
[913,null,null,null,null,{"$f":"IF(EMRIC!$H$4=\"Deutsch\",C914,IF(EMRIC!$H$4=\"Nederlands\",D914,IF(EMRIC!$H$4=\"Français\",E914)))","v":0}]
[914,null,null,null,null,{"$f":"IF(EMRIC!$H$4=\"Deutsch\",C915,IF(EMRIC!$H$4=\"Nederlands\",D915,IF(EMRIC!$H$4=\"Français\",E915)))","v":0}]
[915,null,null,null,null,{"$f":"IF(EMRIC!$H$4=\"Deutsch\",C916,IF(EMRIC!$H$4=\"Nederlands\",D916,IF(EMRIC!$H$4=\"Français\",E916)))","v":0}]
[916,null,null,null,null,{"$f":"IF(EMRIC!$H$4=\"Deutsch\",C917,IF(EMRIC!$H$4=\"Nederlands\",D917,IF(EMRIC!$H$4=\"Français\",E917)))","v":0}]
[917,null,null,null,null,{"$f":"IF(EMRIC!$H$4=\"Deutsch\",C918,IF(EMRIC!$H$4=\"Nederlands\",D918,IF(EMRIC!$H$4=\"Français\",E918)))","v":0}]
[918,null,null,null,null,{"$f":"IF(EMRIC!$H$4=\"Deutsch\",C919,IF(EMRIC!$H$4=\"Nederlands\",D919,IF(EMRIC!$H$4=\"Français\",E919)))","v":0}]
[919,null,null,null,null,{"$f":"IF(EMRIC!$H$4=\"Deutsch\",C920,IF(EMRIC!$H$4=\"Nederlands\",D920,IF(EMRIC!$H$4=\"Français\",E920)))","v":0}]
[920,null,null,null,null,{"$f":"IF(EMRIC!$H$4=\"Deutsch\",C921,IF(EMRIC!$H$4=\"Nederlands\",D921,IF(EMRIC!$H$4=\"Français\",E921)))","v":0}]
[921,null,null,null,null,{"$f":"IF(EMRIC!$H$4=\"Deutsch\",C922,IF(EMRIC!$H$4=\"Nederlands\",D922,IF(EMRIC!$H$4=\"Français\",E922)))","v":0}]
[922,null,null,null,null,{"$f":"IF(EMRIC!$H$4=\"Deutsch\",C923,IF(EMRIC!$H$4=\"Nederlands\",D923,IF(EMRIC!$H$4=\"Français\",E923)))","v":0}]
[923,null,null,null,null,{"$f":"IF(EMRIC!$H$4=\"Deutsch\",C924,IF(EMRIC!$H$4=\"Nederlands\",D924,IF(EMRIC!$H$4=\"Français\",E924)))","v":0}]
[924,null,null,null,null,{"$f":"IF(EMRIC!$H$4=\"Deutsch\",C925,IF(EMRIC!$H$4=\"Nederlands\",D925,IF(EMRIC!$H$4=\"Français\",E925)))","v":0}]
[925,null,null,null,null,{"$f":"IF(EMRIC!$H$4=\"Deutsch\",C926,IF(EMRIC!$H$4=\"Nederlands\",D926,IF(EMRIC!$H$4=\"Français\",E926)))","v":0}]
[926,null,null,null,null,{"$f":"IF(EMRIC!$H$4=\"Deutsch\",C927,IF(EMRIC!$H$4=\"Nederlands\",D927,IF(EMRIC!$H$4=\"Français\",E927)))","v":0}]
[927,null,null,null,null,{"$f":"IF(EMRIC!$H$4=\"Deutsch\",C928,IF(EMRIC!$H$4=\"Nederlands\",D928,IF(EMRIC!$H$4=\"Français\",E928)))","v":0}]
[928,null,null,null,null,{"$f":"IF(EMRIC!$H$4=\"Deutsch\",C929,IF(EMRIC!$H$4=\"Nederlands\",D929,IF(EMRIC!$H$4=\"Français\",E929)))","v":0}]
[929,null,null,null,null,{"$f":"IF(EMRIC!$H$4=\"Deutsch\",C930,IF(EMRIC!$H$4=\"Nederlands\",D930,IF(EMRIC!$H$4=\"Français\",E930)))","v":0}]
[930,null,null,null,null,{"$f":"IF(EMRIC!$H$4=\"Deutsch\",C931,IF(EMRIC!$H$4=\"Nederlands\",D931,IF(EMRIC!$H$4=\"Français\",E931)))","v":0}]
[931,null,null,null,null,{"$f":"IF(EMRIC!$H$4=\"Deutsch\",C932,IF(EMRIC!$H$4=\"Nederlands\",D932,IF(EMRIC!$H$4=\"Français\",E932)))","v":0}]
[932,null,null,null,null,{"$f":"IF(EMRIC!$H$4=\"Deutsch\",C933,IF(EMRIC!$H$4=\"Nederlands\",D933,IF(EMRIC!$H$4=\"Français\",E933)))","v":0}]
[933,null,null,null,null,{"$f":"IF(EMRIC!$H$4=\"Deutsch\",C934,IF(EMRIC!$H$4=\"Nederlands\",D934,IF(EMRIC!$H$4=\"Français\",E934)))","v":0}]
[934,null,null,null,null,{"$f":"IF(EMRIC!$H$4=\"Deutsch\",C935,IF(EMRIC!$H$4=\"Nederlands\",D935,IF(EMRIC!$H$4=\"Français\",E935)))","v":0}]
[935,null,null,null,null,{"$f":"IF(EMRIC!$H$4=\"Deutsch\",C936,IF(EMRIC!$H$4=\"Nederlands\",D936,IF(EMRIC!$H$4=\"Français\",E936)))","v":0}]
[936,null,null,null,null,{"$f":"IF(EMRIC!$H$4=\"Deutsch\",C937,IF(EMRIC!$H$4=\"Nederlands\",D937,IF(EMRIC!$H$4=\"Français\",E937)))","v":0}]
[937,null,null,null,null,{"$f":"IF(EMRIC!$H$4=\"Deutsch\",C938,IF(EMRIC!$H$4=\"Nederlands\",D938,IF(EMRIC!$H$4=\"Français\",E938)))","v":0}]
[938,null,null,null,null,{"$f":"IF(EMRIC!$H$4=\"Deutsch\",C939,IF(EMRIC!$H$4=\"Nederlands\",D939,IF(EMRIC!$H$4=\"Français\",E939)))","v":0}]
[939,null,null,null,null,{"$f":"IF(EMRIC!$H$4=\"Deutsch\",C940,IF(EMRIC!$H$4=\"Nederlands\",D940,IF(EMRIC!$H$4=\"Français\",E940)))","v":0}]
[940,null,null,null,null,{"$f":"IF(EMRIC!$H$4=\"Deutsch\",C941,IF(EMRIC!$H$4=\"Nederlands\",D941,IF(EMRIC!$H$4=\"Français\",E941)))","v":0}]
[941,null,null,null,null,{"$f":"IF(EMRIC!$H$4=\"Deutsch\",C942,IF(EMRIC!$H$4=\"Nederlands\",D942,IF(EMRIC!$H$4=\"Français\",E942)))","v":0}]
[942,null,null,null,null,{"$f":"IF(EMRIC!$H$4=\"Deutsch\",C943,IF(EMRIC!$H$4=\"Nederlands\",D943,IF(EMRIC!$H$4=\"Français\",E943)))","v":0}]
[943,null,null,null,null,{"$f":"IF(EMRIC!$H$4=\"Deutsch\",C944,IF(EMRIC!$H$4=\"Nederlands\",D944,IF(EMRIC!$H$4=\"Français\",E944)))","v":0}]
[944,null,null,null,null,{"$f":"IF(EMRIC!$H$4=\"Deutsch\",C945,IF(EMRIC!$H$4=\"Nederlands\",D945,IF(EMRIC!$H$4=\"Français\",E945)))","v":0}]
[945,null,null,null,null,{"$f":"IF(EMRIC!$H$4=\"Deutsch\",C946,IF(EMRIC!$H$4=\"Nederlands\",D946,IF(EMRIC!$H$4=\"Français\",E946)))","v":0}]
[946,null,null,null,null,{"$f":"IF(EMRIC!$H$4=\"Deutsch\",C947,IF(EMRIC!$H$4=\"Nederlands\",D947,IF(EMRIC!$H$4=\"Français\",E947)))","v":0}]
[947,null,null,null,null,{"$f":"IF(EMRIC!$H$4=\"Deutsch\",C948,IF(EMRIC!$H$4=\"Nederlands\",D948,IF(EMRIC!$H$4=\"Français\",E948)))","v":0}]
[948,null,null,null,null,{"$f":"IF(EMRIC!$H$4=\"Deutsch\",C949,IF(EMRIC!$H$4=\"Nederlands\",D949,IF(EMRIC!$H$4=\"Français\",E949)))","v":0}]
[949,null,null,null,null,{"$f":"IF(EMRIC!$H$4=\"Deutsch\",C950,IF(EMRIC!$H$4=\"Nederlands\",D950,IF(EMRIC!$H$4=\"Français\",E950)))","v":0}]
[950,null,null,null,null,{"$f":"IF(EMRIC!$H$4=\"Deutsch\",C951,IF(EMRIC!$H$4=\"Nederlands\",D951,IF(EMRIC!$H$4=\"Français\",E951)))","v":0}]
[951,null,null,null,null,{"$f":"IF(EMRIC!$H$4=\"Deutsch\",C952,IF(EMRIC!$H$4=\"Nederlands\",D952,IF(EMRIC!$H$4=\"Français\",E952)))","v":0}]
[952,null,null,null,null,{"$f":"IF(EMRIC!$H$4=\"Deutsch\",C953,IF(EMRIC!$H$4=\"Nederlands\",D953,IF(EMRIC!$H$4=\"Français\",E953)))","v":0}]
[953,null,null,null,null,{"$f":"IF(EMRIC!$H$4=\"Deutsch\",C954,IF(EMRIC!$H$4=\"Nederlands\",D954,IF(EMRIC!$H$4=\"Français\",E954)))","v":0}]
[954,null,null,null,null,{"$f":"IF(EMRIC!$H$4=\"Deutsch\",C955,IF(EMRIC!$H$4=\"Nederlands\",D955,IF(EMRIC!$H$4=\"Français\",E955)))","v":0}]
[955,null,null,null,null,{"$f":"IF(EMRIC!$H$4=\"Deutsch\",C956,IF(EMRIC!$H$4=\"Nederlands\",D956,IF(EMRIC!$H$4=\"Français\",E956)))","v":0}]
[956,null,null,null,null,{"$f":"IF(EMRIC!$H$4=\"Deutsch\",C957,IF(EMRIC!$H$4=\"Nederlands\",D957,IF(EMRIC!$H$4=\"Français\",E957)))","v":0}]
[957,null,null,null,null,{"$f":"IF(EMRIC!$H$4=\"Deutsch\",C958,IF(EMRIC!$H$4=\"Nederlands\",D958,IF(EMRIC!$H$4=\"Français\",E958)))","v":0}]
[958,null,null,null,null,{"$f":"IF(EMRIC!$H$4=\"Deutsch\",C959,IF(EMRIC!$H$4=\"Nederlands\",D959,IF(EMRIC!$H$4=\"Français\",E959)))","v":0}]
[959,null,null,null,null,{"$f":"IF(EMRIC!$H$4=\"Deutsch\",C960,IF(EMRIC!$H$4=\"Nederlands\",D960,IF(EMRIC!$H$4=\"Français\",E960)))","v":0}]
[960,null,null,null,null,{"$f":"IF(EMRIC!$H$4=\"Deutsch\",C961,IF(EMRIC!$H$4=\"Nederlands\",D961,IF(EMRIC!$H$4=\"Français\",E961)))","v":0}]
[961,null,null,null,null,{"$f":"IF(EMRIC!$H$4=\"Deutsch\",C962,IF(EMRIC!$H$4=\"Nederlands\",D962,IF(EMRIC!$H$4=\"Français\",E962)))","v":0}]
[962,null,null,null,null,{"$f":"IF(EMRIC!$H$4=\"Deutsch\",C963,IF(EMRIC!$H$4=\"Nederlands\",D963,IF(EMRIC!$H$4=\"Français\",E963)))","v":0}]
[963,null,null,null,null,{"$f":"IF(EMRIC!$H$4=\"Deutsch\",C964,IF(EMRIC!$H$4=\"Nederlands\",D964,IF(EMRIC!$H$4=\"Français\",E964)))","v":0}]
[964,null,null,null,null,{"$f":"IF(EMRIC!$H$4=\"Deutsch\",C965,IF(EMRIC!$H$4=\"Nederlands\",D965,IF(EMRIC!$H$4=\"Français\",E965)))","v":0}]
[965,null,null,null,null,{"$f":"IF(EMRIC!$H$4=\"Deutsch\",C966,IF(EMRIC!$H$4=\"Nederlands\",D966,IF(EMRIC!$H$4=\"Français\",E966)))","v":0}]
[966,null,null,null,null,{"$f":"IF(EMRIC!$H$4=\"Deutsch\",C967,IF(EMRIC!$H$4=\"Nederlands\",D967,IF(EMRIC!$H$4=\"Français\",E967)))","v":0}]
[967,null,null,null,null,{"$f":"IF(EMRIC!$H$4=\"Deutsch\",C968,IF(EMRIC!$H$4=\"Nederlands\",D968,IF(EMRIC!$H$4=\"Français\",E968)))","v":0}]
[968,null,null,null,null,{"$f":"IF(EMRIC!$H$4=\"Deutsch\",C969,IF(EMRIC!$H$4=\"Nederlands\",D969,IF(EMRIC!$H$4=\"Français\",E969)))","v":0}]
[969,null,null,null,null,{"$f":"IF(EMRIC!$H$4=\"Deutsch\",C970,IF(EMRIC!$H$4=\"Nederlands\",D970,IF(EMRIC!$H$4=\"Français\",E970)))","v":0}]
[970,null,null,null,null,{"$f":"IF(EMRIC!$H$4=\"Deutsch\",C971,IF(EMRIC!$H$4=\"Nederlands\",D971,IF(EMRIC!$H$4=\"Français\",E971)))","v":0}]
[971,null,null,null,null,{"$f":"IF(EMRIC!$H$4=\"Deutsch\",C972,IF(EMRIC!$H$4=\"Nederlands\",D972,IF(EMRIC!$H$4=\"Français\",E972)))","v":0}]
[972,null,null,null,null,{"$f":"IF(EMRIC!$H$4=\"Deutsch\",C973,IF(EMRIC!$H$4=\"Nederlands\",D973,IF(EMRIC!$H$4=\"Français\",E973)))","v":0}]
[973,null,null,null,null,{"$f":"IF(EMRIC!$H$4=\"Deutsch\",C974,IF(EMRIC!$H$4=\"Nederlands\",D974,IF(EMRIC!$H$4=\"Français\",E974)))","v":0}]
[974,null,null,null,null,{"$f":"IF(EMRIC!$H$4=\"Deutsch\",C975,IF(EMRIC!$H$4=\"Nederlands\",D975,IF(EMRIC!$H$4=\"Français\",E975)))","v":0}]
[975,null,null,null,null,{"$f":"IF(EMRIC!$H$4=\"Deutsch\",C976,IF(EMRIC!$H$4=\"Nederlands\",D976,IF(EMRIC!$H$4=\"Français\",E976)))","v":0}]
[976,null,null,null,null,{"$f":"IF(EMRIC!$H$4=\"Deutsch\",C977,IF(EMRIC!$H$4=\"Nederlands\",D977,IF(EMRIC!$H$4=\"Français\",E977)))","v":0}]
[977,null,null,null,null,{"$f":"IF(EMRIC!$H$4=\"Deutsch\",C978,IF(EMRIC!$H$4=\"Nederlands\",D978,IF(EMRIC!$H$4=\"Français\",E978)))","v":0}]
[978,null,null,null,null,{"$f":"IF(EMRIC!$H$4=\"Deutsch\",C979,IF(EMRIC!$H$4=\"Nederlands\",D979,IF(EMRIC!$H$4=\"Français\",E979)))","v":0}]
[979,null,null,null,null,{"$f":"IF(EMRIC!$H$4=\"Deutsch\",C980,IF(EMRIC!$H$4=\"Nederlands\",D980,IF(EMRIC!$H$4=\"Français\",E980)))","v":0}]
[980,null,null,null,null,{"$f":"IF(EMRIC!$H$4=\"Deutsch\",C981,IF(EMRIC!$H$4=\"Nederlands\",D981,IF(EMRIC!$H$4=\"Français\",E981)))","v":0}]
[981,null,null,null,null,{"$f":"IF(EMRIC!$H$4=\"Deutsch\",C982,IF(EMRIC!$H$4=\"Nederlands\",D982,IF(EMRIC!$H$4=\"Français\",E982)))","v":0}]
[982,null,null,null,null,{"$f":"IF(EMRIC!$H$4=\"Deutsch\",C983,IF(EMRIC!$H$4=\"Nederlands\",D983,IF(EMRIC!$H$4=\"Français\",E983)))","v":0}]
[983,null,null,null,null,{"$f":"IF(EMRIC!$H$4=\"Deutsch\",C984,IF(EMRIC!$H$4=\"Nederlands\",D984,IF(EMRIC!$H$4=\"Français\",E984)))","v":0}]
[984,null,null,null,null,{"$f":"IF(EMRIC!$H$4=\"Deutsch\",C985,IF(EMRIC!$H$4=\"Nederlands\",D985,IF(EMRIC!$H$4=\"Français\",E985)))","v":0}]
[985,null,null,null,null,{"$f":"IF(EMRIC!$H$4=\"Deutsch\",C986,IF(EMRIC!$H$4=\"Nederlands\",D986,IF(EMRIC!$H$4=\"Français\",E986)))","v":0}]
[986,null,null,null,null,{"$f":"IF(EMRIC!$H$4=\"Deutsch\",C987,IF(EMRIC!$H$4=\"Nederlands\",D987,IF(EMRIC!$H$4=\"Français\",E987)))","v":0}]
[987,null,null,null,null,{"$f":"IF(EMRIC!$H$4=\"Deutsch\",C988,IF(EMRIC!$H$4=\"Nederlands\",D988,IF(EMRIC!$H$4=\"Français\",E988)))","v":0}]
[988,null,null,null,null,{"$f":"IF(EMRIC!$H$4=\"Deutsch\",C989,IF(EMRIC!$H$4=\"Nederlands\",D989,IF(EMRIC!$H$4=\"Français\",E989)))","v":0}]
[989,null,null,null,null,{"$f":"IF(EMRIC!$H$4=\"Deutsch\",C990,IF(EMRIC!$H$4=\"Nederlands\",D990,IF(EMRIC!$H$4=\"Français\",E990)))","v":0}]
[990,null,null,null,null,{"$f":"IF(EMRIC!$H$4=\"Deutsch\",C991,IF(EMRIC!$H$4=\"Nederlands\",D991,IF(EMRIC!$H$4=\"Français\",E991)))","v":0}]
[991,null,null,null,null,{"$f":"IF(EMRIC!$H$4=\"Deutsch\",C992,IF(EMRIC!$H$4=\"Nederlands\",D992,IF(EMRIC!$H$4=\"Français\",E992)))","v":0}]
[992,null,null,null,null,{"$f":"IF(EMRIC!$H$4=\"Deutsch\",C993,IF(EMRIC!$H$4=\"Nederlands\",D993,IF(EMRIC!$H$4=\"Français\",E993)))","v":0}]
[993,null,null,null,null,{"$f":"IF(EMRIC!$H$4=\"Deutsch\",C994,IF(EMRIC!$H$4=\"Nederlands\",D994,IF(EMRIC!$H$4=\"Français\",E994)))","v":0}]
[994,null,null,null,null,{"$f":"IF(EMRIC!$H$4=\"Deutsch\",C995,IF(EMRIC!$H$4=\"Nederlands\",D995,IF(EMRIC!$H$4=\"Français\",E995)))","v":0}]
[995,null,null,null,null,{"$f":"IF(EMRIC!$H$4=\"Deutsch\",C996,IF(EMRIC!$H$4=\"Nederlands\",D996,IF(EMRIC!$H$4=\"Français\",E996)))","v":0}]
[996,null,null,null,null,{"$f":"IF(EMRIC!$H$4=\"Deutsch\",C997,IF(EMRIC!$H$4=\"Nederlands\",D997,IF(EMRIC!$H$4=\"Français\",E997)))","v":0}]
[997,null,null,null,null,{"$f":"IF(EMRIC!$H$4=\"Deutsch\",C998,IF(EMRIC!$H$4=\"Nederlands\",D998,IF(EMRIC!$H$4=\"Français\",E998)))","v":0}]
[998,null,null,null,null,{"$f":"IF(EMRIC!$H$4=\"Deutsch\",C999,IF(EMRIC!$H$4=\"Nederlands\",D999,IF(EMRIC!$H$4=\"Français\",E999)))","v":0}]
[999,null,null,null,null,{"$f":"IF(EMRIC!$H$4=\"Deutsch\",C1000,IF(EMRIC!$H$4=\"Nederlands\",D1000,IF(EMRIC!$H$4=\"Français\",E1000)))","v":0}]
[1000,null,null,null,null,{"$f":"IF(EMRIC!$H$4=\"Deutsch\",C1001,IF(EMRIC!$H$4=\"Nederlands\",D1001,IF(EMRIC!$H$4=\"Français\",E1001)))","v":0}]
[1001,null,null,null,null,{"$f":"IF(EMRIC!$H$4=\"Deutsch\",C1002,IF(EMRIC!$H$4=\"Nederlands\",D1002,IF(EMRIC!$H$4=\"Français\",E1002)))","v":0}]
[1002,null,null,null,null,{"$f":"IF(EMRIC!$H$4=\"Deutsch\",C1003,IF(EMRIC!$H$4=\"Nederlands\",D1003,IF(EMRIC!$H$4=\"Français\",E1003)))","v":0}]
[1003,null,null,null,null,{"$f":"IF(EMRIC!$H$4=\"Deutsch\",C1004,IF(EMRIC!$H$4=\"Nederlands\",D1004,IF(EMRIC!$H$4=\"Français\",E1004)))","v":0}]
[1004,null,null,null,null,{"$f":"IF(EMRIC!$H$4=\"Deutsch\",C1005,IF(EMRIC!$H$4=\"Nederlands\",D1005,IF(EMRIC!$H$4=\"Français\",E1005)))","v":0}]
[1005,null,null,null,null,{"$f":"IF(EMRIC!$H$4=\"Deutsch\",C1006,IF(EMRIC!$H$4=\"Nederlands\",D1006,IF(EMRIC!$H$4=\"Français\",E1006)))","v":0}]
[1006,null,null,null,null,{"$f":"IF(EMRIC!$H$4=\"Deutsch\",C1007,IF(EMRIC!$H$4=\"Nederlands\",D1007,IF(EMRIC!$H$4=\"Français\",E1007)))","v":0}]
[1007,null,null,null,null,{"$f":"IF(EMRIC!$H$4=\"Deutsch\",C1008,IF(EMRIC!$H$4=\"Nederlands\",D1008,IF(EMRIC!$H$4=\"Français\",E1008)))","v":0}]
[1008,null,null,null,null,{"$f":"IF(EMRIC!$H$4=\"Deutsch\",C1009,IF(EMRIC!$H$4=\"Nederlands\",D1009,IF(EMRIC!$H$4=\"Français\",E1009)))","v":0}]
[1009,null,null,null,null,{"$f":"IF(EMRIC!$H$4=\"Deutsch\",C1010,IF(EMRIC!$H$4=\"Nederlands\",D1010,IF(EMRIC!$H$4=\"Français\",E1010)))","v":0}]
[1010,null,null,null,null,{"$f":"IF(EMRIC!$H$4=\"Deutsch\",C1011,IF(EMRIC!$H$4=\"Nederlands\",D1011,IF(EMRIC!$H$4=\"Français\",E1011)))","v":0}]
[1011,null,null,null,null,{"$f":"IF(EMRIC!$H$4=\"Deutsch\",C1012,IF(EMRIC!$H$4=\"Nederlands\",D1012,IF(EMRIC!$H$4=\"Français\",E1012)))","v":0}]
[1012,null,null,null,null,{"$f":"IF(EMRIC!$H$4=\"Deutsch\",C1013,IF(EMRIC!$H$4=\"Nederlands\",D1013,IF(EMRIC!$H$4=\"Français\",E1013)))","v":0}]
[1013,null,null,null,null,{"$f":"IF(EMRIC!$H$4=\"Deutsch\",C1014,IF(EMRIC!$H$4=\"Nederlands\",D1014,IF(EMRIC!$H$4=\"Français\",E1014)))","v":0}]
[1014,null,null,null,null,{"$f":"IF(EMRIC!$H$4=\"Deutsch\",C1015,IF(EMRIC!$H$4=\"Nederlands\",D1015,IF(EMRIC!$H$4=\"Français\",E1015)))","v":0}]
[1015,null,null,null,null,{"$f":"IF(EMRIC!$H$4=\"Deutsch\",C1016,IF(EMRIC!$H$4=\"Nederlands\",D1016,IF(EMRIC!$H$4=\"Français\",E1016)))","v":0}]
[1016,null,null,null,null,{"$f":"IF(EMRIC!$H$4=\"Deutsch\",C1017,IF(EMRIC!$H$4=\"Nederlands\",D1017,IF(EMRIC!$H$4=\"Français\",E1017)))","v":0}]
[1017,null,null,null,null,{"$f":"IF(EMRIC!$H$4=\"Deutsch\",C1018,IF(EMRIC!$H$4=\"Nederlands\",D1018,IF(EMRIC!$H$4=\"Français\",E1018)))","v":0}]
[1018,null,null,null,null,{"$f":"IF(EMRIC!$H$4=\"Deutsch\",C1019,IF(EMRIC!$H$4=\"Nederlands\",D1019,IF(EMRIC!$H$4=\"Français\",E1019)))","v":0}]
[1019,null,null,null,null,{"$f":"IF(EMRIC!$H$4=\"Deutsch\",C1020,IF(EMRIC!$H$4=\"Nederlands\",D1020,IF(EMRIC!$H$4=\"Français\",E1020)))","v":0}]
[1020,null,null,null,null,{"$f":"IF(EMRIC!$H$4=\"Deutsch\",C1021,IF(EMRIC!$H$4=\"Nederlands\",D1021,IF(EMRIC!$H$4=\"Français\",E1021)))","v":0}]
[1021,null,null,null,null,{"$f":"IF(EMRIC!$H$4=\"Deutsch\",C1022,IF(EMRIC!$H$4=\"Nederlands\",D1022,IF(EMRIC!$H$4=\"Français\",E1022)))","v":0}]
[1022,null,null,null,null,{"$f":"IF(EMRIC!$H$4=\"Deutsch\",C1023,IF(EMRIC!$H$4=\"Nederlands\",D1023,IF(EMRIC!$H$4=\"Français\",E1023)))","v":0}]
[1023,null,null,null,null,{"$f":"IF(EMRIC!$H$4=\"Deutsch\",C1024,IF(EMRIC!$H$4=\"Nederlands\",D1024,IF(EMRIC!$H$4=\"Français\",E1024)))","v":0}]
[1024,null,null,null,null,{"$f":"IF(EMRIC!$H$4=\"Deutsch\",C1025,IF(EMRIC!$H$4=\"Nederlands\",D1025,IF(EMRIC!$H$4=\"Français\",E1025)))","v":0}]
[1025,null,null,null,null,{"$f":"IF(EMRIC!$H$4=\"Deutsch\",C1026,IF(EMRIC!$H$4=\"Nederlands\",D1026,IF(EMRIC!$H$4=\"Français\",E1026)))","v":0}]
[1026,null,null,null,null,{"$f":"IF(EMRIC!$H$4=\"Deutsch\",C1027,IF(EMRIC!$H$4=\"Nederlands\",D1027,IF(EMRIC!$H$4=\"Français\",E1027)))","v":0}]
[1027,null,null,null,null,{"$f":"IF(EMRIC!$H$4=\"Deutsch\",C1028,IF(EMRIC!$H$4=\"Nederlands\",D1028,IF(EMRIC!$H$4=\"Français\",E1028)))","v":0}]
[1028,null,null,null,null,{"$f":"IF(EMRIC!$H$4=\"Deutsch\",C1029,IF(EMRIC!$H$4=\"Nederlands\",D1029,IF(EMRIC!$H$4=\"Français\",E1029)))","v":0}]
[1029,null,null,null,null,{"$f":"IF(EMRIC!$H$4=\"Deutsch\",C1030,IF(EMRIC!$H$4=\"Nederlands\",D1030,IF(EMRIC!$H$4=\"Français\",E1030)))","v":0}]
[1030,null,null,null,null,{"$f":"IF(EMRIC!$H$4=\"Deutsch\",C1031,IF(EMRIC!$H$4=\"Nederlands\",D1031,IF(EMRIC!$H$4=\"Français\",E1031)))","v":0}]
[1031,null,null,null,null,{"$f":"IF(EMRIC!$H$4=\"Deutsch\",C1032,IF(EMRIC!$H$4=\"Nederlands\",D1032,IF(EMRIC!$H$4=\"Français\",E1032)))","v":0}]
[1032,null,null,null,null,{"$f":"IF(EMRIC!$H$4=\"Deutsch\",C1033,IF(EMRIC!$H$4=\"Nederlands\",D1033,IF(EMRIC!$H$4=\"Français\",E1033)))","v":0}]
[1033,null,null,null,null,{"$f":"IF(EMRIC!$H$4=\"Deutsch\",C1034,IF(EMRIC!$H$4=\"Nederlands\",D1034,IF(EMRIC!$H$4=\"Français\",E1034)))","v":0}]
[1034,null,null,null,null,{"$f":"IF(EMRIC!$H$4=\"Deutsch\",C1035,IF(EMRIC!$H$4=\"Nederlands\",D1035,IF(EMRIC!$H$4=\"Français\",E1035)))","v":0}]
[1035,null,null,null,null,{"$f":"IF(EMRIC!$H$4=\"Deutsch\",C1036,IF(EMRIC!$H$4=\"Nederlands\",D1036,IF(EMRIC!$H$4=\"Français\",E1036)))","v":0}]
[1036,null,null,null,null,{"$f":"IF(EMRIC!$H$4=\"Deutsch\",C1037,IF(EMRIC!$H$4=\"Nederlands\",D1037,IF(EMRIC!$H$4=\"Français\",E1037)))","v":0}]
[1037,null,null,null,null,{"$f":"IF(EMRIC!$H$4=\"Deutsch\",C1038,IF(EMRIC!$H$4=\"Nederlands\",D1038,IF(EMRIC!$H$4=\"Français\",E1038)))","v":0}]
[1038,null,null,null,null,{"$f":"IF(EMRIC!$H$4=\"Deutsch\",C1039,IF(EMRIC!$H$4=\"Nederlands\",D1039,IF(EMRIC!$H$4=\"Français\",E1039)))","v":0}]
[1039,null,null,null,null,{"$f":"IF(EMRIC!$H$4=\"Deutsch\",C1040,IF(EMRIC!$H$4=\"Nederlands\",D1040,IF(EMRIC!$H$4=\"Français\",E1040)))","v":0}]
[1040,null,null,null,null,{"$f":"IF(EMRIC!$H$4=\"Deutsch\",C1041,IF(EMRIC!$H$4=\"Nederlands\",D1041,IF(EMRIC!$H$4=\"Français\",E1041)))","v":0}]
[1041,null,null,null,null,{"$f":"IF(EMRIC!$H$4=\"Deutsch\",C1042,IF(EMRIC!$H$4=\"Nederlands\",D1042,IF(EMRIC!$H$4=\"Français\",E1042)))","v":0}]
[1042,null,null,null,null,{"$f":"IF(EMRIC!$H$4=\"Deutsch\",C1043,IF(EMRIC!$H$4=\"Nederlands\",D1043,IF(EMRIC!$H$4=\"Français\",E1043)))","v":0}]
[1043,null,null,null,null,{"$f":"IF(EMRIC!$H$4=\"Deutsch\",C1044,IF(EMRIC!$H$4=\"Nederlands\",D1044,IF(EMRIC!$H$4=\"Français\",E1044)))","v":0}]
[1044,null,null,null,null,{"$f":"IF(EMRIC!$H$4=\"Deutsch\",C1045,IF(EMRIC!$H$4=\"Nederlands\",D1045,IF(EMRIC!$H$4=\"Français\",E1045)))","v":0}]
[1045,null,null,null,null,{"$f":"IF(EMRIC!$H$4=\"Deutsch\",C1046,IF(EMRIC!$H$4=\"Nederlands\",D1046,IF(EMRIC!$H$4=\"Français\",E1046)))","v":0}]
[1046,null,null,null,null,{"$f":"IF(EMRIC!$H$4=\"Deutsch\",C1047,IF(EMRIC!$H$4=\"Nederlands\",D1047,IF(EMRIC!$H$4=\"Français\",E1047)))","v":0}]
[1047,null,null,null,null,{"$f":"IF(EMRIC!$H$4=\"Deutsch\",C1048,IF(EMRIC!$H$4=\"Nederlands\",D1048,IF(EMRIC!$H$4=\"Français\",E1048)))","v":0}]
[1048,null,null,null,null,{"$f":"IF(EMRIC!$H$4=\"Deutsch\",C1049,IF(EMRIC!$H$4=\"Nederlands\",D1049,IF(EMRIC!$H$4=\"Français\",E1049)))","v":0}]
[1049,null,null,null,null,{"$f":"IF(EMRIC!$H$4=\"Deutsch\",C1050,IF(EMRIC!$H$4=\"Nederlands\",D1050,IF(EMRIC!$H$4=\"Français\",E1050)))","v":0}]
[1050,null,null,null,null,{"$f":"IF(EMRIC!$H$4=\"Deutsch\",C1051,IF(EMRIC!$H$4=\"Nederlands\",D1051,IF(EMRIC!$H$4=\"Français\",E1051)))","v":0}]
[1051,null,null,null,null,{"$f":"IF(EMRIC!$H$4=\"Deutsch\",C1052,IF(EMRIC!$H$4=\"Nederlands\",D1052,IF(EMRIC!$H$4=\"Français\",E1052)))","v":0}]
[1052,null,null,null,null,{"$f":"IF(EMRIC!$H$4=\"Deutsch\",C1053,IF(EMRIC!$H$4=\"Nederlands\",D1053,IF(EMRIC!$H$4=\"Français\",E1053)))","v":0}]
[1053,null,null,null,null,{"$f":"IF(EMRIC!$H$4=\"Deutsch\",C1054,IF(EMRIC!$H$4=\"Nederlands\",D1054,IF(EMRIC!$H$4=\"Français\",E1054)))","v":0}]
[1054,null,null,null,null,{"$f":"IF(EMRIC!$H$4=\"Deutsch\",C1055,IF(EMRIC!$H$4=\"Nederlands\",D1055,IF(EMRIC!$H$4=\"Français\",E1055)))","v":0}]
[1055,null,null,null,null,{"$f":"IF(EMRIC!$H$4=\"Deutsch\",C1056,IF(EMRIC!$H$4=\"Nederlands\",D1056,IF(EMRIC!$H$4=\"Français\",E1056)))","v":0}]
[1056,null,null,null,null,{"$f":"IF(EMRIC!$H$4=\"Deutsch\",C1057,IF(EMRIC!$H$4=\"Nederlands\",D1057,IF(EMRIC!$H$4=\"Français\",E1057)))","v":0}]
[1057,null,null,null,null,{"$f":"IF(EMRIC!$H$4=\"Deutsch\",C1058,IF(EMRIC!$H$4=\"Nederlands\",D1058,IF(EMRIC!$H$4=\"Français\",E1058)))","v":0}]
[1058,null,null,null,null,{"$f":"IF(EMRIC!$H$4=\"Deutsch\",C1059,IF(EMRIC!$H$4=\"Nederlands\",D1059,IF(EMRIC!$H$4=\"Français\",E1059)))","v":0}]
[1059,null,null,null,null,{"$f":"IF(EMRIC!$H$4=\"Deutsch\",C1060,IF(EMRIC!$H$4=\"Nederlands\",D1060,IF(EMRIC!$H$4=\"Français\",E1060)))","v":0}]
[1060,null,null,null,null,{"$f":"IF(EMRIC!$H$4=\"Deutsch\",C1061,IF(EMRIC!$H$4=\"Nederlands\",D1061,IF(EMRIC!$H$4=\"Français\",E1061)))","v":0}]
[1061,null,null,null,null,{"$f":"IF(EMRIC!$H$4=\"Deutsch\",C1062,IF(EMRIC!$H$4=\"Nederlands\",D1062,IF(EMRIC!$H$4=\"Français\",E1062)))","v":0}]
[1062,null,null,null,null,{"$f":"IF(EMRIC!$H$4=\"Deutsch\",C1063,IF(EMRIC!$H$4=\"Nederlands\",D1063,IF(EMRIC!$H$4=\"Français\",E1063)))","v":0}]
[1063,null,null,null,null,{"$f":"IF(EMRIC!$H$4=\"Deutsch\",C1064,IF(EMRIC!$H$4=\"Nederlands\",D1064,IF(EMRIC!$H$4=\"Français\",E1064)))","v":0}]
[1064,null,null,null,null,{"$f":"IF(EMRIC!$H$4=\"Deutsch\",C1065,IF(EMRIC!$H$4=\"Nederlands\",D1065,IF(EMRIC!$H$4=\"Français\",E1065)))","v":0}]
[1065,null,null,null,null,{"$f":"IF(EMRIC!$H$4=\"Deutsch\",C1066,IF(EMRIC!$H$4=\"Nederlands\",D1066,IF(EMRIC!$H$4=\"Français\",E1066)))","v":0}]
[1066,null,null,null,null,{"$f":"IF(EMRIC!$H$4=\"Deutsch\",C1067,IF(EMRIC!$H$4=\"Nederlands\",D1067,IF(EMRIC!$H$4=\"Français\",E1067)))","v":0}]
[1067,null,null,null,null,{"$f":"IF(EMRIC!$H$4=\"Deutsch\",C1068,IF(EMRIC!$H$4=\"Nederlands\",D1068,IF(EMRIC!$H$4=\"Français\",E1068)))","v":0}]
[1068,null,null,null,null,{"$f":"IF(EMRIC!$H$4=\"Deutsch\",C1069,IF(EMRIC!$H$4=\"Nederlands\",D1069,IF(EMRIC!$H$4=\"Français\",E1069)))","v":0}]
[1069,null,null,null,null,{"$f":"IF(EMRIC!$H$4=\"Deutsch\",C1070,IF(EMRIC!$H$4=\"Nederlands\",D1070,IF(EMRIC!$H$4=\"Français\",E1070)))","v":0}]
[1070,null,null,null,null,{"$f":"IF(EMRIC!$H$4=\"Deutsch\",C1071,IF(EMRIC!$H$4=\"Nederlands\",D1071,IF(EMRIC!$H$4=\"Français\",E1071)))","v":0}]
[1071,null,null,null,null,{"$f":"IF(EMRIC!$H$4=\"Deutsch\",C1072,IF(EMRIC!$H$4=\"Nederlands\",D1072,IF(EMRIC!$H$4=\"Français\",E1072)))","v":0}]
[1072,null,null,null,null,{"$f":"IF(EMRIC!$H$4=\"Deutsch\",C1073,IF(EMRIC!$H$4=\"Nederlands\",D1073,IF(EMRIC!$H$4=\"Français\",E1073)))","v":0}]
[1073,null,null,null,null,{"$f":"IF(EMRIC!$H$4=\"Deutsch\",C1074,IF(EMRIC!$H$4=\"Nederlands\",D1074,IF(EMRIC!$H$4=\"Français\",E1074)))","v":0}]
[1074,null,null,null,null,{"$f":"IF(EMRIC!$H$4=\"Deutsch\",C1075,IF(EMRIC!$H$4=\"Nederlands\",D1075,IF(EMRIC!$H$4=\"Français\",E1075)))","v":0}]
[1075,null,null,null,null,{"$f":"IF(EMRIC!$H$4=\"Deutsch\",C1076,IF(EMRIC!$H$4=\"Nederlands\",D1076,IF(EMRIC!$H$4=\"Français\",E1076)))","v":0}]
[1076,null,null,null,null,{"$f":"IF(EMRIC!$H$4=\"Deutsch\",C1077,IF(EMRIC!$H$4=\"Nederlands\",D1077,IF(EMRIC!$H$4=\"Français\",E1077)))","v":0}]
[1077,null,null,null,null,{"$f":"IF(EMRIC!$H$4=\"Deutsch\",C1078,IF(EMRIC!$H$4=\"Nederlands\",D1078,IF(EMRIC!$H$4=\"Français\",E1078)))","v":0}]
[1078,null,null,null,null,{"$f":"IF(EMRIC!$H$4=\"Deutsch\",C1079,IF(EMRIC!$H$4=\"Nederlands\",D1079,IF(EMRIC!$H$4=\"Français\",E1079)))","v":0}]
[1079,null,null,null,null,{"$f":"IF(EMRIC!$H$4=\"Deutsch\",C1080,IF(EMRIC!$H$4=\"Nederlands\",D1080,IF(EMRIC!$H$4=\"Français\",E1080)))","v":0}]
[1080,null,null,null,null,{"$f":"IF(EMRIC!$H$4=\"Deutsch\",C1081,IF(EMRIC!$H$4=\"Nederlands\",D1081,IF(EMRIC!$H$4=\"Français\",E1081)))","v":0}]
[1081,null,null,null,null,{"$f":"IF(EMRIC!$H$4=\"Deutsch\",C1082,IF(EMRIC!$H$4=\"Nederlands\",D1082,IF(EMRIC!$H$4=\"Français\",E1082)))","v":0}]
[1082,null,null,null,null,{"$f":"IF(EMRIC!$H$4=\"Deutsch\",C1083,IF(EMRIC!$H$4=\"Nederlands\",D1083,IF(EMRIC!$H$4=\"Français\",E1083)))","v":0}]
[1083,null,null,null,null,{"$f":"IF(EMRIC!$H$4=\"Deutsch\",C1084,IF(EMRIC!$H$4=\"Nederlands\",D1084,IF(EMRIC!$H$4=\"Français\",E1084)))","v":0}]
[1084,null,null,null,null,{"$f":"IF(EMRIC!$H$4=\"Deutsch\",C1085,IF(EMRIC!$H$4=\"Nederlands\",D1085,IF(EMRIC!$H$4=\"Français\",E1085)))","v":0}]
[1085,null,null,null,null,{"$f":"IF(EMRIC!$H$4=\"Deutsch\",C1086,IF(EMRIC!$H$4=\"Nederlands\",D1086,IF(EMRIC!$H$4=\"Français\",E1086)))","v":0}]
[1086,null,null,null,null,{"$f":"IF(EMRIC!$H$4=\"Deutsch\",C1087,IF(EMRIC!$H$4=\"Nederlands\",D1087,IF(EMRIC!$H$4=\"Français\",E1087)))","v":0}]
[1087,null,null,null,null,{"$f":"IF(EMRIC!$H$4=\"Deutsch\",C1088,IF(EMRIC!$H$4=\"Nederlands\",D1088,IF(EMRIC!$H$4=\"Français\",E1088)))","v":0}]
[1088,null,null,null,null,{"$f":"IF(EMRIC!$H$4=\"Deutsch\",C1089,IF(EMRIC!$H$4=\"Nederlands\",D1089,IF(EMRIC!$H$4=\"Français\",E1089)))","v":0}]
[1089,null,null,null,null,{"$f":"IF(EMRIC!$H$4=\"Deutsch\",C1090,IF(EMRIC!$H$4=\"Nederlands\",D1090,IF(EMRIC!$H$4=\"Français\",E1090)))","v":0}]
[1090,null,null,null,null,{"$f":"IF(EMRIC!$H$4=\"Deutsch\",C1091,IF(EMRIC!$H$4=\"Nederlands\",D1091,IF(EMRIC!$H$4=\"Français\",E1091)))","v":0}]
[1091,null,null,null,null,{"$f":"IF(EMRIC!$H$4=\"Deutsch\",C1092,IF(EMRIC!$H$4=\"Nederlands\",D1092,IF(EMRIC!$H$4=\"Français\",E1092)))","v":0}]
[1092,null,null,null,null,{"$f":"IF(EMRIC!$H$4=\"Deutsch\",C1093,IF(EMRIC!$H$4=\"Nederlands\",D1093,IF(EMRIC!$H$4=\"Français\",E1093)))","v":0}]
[1093,null,null,null,null,{"$f":"IF(EMRIC!$H$4=\"Deutsch\",C1094,IF(EMRIC!$H$4=\"Nederlands\",D1094,IF(EMRIC!$H$4=\"Français\",E1094)))","v":0}]
[1094,null,null,null,null,{"$f":"IF(EMRIC!$H$4=\"Deutsch\",C1095,IF(EMRIC!$H$4=\"Nederlands\",D1095,IF(EMRIC!$H$4=\"Français\",E1095)))","v":0}]
[1095,null,null,null,null,{"$f":"IF(EMRIC!$H$4=\"Deutsch\",C1096,IF(EMRIC!$H$4=\"Nederlands\",D1096,IF(EMRIC!$H$4=\"Français\",E1096)))","v":0}]
[1096,null,null,null,null,{"$f":"IF(EMRIC!$H$4=\"Deutsch\",C1097,IF(EMRIC!$H$4=\"Nederlands\",D1097,IF(EMRIC!$H$4=\"Français\",E1097)))","v":0}]
[1097,null,null,null,null,{"$f":"IF(EMRIC!$H$4=\"Deutsch\",C1098,IF(EMRIC!$H$4=\"Nederlands\",D1098,IF(EMRIC!$H$4=\"Français\",E1098)))","v":0}]
[1098,null,null,null,null,{"$f":"IF(EMRIC!$H$4=\"Deutsch\",C1099,IF(EMRIC!$H$4=\"Nederlands\",D1099,IF(EMRIC!$H$4=\"Français\",E1099)))","v":0}]
[1099,null,null,null,null,{"$f":"IF(EMRIC!$H$4=\"Deutsch\",C1100,IF(EMRIC!$H$4=\"Nederlands\",D1100,IF(EMRIC!$H$4=\"Français\",E1100)))","v":0}]
[1100,null,null,null,null,{"$f":"IF(EMRIC!$H$4=\"Deutsch\",C1101,IF(EMRIC!$H$4=\"Nederlands\",D1101,IF(EMRIC!$H$4=\"Français\",E1101)))","v":0}]
[1101,null,null,null,null,{"$f":"IF(EMRIC!$H$4=\"Deutsch\",C1102,IF(EMRIC!$H$4=\"Nederlands\",D1102,IF(EMRIC!$H$4=\"Français\",E1102)))","v":0}]
[1102,null,null,null,null,{"$f":"IF(EMRIC!$H$4=\"Deutsch\",C1103,IF(EMRIC!$H$4=\"Nederlands\",D1103,IF(EMRIC!$H$4=\"Français\",E1103)))","v":0}]
[1103,null,null,null,null,{"$f":"IF(EMRIC!$H$4=\"Deutsch\",C1104,IF(EMRIC!$H$4=\"Nederlands\",D1104,IF(EMRIC!$H$4=\"Français\",E1104)))","v":0}]
[1104,null,null,null,null,{"$f":"IF(EMRIC!$H$4=\"Deutsch\",C1105,IF(EMRIC!$H$4=\"Nederlands\",D1105,IF(EMRIC!$H$4=\"Français\",E1105)))","v":0}]
[1105,null,null,null,null,{"$f":"IF(EMRIC!$H$4=\"Deutsch\",C1106,IF(EMRIC!$H$4=\"Nederlands\",D1106,IF(EMRIC!$H$4=\"Français\",E1106)))","v":0}]
[1106,null,null,null,null,{"$f":"IF(EMRIC!$H$4=\"Deutsch\",C1107,IF(EMRIC!$H$4=\"Nederlands\",D1107,IF(EMRIC!$H$4=\"Français\",E1107)))","v":0}]
[1107,null,null,null,null,{"$f":"IF(EMRIC!$H$4=\"Deutsch\",C1108,IF(EMRIC!$H$4=\"Nederlands\",D1108,IF(EMRIC!$H$4=\"Français\",E1108)))","v":0}]
[1108,null,null,null,null,{"$f":"IF(EMRIC!$H$4=\"Deutsch\",C1109,IF(EMRIC!$H$4=\"Nederlands\",D1109,IF(EMRIC!$H$4=\"Français\",E1109)))","v":0}]
[1109,null,null,null,null,{"$f":"IF(EMRIC!$H$4=\"Deutsch\",C1110,IF(EMRIC!$H$4=\"Nederlands\",D1110,IF(EMRIC!$H$4=\"Français\",E1110)))","v":0}]
[1110,null,null,null,null,{"$f":"IF(EMRIC!$H$4=\"Deutsch\",C1111,IF(EMRIC!$H$4=\"Nederlands\",D1111,IF(EMRIC!$H$4=\"Français\",E1111)))","v":0}]
[1111,null,null,null,null,{"$f":"IF(EMRIC!$H$4=\"Deutsch\",C1112,IF(EMRIC!$H$4=\"Nederlands\",D1112,IF(EMRIC!$H$4=\"Français\",E1112)))","v":0}]
[1112,null,null,null,null,{"$f":"IF(EMRIC!$H$4=\"Deutsch\",C1113,IF(EMRIC!$H$4=\"Nederlands\",D1113,IF(EMRIC!$H$4=\"Français\",E1113)))","v":0}]
[1113,null,null,null,null,{"$f":"IF(EMRIC!$H$4=\"Deutsch\",C1114,IF(EMRIC!$H$4=\"Nederlands\",D1114,IF(EMRIC!$H$4=\"Français\",E1114)))","v":0}]
[1114,null,null,null,null,{"$f":"IF(EMRIC!$H$4=\"Deutsch\",C1115,IF(EMRIC!$H$4=\"Nederlands\",D1115,IF(EMRIC!$H$4=\"Français\",E1115)))","v":0}]
[1115,null,null,null,null,{"$f":"IF(EMRIC!$H$4=\"Deutsch\",C1116,IF(EMRIC!$H$4=\"Nederlands\",D1116,IF(EMRIC!$H$4=\"Français\",E1116)))","v":0}]
[1116,null,null,null,null,{"$f":"IF(EMRIC!$H$4=\"Deutsch\",C1117,IF(EMRIC!$H$4=\"Nederlands\",D1117,IF(EMRIC!$H$4=\"Français\",E1117)))","v":0}]
[1117,null,null,null,null,{"$f":"IF(EMRIC!$H$4=\"Deutsch\",C1118,IF(EMRIC!$H$4=\"Nederlands\",D1118,IF(EMRIC!$H$4=\"Français\",E1118)))","v":0}]
[1118,null,null,null,null,{"$f":"IF(EMRIC!$H$4=\"Deutsch\",C1119,IF(EMRIC!$H$4=\"Nederlands\",D1119,IF(EMRIC!$H$4=\"Français\",E1119)))","v":0}]
[1119,null,null,null,null,{"$f":"IF(EMRIC!$H$4=\"Deutsch\",C1120,IF(EMRIC!$H$4=\"Nederlands\",D1120,IF(EMRIC!$H$4=\"Français\",E1120)))","v":0}]
[1120,null,null,null,null,{"$f":"IF(EMRIC!$H$4=\"Deutsch\",C1121,IF(EMRIC!$H$4=\"Nederlands\",D1121,IF(EMRIC!$H$4=\"Français\",E1121)))","v":0}]
[1121,null,null,null,null,{"$f":"IF(EMRIC!$H$4=\"Deutsch\",C1122,IF(EMRIC!$H$4=\"Nederlands\",D1122,IF(EMRIC!$H$4=\"Français\",E1122)))","v":0}]
[1122,null,null,null,null,{"$f":"IF(EMRIC!$H$4=\"Deutsch\",C1123,IF(EMRIC!$H$4=\"Nederlands\",D1123,IF(EMRIC!$H$4=\"Français\",E1123)))","v":0}]
[1123,null,null,null,null,{"$f":"IF(EMRIC!$H$4=\"Deutsch\",C1124,IF(EMRIC!$H$4=\"Nederlands\",D1124,IF(EMRIC!$H$4=\"Français\",E1124)))","v":0}]
[1124,null,null,null,null,{"$f":"IF(EMRIC!$H$4=\"Deutsch\",C1125,IF(EMRIC!$H$4=\"Nederlands\",D1125,IF(EMRIC!$H$4=\"Français\",E1125)))","v":0}]
[1125,null,null,null,null,{"$f":"IF(EMRIC!$H$4=\"Deutsch\",C1126,IF(EMRIC!$H$4=\"Nederlands\",D1126,IF(EMRIC!$H$4=\"Français\",E1126)))","v":0}]
[1126,null,null,null,null,{"$f":"IF(EMRIC!$H$4=\"Deutsch\",C1127,IF(EMRIC!$H$4=\"Nederlands\",D1127,IF(EMRIC!$H$4=\"Français\",E1127)))","v":0}]
[1127,null,null,null,null,{"$f":"IF(EMRIC!$H$4=\"Deutsch\",C1128,IF(EMRIC!$H$4=\"Nederlands\",D1128,IF(EMRIC!$H$4=\"Français\",E1128)))","v":0}]
[1128,null,null,null,null,{"$f":"IF(EMRIC!$H$4=\"Deutsch\",C1129,IF(EMRIC!$H$4=\"Nederlands\",D1129,IF(EMRIC!$H$4=\"Français\",E1129)))","v":0}]
[1129,null,null,null,null,{"$f":"IF(EMRIC!$H$4=\"Deutsch\",C1130,IF(EMRIC!$H$4=\"Nederlands\",D1130,IF(EMRIC!$H$4=\"Français\",E1130)))","v":0}]
[1130,null,null,null,null,{"$f":"IF(EMRIC!$H$4=\"Deutsch\",C1131,IF(EMRIC!$H$4=\"Nederlands\",D1131,IF(EMRIC!$H$4=\"Français\",E1131)))","v":0}]
[1131,null,null,null,null,{"$f":"IF(EMRIC!$H$4=\"Deutsch\",C1132,IF(EMRIC!$H$4=\"Nederlands\",D1132,IF(EMRIC!$H$4=\"Français\",E1132)))","v":0}]
[1132,null,null,null,null,{"$f":"IF(EMRIC!$H$4=\"Deutsch\",C1133,IF(EMRIC!$H$4=\"Nederlands\",D1133,IF(EMRIC!$H$4=\"Français\",E1133)))","v":0}]
[1133,null,null,null,null,{"$f":"IF(EMRIC!$H$4=\"Deutsch\",C1134,IF(EMRIC!$H$4=\"Nederlands\",D1134,IF(EMRIC!$H$4=\"Français\",E1134)))","v":0}]
[1134,null,null,null,null,{"$f":"IF(EMRIC!$H$4=\"Deutsch\",C1135,IF(EMRIC!$H$4=\"Nederlands\",D1135,IF(EMRIC!$H$4=\"Français\",E1135)))","v":0}]
[1135]
[1136]
[1137]
[1138]
[1139]
[1140]
[1141]
[1142]
[1143]
[1144]
[1145]
[1146]
[1147]
[1148]
[1149]
[1150]
[1151]
[1152]
[1153]
[1154]
[1155]
[1156]
[1157]
[1158]
[1159]
[1160]
[1161]
[1162]
[1163]
[1164]
[1165]
[1166]
[1167]
[1168]
[1169]
[1170]
[1171]
[1172]
[1173]
[1174]
[1175]
[1176]
[1177]
[1178]
[1179]
[1180]
[1181]
[1182]
[1183]
[1184]
[1185]
[1186]
[1187]
[1188]
[1189]
[1190]
[1191]
[1192]
[1193]
[1194]
[1195]
[1196]
[1197]
[1198]
[1199]
[1200]
[1201]
[1202]
[1203]
[1204]
[1205]
[1206]
[1207]
[1208]
[1209]
[1210]
[1211]
[1212]

{"sheet":"Material-Materiaal-Matériel","index":4,"n_rows":84,"n_cols":20,"rows_kept":84,"cut":false,"hidden":true,"merged":[[1,1,1,2],[7,9,7,10],[8,9,8,10],[4,2,4,8],[16,2,16,8],[9,2,9,8],[10,2,10,8],[5,2,5,8],[6,2,6,8],[7,2,7,8],[8,2,8,8],[11,2,11,8],[12,2,12,8],[13,2,13,8],[14,2,14,8],[15,2,15,8],[4,9,4,10],[3,1,3,8],[5,9,5,10],[6,9,6,10],[17,2,17,8],[18,2,18,8],[19,2,19,8],[20,2,20,8],[21,2,21,8],[22,2,22,8],[23,2,23,8],[24,2,24,8],[25,2,25,8],[38,2,38,8],[39,2,39,8],[26,2,26,8],[27,2,27,8],[28,2,28,8],[29,2,29,8],[30,2,30,8],[31,2,31,8],[32,2,32,8],[33,2,33,8],[34,2,34,8],[35,2,35,8],[36,2,36,8],[37,2,37,8],[53,2,53,8],[40,2,40,8],[41,2,41,8],[42,2,42,8],[43,2,43,8],[44,2,44,8],[45,2,45,8],[46,2,46,8],[47,2,47,8],[48,2,48,8],[49,2,49,8],[50,2,50,8],[51,2,51,8],[52,2,52,8],[73,2,73,8],[62,2,62,8],[54,2,54,8],[55,2,55,8],[56,2,56,8],[57,2,57,8],[58,2,58,8],[59,2,59,8],[60,2,60,8],[61,2,61,8],[64,2,64,8],[65,2,65,8],[66,2,66,8],[67,2,67,8],[68,2,68,8],[69,2,69,8],[70,2,70,8],[71,2,71,8],[72,2,72,8],[29,9,29,10],[20,9,20,10],[21,9,21,10],[22,9,22,10],[23,9,23,10],[24,9,24,10],[41,9,41,10],[86,2,86,8],[87,2,87,8],[80,2,80,8],[81,2,81,8],[82,2,82,8],[83,2,83,8],[84,2,84,8],[85,2,85,8],[76,2,76,8],[77,2,77,8],[78,2,78,8],[79,2,79,8],[25,9,25,10],[26,9,26,10],[27,9,27,10],[74,2,74,8],[63,2,63,8],[17,9,17,10],[18,9,18,10],[19,9,19,10],[14,9,14,10],[15,9,15,10],[16,9,16,10],[28,9,28,10],[9,9,9,10],[10,9,10,10],[11,9,11,10],[12,9,12,10],[13,9,13,10],[42,9,42,10],[30,9,30,10],[31,9,31,10],[32,9,32,10],[33,9,33,10],[34,9,34,10],[35,9,35,10],[36,9,36,10],[37,9,37,10],[38,9,38,10],[39,9,39,10],[40,9,40,10],[55,9,55,10],[56,9,56,10],[43,9,43,10],[44,9,44,10],[45,9,45,10],[46,9,46,10],[47,9,47,10],[48,9,48,10],[49,9,49,10],[50,9,50,10],[51,9,51,10],[52,9,52,10],[53,9,53,10],[54,9,54,10],[74,9,74,10],[75,9,75,10],[76,9,76,10],[77,9,77,10],[63,9,63,10],[64,9,64,10],[57,9,57,10],[58,9,58,10],[59,9,59,10],[60,9,60,10],[61,9,61,10],[62,9,62,10],[65,9,65,10],[66,9,66,10],[67,9,67,10],[68,9,68,10],[69,9,69,10],[70,9,70,10],[71,9,71,10],[72,9,72,10],[73,9,73,10],[75,2,75,8],[86,9,86,10],[87,9,87,10],[88,9,88,10],[80,9,80,10],[81,9,81,10],[82,9,82,10],[83,9,83,10],[84,9,84,10],[85,9,85,10],[78,9,78,10],[79,9,79,10],[88,2,88,8]]}
[]
[null,{"$f":"IF(EMRIC!$H$4=\"Deutsch\",\"Materialien\",IF(EMRIC!$H$4=\"Nederlands\",\"Materialen\",IF(EMRIC!$H$4=\"Français\",\"Matériel\")))","v":"Materialen"}]
[]
[null,{"$f":"V!F86","v":"(Gelieve het gewenste aantal in te voeren in de vakken met de zwarte omranding. De betreffende informatie wordt automatisch in de materialenlijst op het rode tabblad ingevoerd.)"}]
[{"$f":"IF($B5=\"\",\"\",MAX($A$4:$A4)+1)","v":""}]
[{"$f":"IF($B6=\"\",\"\",MAX($A$4:$A5)+1)","v":""},null,{"$f":"IF(EMRIC!$H$4=\"Deutsch\",\"Batterie\",IF(EMRIC!$H$4=\"Nederlands\",\"Accu\",IF(EMRIC!$H$4=\"Français\",\"Batterie\")))","v":"Accu"},null,null,null,null,null,null,null,null,null,null,null,null,null,null,null,null,1]
[{"$f":"IF($B7=\"\",\"\",MAX($A$4:$A6)+1)","v":""},null,{"$f":"IF(EMRIC!$H$4=\"Deutsch\",\"Atemschutzmaske + Filter\",IF(EMRIC!$H$4=\"Nederlands\",\"Adembescherming + filter\",IF(EMRIC!$H$4=\"Français\",\"Protection des voies respiratoires + filtre\")))","v":"Adembescherming + filter"},null,null,null,null,null,null,null,null,null,null,null,null,null,null,null,null,2]
[{"$f":"IF($B8=\"\",\"\",MAX($A$4:$A7)+1)","v":""},null,{"$f":"IF(EMRIC!$H$4=\"Deutsch\",\"Atemschutzflasche\",IF(EMRIC!$H$4=\"Nederlands\",\"Ademluchtcilinder\",IF(EMRIC!$H$4=\"Français\",\"Bouteille d'oxygène\")))","v":"Ademluchtcilinder"},null,null,null,null,null,null,null,null,null,null,null,null,null,null,null,null,3]
[{"$f":"IF($B9=\"\",\"\",MAX($A$4:$A8)+1)","v":""},null,{"$f":"IF(EMRIC!$H$4=\"Deutsch\",\"Atemschutzgerät(e)\",IF(EMRIC!$H$4=\"Nederlands\",\"Ademluchttoestel(len)\",IF(EMRIC!$H$4=\"Français\",\"Appareil(s) respiratoires\")))","v":"Ademluchttoestel(len)"},null,null,null,null,null,null,null,null,null,null,null,null,null,null,null,null,4]
[{"$f":"IF($B10=\"\",\"\",MAX($A$4:$A9)+1)","v":""},null,{"$f":"IF(EMRIC!$H$4=\"Deutsch\",\"Fachberater - Gefahrgut\",IF(EMRIC!$H$4=\"Nederlands\",\"Adviseur Gevaarlijke Stoffen\",IF(EMRIC!$H$4=\"Français\",\"Conseiller substances dangereuses\")))","v":"Adviseur Gevaarlijke Stoffen"},null,null,null,null,null,null,null,null,null,null,null,null,null,null,null,null,5]
[{"$f":"IF($B11=\"\",\"\",MAX($A$4:$A10)+1)","v":""},null,{"$f":"IF(EMRIC!$H$4=\"Deutsch\",\"Dichtkissen\",IF(EMRIC!$H$4=\"Nederlands\",\"Afdichtingskussen\",IF(EMRIC!$H$4=\"Français\",\"Coussin d'étanchéité\")))","v":"Afdichtingskussen"},null,null,null,null,null,null,null,null,null,null,null,null,null,null,null,null,6]
[{"$f":"IF($B12=\"\",\"\",MAX($A$4:$A11)+1)","v":""},null,{"$f":"IF(EMRIC!$H$4=\"Deutsch\",\"Stromaggregat\",IF(EMRIC!$H$4=\"Nederlands\",\"Aggregaat\",IF(EMRIC!$H$4=\"Français\",\"Groupe électrogène\")))","v":"Aggregaat"},null,null,null,null,null,null,null,null,null,null,null,null,null,null,null,null,7]
[{"$f":"IF($B13=\"\",\"\",MAX($A$4:$A12)+1)","v":""},null,{"$f":"IF(EMRIC!$H$4=\"Deutsch\",\"Drehleiter (DL-K)\",IF(EMRIC!$H$4=\"Nederlands\",\"Autoladder (AL)\",IF(EMRIC!$H$4=\"Français\",\"Auto-échelle\")))","v":"Autoladder (AL)"},null,null,null,null,null,null,null,null,null,null,null,null,null,null,null,null,8]
[{"$f":"IF($B14=\"\",\"\",MAX($A$4:$A13)+1)","v":""},null,{"$f":"IF(EMRIC!$H$4=\"Deutsch\",\"Löschgruppenfahrzeug (LF)\",IF(EMRIC!$H$4=\"Nederlands\",\"Autospuit\",IF(EMRIC!$H$4=\"Français\",\"Autopompe\")))","v":"Autospuit"},null,null,null,null,null,null,null,null,null,null,null,null,null,null,null,null,9]
[{"$f":"IF($B15=\"\",\"\",MAX($A$4:$A14)+1)","v":""},null,{"$f":"IF(EMRIC!$H$4=\"Deutsch\",\"Löschboot\",IF(EMRIC!$H$4=\"Nederlands\",\"Blusboot\",IF(EMRIC!$H$4=\"Français\",\"Bateau-pompe\")))","v":"Blusboot"},null,null,null,null,null,null,null,null,null,null,null,null,null,null,null,null,10]
[{"$f":"IF($B16=\"\",\"\",MAX($A$4:$A15)+1)","v":""},null,{"$f":"IF(EMRIC!$H$4=\"Deutsch\",\"Löschzug (D)\",IF(EMRIC!$H$4=\"Nederlands\",\"Bluspeloton (D)\",IF(EMRIC!$H$4=\"Français\",\"Peloton d'extinction (D)\")))","v":"Bluspeloton (D)"},null,null,null,null,null,null,null,null,null,null,null,null,null,null,null,null,11]
[{"$f":"IF($B17=\"\",\"\",MAX($A$4:$A16)+1)","v":""},null,{"$f":"IF(EMRIC!$H$4=\"Deutsch\",\"Schaummittel\",IF(EMRIC!$H$4=\"Nederlands\",\"Blusschuim\",IF(EMRIC!$H$4=\"Français\",\"Mousse carbonique\")))","v":"Blusschuim"},null,null,null,null,null,null,null,null,null,null,null,null,null,null,null,null,12]
[{"$f":"IF($B18=\"\",\"\",MAX($A$4:$A17)+1)","v":""},null,{"$f":"IF(EMRIC!$H$4=\"Deutsch\",\"Löschwasserbehälter\",IF(EMRIC!$H$4=\"Nederlands\",\"Bluswaterreservoir\",IF(EMRIC!$H$4=\"Français\",\"Réservoir d'eau d'extinction\")))","v":"Bluswaterreservoir"},null,null,null,null,null,null,null,null,null,null,null,null,null,null,null,null,13]
[{"$f":"IF($B19=\"\",\"\",MAX($A$4:$A18)+1)","v":""},null,{"$f":"IF(EMRIC!$H$4=\"Deutsch\",\"Löschwasserbeförderung\",IF(EMRIC!$H$4=\"Nederlands\",\"Bluswatertransport\",IF(EMRIC!$H$4=\"Français\",\"Transport d'eau d'extinction\")))","v":"Bluswatertransport"},null,null,null,null,null,null,null,null,null,null,null,null,null,null,null,null,14]
[{"$f":"IF($B20=\"\",\"\",MAX($A$4:$A19)+1)","v":""},null,{"$f":"IF(EMRIC!$H$4=\"Deutsch\",\"Löschwasserversorgung\",IF(EMRIC!$H$4=\"Nederlands\",\"Bluswaterverzorging\",IF(EMRIC!$H$4=\"Français\",\"Alimentation eau d'extinction\")))","v":"Bluswaterverzorging"},null,null,null,null,null,null,null,null,null,null,null,null,null,null,null,null,15]
[{"$f":"IF($B21=\"\",\"\",MAX($A$4:$A20)+1)","v":""},null,{"$f":"IF(EMRIC!$H$4=\"Deutsch\",\"Waldbrandlöschfahrzeug\",IF(EMRIC!$H$4=\"Nederlands\",\"Bosbrandvoertuig\",IF(EMRIC!$H$4=\"Français\",\"Véhicle feux de forêts\")))","v":"Bosbrandvoertuig"},null,null,null,null,null,null,null,null,null,null,null,null,null,null,null,null,16]
[{"$f":"IF($B22=\"\",\"\",MAX($A$4:$A21)+1)","v":""},null,{"$f":"IF(EMRIC!$H$4=\"Deutsch\",\"Feuerlöscher\",IF(EMRIC!$H$4=\"Nederlands\",\"Brandplusapparaat\",IF(EMRIC!$H$4=\"Français\",\"Extincteur\")))","v":"Brandplusapparaat"},null,null,null,null,null,null,null,null,null,null,null,null,null,null,null,null,17]
[{"$f":"IF($B23=\"\",\"\",MAX($A$4:$A22)+1)","v":""},null,{"$f":"IF(EMRIC!$H$4=\"Deutsch\",\"Behelfsbrücke/Pontonbrücke\",IF(EMRIC!$H$4=\"Nederlands\",\"Pontonbrug\",IF(EMRIC!$H$4=\"Français\",\"Pont ponton\")))","v":"Pontonbrug"},null,null,null,null,null,null,null,null,null,null,null,null,null,null,null,null,18]
[{"$f":"IF($B24=\"\",\"\",MAX($A$4:$A23)+1)","v":""},null,{"$f":"IF(EMRIC!$H$4=\"Deutsch\",\"Radlader, Frontlader\",IF(EMRIC!$H$4=\"Nederlands\",\"Bulldozer\",IF(EMRIC!$H$4=\"Français\",\"Bulldozer\")))","v":"Bulldozer"},null,null,null,null,null,null,null,null,null,null,null,null,null,null,null,null,19]
[{"$f":"IF($B25=\"\",\"\",MAX($A$4:$A24)+1)","v":""},null,{"$f":"IF(EMRIC!$H$4=\"Deutsch\",\"Bus, Omnibus\",IF(EMRIC!$H$4=\"Nederlands\",\"Bus\",IF(EMRIC!$H$4=\"Français\",\"Bus\")))","v":"Bus"},null,null,null,null,null,null,null,null,null,null,null,null,null,null,null,null,20]
[{"$f":"IF($B26=\"\",\"\",MAX($A$4:$A25)+1)","v":""},null,{"$f":"IF(EMRIC!$H$4=\"Deutsch\",\"Chemiekalienschutzanzug (CSA)\",IF(EMRIC!$H$4=\"Nederlands\",\"Chemiepak\",IF(EMRIC!$H$4=\"Français\",\"Combinaison chimique\")))","v":"Chemiepak"},null,null,null,null,null,null,null,null,null,null,null,null,null,null,null,null,21]
[{"$f":"IF($B27=\"\",\"\",MAX($A$4:$A26)+1)","v":""},null,{"$f":"IF(EMRIC!$H$4=\"Deutsch\",\"Hochleistungs-, Tauchpumpe\",IF(EMRIC!$H$4=\"Nederlands\",\"Dompelpomp (groot vermogen)\",IF(EMRIC!$H$4=\"Français\",\"Pompe immergée (grande puissance)\")))","v":"Dompelpomp (groot vermogen)"},null,null,null,null,null,null,null,null,null,null,null,null,null,null,null,null,22]
[{"$f":"IF($B28=\"\",\"\",MAX($A$4:$A27)+1)","v":""},null,{"$f":"IF(EMRIC!$H$4=\"Deutsch\",\"Krankentrage\",IF(EMRIC!$H$4=\"Nederlands\",\"Draagbaar\",IF(EMRIC!$H$4=\"Français\",\"Civière, portable\")))","v":"Draagbaar"},null,null,null,null,null,null,null,null,null,null,null,null,null,null,null,null,23]
[{"$f":"IF($B29=\"\",\"\",MAX($A$4:$A28)+1)","v":""},null,{"$f":"IF(EMRIC!$H$4=\"Deutsch\",\"Trinkwasseraufbereitungsanlage\",IF(EMRIC!$H$4=\"Nederlands\",\"Drinkwaterzuiveringsinstallatie\",IF(EMRIC!$H$4=\"Français\",\"Installation de purification d'eau potable\")))","v":"Drinkwaterzuiveringsinstallatie"},null,null,null,null,null,null,null,null,null,null,null,null,null,null,null,null,24]
[{"$f":"IF($B30=\"\",\"\",MAX($A$4:$A29)+1)","v":""},null,{"$f":"IF(EMRIC!$H$4=\"Deutsch\",\"Taucher\",IF(EMRIC!$H$4=\"Nederlands\",\"Duikers\",IF(EMRIC!$H$4=\"Français\",\"Plongeurs\")))","v":"Duikers"},null,null,null,null,null,null,null,null,null,null,null,null,null,null,null,null,25]
[{"$f":"IF($B31=\"\",\"\",MAX($A$4:$A30)+1)","v":""},null,{"$f":"IF(EMRIC!$H$4=\"Deutsch\",\"Gefahrgutgruppe\",IF(EMRIC!$H$4=\"Nederlands\",\"Gevaarlijke stoffen ploeg \",IF(EMRIC!$H$4=\"Français\",\"Equipe substances dangereuses \")))","v":"Gevaarlijke stoffen ploeg "},null,null,null,null,null,null,null,null,null,null,null,null,null,null,null,null,26]
[{"$f":"IF($B32=\"\",\"\",MAX($A$4:$A31)+1)","v":""},null,{"$f":"IF(EMRIC!$H$4=\"Deutsch\",\"Wasserbeförderung mit Hochleistungspumpe und F-Schlauch\",IF(EMRIC!$H$4=\"Nederlands\",\"Grootwatertransport\",IF(EMRIC!$H$4=\"Français\",\"Transport de grandes quantités d’eau\")))","v":"Grootwatertransport"},null,null,null,null,null,null,null,null,null,null,null,null,null,null,null,null,27]
[{"$f":"IF($B33=\"\",\"\",MAX($A$4:$A32)+1)","v":""},null,{"$f":"IF(EMRIC!$H$4=\"Deutsch\",\"Abrollbehälter (AB) \",IF(EMRIC!$H$4=\"Nederlands\",\"Haakarmbak (HAB)\",IF(EMRIC!$H$4=\"Français\",\"Benne amovible (HAB)\")))","v":"Haakarmbak (HAB)"},null,null,null,null,null,null,null,null,null,null,null,null,null,null,null,null,28]
[{"$f":"IF($B34=\"\",\"\",MAX($A$4:$A33)+1)","v":""},null,{"$f":"IF(EMRIC!$H$4=\"Deutsch\",\"Wechselladerfahrzeug (WLF) \",IF(EMRIC!$H$4=\"Nederlands\",\"Haakarmvoertuig (HA) \",IF(EMRIC!$H$4=\"Français\",\"Véhicule pour benne amovible (HA)\")))","v":"Haakarmvoertuig (HA) "},null,null,null,null,null,null,null,null,null,null,null,null,null,null,null,null,29]
[{"$f":"IF($B35=\"\",\"\",MAX($A$4:$A34)+1)","v":""},null,{"$f":"IF(EMRIC!$H$4=\"Deutsch\",\"Hebekissen \",IF(EMRIC!$H$4=\"Nederlands\",\"Duikers\",IF(EMRIC!$H$4=\"Français\",\"Coussin de levage \")))","v":"Duikers"},null,null,null,null,null,null,null,null,null,null,null,null,null,null,null,null,30]
[{"$f":"IF($B36=\"\",\"\",MAX($A$4:$A35)+1)","v":""},null,{"$f":"IF(EMRIC!$H$4=\"Deutsch\",\"Absperrgitter\",IF(EMRIC!$H$4=\"Nederlands\",\"Hek \",IF(EMRIC!$H$4=\"Français\",\"Barrière\")))","v":"Hek "},null,null,null,null,null,null,null,null,null,null,null,null,null,null,null,null,31]
[{"$f":"IF($B37=\"\",\"\",MAX($A$4:$A36)+1)","v":""},null,{"$f":"IF(EMRIC!$H$4=\"Deutsch\",\"Hubschrauber\",IF(EMRIC!$H$4=\"Nederlands\",\"Helicopter\",IF(EMRIC!$H$4=\"Français\",\"Hélicoptère\")))","v":"Helicopter"},null,null,null,null,null,null,null,null,null,null,null,null,null,null,null,null,32]
[{"$f":"IF($B38=\"\",\"\",MAX($A$4:$A37)+1)","v":""},null,{"$f":"IF(EMRIC!$H$4=\"Deutsch\",\"Hubrettungsfahrzeug\",IF(EMRIC!$H$4=\"Nederlands\",\"Hoogwerker (HW) \",IF(EMRIC!$H$4=\"Français\",\"Élévateur à nacelle (HW)\")))","v":"Hoogwerker (HW) "},null,null,null,null,null,null,null,null,null,null,null,null,null,null,null,null,33]
[{"$f":"IF($B39=\"\",\"\",MAX($A$4:$A38)+1)","v":""},null,{"$f":"IF(EMRIC!$H$4=\"Deutsch\",\"Rüstwagen (RW) \",IF(EMRIC!$H$4=\"Nederlands\",\"Hulpverleningsvoertuig (HV)\",IF(EMRIC!$H$4=\"Français\",\"Véhicule d’incarcération\")))","v":"Hulpverleningsvoertuig (HV)"},null,null,null,null,null,null,null,null,null,null,null,null,null,null,null,null,34]
[{"$f":"IF($B40=\"\",\"\",MAX($A$4:$A39)+1)","v":""},null,{"$f":"IF(EMRIC!$H$4=\"Deutsch\",\"Hydraulische Schere\",IF(EMRIC!$H$4=\"Nederlands\",\"Hydraulische schaar \",IF(EMRIC!$H$4=\"Français\",\"Cisaille hydraulique\")))","v":"Hydraulische schaar "},null,null,null,null,null,null,null,null,null,null,null,null,null,null,null,null,35]
[{"$f":"IF($B41=\"\",\"\",MAX($A$4:$A40)+1)","v":""},null,{"$f":"IF(EMRIC!$H$4=\"Deutsch\",\"Autokran, Kranwagen\",IF(EMRIC!$H$4=\"Nederlands\",\"Kraanwagen\",IF(EMRIC!$H$4=\"Français\",\"Camion grue\")))","v":"Kraanwagen"},null,null,null,null,null,null,null,null,null,null,null,null,null,null,null,null,36]
[{"$f":"IF($B42=\"\",\"\",MAX($A$4:$A41)+1)","v":""},null,{"$f":"IF(EMRIC!$H$4=\"Deutsch\",\"Brenn- und Schneidegeräte\",IF(EMRIC!$H$4=\"Nederlands\",\"Las- en snijapparatuur\",IF(EMRIC!$H$4=\"Français\",\"Appareil de soudage et découpage\")))","v":"Las- en snijapparatuur"},null,null,null,null,null,null,null,null,null,null,null,null,null,null,null,null,37]
[{"$f":"IF($B43=\"\",\"\",MAX($A$4:$A42)+1)","v":""},null,{"$f":"IF(EMRIC!$H$4=\"Deutsch\",\"Beleuchtungsgeräte \",IF(EMRIC!$H$4=\"Nederlands\",\"Lichtaggregaten\",IF(EMRIC!$H$4=\"Français\",\"Groupes d’éclairage\")))","v":"Lichtaggregaten"},null,null,null,null,null,null,null,null,null,null,null,null,null,null,null,null,38]
[{"$f":"IF($B44=\"\",\"\",MAX($A$4:$A43)+1)","v":""},null,{"$f":"IF(EMRIC!$H$4=\"Deutsch\",\"Seilwinde\",IF(EMRIC!$H$4=\"Nederlands\",\"Lier\",IF(EMRIC!$H$4=\"Français\",\"Treuil\")))","v":"Lier"},null,null,null,null,null,null,null,null,null,null,null,null,null,null,null,null,39]
[{"$f":"IF($B45=\"\",\"\",MAX($A$4:$A44)+1)","v":""},null,{"$f":"IF(EMRIC!$H$4=\"Deutsch\",\"Lautsprecherfahrzeug\",IF(EMRIC!$H$4=\"Nederlands\",\"Luidsprekervoertuig\",IF(EMRIC!$H$4=\"Français\",\"Vehicule haut-parleur\")))","v":"Luidsprekervoertuig"},null,null,null,null,null,null,null,null,null,null,null,null,null,null,null,null,40]
[{"$f":"IF($B46=\"\",\"\",MAX($A$4:$A45)+1)","v":""},null,{"$f":"IF(EMRIC!$H$4=\"Deutsch\",\"Gerätewagen (GW)\",IF(EMRIC!$H$4=\"Nederlands\",\"Materieelwagen\",IF(EMRIC!$H$4=\"Français\",\"Véhicule matériel\")))","v":"Materieelwagen"},null,null,null,null,null,null,null,null,null,null,null,null,null,null,null,null,41]
[{"$f":"IF($B47=\"\",\"\",MAX($A$4:$A46)+1)","v":""},null,{"$f":"IF(EMRIC!$H$4=\"Deutsch\",\"Gerätewagen Atemschutz\",IF(EMRIC!$H$4=\"Nederlands\",\"Materieelwagen Perslucht\",IF(EMRIC!$H$4=\"Français\",\"Véhicule d’assistance respiratoire\")))","v":"Materieelwagen Perslucht"},null,null,null,null,null,null,null,null,null,null,null,null,null,null,null,null,42]
[{"$f":"IF($B48=\"\",\"\",MAX($A$4:$A47)+1)","v":""},null,{"$f":"IF(EMRIC!$H$4=\"Deutsch\",\"Gerätewagen Umweltschutz\",IF(EMRIC!$H$4=\"Nederlands\",\"Materieelwagen milieu\",IF(EMRIC!$H$4=\"Français\",\"Véhicule protection environnement\")))","v":"Materieelwagen milieu"},null,null,null,null,null,null,null,null,null,null,null,null,null,null,null,null,43]
[{"$f":"IF($B49=\"\",\"\",MAX($A$4:$A48)+1)","v":""},null,{"$f":"IF(EMRIC!$H$4=\"Deutsch\",\"Messtrupp\",IF(EMRIC!$H$4=\"Nederlands\",\"Verkenningseenheid\",IF(EMRIC!$H$4=\"Français\",\"Équipe de mesure\")))","v":"Verkenningseenheid"},null,null,null,null,null,null,null,null,null,null,null,null,null,null,null,null,44]
[{"$f":"IF($B50=\"\",\"\",MAX($A$4:$A49)+1)","v":""},null,{"$f":"IF(EMRIC!$H$4=\"Deutsch\",\"ABC Erkunder Kw\",IF(EMRIC!$H$4=\"Nederlands\",\"Meetvoertuig\",IF(EMRIC!$H$4=\"Français\",\"Voiture de mesure\")))","v":"Meetvoertuig"},null,null,null,null,null,null,null,null,null,null,null,null,null,null,null,null,45]
[{"$f":"IF($B51=\"\",\"\",MAX($A$4:$A50)+1)","v":""},null,{"$f":"IF(EMRIC!$H$4=\"Deutsch\",\"DEKON-P\",IF(EMRIC!$H$4=\"Nederlands\",\"Decontaminatie-unit\",IF(EMRIC!$H$4=\"Français\",\"Véhicule de décontamination des personnes\")))","v":"Decontaminatie-unit"},null,null,null,null,null,null,null,null,null,null,null,null,null,null,null,null,46]
[{"$f":"IF($B52=\"\",\"\",MAX($A$4:$A51)+1)","v":""},null,{"$f":"IF(EMRIC!$H$4=\"Deutsch\",\"DEKON-V\",IF(EMRIC!$H$4=\"Nederlands\",\"Decontaminatie-unit\",IF(EMRIC!$H$4=\"Français\",\"Conteneur/décontamination de blessés\")))","v":"Decontaminatie-unit"},null,null,null,null,null,null,null,null,null,null,null,null,null,null,null,null,47]
[{"$f":"IF($B53=\"\",\"\",MAX($A$4:$A52)+1)","v":""},null,{"$f":"IF(EMRIC!$H$4=\"Deutsch\",\"Einsatzleiter /Einsatzleitung \",IF(EMRIC!$H$4=\"Nederlands\",\"Operationeel leider\",IF(EMRIC!$H$4=\"Français\",\"Responsable opérationnel\")))","v":"Operationeel leider"},null,null,null,null,null,null,null,null,null,null,null,null,null,null,null,null,48]
[{"$f":"IF($B54=\"\",\"\",MAX($A$4:$A53)+1)","v":""},null,{"$f":"IF(EMRIC!$H$4=\"Deutsch\",\"Ortungsgerät\",IF(EMRIC!$H$4=\"Nederlands\",\"Opsporingsapparatuur (lokaliseren)\",IF(EMRIC!$H$4=\"Français\",\"Appareil de repérage\")))","v":"Opsporingsapparatuur (lokaliseren)"},null,null,null,null,null,null,null,null,null,null,null,null,null,null,null,null,49]
[{"$f":"IF($B55=\"\",\"\",MAX($A$4:$A54)+1)","v":""},null,{"$f":"IF(EMRIC!$H$4=\"Deutsch\",\"Auffangbehälter\",IF(EMRIC!$H$4=\"Nederlands\",\"Opvangreservoir\",IF(EMRIC!$H$4=\"Français\",\"Réservoir de réception\")))","v":"Opvangreservoir"},null,null,null,null,null,null,null,null,null,null,null,null,null,null,null,null,50]
[{"$f":"IF($B56=\"\",\"\",MAX($A$4:$A55)+1)","v":""},null,{"$f":"IF(EMRIC!$H$4=\"Deutsch\",\"Standrohr\",IF(EMRIC!$H$4=\"Nederlands\",\"Opzetstuk\",IF(EMRIC!$H$4=\"Français\",\"Embout, clé de barrage\")))","v":"Opzetstuk"},null,null,null,null,null,null,null,null,null,null,null,null,null,null,null,null,51]
[{"$f":"IF($B57=\"\",\"\",MAX($A$4:$A56)+1)","v":""},null,{"$f":"IF(EMRIC!$H$4=\"Deutsch\",\"Pressluftatmer (PA)\",IF(EMRIC!$H$4=\"Nederlands\",\"Persluchtapparaat\",IF(EMRIC!$H$4=\"Français\",\"Appareil à air comprimé\")))","v":"Persluchtapparaat"},null,null,null,null,null,null,null,null,null,null,null,null,null,null,null,null,52]
[{"$f":"IF($B58=\"\",\"\",MAX($A$4:$A57)+1)","v":""},null,{"$f":"IF(EMRIC!$H$4=\"Deutsch\",\"Mannschaftstransportfahrzeug (MTF)\",IF(EMRIC!$H$4=\"Nederlands\",\"Personeel-/materieelwagen (PM)\",IF(EMRIC!$H$4=\"Français\",\"Véhicule personnel/matériel (PM)\")))","v":"Personeel-/materieelwagen (PM)"},null,null,null,null,null,null,null,null,null,null,null,null,null,null,null,null,53]
[{"$f":"IF($B59=\"\",\"\",MAX($A$4:$A58)+1)","v":""},null,{"$f":"IF(EMRIC!$H$4=\"Deutsch\",\"Pulverlöschgerät\",IF(EMRIC!$H$4=\"Nederlands\",\"Poederblusser\",IF(EMRIC!$H$4=\"Français\",\"Extincteur à poudre\")))","v":"Poederblusser"},null,null,null,null,null,null,null,null,null,null,null,null,null,null,null,null,54]
[{"$f":"IF($B60=\"\",\"\",MAX($A$4:$A59)+1)","v":""},null,{"$f":"IF(EMRIC!$H$4=\"Deutsch\",\"Trockentanklöschfahrzeug (TroTLF)\",IF(EMRIC!$H$4=\"Nederlands\",\"Poederblusvoertuig (PB)\",IF(EMRIC!$H$4=\"Français\",\"Véhicule poudre (PB)\")))","v":"Poederblusvoertuig (PB)"},null,null,null,null,null,null,null,null,null,null,null,null,null,null,null,null,55]
[{"$f":"IF($B61=\"\",\"\",MAX($A$4:$A60)+1)","v":""},null,{"$f":"IF(EMRIC!$H$4=\"Deutsch\",\"Handfunkgerät, Zwei(2)Meter- Funkgerät\",IF(EMRIC!$H$4=\"Nederlands\",\"Portofoon\",IF(EMRIC!$H$4=\"Français\",\"Talkie-walkie\")))","v":"Portofoon"},null,null,null,null,null,null,null,null,null,null,null,null,null,null,null,null,56]
[{"$f":"IF($B62=\"\",\"\",MAX($A$4:$A61)+1)","v":""},null,{"$f":"IF(EMRIC!$H$4=\"Deutsch\",\"Instandsetzungseinheiten\",IF(EMRIC!$H$4=\"Nederlands\",\"Potentieel ter instandhouding\",IF(EMRIC!$H$4=\"Français\",\"Unités de maintien\")))","v":"Potentieel ter instandhouding"},null,null,null,null,null,null,null,null,null,null,null,null,null,null,null,null,57]
[{"$f":"IF($B63=\"\",\"\",MAX($A$4:$A62)+1)","v":""},null,{"$f":"IF(EMRIC!$H$4=\"Deutsch\",\"Rettungshundestaffel\",IF(EMRIC!$H$4=\"Nederlands\",\"Reddingshondenploeg\",IF(EMRIC!$H$4=\"Français\",\"Equipe chiens de sauvetage\")))","v":"Reddingshondenploeg"},null,null,null,null,null,null,null,null,null,null,null,null,null,null,null,null,58]
[{"$f":"IF($B64=\"\",\"\",MAX($A$4:$A63)+1)","v":""},null,{"$f":"IF(EMRIC!$H$4=\"Deutsch\",\"Schaumlöschfahrzeug (SLF)\",IF(EMRIC!$H$4=\"Nederlands\",\"Schuimblusvoertuig (SB)\",IF(EMRIC!$H$4=\"Français\",\"Véhicule émulseur (SB)\")))","v":"Schuimblusvoertuig (SB)"},null,null,null,null,null,null,null,null,null,null,null,null,null,null,null,null,59]
[{"$f":"IF($B65=\"\",\"\",MAX($A$4:$A64)+1)","v":""},null,{"$f":"IF(EMRIC!$H$4=\"Deutsch\",\"Schaumrohr\",IF(EMRIC!$H$4=\"Nederlands\",\"Schuimstraalpijp\",IF(EMRIC!$H$4=\"Français\",\"Tuyau émulseur\")))","v":"Schuimstraalpijp"},null,null,null,null,null,null,null,null,null,null,null,null,null,null,null,null,60]
[{"$f":"IF($B66=\"\",\"\",MAX($A$4:$A65)+1)","v":""},null,{"$f":"IF(EMRIC!$H$4=\"Deutsch\",\"Schaufelbagger\",IF(EMRIC!$H$4=\"Nederlands\",\"Shovel\",IF(EMRIC!$H$4=\"Français\",\"Chouleur\")))","v":"Shovel"},null,null,null,null,null,null,null,null,null,null,null,null,null,null,null,null,61]
[{"$f":"IF($B67=\"\",\"\",MAX($A$4:$A66)+1)","v":""},null,{"$f":"IF(EMRIC!$H$4=\"Deutsch\",\"Schlauch\",IF(EMRIC!$H$4=\"Nederlands\",\"Slang\",IF(EMRIC!$H$4=\"Français\",\"Tuyau\")))","v":"Slang"},null,null,null,null,null,null,null,null,null,null,null,null,null,null,null,null,62]
[{"$f":"IF($B68=\"\",\"\",MAX($A$4:$A67)+1)","v":""},null,{"$f":"IF(EMRIC!$H$4=\"Deutsch\",\"Schlauchbrücke\",IF(EMRIC!$H$4=\"Nederlands\",\"Slangenbrug\",IF(EMRIC!$H$4=\"Français\",\"Madriers de franchissement\")))","v":"Slangenbrug"},null,null,null,null,null,null,null,null,null,null,null,null,null,null,null,null,63]
[{"$f":"IF($B69=\"\",\"\",MAX($A$4:$A68)+1)","v":""},null,{"$f":"IF(EMRIC!$H$4=\"Deutsch\",\"Schlauchwagen (SW)\",IF(EMRIC!$H$4=\"Nederlands\",\"Slangenwagen (SW)\",IF(EMRIC!$H$4=\"Français\",\"Camion à tuyaux (SW)\")))","v":"Slangenwagen (SW)"},null,null,null,null,null,null,null,null,null,null,null,null,null,null,null,null,64]
[{"$f":"IF($B70=\"\",\"\",MAX($A$4:$A69)+1)","v":""},null,{"$f":"IF(EMRIC!$H$4=\"Deutsch\",\"F-Schlauch\",IF(EMRIC!$H$4=\"Nederlands\",\"Slangleiding 150 mm\",IF(EMRIC!$H$4=\"Français\",\"Tuyau 150 mm\")))","v":"Slangleiding 150 mm"},null,null,null,null,null,null,null,null,null,null,null,null,null,null,null,null,65]
[{"$f":"IF($B71=\"\",\"\",MAX($A$4:$A70)+1)","v":""},null,{"$f":"IF(EMRIC!$H$4=\"Deutsch\",\"Spreizer\",IF(EMRIC!$H$4=\"Nederlands\",\"Spreider (hydraulisch)\",IF(EMRIC!$H$4=\"Français\",\"Ecarteur (hydraulique)\")))","v":"Spreider (hydraulisch)"},null,null,null,null,null,null,null,null,null,null,null,null,null,null,null,null,66]
[{"$f":"IF($B72=\"\",\"\",MAX($A$4:$A71)+1)","v":""},null,{"$f":"IF(EMRIC!$H$4=\"Deutsch\",\"Strahlrohr\",IF(EMRIC!$H$4=\"Nederlands\",\"Straalpijp\",IF(EMRIC!$H$4=\"Français\",\"Lance\")))","v":"Straalpijp"},null,null,null,null,null,null,null,null,null,null,null,null,null,null,null,null,67]
[{"$f":"IF($B73=\"\",\"\",MAX($A$4:$A72)+1)","v":""},null,{"$f":"IF(EMRIC!$H$4=\"Deutsch\",\"Kontaminationsschutzanzug\",IF(EMRIC!$H$4=\"Nederlands\",\"Stralingsbeschermende kleding\",IF(EMRIC!$H$4=\"Français\",\"Vêtement anti-radiation\")))","v":"Stralingsbeschermende kleding"},null,null,null,null,null,null,null,null,null,null,null,null,null,null,null,null,68]
[{"$f":"IF($B74=\"\",\"\",MAX($A$4:$A73)+1)","v":""},null,{"$f":"IF(EMRIC!$H$4=\"Deutsch\",\"Tanklöschfahrzeug (TLF)\",IF(EMRIC!$H$4=\"Nederlands\",\"Tankautospuit (TS)\",IF(EMRIC!$H$4=\"Français\",\"Engin-pompe (TS)\")))","v":"Tankautospuit (TS)"},null,null,null,null,null,null,null,null,null,null,null,null,null,null,null,null,69]
[{"$f":"IF($B75=\"\",\"\",MAX($A$4:$A74)+1)","v":""},null,{"$f":"IF(EMRIC!$H$4=\"Deutsch\",\"B-Schlauch\",IF(EMRIC!$H$4=\"Nederlands\",\"Toevoerslang ('3-duimer')\",IF(EMRIC!$H$4=\"Français\",\"Tuyau d’alimentation\")))","v":"Toevoerslang ('3-duimer')"},null,null,null,null,null,null,null,null,null,null,null,null,null,null,null,null,70]
[{"$f":"IF($B76=\"\",\"\",MAX($A$4:$A75)+1)","v":""},null,{"$f":"IF(EMRIC!$H$4=\"Deutsch\",\"Bergefass\",IF(EMRIC!$H$4=\"Nederlands\",\"Vat\",IF(EMRIC!$H$4=\"Français\",\"Tonneau\")))","v":"Vat"},null,null,null,null,null,null,null,null,null,null,null,null,null,null,null,null,71]
[{"$f":"IF($B77=\"\",\"\",MAX($A$4:$A76)+1)","v":""},null,{"$f":"IF(EMRIC!$H$4=\"Deutsch\",\"Warnschutzweste\",IF(EMRIC!$H$4=\"Nederlands\",\"Veiligheidsvest\",IF(EMRIC!$H$4=\"Français\",\"Gilet de sécurité\")))","v":"Veiligheidsvest"},null,null,null,null,null,null,null,null,null,null,null,null,null,null,null,null,72]
[{"$f":"IF($B78=\"\",\"\",MAX($A$4:$A77)+1)","v":""},null,{"$f":"IF(EMRIC!$H$4=\"Deutsch\",\"Einsatzleitwagen (ELW)\",IF(EMRIC!$H$4=\"Nederlands\",\"Verbindings/commandovoertuig (VC)\",IF(EMRIC!$H$4=\"Français\",\"Véhic. commandement/liaison (VC)\")))","v":"Verbindings/commandovoertuig (VC)"},null,null,null,null,null,null,null,null,null,null,null,null,null,null,null,null,73]
[{"$f":"IF($B79=\"\",\"\",MAX($A$4:$A78)+1)","v":""},null,{"$f":"IF(EMRIC!$H$4=\"Deutsch\",\"Beleuchtungsgeräte\",IF(EMRIC!$H$4=\"Nederlands\",\"Verlichtingsmateriaal\",IF(EMRIC!$H$4=\"Français\",\"Matériel d’éclairage\")))","v":"Verlichtingsmateriaal"},null,null,null,null,null,null,null,null,null,null,null,null,null,null,null,null,74]
[{"$f":"IF($B80=\"\",\"\",MAX($A$4:$A79)+1)","v":""},null,{"$f":"IF(EMRIC!$H$4=\"Deutsch\",\"Wasserwerfer\",IF(EMRIC!$H$4=\"Nederlands\",\"Waterkanon\",IF(EMRIC!$H$4=\"Français\",\"Canon à eau\")))","v":"Waterkanon"},null,null,null,null,null,null,null,null,null,null,null,null,null,null,null,null,75]
[{"$f":"IF($B81=\"\",\"\",MAX($A$4:$A80)+1)","v":""},null,{"$f":"IF(EMRIC!$H$4=\"Deutsch\",\"Gerätewagen Wasser (GW-W)\",IF(EMRIC!$H$4=\"Nederlands\",\"Waterongevallenvoertuig (WO)\",IF(EMRIC!$H$4=\"Français\",\"Véhicule accidents sur l’eau (WO)\")))","v":"Waterongevallenvoertuig (WO)"},null,null,null,null,null,null,null,null,null,null,null,null,null,null,null,null,76]
[{"$f":"IF($B82=\"\",\"\",MAX($A$4:$A81)+1)","v":""},null,{"$f":"IF(EMRIC!$H$4=\"Deutsch\",\"Sandsack\",IF(EMRIC!$H$4=\"Nederlands\",\"Zandzak\",IF(EMRIC!$H$4=\"Français\",\"Sac de sable\")))","v":"Zandzak"},null,null,null,null,null,null,null,null,null,null,null,null,null,null,null,null,77]
[null,null,null,null,null,null,null,null,null,null,null,null,null,null,null,null,null,null,null,78]
[null,null,null,null,null,null,null,null,null,null,null,null,null,null,null,null,null,null,null,79]

{"sheet":"ANTWORT-ANTWOORD-RÉPONSE","index":5,"n_rows":46,"n_cols":29,"rows_kept":46,"cut":false,"hidden":false,"merged":[[21,9,21,10],[22,9,22,10],[15,11,15,12],[16,11,16,12],[17,11,17,12],[18,11,18,12],[19,11,19,12],[20,11,20,12],[21,11,21,12],[22,11,22,12],[15,9,15,10],[16,9,16,10],[17,9,17,10],[18,9,18,10],[19,9,19,10],[16,5,16,8],[17,5,17,8],[18,5,18,8],[19,5,19,8],[20,9,20,10],[1,1,1,14],[10,1,10,3],[7,1,7,3],[8,1,8,3],[9,1,9,3],[10,4,10,12],[3,1,3,3],[3,7,3,8],[5,1,5,8],[8,4,8,12],[9,4,9,12],[30,8,30,10],[31,8,31,10],[44,8,44,10],[42,8,42,10],[43,8,43,10],[32,8,32,10],[33,8,33,10],[34,8,34,10],[35,8,35,10],[36,8,36,10],[45,8,45,10],[37,8,37,10],[38,8,38,10],[39,8,39,10],[40,8,40,10],[41,8,41,10],[12,1,12,5],[25,1,29,12],[14,5,14,8],[14,9,14,10],[14,11,14,12],[15,1,15,4],[20,5,20,8],[21,5,21,8],[22,5,22,8],[22,1,22,4],[16,1,16,4],[17,1,17,4],[19,1,19,4],[20,1,20,4],[21,1,21,4],[15,5,15,8]]}
[]
[null,{"$f":"IF(EMRIC!$H$4=\"Deutsch\",\"Bestätigung der euregionalen Hilfeleistung FEUERWEHR UND TECHNISCHE HILFELEISTUNG\",IF(EMRIC!$H$4=\"Nederlands\",\"Bevestiging euregionale bijstand BRANDWEER EN TECHNISCHE HULPVERLENING\",IF(EMRIC!$H$4=\"Français\",\"Confirmation d'aide euregionale POMPIERS ET AIDE TECHNIQUE\")))","v":"Bevestiging euregionale bijstand BRANDWEER EN TECHNISCHE HULPVERLENING"}]
[]
[null,{"$f":"IF(EMRIC!$H$4=\"Deutsch\",\"Datum:\",IF(EMRIC!$H$4=\"Nederlands\",\"Datum:\",IF(EMRIC!$H$4=\"Français\",\"Date:\")))","v":"Datum:"},null,null,{"$f":"EMRIC!I17","v":"dd/mm/yy"},null,null,{"$f":"IF(EMRIC!$H$4=\"Deutsch\",\"Uhrzeit:\",IF(EMRIC!$H$4=\"Nederlands\",\"Tijd:\",IF(EMRIC!$H$4=\"Français\",\"Heure:\")))","v":"Tijd:"},null,null,{"$f":"EMRIC!$O$17","v":"00:00:00"},null,null,null,null,null,null,null,null,null,null,null,null,null,null,null,null,null,{"$f":"IF(V!$G$52=TRUE,TRUE,FALSE)","v":{"$error":"#REF!"}}]
[null,null,null,null,null,null,null,null,null,null,null,null,null,null,null,null,null,null,null,null,null,null,null,null,null,null,null,null,{"$f":"IF(V!$G$53=TRUE,TRUE,FALSE)","v":false}]
[null,{"$f":"V!$F$94","v":"Geschatte aankomsttijd op de loodspost"},null,null,null,null,null,null,null,null,"00:00:00",null,null,null,null,null,null,null,null,null,null,null,null,null,null,null,null,null,{"$f":"IF(V!$G$54=TRUE,TRUE,FALSE)","v":{"$error":"#REF!"}}]
[null,null,null,null,null,null,null,null,null,null,null,null,null,null,null,null,null,null,null,null,null,null,null,null,null,null,null,null,{"$f":"IF(V!$G$55=TRUE,TRUE,FALSE)","v":false}]
[null,{"$f":"IF(EMRIC!$H$4=\"Deutsch\",\"ABSENDER:\",IF(EMRIC!$H$4=\"Nederlands\",\"VAN:\",IF(EMRIC!$H$4=\"Français\",\"PAR:\")))","v":"VAN:"},null,null,null,null,null,null,null,null,null,null,null,null,null,null,null,null,null,null,null,null,null,null,null,null,null,null,{"$f":"IF(V!$G$56=TRUE,TRUE,FALSE)","v":{"$error":"#REF!"}}]
[null,"E-mail ",null,null,{"$f":"IF(L!$E$13=1,\"\",IF(L!$E$13=2,CONTACT!$C$2,IF(L!$E$13=3,CONTACT!$C$3,IF(L!$E$13=4,CONTACT!$C$4,IF(L!$E$13=5,CONTACT!$C$5,IF(L!$E$13=6,CONTACT!$C$6,IF(L!$E$13=7,CONTACT!$C$7,IF(L!$E$13=8,CONTACT!$C$8,IF(L!$E$13=9,CONTACT!$C$9)))))))))","v":""},null,null,null,null,null,null,null,null,null,null,null,null,null,null,null,null,null,null,null,null,null,null,null,{"$f":"IF(V!$G$57=TRUE,TRUE,FALSE)","v":false}]
[null,"Tel. ",null,null,{"$f":"IF(L!$E$13=1,\"\",IF(L!$E$13=2,CONTACT!$B$2,IF(L!$E$13=3,CONTACT!$B$3,IF(L!$E$13=4,CONTACT!$B$4,IF(L!$E$13=5,CONTACT!$B$5,IF(L!$E$13=6,CONTACT!$B$6,IF(L!$E$13=7,CONTACT!$B$7,IF(L!$E$13=8,CONTACT!$B$8,IF(L!$E$13=9,CONTACT!$B$9)))))))))","v":""},null,null,null,null,null,null,null,null,null,null,null,null,null,null,null,null,null,null,null,null,null,null,null,{"$f":"IF(V!$G$59=TRUE,TRUE,FALSE)","v":false}]
[null,"Fax.",null,null,{"$f":"IF(L!$E$13=1,\"\",IF(L!$E$13=2,CONTACT!$D$2,IF(L!$E$13=3,CONTACT!$D$3,IF(L!$E$13=4,CONTACT!$D$4,IF(L!$E$13=5,CONTACT!$D$5,IF(L!$E$13=6,CONTACT!$D$6,IF(L!$E$13=7,CONTACT!$D$7,IF(L!$E$13=8,CONTACT!$D$8,IF(L!$E$13=9,CONTACT!$D$9)))))))))","v":""},null,null,null,null,null,null,null,null,null,null,null,null,null,null,null,null,null,null,null,null,null,null,null,{"$f":"IF(V!$G$60=TRUE,TRUE,FALSE)","v":false}]
[]
[null,{"$f":"V!F101","v":"Aangevraagde bijstand:"}]
[null,null,null,null,null,null,null,null,null,null,null,null,null,null,null,null,null,null,null,null,null,null,null,null,null,null,null,null,{"$f":"IF(V!$G$61=TRUE,TRUE,FALSE)","v":false}]
[null,null,null,null,null,{"$f":"IF(EMRIC!$H$4=\"Deutsch\",\"Emric Pakete\",IF(EMRIC!$H$4=\"Nederlands\",\"Emric pakketten\", IF(EMRIC!$H$4=\"Français\",\"Paquets Emric\")))","v":"Emric pakketten"},null,null,null,{"$f":"IF(EMRIC!$H$4=\"Deutsch\",V!$B$59,IF(EMRIC!$H$4=\"Nederlands\",V!$B$60,IF(EMRIC!$H$4=\"Français\",V!$B$61)))","v":"Aanvullende modules zijn zichtbaar na selectie Emric 2 of Emric 3:"},null,{"$f":"V!$F$46","v":"CBRN-METEN:"}]
[null,{"$f":"L!F4","v":"CS 112 Luik (B)"},null,null,null,{"$f":"IF(L!A29=1,\"\",IF(L!A29=2,L!B26,IF(L!A29=3,L!B27,IF(L!A29=4,L!B28))))","v":""},null,null,null,{"$f":"IF(L!E24=1,\"\",IF(L!E24=2,L!F19,IF(L!E24=3,L!F20,IF(L!E24=4,L!F21,IF(L!E24=5,L!F22,IF(L!E24=6,L!F23))))))","v":""},null,{"$f":"IF(L!H28=1,\"\",IF(L!H28=2,L!$I$25,IF(L!H28=3,L!$I$26,IF(L!H28=4,L!$I$27))))","v":""},null,null,null,null,null,null,null,null,null,null,null,null,null,null,null,null,{"$f":"IF(V!$G$62=TRUE,TRUE,FALSE)","v":false}]
[null,{"$f":"L!F5","v":"CS 112 Limburg (B)"},null,null,null,{"$f":"IF(L!A22=1,\"\",IF(L!A22=2,L!B19,IF(L!A22=3,L!B20,IF(L!A22=4,L!B21))))","v":""},null,null,null,{"$f":"IF(L!E32=1,\"\",IF(L!E32=2,L!F27,IF(L!E32=3,L!F28,IF(L!E32=4,L!F29,IF(L!E32=5,L!F30,IF(L!E32=6,L!F31))))))","v":""},null,{"$f":"IF(L!H35=1,\"\",IF(L!H35=2,L!$I$25,IF(L!H35=3,L!$I$26,IF(L!H35=4,L!$I$27))))","v":""},null,null,null,null,null,null,null,null,null,null,null,null,null,null,null,null,{"$f":"IF(V!$G$63=TRUE,TRUE,FALSE)","v":false}]
[null,{"$f":"L!F6","v":"Zone-meldkamer Oost-Limburg (B)"},null,null,null,{"$f":"IF(L!A36=1,\"\",IF(L!A36=2,L!B33,IF(L!A36=3,L!B34,IF(L!A36=4,L!B35))))","v":""},null,null,null,{"$f":"IF(L!E40=1,\"\",IF(L!E40=2,L!F35,IF(L!E40=3,L!F36,IF(L!E40=4,L!F37,IF(L!E40=5,L!F38,IF(L!E40=6,L!F39))))))","v":""},null,{"$f":"IF(L!H42=1,\"\",IF(L!H42=2,L!$I$25,IF(L!H42=3,L!$I$26,IF(L!H42=4,L!$I$27))))","v":""}]
[null,{"$f":"L!F7","v":"Meldkamer Stad/StädteRegion Aken (D)"},null,null,null,{"$f":"IF(L!A43=1,\"\",IF(L!A43=2,L!B40,IF(L!A43=3,L!B41,IF(L!A43=4,L!B42))))","v":""},null,null,null,{"$f":"IF(L!E48=1,\"\",IF(L!E48=2,L!F43,IF(L!E48=3,L!F44,IF(L!E48=4,L!F45,IF(L!E48=5,L!F46,IF(L!E48=6,L!F47))))))","v":""},null,{"$f":"IF(L!H49=1,\"\",IF(L!H49=2,L!$I$25,IF(L!H49=3,L!$I$26,IF(L!H49=4,L!$I$27))))","v":""},null,null,null,null,null,null,null,null,null,null,null,null,null,null,null,null,{"$f":"IF(V!$G$46=TRUE,TRUE,FALSE)","v":false}]
[null,{"$f":"L!F8","v":"Meldkamer Kreis Düren (D)"},null,null,null,{"$f":"IF(L!A50=1,\"\",IF(L!A50=2,L!B47,IF(L!A50=3,L!B48,IF(L!A50=4,L!B49))))","v":""},null,null,null,{"$f":"IF(L!E56=1,\"\",IF(L!E56=2,L!F51,IF(L!E56=3,L!F52,IF(L!E56=4,L!F53,IF(L!E56=5,L!F54,IF(L!E56=6,L!F55))))))","v":""},null,{"$f":"IF(L!H56=1,\"\",IF(L!H56=2,L!$I$25,IF(L!H56=3,L!$I$26,IF(L!H56=4,L!$I$27))))","v":""},null,null,null,null,null,null,null,null,null,null,null,null,null,null,null,null,{"$f":"IF(V!$H$46=TRUE,TRUE,FALSE)","v":false}]
[null,{"$f":"L!F9","v":"Meldkamer Kreis Euskirchen (D)"},null,null,null,{"$f":"IF(L!A57=1,\"\",IF(L!A57=2,L!B54,IF(L!A57=3,L!B55,IF(L!A53=4,L!B56))))","v":""},null,null,null,{"$f":"IF(L!E64=1,\"\",IF(L!E64=2,L!F59,IF(L!E64=3,L!F60,IF(L!E64=4,L!F61,IF(L!E64=5,L!F62,IF(L!E64=6,L!F63))))))","v":""},null,{"$f":"IF(L!H63=1,\"\",IF(L!H63=2,L!$I$25,IF(L!H63=3,L!$I$26,IF(L!H63=4,L!$I$27))))","v":""},null,null,null,null,null,null,null,null,null,null,null,null,null,null,null,null,{"$f":"IF(V!$I$46=TRUE,TRUE,FALSE)","v":false}]
[null,{"$f":"L!F10","v":"Meldkamer Kreis Heinsberg (D)"},null,null,null,{"$f":"IF(L!A64=1,\"\",IF(L!A64=2,L!B61,IF(L!A64=3,L!B62,IF(L!A64=4,L!B63))))","v":""},null,null,null,{"$f":"IF(L!E72=1,\"\",IF(L!E72=2,L!F67,IF(L!E72=3,L!F68,IF(L!E72=4,L!F69,IF(L!E72=5,L!F70,IF(L!E72=6,L!F71))))))","v":""},null,{"$f":"IF(L!H70=1,\"\",IF(L!H70=2,L!$I$25,IF(L!H70=3,L!$I$26,IF(L!H70=4,L!$I$27))))","v":""}]
[null,{"$f":"L!F11","v":"Meldkamer Limburg (NL)"},null,null,null,{"$f":"IF(L!A71=1,\"\",IF(L!A71=2,L!B68,IF(L!A71=3,L!B69,IF(L!A71=4,L!B70))))","v":""},null,null,null,{"$f":"IF(L!E80=1,\"\",IF(L!E80=2,L!F75,IF(L!E80=3,L!F76,IF(L!E80=4,L!F77,IF(L!E80=5,L!F78,IF(L!E80=6,L!F79))))))","v":""},null,{"$f":"IF(L!H77=1,\"\",IF(L!H77=2,L!$I$25,IF(L!H77=3,L!$I$26,IF(L!H77=4,L!$I$27))))","v":""},null,null,null,null,null,null,null,null,null,null,null,null,null,null,null,null,{"$f":"IF(V!$G$42=TRUE,TRUE,FALSE)","v":false}]
[null,null,null,null,null,null,null,null,null,null,null,null,null,null,null,null,null,null,null,null,null,null,null,null,null,null,null,null,{"$f":"IF(V!$G$43=TRUE,TRUE,FALSE)","v":false}]
[null,{"$f":"V!F102","v":"De volgende bijstand kan geleverd worden:"}]
[]
[]
[]
[]
[]
[]
[]
[]
[]
[]
[]
[]
[]
[]
[]
[]
[]
[]
[]
[null,null,null,null,null,null,null,{"$f":"EMRIC!S61","v":""},{"$f":"EMRIC!T61","v":""}]
[null,null,null,null,null,null,null,{"$f":"EMRIC!S62","v":""},{"$f":"EMRIC!T62","v":""}]

{"sheet":"EMRIC pakketten | EMRIC Pakete","index":6,"n_rows":0,"n_cols":0,"rows_kept":0,"cut":false,"hidden":false,"merged":[]}

{"sheet":"CBRN","index":7,"n_rows":18,"n_cols":3,"rows_kept":18,"cut":false,"hidden":false,"merged":[]}
[]
[null,null,"CBRN"]
[null,null,{"$f":"V!F99","v":"Niet mogelijk voor Belgische partners"}]
[]
[null,null,{"$f":"IF(EMRIC!$H$4=\"Deutsch\",\"CBRN_M1 (Deutschland und Niederlande)\",IF(EMRIC!$H$4=\"Nederlands\",\"CBRN_M1 (Duitsland en Nederland)\",IF(EMRIC!$H$4=\"Français\",\"\")))","v":"CBRN_M1 (Duitsland en Nederland)"}]
[null,null,{"$f":"IF(EMRIC!$H$4=\"Deutsch\",\"Alarmierung 1 Adviseur gevaarlijke stoffen (AGS) / 1 Fachberater (FB) CBRN\",IF(EMRIC!$H$4=\"Nederlands\",\"Alarmering 1 AGS / CBRN deskundige (Fachberater (FB))\",IF(EMRIC!$H$4=\"Français\",\"\")))","v":"Alarmering 1 AGS / CBRN deskundige (Fachberater (FB))"}]
[]
[]
[null,null,{"$f":"IF(EMRIC!$H$4=\"Deutsch\",\"CBRN_M2 (in den Niederlanden)\",IF(EMRIC!$H$4=\"Nederlands\",\"CBRN_M2 (in Duitsland)\",IF(EMRIC!$H$4=\"Français\",\"\")))","v":"CBRN_M2 (in Duitsland)"}]
[null,null,{"$f":"IF(EMRIC!$H$4=\"Deutsch\",\"Alarmierung 1 AGS / 1 FB CBRN\",IF(EMRIC!$H$4=\"Nederlands\",\"Alarmering 1 AGS / CBRN deskundige (Fachberater (FB))\",IF(EMRIC!$H$4=\"Français\",\"\")))","v":"Alarmering 1 AGS / CBRN deskundige (Fachberater (FB))"}]
[null,null,{"$f":"IF(EMRIC!$H$4=\"Deutsch\",\"Alarmierung 2 Messtrupps\",IF(EMRIC!$H$4=\"Nederlands\",\"Alarmering 2 ABC verkenners + Ü-meten P(leidinggevenden + 2de CBRN deskundige)\",IF(EMRIC!$H$4=\"Français\",\"\")))","v":"Alarmering 2 ABC verkenners + Ü-meten P(leidinggevenden + 2de CBRN deskundige)"}]
[null,null,{"$f":"IF(EMRIC!$H$4=\"Deutsch\",\"Alarmierung Messplanleiter (MPL)\",IF(EMRIC!$H$4=\"Nederlands\",\"Alarmering van loodspostfunctionaris\",IF(EMRIC!$H$4=\"Français\",\"\")))","v":"Alarmering van loodspostfunctionaris"}]
[]
[]
[null,null,{"$f":"IF(EMRIC!$H$4=\"Deutsch\",\"CBRN_M3 (in den Niederlanden)\",IF(EMRIC!$H$4=\"Nederlands\",\"CBRN_M3 (in Duitsland)\",IF(EMRIC!$H$4=\"Français\",\"\")))","v":"CBRN_M3 (in Duitsland)"}]
[null,null,{"$f":"IF(EMRIC!$H$4=\"Deutsch\",\"Alarmierung 1 AGS / 1 FB CBRN\",IF(EMRIC!$H$4=\"Nederlands\",\"Alarmering CBRN_M1 + Ümeten P (leidinggevende en tweede en/of derde CBRN deskundige)\",IF(EMRIC!$H$4=\"Français\",\"\")))","v":"Alarmering CBRN_M1 + Ümeten P (leidinggevende en tweede en/of derde CBRN deskundige)"}]
[null,null,{"$f":"IF(EMRIC!$H$4=\"Deutsch\",\"Alarmierung von bis zu 5 Messtrupps\",IF(EMRIC!$H$4=\"Nederlands\",\"Alarmering max.5 ABC verkenners (volgens Ümeten 2 maar zonder Einsatzleitwagen (ELW-2))\",IF(EMRIC!$H$4=\"Français\",\"\")))","v":"Alarmering max.5 ABC verkenners (volgens Ümeten 2 maar zonder Einsatzleitwagen (ELW-2))"}]
[null,null,{"$f":"IF(EMRIC!$H$4=\"Deutsch\",\"Alarmierung Messplanleiter (MPL)\",IF(EMRIC!$H$4=\"Nederlands\",\"\",IF(EMRIC!$H$4=\"Français\",\"\")))","v":""}]

{"sheet":"EURODIVE","index":8,"n_rows":13,"n_cols":3,"rows_kept":13,"cut":false,"hidden":true,"merged":[]}
[]
[null,null,"EURODIVE"]
[]
[null,null,"EURODIVE_1"]
[null,null,{"$f":"IF(EMRIC!$H$4=\"Nederlands\",\"1 Team (Enkel in Limburg Noord (NL), Zuid Limburg (NL) en Provincie Limburg (BE))\",IF(EMRIC!$H$4=\"Deutsch\",\"1 Team (Nur in Limburg Noord (NL), Zuid Limburg (NL) und Provincie Limburg (BE))\",IF(EMRIC!$H$4=\"Français\",\"1 Team (Seulement en Limburg Noord (NL), Zuid Limburg (NL) et Province Limburg (BE))\")))","v":"1 Team (Enkel in Limburg Noord (NL), Zuid Limburg (NL) en Provincie Limburg (BE))"}]
[]
[null,null,"EURODIVE_2"]
[null,null,{"$f":"IF(EMRIC!$H$4=\"Nederlands\",\"1 Team (Enkel in Limburg Noord (NL), Zuid Limburg (NL) en Provincie Limburg (BE))\",IF(EMRIC!$H$4=\"Deutsch\",\"1 Team (Nur in Limburg Noord (NL), Zuid Limburg (NL) und Provincie Limburg (BE))\",IF(EMRIC!$H$4=\"Français\",\"1 Team (Seulement en Limburg Noord (NL), Zuid Limburg (NL) et Province Limburg (BE))\")))","v":"1 Team (Enkel in Limburg Noord (NL), Zuid Limburg (NL) en Provincie Limburg (BE))"}]
[]
[null,null,"EURODIVE_3"]
[null,null,{"$f":"IF(EMRIC!$H$4=\"Nederlands\",\"1 Team (Enkel in Zuid Limburg (NL))\",IF(EMRIC!$H$4=\"Deutsch\",\"1 Team (Nur inZuid Limburg (NL))\",IF(EMRIC!$H$4=\"Français\",\"1 Team (Seulement en Zuid Limburg (NL))\")))","v":"1 Team (Enkel in Zuid Limburg (NL))"}]
[null,null,{"$f":"IF(EMRIC!$H$4=\"Nederlands\",\"2 Teams (Enkel in Provincie Limburg (BE))\",IF(EMRIC!$H$4=\"Deutsch\",\"2 Teams (Nur in Provincie Limburg (BE))\",IF(EMRIC!$H$4=\"Français\",\"2 Teams (Seulement en Province Limburg (BE))\")))","v":"2 Teams (Enkel in Provincie Limburg (BE))"}]
[null,null,{"$f":"IF(EMRIC!$H$4=\"Nederlands\",\"3 Teams (Enkel in Aachen (DE))\",IF(EMRIC!$H$4=\"Deutsch\",\"3 Teams (Nur in Aachen (DE))\",IF(EMRIC!$H$4=\"Français\",\"3 Teams (Seulement en Aachen (DE))\")))","v":"3 Teams (Enkel in Aachen (DE))"}]

{"sheet":"CONTACT","index":9,"n_rows":9,"n_cols":7,"rows_kept":9,"cut":false,"hidden":false,"merged":[]}
[{"$f":"IF(EMRIC!$H$4=\"Deutsch\",\"Leitstelle\",IF(EMRIC!$H$4=\"Nederlands\",\"Meldkamer\",IF(EMRIC!$H$4=\"Français\",\"Centrale d'alerte\")))","v":"Meldkamer"},{"$f":"IF(EMRIC!$H$4=\"Deutsch\",\"Telefonnummer\",IF(EMRIC!$H$4=\"Nederlands\",\"Telefoonnummer\",IF(EMRIC!$H$4=\"Français\",\"Numéro de téléphone\")))","v":"Telefoonnummer"},{"$f":"IF(EMRIC!$H$4=\"Deutsch\",\"E-Mail\",IF(EMRIC!$H$4=\"Nederlands\",\"E-mail\",IF(EMRIC!$H$4=\"Français\",\"E-mail\")))","v":"E-mail"},{"$f":"IF(EMRIC!$H$4=\"Deutsch\",\"Fax\",IF(EMRIC!$H$4=\"Nederlands\",\"Fax\",IF(EMRIC!$H$4=\"Français\",\"Fax\")))","v":"Fax"},{"$f":"IF(EMRIC!$H$4=\"Deutsch\",\"Adresse\",IF(EMRIC!$H$4=\"Nederlands\",\"Adres\",IF(EMRIC!$H$4=\"Français\",\"Adres\")))","v":"Adres"},{"$f":"IF(EMRIC!$H$4=\"Deutsch\",\"Funk\",IF(EMRIC!$H$4=\"Nederlands\",\"Radio\",IF(EMRIC!$H$4=\"Français\",\"Radio\")))","v":"Radio"},{"$f":"IF(EMRIC!$H$4=\"Deutsch\",\"Bemerkungen\",IF(EMRIC!$H$4=\"Nederlands\",\"Opmerkingen\",IF(EMRIC!$H$4=\"Français\",\"Remarques\")))","v":"Opmerkingen"}]
[{"$f":"V!F67","v":"CS 112 Luik (B)"},"0032 43 41 99 41","dispatchers@cs112.com","0032 43 41 30 87","Centre de Secours 112 de Liège\nRue du Nord Belge, 6\nB - 4020 Liège",null,{"$f":"IF(EMRIC!$H$4=\"Deutsch\",\"Geheime Nummer für Leitstellen in der EMR\",IF(EMRIC!$H$4=\"Nederlands\",\"geheim nummer voor meldkamers in de EMR\",IF(EMRIC!$H$4=\"Français\",\"Numéro secret pour centrale d'alerte dans l'EMR\")))","v":"geheim nummer voor meldkamers in de EMR"}]
[{"$f":"V!F68","v":"CS 112 Limburg (B)"},"0032 11 278531","HCS112limburg@ibz.fgov.be","0032 11 27 85 34","Dienst 100 Hasselt\nWillekensmolenstraat 120\nB - 3500 Hasselt"]
[{"$f":"V!F69","v":"Zone-meldkamer Oost-Limburg (B)"},"0032 89 35 28 88","dispatch@bwol.be","0032 89 65 33 00","Brandweerzone Oost-Limburg\nzone-meldkamer\nC-mine 50\nB - 3600 Genk"]
[{"$f":"V!F70","v":"Meldkamer Stad/StädteRegion Aken (D)"},"0049 241 19296","Leitstelle.StaedteRegion.Aachen@mail.aachen.de","0049 241 512527","StädteRegion Aachen\nFeuerwehr Aachen\nStolberger Strasse 155\nD - 52068 Aachen","4m Band Kanal 470 U/G und 468 U/G"]
[{"$f":"V!F71","v":"Meldkamer Kreis Düren (D)"},"0049 2421 5590","Leitstelle@Kreis-Dueren.de","0049 2421 559155","Kreisleitstelle Düren\nMarienstrasse 29\nD - 52372 Kreuzau","Digital: DN_Anruf2101          (4-m-Band 463 U/G)"]
[{"$f":"V!F72","v":"Meldkamer Kreis Euskirchen (D)"},"0049 2251 5036","Leitstelle@Kreis-Euskirchen.de / Leitstelle@Gefahrenabwehr-Kreis-Euskirchen.de","0049 2251 72303","Kreisleitstelle Euskirchen\nJülicher Ring 32\nD - 53879 Euskirchen","Digital: EU_ANRUF                (4m Band Kanal 465 U/G)"]
[{"$f":"V!F73","v":"Meldkamer Kreis Heinsberg (D)"},"0049 243119296","Leitstelle@Kreis-Heinsberg.de","0049 2452 13887000","Feuerschutzzentrum Kreis Heinsberg\nLeitstelle F/R\nZur Feuerwache 6\nD - 41812 Erkelenz","4m Band Kanal 467 U/G    TMO-HS_BOS; HS_ANRUF"]
[{"$f":"V!F74","v":"Meldkamer Limburg (NL)"},"0031 88 06 19 223    |  0031 88 06 19 273","meldkamerbrandweer@gmkl.nl","0031 43 32 56 954","Meldkamer Brandweer\nRegionale Alarm Centrale\nMCC\nPrins Bisschopsingel 53\nNL - 6212 AB Maastricht",null,{"$f":"IF(EMRIC!$H$4=\"Deutsch\",\"Spezielle Nummer für Leitstellen in der EMR\",IF(EMRIC!$H$4=\"Nederlands\",\"speciaal nummer voor meldkamers in de EMR\",IF(EMRIC!$H$4=\"Français\",\"Numéro spécial pour centrale d'alerte dans l'EMR\")))","v":"speciaal nummer voor meldkamers in de EMR"}]

{"sheet":"Loodsposten-Lotsenstellen-eurog","index":10,"n_rows":86,"n_cols":4,"rows_kept":86,"cut":false,"hidden":false,"merged":[[62,2,62,3],[76,2,76,3],[1,2,1,3],[12,2,12,3],[18,2,18,3],[30,2,30,3],[48,2,48,3],[56,2,56,3]]}
[]
[null,"LIÈGE"]
["#","Adres/Adresse/l'adres","GPS N","GPS E"]
[]
["BE-LIE 1","A3/E40 Aix-> Bruxelles | Lichtenbusch | Station Essence TOTAL","50°43'05''N","6°07'11''E"]
["BE-LIE 2","A3/E40 Aix -> Bruxelles | Barchon | Station essence SHELL (BK 102,2)","50°39'23''N","5°42'41''E"]
["BE-LIE 3","A25/E25 Maastricht-> Liège | Air de repos de Visé (BK 0,8)","50°44'54''N","5°41'34''E"]
["BE-LIE 4","A13/E313 Hasselt-> Liège | Aire de repos de Slins (BK 103,3)","50°44'10''N","5°34'40''E"]
["BE-LIE 5","A3/E40 Bruxelles-> Liège | Aire de repos de Louhin à Crisnée (BK 78,9)","50°41'16''N","5°24'47''E"]
["BE-LIE 6","A15/E42 Namur-> Liège | Aire de repos de Verlaine | Station Essence Q8 (BK 15,9)","50°35'31''N","5°18'14''E"]
[]
[]
[null,"OOST LIMBURG"]
["#","Adres/Adresse/l'adres","GPS N","GPS E"]
[]
["BWOL 1","Bruno's Food Corner Maasmechelen, Rijksweg 471","50°57'19.1''N ","5°41'41.4''E"]
[]
[]
[null,"STADT AACHEN"]
["#","Adres/Adresse/l'adres","GPS N","GPS E"]
[]
["ACS LS 1","Eschweiler, BAB 4 Raststätte Aachener Land Nord (20 Fahrzeuge)","50°49'4.17''N"," 6°12'50.24''E"]
["ACS LS 2","Aachen, BAB 4 Zollamt Vetschau","50°49'6.54''N ","6°1'27.88''E"]
["ACS LS 3","Aachen, BAB 44 Zollamt Lichtenbusch","50°43'7.36''N ","6°7'16.13''E"]
["ACS LP 4","Würselen, BAB 44 Ausfahrt Broichweiden","50°49'24.04''N ","6°10'33.69''E"]
["ACS LP 5","Aachen, Vaalserquartier, Vaalserstr. Grenzübergang","50°46'15.72''N ","6°1'30.51''E"]
["ACS LP 6","Aachen, Lütticher Straße Grenzübergang Bildchen, Parkstreifen","50°43'49.11''N ","6°2'25.51''E"]
["ACS LP 7","Aachen, Trierer Straße Richtung AC Busspur zw. Debeystr. und Triererplatz","50°45'30.98''N ","6°8'40.26''E"]
[]
[]
[null,"STÄDTEREGION AACHEN"]
["#","Adres/Adresse/l'adres","GPS N","GPS E"]
[]
["Kr.AC B1","Eschweiler, Am Kraftwerk 17 (A4/L 241 Weisweiler, Parkplatz RWE-Power)","50°50'11''N ","6°19'5''E"]
["KrAC LS 2","Baesweiler, Hauptstr. (B 57/B 56 Baesweiler, Puffendorferkreuzung)","50°56'12''N ","6°12'46''E"]
["KrAC LS 3","Alsdorf, L 240 (A44/L 240 AS Alsdorf)","50°51'58''N ","6°13'22''E"]
["KrAC LS 4","Eschweiler, Am Kraftwerk - K 35 (A4/L 241 AS Weisweiler)","50°50'5''N ","6°19'42''E"]
["KrAC LS 5","Eschweiler, Kölnerstraße (B 264 Eschweiler-Weisweiler, Langerweher Str., Ortseingang)","50°49'37''N ","6°20'01''E"]
["KrAC LS 6","Simmerath, Jägerhausstraße (B 399 Simmerath-Lammersdorf, Forsthaus Jägerhaus)","50°40'10''N ","6°17'52''E"]
["KrAC LS 7","Simmerath, Kölnerstraße (L 246 Simmerath-Strauch, Gerstenhof)","50°39'16''N ","6°22'38''E"]
["KrAC LS 8","Simmerath B 266, Rurstraße (B 266 Simmerath-Einruhr /Obersee)","50°34'52''N ","6°22'46''E"]
["KrAC LS 9","Monschau, Hauptstraße (B 258 Monschau-Höfen,Bratherhof)","50°31'28''N ","6°17'43''E"]
["KrAC LS 10","Monschau, Malmedyerstraße (B 399/N 669 Monschau-Kalterherberg Grenzübergang, Malmedyerstr.)","50°30'48''N ","6°12'39''E"]
["KrAC LS 11","Monschau, Eupenerstraße (L 214/N 67d Monschau-Mützenich Grenzübergang, Eupener Str.)","50°33'56''N ","6°11'31''E"]
["KrAC LS 12","Aachen, Monschauerstr./Schleidenerstr. (B 258 Aachen, Relais Königsberg)","50°40'57''N ","6°10'50''E"]
["KrAC LS 13","Geilenkirchenerstraße (B 221/L 232 Herzogenrath-Merkstein (Geilenkirchener Str.))","50°54'07''N ","6°08'11''E"]
[]
[]
[null,"KREIS DÜREN"]
["#","Adres/Adresse/l'adres","GPS N","GPS E"]
[]
["DN 1","Nördlich Kreisgebiet, Parkplatz Brückenkopfpark (Rurauenstr. 11, Jülich)","50°55'27.0012\"N ","6°20'21.0012\"E"]
["DN 2","Mittleres Kreisgebiet, Industriegebiet Großes Tal (Willi Bleicher Str. 19-21, Düren)","50°50'15''N ","6°27'56.0016\"E"]
["DN 3","Südl. Kreisgebiet, Amt für Bevölkerungsschutz Kreis Düren (Marienstr. 29, Kreuzau)","50°45'24.0012''N ","6°31'13.0008''E"]
[]
[]
[null,"KREIS EUSKIRCHEN"]
["#","Adres/Adresse/l'adres","GPS N","GPS E"]
[]
["EUS 1","Bundesstraße B265 / Parkplatz \"Am Weissen Stein\", Hellenthal-Udenbreth","50°24'26''N ","6°22'09''E"]
[]
[]
[null,"KREIS HEINSBERG"]
["#","Adres/Adresse/l'adres","GPS N","GPS E"]
[]
["HS 1","B221 Höhe Ortschaft Arsbeck","51°09'18''N ","6°12'45''E"]
["HS 2","BAB 46 Parkplatz Herrather Linde","51°05'58''N ","6°21'39''E"]
["HS 3","Hückelhoven-Baal, Lövenicher Str. 40, Grundschule","51°02'09''N ","6°17'06''E"]
["HS 4","Parkplatz B56 vor Abfahrt L42","50°57'21''N ","6°06'15''E"]
["HS 5","Übach-Palenberg > Geilenkirchen Parkplatz, B221","50°56'09''N ","6°07'59''E"]
["HS 6","Gangelt Kreisverkehr L410 / B56","50°59'44''N ","5°57'35''E"]
["HS 7","Grenzübergang Selfkant B56n / N297","51°01'45''N ","5°52'37''E"]
["HS 8","Grenzübergang Waldfeucht Brabanter Str.","51°04'10''N ","5°58'55''E"]
["HS 9","Grenzübergang Rothenbach L117","51°08'21''N ","6°07'12''E"]
[]
[]
[null,"ZUID-LIMBURG"]
["#","Adres/Adresse/l'adres","GPS N","GPS E"]
[]
["24LP01 (NL-ZL 1)","A2 (E25) Eindhoven \" Maastricht, Esso tankstation / parkeerplaats \"Het Anker\"","51°03'31.6''N ","5°49'29.5''E"]
["24LP02 (NL-ZL 2)","\"Hotel Stein\" (Van der Valk, Urmond), Mauritslaan 65, Urmond, direct aan A2 (E25) Eindhoven D Maastricht","50°59'16.29''N ","5°46'49.27''E"]
["24LP03 (NL-ZL 3)","\"Apple Park\" P. de Coubertinweg 3, direct aan N2 (E25) Eindhoven D Maastricht","50°51'30.27''N ","5°43'1.42''E"]
["24LP04 (NL-ZL 4)","A2 (E25) Luik \" Maastricht, BP tankstation / parkeerplaats \"Patiel\"","50°46'35.6''N ","5°43'45.4''E"]
["24LP05 (NL-ZL 5)","A76 (E314) Aken \" Heerlen, Esso tankstation / parkeerplaats \"Langveld\"","50°49'24.5''N ","6°01'17.0''E"]
["24LP06 (NL-ZL 6)","Bloemendalstraat 150, Vaals., Hotel \"Kasteel Bloemendal\"","50°46'23.5''N ","6°00'49.5''E"]
["24LP07 (NL-ZL 7)","Leuperweg 2, Schinveld, Brandweerkazerne Onderbanken","50°57'58.4''N ","5°58'17.5''E"]